Workbook

Sheet Supp. Table S1|Plants materials
A1: Supplementary Table 1. Summary of plant materials and derived information
A3: No. | B3: Species | C3: Collection ID | D3: sequencing ID | E3: cp-rDNA_tree_dating | F3: 35S rDNA tree_label (panrepeatomics) | G3: 2n | H3: GS | I3: Subgenus | J3: Series | K3: Repeat_group | L3: Microsatellite | M3: RepeatExplorer | N3: 35S rDNA tree | O3: 35S rDNA tree order
A4: 1 | B4: C. adanensis | C4: 14008-3 | D4: cr0001 | E4: YES | F4: =CONCATENATE(Table26[[#This Row],[sequencing ID]]," ",Table26[[#This Row],[Species]]," ",Table26[[#This Row],[Collection ID]]) -> cr0001 C. adanensis 14008-3 | G4: 14 | I4: Nudiscapus | J4: Flavi | K4: Adanensi | L4: YES | M4: YES | N4: YES | O4: 158
A5: 2 | B5: C. paschei | C5: 14010-1 | D5: cr0002 | E5: YES | F5: =CONCATENATE(Table26[[#This Row],[sequencing ID]]," ",Table26[[#This Row],[Species]]," ",Table26[[#This Row],[Collection ID]]) -> cr0002 C. paschei 14010-1 | G5: 14 | I5: Nudiscapus | J5: Flavi | K5: Adanensi | L5: YES | M5: YES | N5: YES | O5: 157
A6: 3 | B6: C. abantensis | C6: VVVA315 | D6: cr0024 | E6: YES | F6: =CONCATENATE(Table26[[#This Row],[sequencing ID]]," ",Table26[[#This Row],[Species]]," ",Table26[[#This Row],[Collection ID]]) -> cr0024 C. abantensis VVVA315 | G6: 16 | I6: Nudiscapus | J6: Abantensis | K6: Nudiscapus | L6: YES | M6: YES | N6: YES | O6: 161
A7: 4 | B7: C. pestalozzae | C7: SYZB3831 | D7: cr0604 | E7: NO | F7: =CONCATENATE(Table26[[#This Row],[sequencing ID]]," ",Table26[[#This Row],[Species]]," ",Table26[[#This Row],[Collection ID]]) -> cr0604 C. pestalozzae SYZB3831 | I7: Nudiscapus | J7: Pestalozzae | K7: Aleppici | L7: YES | M7: YES | N7: YES | O7: 118
A8: 5 | B8: C. bowlesianus | C8: HKEP0009 | D8: cr0622 | E8: YES | F8: =CONCATENATE(Table26[[#This Row],[sequencing ID]]," ",Table26[[#This Row],[Species]]," ",Table26[[#This Row],[Collection ID]]) -> cr0622 C. bowlesianus HKEP0009 | G8: 10 | I8: Nudiscapus | J8: Wattiorum | K8: Biflori | L8: YES | M8: YES | N8: YES | O8: 171
A9: 6 | B9: C. mawii | C9: HKEP0413 | D9: cr0624 | E9: YES | F9: =CONCATENATE(Table26[[#This Row],[sequencing ID]]," ",Table26[[#This Row],[Species]]," ",Table26[[#This Row],[Collection ID]]) -> cr0624 C. mawii HKEP0413 | G9: 12 | I9: Nudiscapus | J9: Mawii | K9: Punctati | L9: YES | M9: YES | N9: YES | O9: 197
A10: 7 | B10: C. schneideri | C10: HKEP0514 | D10: cr0626 | E10: YES | F10: =CONCATENATE(Table26[[#This Row],[sequencing ID]]," ",Table26[[#This Row],[Species]]," ",Table26[[#This Row],[Collection ID]]) -> cr0626 C. schneideri HKEP0514 | G10: 20 | I10: Nudiscapus | J10: Adamii | K10: Adami | L10: YES | M10: YES | N10: YES | O10: 132
A11: 8 | B11: C. ancyrensis | C11: BATM340 | D11: cr0743 | E11: YES | F11: =CONCATENATE(Table26[[#This Row],[sequencing ID]]," ",Table26[[#This Row],[Species]]," ",Table26[[#This Row],[Collection ID]]) -> cr0743 C. ancyrensis BATM340 | G11: 10 | I11: Nudiscapus | J11: Reticulati | K11: Reticulati | L11: YES | M11: YES | N11: YES | O11: 167
A12: 9 | B12: C. balcanensis | C12: HKEP1469 | D12: cr0883 | E12: YES | F12: =CONCATENATE(Table26[[#This Row],[sequencing ID]]," ",Table26[[#This Row],[Species]]," ",Table26[[#This Row],[Collection ID]]) -> cr0883 C. balcanensis HKEP1469 | G12: 26 | I12: Crocus | J12: Sieberi | K12: Sieberi | L12: YES | M12: YES | N12: YES | O12: 36
A13: 10 | B13: C. cf_variegatus | C13: SC-1402 | D13: cr0916 | E13: YES | F13: =CONCATENATE(Table26[[#This Row],[sequencing ID]]," ",Table26[[#This Row],[Species]]," ",Table26[[#This Row],[Collection ID]]) -> cr0916 C. cf_variegatus SC-1402 | G13: 14 | I13: Nudiscapus | J13: Reticulati | K13: Reticulati | L13: YES | M13: YES | N13: YES | O13: 164
A14: 11 | B14: C. adamii | C14: CMGG021 | D14: cr1027 | E14: YES | F14: =CONCATENATE(Table26[[#This Row],[sequencing ID]]," ",Table26[[#This Row],[Species]]," ",Table26[[#This Row],[Collection ID]]) -> cr1027 C. adamii CMGG021 | I14: Nudiscapus | J14: Adamii | K14: Adami | L14: YES | M14: NO | N14: NO | O14: na
A15: 12 | B15: C. adamii | C15: CMGG031 | D15: cr1032 | E15: YES | F15: =CONCATENATE(Table26[[#This Row],[sequencing ID]]," ",Table26[[#This Row],[Species]]," ",Table26[[#This Row],[Collection ID]]) -> cr1032 C. adamii CMGG031 | G15: 20 | I15: Nudiscapus | J15: Adamii | K15: Adami | L15: YES | M15: YES | N15: YES | O15: 141
A16: 13 | B16: C. biflorus | C16: HKEP1406 | D16: cr1131 | E16: YES | F16: =CONCATENATE(Table26[[#This Row],[sequencing ID]]," ",Table26[[#This Row],[Species]]," ",Table26[[#This Row],[Collection ID]]) -> cr1131 C. biflorus HKEP1406 | I16: Nudiscapus | J16: Biflori | K16: Biflori | L16: YES | M16: NO | N16: NO | O16: na
A17: 14 | B17: C. nivalis | C17: NA | D17: cr1447 | E17: YES | F17: =CONCATENATE(Table26[[#This Row],[sequencing ID]]," ",Table26[[#This Row],[Species]]," ",Table26[[#This Row],[Collection ID]]) -> cr1447 C. nivalis NA | I17: Crocus | J17: Sieberi | K17: Sieberi | L17: YES | M17: NO | N17: NO | O17: na
A18: 15 | B18: C. dissectus | C18: P82110 | D18: cr1729 | E18: YES | F18: =CONCATENATE(Table26[[#This Row],[sequencing ID]]," ",Table26[[#This Row],[Species]]," ",Table26[[#This Row],[Collection ID]]) -> cr1729 C. dissectus P82110 | G18: 8 | I18: Nudiscapus | J18: Flavi | K18: Flavi | L18: YES | M18: YES | N18: YES | O18: 153
A19: 16 | B19: C. hittiticus | C19: BM8449 | D19: cr1760 | E19: YES | F19: =CONCATENATE(Table26[[#This Row],[sequencing ID]]," ",Table26[[#This Row],[Species]]," ",Table26[[#This Row],[Collection ID]]) -> cr1760 C. hittiticus BM8449 | G19: 10 | I19: Nudiscapus | J19: Reticulati | K19: Reticulati | L19: YES | M19: YES | N19: YES | O19: 168
A20: 17 | B20: C. mucegetii | C20: OE191 | D20: cr1802 | E20: YES | F20: =CONCATENATE(Table26[[#This Row],[sequencing ID]]," ",Table26[[#This Row],[Species]]," ",Table26[[#This Row],[Collection ID]]) -> cr1802 C. mucegetii OE191 | I20: Nudiscapus | J20: Adamii | K20: Adami | L20: YES | M20: NO | N20: NO | O20: na
A21: 18 | B21: C. cf_damascenus | C21: HKEP1543 | D21: cr2011 | E21: NO | F21: =CONCATENATE(Table26[[#This Row],[sequencing ID]]," ",Table26[[#This Row],[Species]]," ",Table26[[#This Row],[Collection ID]]) -> cr2011 C. cf_damascenus HKEP1543 | I21: Nudiscapus | J21: Cancellati | K21: Cancellati | L21: YES | M21: YES | N21: YES | O21: 184
A22: 19 | B22: C. caspius | C22: HKEP1554a | D22: cr2040 | E22: YES | F22: =CONCATENATE(Table26[[#This Row],[sequencing ID]]," ",Table26[[#This Row],[Species]]," ",Table26[[#This Row],[Collection ID]]) -> cr2040 C. caspius HKEP1554a | G22: 24 | I22: Orientalis | J22: Orientalis | K22: Orientales | L22: YES | M22: YES | N22: YES | O22: 5
A23: 20 | B23: C. aleppicus | C23: NA | D23: cr2112 | E23: YES | F23: =CONCATENATE(Table26[[#This Row],[sequencing ID]]," ",Table26[[#This Row],[Species]]," ",Table26[[#This Row],[Collection ID]]) -> cr2112 C. aleppicus NA | G23: 16 | H23: 8.10 | I23: Nudiscapus | J23: Aleppici | K23: Aleppici | L23: YES | M23: YES | N23: YES | O23: 122
A24: 21 | B24: C. aleppicus | C24: NA | D24: cr2121 | E24: YES | F24: =CONCATENATE(Table26[[#This Row],[sequencing ID]]," ",Table26[[#This Row],[Species]]," ",Table26[[#This Row],[Collection ID]]) -> cr2121 C. aleppicus NA | G24: 16 | H24: 8.10 | I24: Nudiscapus | J24: Aleppici | K24: Aleppici | L24: YES | M24: YES | N24: YES | O24: 120
A25: 22 | B25: C. species_NOva_4 | C25: NA | D25: cr2127 | E25: YES | F25: =CONCATENATE(Table26[[#This Row],[sequencing ID]]," ",Table26[[#This Row],[Species]]," ",Table26[[#This Row],[Collection ID]]) -> cr2127 C. species_NOva_4 NA | I25: Nudiscapus | J25: Cancellati | K25: Cancellati | L25: YES | M25: YES | N25: YES | O25: 188
A26: 23 | B26: C. giladensis | C26: OP214339 | D26: cr2130 | E26: NO | F26: =CONCATENATE(Table26[[#This Row],[sequencing ID]]," ",Table26[[#This Row],[Species]]," ",Table26[[#This Row],[Collection ID]]) -> cr2130 C. giladensis OP214339 | H26: 9.93 | I26: Nudiscapus | J26: Cancellati | K26: Cancellati | L26: YES | M26: YES | N26: YES | O26: 189
A27: 24 | B27: C. veneris | C27: NA | D27: cr2132 | E27: YES | F27: =CONCATENATE(Table26[[#This Row],[sequencing ID]]," ",Table26[[#This Row],[Species]]," ",Table26[[#This Row],[Collection ID]]) -> cr2132 C. veneris NA | G27: 16 | H27: 8.43 | I27: Nudiscapus | J27: Aleppici | K27: Aleppici | L27: YES | M27: YES | N27: YES | O27: 125
A28: 25 | B28: C. spec._NOva_1 | C28: DH1518a | D28: cr2250 | E28: YES | F28: =CONCATENATE(Table26[[#This Row],[sequencing ID]]," ",Table26[[#This Row],[Species]]," ",Table26[[#This Row],[Collection ID]]) -> cr2250 C. spec._NOva_1 DH1518a | I28: Crocus | J28: Sieberi | K28: Sieberi | L28: YES | M28: YES | N28: YES | O28: 46
A29: 26 | B29: C. kosaninii | C29: DH1804 | D29: cr2261 | E29: YES | F29: =CONCATENATE(Table26[[#This Row],[sequencing ID]]," ",Table26[[#This Row],[Species]]," ",Table26[[#This Row],[Collection ID]]) -> cr2261 C. kosaninii DH1804 | G29: 14 | H29: 8.50 | I29: Crocus | J29: Verni | K29: Verni | L29: YES | M29: YES | N29: YES | O29: 60
A30: 27 | B30: C. variegatus | C30: NA | D30: cr2336 | E30: YES | F30: =CONCATENATE(Table26[[#This Row],[sequencing ID]]," ",Table26[[#This Row],[Species]]," ",Table26[[#This Row],[Collection ID]]) -> cr2336 C. variegatus NA | G30: 14 | I30: Nudiscapus | J30: Reticulati | K30: Reticulati | L30: YES | M30: YES | N30: YES | O30: 163
A31: 28 | B31: C. baytopiorum | C31: NA | D31: cr2443 | E31: YES | F31: =CONCATENATE(Table26[[#This Row],[sequencing ID]]," ",Table26[[#This Row],[Species]]," ",Table26[[#This Row],[Collection ID]]) -> cr2443 C. baytopiorum NA | G31: 28 | H31: 9.00 | I31: Crocus | J31: Baytopiorum | K31: Crocus | L31: YES | M31: YES | N31: YES | O31: 20
A32: 29 | B32: C. chrysanthus | C32: NA | D32: cr2453 | E32: YES | F32: =CONCATENATE(Table26[[#This Row],[sequencing ID]]," ",Table26[[#This Row],[Species]]," ",Table26[[#This Row],[Collection ID]]) -> cr2453 C. chrysanthus NA | G32: 8 | I32: Nudiscapus | J32: Punctati | K32: Punctati | L32: YES | M32: YES | N32: YES | O32: 213
A33: 30 | B33: C. alatavicus | C33: KZ053_1 | D33: cr2612 | E33: YES | F33: =CONCATENATE(Table26[[#This Row],[sequencing ID]]," ",Table26[[#This Row],[Species]]," ",Table26[[#This Row],[Collection ID]]) -> cr2612 C. alatavicus KZ053_1 | G33: 20 | H33: 9.20 | I33: Orientalis | J33: Orientalis | K33: Orientales | L33: YES | M33: YES | N33: YES | O33: 8
A34: 31 | B34: C. boryi | C34: HKEP1578 | D34: cr2631 | E34: YES | F34: =CONCATENATE(Table26[[#This Row],[sequencing ID]]," ",Table26[[#This Row],[Species]]," ",Table26[[#This Row],[Collection ID]]) -> cr2631 C. boryi HKEP1578 | G34: 30 | H34: 7.80 | I34: Nudiscapus | J34: Laevigati | K34: Laevigati | L34: YES | M34: YES | N34: YES | O34: 113
A35: 32 | B35: C. species_FS2 | C35: HKEP1569 | D35: cr2715 | E35: NO | F35: =CONCATENATE(Table26[[#This Row],[sequencing ID]]," ",Table26[[#This Row],[Species]]," ",Table26[[#This Row],[Collection ID]]) -> cr2715 C. species_FS2 HKEP1569 | H35: 4.49 | I35: Crocus | J35: Serotini | K35: Serotini | L35: YES | M35: YES | N35: YES | O35: 97
A36: 33 | B36: C. suaveolens | C36: HKEP1319 | D36: cr2876 | E36: YES | F36: =CONCATENATE(Table26[[#This Row],[sequencing ID]]," ",Table26[[#This Row],[Species]]," ",Table26[[#This Row],[Collection ID]]) -> cr2876 C. suaveolens HKEP1319 | G36: 26 | I36: Crocus | J36: Versicolores | K36: Sect_Crocus | L36: YES | M36: YES | N36: YES | O36: 84
A37: 34 | B37: C. serotinus | C37: HKEP1379 | D37: cr2902 | E37: NO | F37: =CONCATENATE(Table26[[#This Row],[sequencing ID]]," ",Table26[[#This Row],[Species]]," ",Table26[[#This Row],[Collection ID]]) -> cr2902 C. serotinus HKEP1379 | H37: 4.45 | I37: Crocus | J37: Serotini | K37: Serotini | L37: YES | M37: YES | N37: YES | O37: 95
A38: 35 | B38: C. species_F14 | C38: HKEP1495 | D38: cr2926 | E38: NO | F38: =CONCATENATE(Table26[[#This Row],[sequencing ID]]," ",Table26[[#This Row],[Species]]," ",Table26[[#This Row],[Collection ID]]) -> cr2926 C. species_F14 HKEP1495 | H38: 4.29 | I38: Crocus | J38: Serotini | K38: Serotini | L38: YES | M38: YES | N38: YES | O38: 100
A39: 36 | B39: C. salzmannii | C39: HKEP1499 | D39: cr2931 | E39: NO | F39: =CONCATENATE(Table26[[#This Row],[sequencing ID]]," ",Table26[[#This Row],[Species]]," ",Table26[[#This Row],[Collection ID]]) -> cr2931 C. salzmannii HKEP1499 | H39: 7.17 | I39: Crocus | J39: Serotini | K39: Serotini | L39: YES | M39: YES | N39: YES | O39: 89
A40: 37 | B40: C. asumaniae | C40: SC45 | D40: cr2974 | E40: YES | F40: =CONCATENATE(Table26[[#This Row],[sequencing ID]]," ",Table26[[#This Row],[Species]]," ",Table26[[#This Row],[Collection ID]]) -> cr2974 C. asumaniae SC45 | G40: 26 | H40: 5.10 | I40: Crocus | J40: Crocus | K40: Crocus | L40: YES | M40: YES | N40: YES | O40: 27
A41: 38 | B41: C. mathewii | C41: SB7 | D41: cr2983 | E41: YES | F41: =CONCATENATE(Table26[[#This Row],[sequencing ID]]," ",Table26[[#This Row],[Species]]," ",Table26[[#This Row],[Collection ID]]) -> cr2983 C. mathewii SB7 | G41: 16 | H41: 6.17 | I41: Crocus | J41: Crocus | K41: Crocus | L41: YES | M41: YES | N41: YES | O41: 22
A42: 39 | B42: C. ligusticus | C42: NA | D42: cr3014 | E42: YES | F42: =CONCATENATE(Table26[[#This Row],[sequencing ID]]," ",Table26[[#This Row],[Species]]," ",Table26[[#This Row],[Collection ID]]) -> cr3014 C. ligusticus NA | G42: 24 | I42: Crocus | J42: Ligustici | K42: OG_Verni | L42: YES | M42: YES | N42: YES | O42: 53
A43: 40 | B43: C. cambessedesii | C43: NA | D43: cr3023 | E43: YES | F43: =CONCATENATE(Table26[[#This Row],[sequencing ID]]," ",Table26[[#This Row],[Species]]," ",Table26[[#This Row],[Collection ID]]) -> cr3023 C. cambessedesii NA | G43: 16 | H43: 7.58 | I43: Crocus | J43: Versicolores | K43: Sect_Crocus | L43: YES | M43: YES | N43: YES | O43: 77
A44: 41 | B44: C. kotschyanus | C44: HKEP1633 | D44: cr3158 | E44: YES | F44: =CONCATENATE(Table26[[#This Row],[sequencing ID]]," ",Table26[[#This Row],[Species]]," ",Table26[[#This Row],[Collection ID]]) -> cr3158 C. kotschyanus HKEP1633 | G44: 8 | I44: Crocus | J44: Kotschyani | K44: Kotschyani | L44: YES | M44: YES | N44: YES | O44: 17
A45: 42 | B45: C. haussknechtii | C45: HKEP1635 | D45: cr3164 | E45: YES | F45: =CONCATENATE(Table26[[#This Row],[sequencing ID]]," ",Table26[[#This Row],[Species]]," ",Table26[[#This Row],[Collection ID]]) -> cr3164 C. haussknechtii HKEP1635 | G45: 16 | H45: 5.17 | I45: Crocus | J45: Crocus | K45: Crocus | L45: YES | M45: YES | N45: YES | O45: 32
A46: 43 | B46: C. iranicus | C46: HKEP1636 | D46: cr3166 | E46: YES | F46: =CONCATENATE(Table26[[#This Row],[sequencing ID]]," ",Table26[[#This Row],[Species]]," ",Table26[[#This Row],[Collection ID]]) -> cr3166 C. iranicus HKEP1636 | I46: Nudiscapus | J46: Adamii | K46: Adami | L46: YES | M46: YES | N46: YES | O46: 142
A47: 44 | B47: C. nudiflorus | C47: HKEP1642 | D47: cr3187 | E47: YES | F47: =CONCATENATE(Table26[[#This Row],[sequencing ID]]," ",Table26[[#This Row],[Species]]," ",Table26[[#This Row],[Collection ID]]) -> cr3187 C. nudiflorus HKEP1642 | G47: 44 | H47: 6.79 | I47: Crocus | J47: Serotini | K47: Serotini | L47: YES | M47: YES | N47: YES | O47: 85
A48: 45 | B48: C. corsicus | C48: DS | D48: cr3196 | E48: YES | F48: =CONCATENATE(Table26[[#This Row],[sequencing ID]]," ",Table26[[#This Row],[Species]]," ",Table26[[#This Row],[Collection ID]]) -> cr3196 C. corsicus DS | G48: 18 | H48: 8.04 | I48: Crocus | J48: Versicolores | K48: Sect_Crocus | L48: YES | M48: YES | N48: YES | O48: 82
A49: 46 | B49: C. minimus | C49: DS | D49: cr3198 | E49: YES | F49: =CONCATENATE(Table26[[#This Row],[sequencing ID]]," ",Table26[[#This Row],[Species]]," ",Table26[[#This Row],[Collection ID]]) -> cr3198 C. minimus DS | G49: 24 | H49: 8.41 | I49: Crocus | J49: Versicolores | K49: Sect_Crocus | L49: YES | M49: YES | N49: YES | O49: 80
A50: 47 | B50: C. longiflorus | C50: FB2016-027 | D50: cr3204 | E50: YES | F50: =CONCATENATE(Table26[[#This Row],[sequencing ID]]," ",Table26[[#This Row],[Species]]," ",Table26[[#This Row],[Collection ID]]) -> cr3204 C. longiflorus FB2016-027 | G50: 28 | H50: 3.00 | I50: Crocus | J50: Verni | K50: Verni | L50: YES | M50: YES | N50: YES | O50: 56
A51: 48 | B51: C. oreocreticus | C51: HKEP1585 | D51: cr3381 | E51: YES | F51: =CONCATENATE(Table26[[#This Row],[sequencing ID]]," ",Table26[[#This Row],[Species]]," ",Table26[[#This Row],[Collection ID]]) -> cr3381 C. oreocreticus HKEP1585 | G51: 16 | H51: 7.60 | I51: Crocus | J51: Crocus | K51: Crocus | L51: YES | M51: YES | N51: YES | O51: 29
A52: 49 | B52: C. biflorus | C52: HKEP1325 | D52: cr3389 | E52: YES | F52: =CONCATENATE(Table26[[#This Row],[sequencing ID]]," ",Table26[[#This Row],[Species]]," ",Table26[[#This Row],[Collection ID]]) -> cr3389 C. biflorus HKEP1325 | G52: 8 | H52: 13.30 | I52: Nudiscapus | J52: Biflori | K52: Biflori | L52: YES | M52: YES | N52: YES | O52: 174
A53: 50 | B53: C. cobbii | C53: HKEP1645 | D53: cr3400 | E53: YES | F53: =CONCATENATE(Table26[[#This Row],[sequencing ID]]," ",Table26[[#This Row],[Species]]," ",Table26[[#This Row],[Collection ID]]) -> cr3400 C. cobbii HKEP1645 | I53: Crocus | J53: Serotini | K53: Serotini | L53: YES | M53: YES | N53: YES | O53: 110
A54: 51 | B54: C. species | C54: HKEP1662 | D54: cr3434 | E54: YES | F54: =CONCATENATE(Table26[[#This Row],[sequencing ID]]," ",Table26[[#This Row],[Species]]," ",Table26[[#This Row],[Collection ID]]) -> cr3434 C. species HKEP1662 | H54: 6.12 | I54: Crocus | J54: Serotini | K54: Serotini | L54: YES | M54: YES | N54: YES | O54: 91
A55: 52 | B55: C. nevadensis | C55: HKEP1217 | D55: cr3443 | E55: YES | F55: =CONCATENATE(Table26[[#This Row],[sequencing ID]]," ",Table26[[#This Row],[Species]]," ",Table26[[#This Row],[Collection ID]]) -> cr3443 C. nevadensis HKEP1217 | G55: 28 | H55: 5.72 | I55: Carpetanus | J55: Carpetanus | K55: Carpetani | L55: YES | M55: YES | N55: YES | O55: 13
A56: 53 | B56: C. nevadensis | C56: HKEP1644 | D56: cr3444 | E56: YES | F56: =CONCATENATE(Table26[[#This Row],[sequencing ID]]," ",Table26[[#This Row],[Species]]," ",Table26[[#This Row],[Collection ID]]) -> cr3444 C. nevadensis HKEP1644 | G56: 28 | H56: 5.72 | I56: Carpetanus | J56: Carpetanus | K56: Carpetani | L56: YES | M56: YES | N56: YES | O56: 12
A57: 54 | B57: Romulea species | C57: IV | D57: cr3501 | E57: YES | F57: =CONCATENATE(Table26[[#This Row],[sequencing ID]]," ",Table26[[#This Row],[Species]]," ",Table26[[#This Row],[Collection ID]]) -> cr3501 Romulea species IV | G57: 36 | H57: 3.50 | I57: Romulea | J57: Romulea | K57: Romulea | L57: YES | M57: YES | N57: YES | O57: 4
A58: 55 | B58: C. alatavicus | C58: NA | D58: cr3582 | E58: YES | F58: =CONCATENATE(Table26[[#This Row],[sequencing ID]]," ",Table26[[#This Row],[Species]]," ",Table26[[#This Row],[Collection ID]]) -> cr3582 C. alatavicus NA | G58: 20 | H58: 9.20 | I58: Orientalis | J58: Orientalis | K58: Orientales | L58: YES | M58: YES | N58: YES | O58: 7
A59: 56 | B59: C. michelsonii | C59: NA | D59: cr3616 | E59: YES | F59: =CONCATENATE(Table26[[#This Row],[sequencing ID]]," ",Table26[[#This Row],[Species]]," ",Table26[[#This Row],[Collection ID]]) -> cr3616 C. michelsonii NA | G59: 20 | I59: Orientalis | J59: Orientalis | K59: Orientales | L59: YES | M59: YES | N59: YES | O59: 6
A60: 57 | B60: C. michelsonii | C60: NA | D60: cr3617 | E60: YES | F60: =CONCATENATE(Table26[[#This Row],[sequencing ID]]," ",Table26[[#This Row],[Species]]," ",Table26[[#This Row],[Collection ID]]) -> cr3617 C. michelsonii NA | I60: Orientalis | J60: Orientalis | K60: Orientales | L60: YES | M60: NO | N60: NO | O60: na
A61: 58 | B61: C. wattiorum | C61: NA | D61: cr3637 | E61: YES | F61: =CONCATENATE(Table26[[#This Row],[sequencing ID]]," ",Table26[[#This Row],[Species]]," ",Table26[[#This Row],[Collection ID]]) -> cr3637 C. wattiorum NA | I61: Nudiscapus | J61: Wattiorum | K61: Biflori | L61: YES | M61: YES | N61: YES | O61: 170
A62: 59 | B62: C. veneris | C62: DS2017-1 | D62: cr3645 | E62: YES | F62: =CONCATENATE(Table26[[#This Row],[sequencing ID]]," ",Table26[[#This Row],[Species]]," ",Table26[[#This Row],[Collection ID]]) -> cr3645 C. veneris DS2017-1 | G62: 16 | H62: 8.00 | I62: Nudiscapus | J62: Aleppici | K62: Aleppici | L62: YES | M62: YES | N62: YES | O62: 126
A63: 60 | B63: C. artvinensis | C63: DS2017-2 | D63: cr3646 | E63: YES | F63: =CONCATENATE(Table26[[#This Row],[sequencing ID]]," ",Table26[[#This Row],[Species]]," ",Table26[[#This Row],[Collection ID]]) -> cr3646 C. artvinensis DS2017-2 | G63: 20 | I63: Nudiscapus | J63: Adamii | K63: Adami | L63: YES | M63: YES | N63: YES | O63: 137
A64: 61 | B64: C. kerndorffiorum | C64: DS2017-7A | D64: cr3652 | E64: YES | F64: =CONCATENATE(Table26[[#This Row],[sequencing ID]]," ",Table26[[#This Row],[Species]]," ",Table26[[#This Row],[Collection ID]]) -> cr3652 C. kerndorffiorum DS2017-7A | G64: 20 | I64: Nudiscapus | J64: Nudiscapus | K64: Nudiscapus | L64: YES | M64: YES | N64: YES | O64: 159
A65: 62 | B65: C. atrospermus | C65: DS2017-24 | D65: cr3676 | E65: YES | F65: =CONCATENATE(Table26[[#This Row],[sequencing ID]]," ",Table26[[#This Row],[Species]]," ",Table26[[#This Row],[Collection ID]]) -> cr3676 C. atrospermus DS2017-24 | G65: 10 | I65: Nudiscapus | J65: Lyciotauri | K65: Biflori | L65: YES | M65: YES | N65: YES | O65: 172
A66: 63 | B66: C. gargaricus | C66: DS2017-25 | D66: cr3677 | E66: YES | F66: =CONCATENATE(Table26[[#This Row],[sequencing ID]]," ",Table26[[#This Row],[Species]]," ",Table26[[#This Row],[Collection ID]]) -> cr3677 C. gargaricus DS2017-25 | G66: 30 | I66: Nudiscapus | J66: Nudiscapus | K66: Nudiscapus | L66: YES | M66: YES | N66: YES | O66: 160
A67: 64 | B67: C. vallicola | C67: DS2017-29 | D67: cr3681 | E67: YES | F67: =CONCATENATE(Table26[[#This Row],[sequencing ID]]," ",Table26[[#This Row],[Species]]," ",Table26[[#This Row],[Collection ID]]) -> cr3681 C. vallicola DS2017-29 | G67: 8 | H67: 6.43 | I67: Crocus | J67: Kotschyani | K67: Kotschyani | L67: YES | M67: YES | N67: YES | O67: 15
A68: 65 | B68: C. karduchorum | C68: DS2017-31 | D68: cr3683 | E68: YES | F68: =CONCATENATE(Table26[[#This Row],[sequencing ID]]," ",Table26[[#This Row],[Species]]," ",Table26[[#This Row],[Collection ID]]) -> cr3683 C. karduchorum DS2017-31 | G68: 10 | I68: Crocus | J68: Kotschyani | K68: Kotschyani | L68: YES | M68: YES | N68: YES | O68: 16
A69: 66 | B69: C. nerimaniae | C69: DS2017-37 | D69: cr3690 | E69: YES | F69: =CONCATENATE(Table26[[#This Row],[sequencing ID]]," ",Table26[[#This Row],[Species]]," ",Table26[[#This Row],[Collection ID]]) -> cr3690 C. nerimaniae DS2017-37 | G69: 14 | I69: Nudiscapus | J69: Mawii | K69: Punctati | L69: YES | M69: YES | N69: YES | O69: 190
A70: 67 | B70: C. flavus | C70: HKEP1740 | D70: cr3820 | E70: YES | F70: =CONCATENATE(Table26[[#This Row],[sequencing ID]]," ",Table26[[#This Row],[Species]]," ",Table26[[#This Row],[Collection ID]]) -> cr3820 C. flavus HKEP1740 | I70: Nudiscapus | J70: Flavi | K70: Flavi | L70: YES | M70: NO | N70: NO | O70: na
A71: 68 | B71: C. terzioghluii | C71: OE2018 | D71: cr3839 | E71: YES | F71: =CONCATENATE(Table26[[#This Row],[sequencing ID]]," ",Table26[[#This Row],[Species]]," ",Table26[[#This Row],[Collection ID]]) -> cr3839 C. terzioghluii OE2018 | I71: Nudiscapus | J71: Biflori | K71: Biflori | L71: YES | M71: NO | N71: NO | O71: na
A72: 69 | B72: C. aleppicus | C72: HKEP1756 | D72: cr3851 | E72: YES | F72: =CONCATENATE(Table26[[#This Row],[sequencing ID]]," ",Table26[[#This Row],[Species]]," ",Table26[[#This Row],[Collection ID]]) -> cr3851 C. aleppicus HKEP1756 | I72: Nudiscapus | J72: Aleppici | K72: Aleppici | L72: YES | M72: NO | N72: NO | O72: na
A73: 70 | B73: C. veneris | C73: OP215109 | D73: cr3856 | E73: YES | F73: =CONCATENATE(Table26[[#This Row],[sequencing ID]]," ",Table26[[#This Row],[Species]]," ",Table26[[#This Row],[Collection ID]]) -> cr3856 C. veneris OP215109 | G73: 16 | H73: 8.43 | I73: Nudiscapus | J73: Aleppici | K73: Aleppici | L73: YES | M73: YES | N73: YES | O73: 124
A74: 71 | B74: C. cf_pallasii | C74: OP21042 | D74: cr3860 | E74: YES | F74: =CONCATENATE(Table26[[#This Row],[sequencing ID]]," ",Table26[[#This Row],[Species]]," ",Table26[[#This Row],[Collection ID]]) -> cr3860 C. cf_pallasii OP21042 | G74: 14 | I74: Crocus | J74: Crocus | K74: Crocus | L74: YES | M74: YES | N74: YES | O74: 31
A75: 72 | B75: C. caspius | C75: HKEP1747 | D75: cr3861 | E75: YES | F75: =CONCATENATE(Table26[[#This Row],[sequencing ID]]," ",Table26[[#This Row],[Species]]," ",Table26[[#This Row],[Collection ID]]) -> cr3861 C. caspius HKEP1747 | I75: Orientalis | J75: Orientalis | K75: Orientales | L75: YES | M75: NO | N75: NO | O75: na
A76: 73 | B76: Romulea thodei | C76: R1803 | D76: cr3934 | E76: YES | F76: =CONCATENATE(Table26[[#This Row],[sequencing ID]]," ",Table26[[#This Row],[Species]]," ",Table26[[#This Row],[Collection ID]]) -> cr3934 Romulea thodei R1803 | G76: 26 | I76: Romulea | J76: Romulea | K76: Romulea | L76: YES | M76: YES | N76: YES | O76: 1
A77: 74 | B77: C. tommasinianus | C77: HKEP1837 | D77: cr3950 | E77: YES | F77: =CONCATENATE(Table26[[#This Row],[sequencing ID]]," ",Table26[[#This Row],[Species]]," ",Table26[[#This Row],[Collection ID]]) -> cr3950 C. tommasinianus HKEP1837 | G77: 16 | H77: 5.53 | I77: Crocus | J77: Verni | K77: Verni | L77: YES | M77: YES | N77: YES | O77: 59
A78: 75 | B78: C. spec_NOva_2 | C78: DH1806a | D78: cr3970 | E78: YES | F78: =CONCATENATE(Table26[[#This Row],[sequencing ID]]," ",Table26[[#This Row],[Species]]," ",Table26[[#This Row],[Collection ID]]) -> cr3970 C. spec_NOva_2 DH1806a | I78: Crocus | J78: Malyi | K78: OG_Verni | L78: YES | M78: NO | N78: NO | O78: na
A79: 76 | B79: C. cf_heuffelianus | C79: DH1806 | D79: cr3982 | E79: NO | F79: =CONCATENATE(Table26[[#This Row],[sequencing ID]]," ",Table26[[#This Row],[Species]]," ",Table26[[#This Row],[Collection ID]]) -> cr3982 C. cf_heuffelianus DH1806 | G79: 18 | H79: 12.00 | I79: Crocus | J79: Verni | K79: Verni | L79: YES | M79: YES | N79: YES | O79: 72
A80: 77 | B80: C. vernus | C80: DH1806 | D80: cr3993 | E80: NO | F80: =CONCATENATE(Table26[[#This Row],[sequencing ID]]," ",Table26[[#This Row],[Species]]," ",Table26[[#This Row],[Collection ID]]) -> cr3993 C. vernus DH1806 | G80: 8 | H80: 5.70 | I80: Crocus | J80: Verni | K80: Verni | L80: NO | M80: YES | N80: NO | O80: na
A81: 78 | B81: C. dalmaticus | C81: HKEP1832 | D81: cr4051 | E81: YES | F81: =CONCATENATE(Table26[[#This Row],[sequencing ID]]," ",Table26[[#This Row],[Species]]," ",Table26[[#This Row],[Collection ID]]) -> cr4051 C. dalmaticus HKEP1832 | G81: 24 | H81: 6.47 | I81: Crocus | J81: Sieberi | K81: Sieberi | L81: YES | M81: YES | N81: YES | O81: 40
A82: 79 | B82: C. cf_heuffelianus | C82: DH1808 | D82: cr4093 | E82: NO | F82: =CONCATENATE(Table26[[#This Row],[sequencing ID]]," ",Table26[[#This Row],[Species]]," ",Table26[[#This Row],[Collection ID]]) -> cr4093 C. cf_heuffelianus DH1808 | G82: 18 | H82: 10.85 | I82: Crocus | J82: Verni | K82: Verni | L82: YES | M82: YES | N82: YES | O82: 74
A83: 80 | B83: C. cf_heuffelianus | C83: DH1808 | D83: cr4096 | E83: NO | F83: =CONCATENATE(Table26[[#This Row],[sequencing ID]]," ",Table26[[#This Row],[Species]]," ",Table26[[#This Row],[Collection ID]]) -> cr4096 C. cf_heuffelianus DH1808 | G83: 18 | H83: 10.85 | I83: Crocus | J83: Verni | K83: Verni | L83: YES | M83: YES | N83: YES | O83: 73
A84: 81 | B84: C. vernus | C84: DH1808a | D84: cr4102 | E84: NO | F84: =CONCATENATE(Table26[[#This Row],[sequencing ID]]," ",Table26[[#This Row],[Species]]," ",Table26[[#This Row],[Collection ID]]) -> cr4102 C. vernus DH1808a | G84: 8 | H84: 5.70 | I84: Crocus | J84: Verni | K84: Verni | L84: YES | M84: YES | N84: YES | O84: 69
A85: 82 | B85: C. cf_heuffelianus | C85: DH1809a | D85: cr4107 | E85: NO | F85: =CONCATENATE(Table26[[#This Row],[sequencing ID]]," ",Table26[[#This Row],[Species]]," ",Table26[[#This Row],[Collection ID]]) -> cr4107 C. cf_heuffelianus DH1809a | G85: 12 | H85: 6.17 | I85: Crocus | J85: Verni | K85: Verni | L85: YES | M85: YES | N85: YES | O85: 75
A86: 83 | B86: Romulea rosea | C86: BG20032108 | D86: cr4209 | E86: YES | F86: =CONCATENATE(Table26[[#This Row],[sequencing ID]]," ",Table26[[#This Row],[Species]]," ",Table26[[#This Row],[Collection ID]]) -> cr4209 Romulea rosea BG20032108 | G86: 9 | H86: 2.80 | I86: Romulea | J86: Romulea | K86: Romulea | L86: YES | M86: YES | N86: YES | O86: 3
A87: 84 | B87: C. heuffelianus | C87: PA2941 | D87: cr4283 | E87: YES | F87: =CONCATENATE(Table26[[#This Row],[sequencing ID]]," ",Table26[[#This Row],[Species]]," ",Table26[[#This Row],[Collection ID]]) -> cr4283 C. heuffelianus PA2941 | G87: 10 | H87: 7.76 | I87: Crocus | J87: Verni | K87: Verni | L87: YES | M87: YES | N87: YES | O87: 61
A88: 85 | B88: C. scardicus | C88: LS2018 | D88: cr4312 | E88: YES | F88: =CONCATENATE(Table26[[#This Row],[sequencing ID]]," ",Table26[[#This Row],[Species]]," ",Table26[[#This Row],[Collection ID]]) -> cr4312 C. scardicus LS2018 | G88: 34 | H88: 20.18 | I88: Crocus | J88: Scardici | K88: Scardici | L88: YES | M88: YES | N88: YES | O88: 51
A89: 86 | B89: C. munzurense | C89: HKEP9911 | D89: cr4375 | E89: YES | F89: =CONCATENATE(Table26[[#This Row],[sequencing ID]]," ",Table26[[#This Row],[Species]]," ",Table26[[#This Row],[Collection ID]]) -> cr4375 C. munzurense HKEP9911 | G89: 20 | I89: Nudiscapus | J89: Adamii | K89: Adami | L89: YES | M89: YES | N89: YES | O89: 136
A90: 87 | B90: C. ozalanii | C90: RUDA-117 | D90: cr4388 | E90: YES | F90: =CONCATENATE(Table26[[#This Row],[sequencing ID]]," ",Table26[[#This Row],[Species]]," ",Table26[[#This Row],[Collection ID]]) -> cr4388 C. ozalanii RUDA-117 | G90: 10 | I90: Crocus | J90: Kotschyani | K90: Kotschyani | L90: YES | M90: YES | N90: YES | O90: 19
A91: 88 | B91: C. cobbii | C91: HKEP1230 | D91: cr4557 | E91: YES | F91: =CONCATENATE(Table26[[#This Row],[sequencing ID]]," ",Table26[[#This Row],[Species]]," ",Table26[[#This Row],[Collection ID]]) -> cr4557 C. cobbii HKEP1230 | H91: 3.57 | I91: Crocus | J91: Serotini | K91: Serotini | L91: YES | M91: YES | N91: YES | O91: 102
A92: 89 | B92: C. species_17 | C92: HKEP1567 | D92: cr4610 | E92: NO | F92: =CONCATENATE(Table26[[#This Row],[sequencing ID]]," ",Table26[[#This Row],[Species]]," ",Table26[[#This Row],[Collection ID]]) -> cr4610 C. species_17 HKEP1567 | H92: 4.54 | I92: Crocus | J92: Serotini | K92: Serotini | L92: YES | M92: YES | N92: YES | O92: 99
A93: 90 | B93: C. salzmannii | C93: HKEP1662 | D93: cr4665 | E93: NO | F93: =CONCATENATE(Table26[[#This Row],[sequencing ID]]," ",Table26[[#This Row],[Species]]," ",Table26[[#This Row],[Collection ID]]) -> cr4665 C. salzmannii HKEP1662 | H93: 6.23 | I93: Crocus | J93: Serotini | K93: Serotini | L93: YES | M93: YES | N93: YES | O93: 90
A94: 91 | B94: C. nudiflorus | C94: HKEP1843 | D94: cr4671 | E94: YES | F94: =CONCATENATE(Table26[[#This Row],[sequencing ID]]," ",Table26[[#This Row],[Species]]," ",Table26[[#This Row],[Collection ID]]) -> cr4671 C. nudiflorus HKEP1843 | G94: 44 | H94: 7.15 | I94: Crocus | J94: Serotini | K94: Serotini | L94: YES | M94: YES | N94: YES | O94: 86
A95: 92 | B95: C. boryi | C95: HKEP1531 | D95: cr4719 | E95: YES | F95: =CONCATENATE(Table26[[#This Row],[sequencing ID]]," ",Table26[[#This Row],[Species]]," ",Table26[[#This Row],[Collection ID]]) -> cr4719 C. boryi HKEP1531 | G95: 30 | H95: 7.80 | I95: Nudiscapus | J95: Laevigati | K95: Laevigati | L95: YES | M95: YES | N95: YES | O95: 111
A96: 93 | B96: C. bertiscensis | C96: DH1704 | D96: cr4722 | E96: NO | F96: =CONCATENATE(Table26[[#This Row],[sequencing ID]]," ",Table26[[#This Row],[Species]]," ",Table26[[#This Row],[Collection ID]]) -> cr4722 C. bertiscensis DH1704 | G96: 12 | H96: 6.66 | I96: Crocus | J96: Verni | K96: Verni | L96: YES | M96: YES | N96: YES | O96: 67
A97: 94 | B97: C. vallicola | C97: RU-O-Bonn22768 | D97: cr4724 | E97: YES | F97: =CONCATENATE(Table26[[#This Row],[sequencing ID]]," ",Table26[[#This Row],[Species]]," ",Table26[[#This Row],[Collection ID]]) -> cr4724 C. vallicola RU-O-Bonn22768 | G97: 8 | H97: 6.43 | I97: Crocus | J97: Kotschyani | K97: Kotschyani | L97: YES | M97: YES | N97: YES | O97: 14
A98: 95 | B98: C. laevigatus | C98: HKEP1668 | D98: cr4777 | E98: YES | F98: =CONCATENATE(Table26[[#This Row],[sequencing ID]]," ",Table26[[#This Row],[Species]]," ",Table26[[#This Row],[Collection ID]]) -> cr4777 C. laevigatus HKEP1668 | G98: 26 | H98: 6.97 | I98: Nudiscapus | J98: Laevigati | K98: Laevigati | L98: YES | M98: YES | N98: YES | O98: 116
A99: 96 | B99: C. laevigatus | C99: HKEP1807 | D99: cr4792 | E99: YES | F99: =CONCATENATE(Table26[[#This Row],[sequencing ID]]," ",Table26[[#This Row],[Species]]," ",Table26[[#This Row],[Collection ID]]) -> cr4792 C. laevigatus HKEP1807 | G99: 26 | H99: 6.97 | I99: Nudiscapus | J99: Laevigati | K99: Laevigati | L99: YES | M99: YES | N99: YES | O99: 114
A100: 97 | B100: C. laevigatus | C100: HKEP1873 | D100: cr4816 | E100: YES | F100: =CONCATENATE(Table26[[#This Row],[sequencing ID]]," ",Table26[[#This Row],[Species]]," ",Table26[[#This Row],[Collection ID]]) -> cr4816 C. laevigatus HKEP1873 | G100: 26 | H100: 6.97 | I100: Nudiscapus | J100: Laevigati | K100: Laevigati | L100: YES | M100: YES | N100: YES | O100: 115
A101: 98 | B101: C. tournefortii | C101: HKEP1875 | D101: cr4819 | E101: YES | F101: =CONCATENATE(Table26[[#This Row],[sequencing ID]]," ",Table26[[#This Row],[Species]]," ",Table26[[#This Row],[Collection ID]]) -> cr4819 C. tournefortii HKEP1875 | G101: 30 | H101: 8.03 | I101: Nudiscapus | J101: Laevigati | K101: Laevigati | L101: YES | M101: YES | N101: YES | O101: 112
A102: 99 | B102: C. chrysanthus | C102: CP211b | D102: cr4836 | E102: YES | F102: =CONCATENATE(Table26[[#This Row],[sequencing ID]]," ",Table26[[#This Row],[Species]]," ",Table26[[#This Row],[Collection ID]]) -> cr4836 C. chrysanthus CP211b | G102: 8 | H102: 7.58 | I102: Nudiscapus | J102: Punctati | K102: Punctati | L102: YES | M102: YES | N102: YES | O102: 212
A103: 100 | B103: C. asymmetricus | C103: NA | D103: cr4849 | E103: YES | F103: =CONCATENATE(Table26[[#This Row],[sequencing ID]]," ",Table26[[#This Row],[Species]]," ",Table26[[#This Row],[Collection ID]]) -> cr4849 C. asymmetricus NA | G103: 8 | I103: Nudiscapus | J103: Flavi | K103: Flavi | L103: YES | M103: YES | N103: YES | O103: 148
A104: 101 | B104: C. laevigatus | C104: HKEP1563 | D104: cr4851 | E104: YES | F104: =CONCATENATE(Table26[[#This Row],[sequencing ID]]," ",Table26[[#This Row],[Species]]," ",Table26[[#This Row],[Collection ID]]) -> cr4851 C. laevigatus HKEP1563 | G104: 26 | H104: 6.97 | I104: Nudiscapus | J104: Laevigati | K104: Laevigati | L104: YES | M104: YES | N104: YES | O104: 117
A105: 102 | B105: C. ibrahimii | C105: HKEP1803 | D105: cr4861 | E105: YES | F105: =CONCATENATE(Table26[[#This Row],[sequencing ID]]," ",Table26[[#This Row],[Species]]," ",Table26[[#This Row],[Collection ID]]) -> cr4861 C. ibrahimii HKEP1803 | H105: 15.29 | I105: Nudiscapus | J105: Speciosi | K105: Speciosi | L105: YES | M105: YES | N105: YES | O105: 179
A106: 103 | B106: C. species_NOva_3 | C106: HKEP1804 | D106: cr4863 | E106: YES | F106: =CONCATENATE(Table26[[#This Row],[sequencing ID]]," ",Table26[[#This Row],[Species]]," ",Table26[[#This Row],[Collection ID]]) -> cr4863 C. species_NOva_3 HKEP1804 | I106: Nudiscapus | J106: Punctati | K106: Punctati | L106: YES | M106: YES | N106: YES | O106: 201
A107: 104 | B107: C. pallasii | C107: HKEP1805 | D107: cr4866 | E107: YES | F107: =CONCATENATE(Table26[[#This Row],[sequencing ID]]," ",Table26[[#This Row],[Species]]," ",Table26[[#This Row],[Collection ID]]) -> cr4866 C. pallasii HKEP1805 | G107: 14 | H107: 8.77 | I107: Crocus | J107: Crocus | K107: Crocus | L107: YES | M107: YES | N107: YES | O107: 24
A108: 105 | B108: C. oliveri | C108: HKEP1806 | D108: cr4869 | E108: YES | F108: =CONCATENATE(Table26[[#This Row],[sequencing ID]]," ",Table26[[#This Row],[Species]]," ",Table26[[#This Row],[Collection ID]]) -> cr4869 C. oliveri HKEP1806 | G108: 6 | H108: 11.35 | I108: Nudiscapus | J108: Flavi | K108: Flavi | L108: YES | M108: YES | N108: YES | O108: 156
A109: 106 | B109: C. mazziaricus | C109: HKEP1819 | D109: cr4908 | E109: YES | F109: =CONCATENATE(Table26[[#This Row],[sequencing ID]]," ",Table26[[#This Row],[Species]]," ",Table26[[#This Row],[Collection ID]]) -> cr4908 C. mazziaricus HKEP1819 | G109: 16 | H109: 11.77 | I109: Nudiscapus | J109: Cancellati | K109: Cancellati | L109: YES | M109: YES | N109: YES | O109: 180
A110: 107 | B110: C. macedonicus | C110: HKEP1851 | D110: cr4953 | E110: YES | F110: =CONCATENATE(Table26[[#This Row],[sequencing ID]]," ",Table26[[#This Row],[Species]]," ",Table26[[#This Row],[Collection ID]]) -> cr4953 C. macedonicus HKEP1851 | G110: 16 | H110: 5.77 | I110: Crocus | J110: Crocus | K110: Crocus | L110: YES | M110: YES | N110: YES | O110: 26
A111: 108 | B111: C. pulchellus | C111: HKEP1853 | D111: cr4958 | E111: YES | F111: =CONCATENATE(Table26[[#This Row],[sequencing ID]]," ",Table26[[#This Row],[Species]]," ",Table26[[#This Row],[Collection ID]]) -> cr4958 C. pulchellus HKEP1853 | G111: 12 | H111: 6.85 | I111: Nudiscapus | J111: Speciosi | K111: Speciosi | L111: YES | M111: YES | N111: YES | O111: 176
A112: 109 | B112: C. robertianus | C112: HKEP1854 | D112: cr4962 | E112: YES | F112: =CONCATENATE(Table26[[#This Row],[sequencing ID]]," ",Table26[[#This Row],[Species]]," ",Table26[[#This Row],[Collection ID]]) -> cr4962 C. robertianus HKEP1854 | G112: 20 | H112: 5.49 | I112: Crocus | J112: Sieberi | K112: Sieberi | L112: YES | M112: YES | N112: YES | O112: 42
A113: 110 | B113: C. niveus | C113: HKEP1863 | D113: cr4980 | E113: YES | F113: =CONCATENATE(Table26[[#This Row],[sequencing ID]]," ",Table26[[#This Row],[Species]]," ",Table26[[#This Row],[Collection ID]]) -> cr4980 C. niveus HKEP1863 | G113: 28 | H113: 6.75 | I113: Crocus | J113: Nivei | K113: OG_Sieberi | L113: YES | M113: YES | N113: YES | O113: 34
A114: 111 | B114: C. hadriaticus | C114: HKEP1870 | D114: cr5001 | E114: YES | F114: =CONCATENATE(Table26[[#This Row],[sequencing ID]]," ",Table26[[#This Row],[Species]]," ",Table26[[#This Row],[Collection ID]]) -> cr5001 C. hadriaticus HKEP1870 | G114: 16 | H114: 7.00 | I114: Crocus | J114: Crocus | K114: Crocus | L114: YES | M114: YES | N114: YES | O114: 21
A115: 112 | B115: C. melantherus | C115: HKEP1871 | D115: cr5006 | E115: YES | F115: =CONCATENATE(Table26[[#This Row],[sequencing ID]]," ",Table26[[#This Row],[Species]]," ",Table26[[#This Row],[Collection ID]]) -> cr5006 C. melantherus HKEP1871 | G115: 12 | H115: 7.75 | I115: Nudiscapus | J115: Punctati | K115: Punctati | L115: YES | M115: YES | N115: YES | O115: 199
A116: 113 | B116: C. giladensis | C116: OP214339 | D116: cr5010 | E116: NO | F116: =CONCATENATE(Table26[[#This Row],[sequencing ID]]," ",Table26[[#This Row],[Species]]," ",Table26[[#This Row],[Collection ID]]) -> cr5010 C. giladensis OP214339 | H116: 9.93 | I116: Nudiscapus | J116: Cancellati | K116: Cancellati | L116: YES | M116: YES | N116: YES | O116: 187
A117: 114 | B117: C. fleischeri | C117: HKEP1431 | D117: cr5017 | E117: YES | F117: =CONCATENATE(Table26[[#This Row],[sequencing ID]]," ",Table26[[#This Row],[Species]]," ",Table26[[#This Row],[Collection ID]]) -> cr5017 C. fleischeri HKEP1431 | G117: 20 | H117: 6.63 | I117: Nudiscapus | J117: Aleppici | K117: Aleppici | L117: YES | M117: YES | N117: YES | O117: 119
A118: 115 | B118: C. etruscus | C118: HKEP1310 | D118: cr5090 | E118: NO | F118: =CONCATENATE(Table26[[#This Row],[sequencing ID]]," ",Table26[[#This Row],[Species]]," ",Table26[[#This Row],[Collection ID]]) -> cr5090 C. etruscus HKEP1310 | G118: 8 | H118: 7.58 | I118: Crocus | J118: Verni | K118: Verni | L118: YES | M118: YES | N118: YES | O118: 63
A119: 116 | B119: C. malyi | C119: HKEP1905 | D119: cr5118 | E119: YES | F119: =CONCATENATE(Table26[[#This Row],[sequencing ID]]," ",Table26[[#This Row],[Species]]," ",Table26[[#This Row],[Collection ID]]) -> cr5118 C. malyi HKEP1905 | G119: 30 | H119: 3.66 | I119: Crocus | J119: Malyi | K119: OG_Verni | L119: YES | M119: YES | N119: YES | O119: 54
A120: 117 | B120: C. oliveri | C120: HKEP1915 | D120: cr5155 | E120: YES | F120: =CONCATENATE(Table26[[#This Row],[sequencing ID]]," ",Table26[[#This Row],[Species]]," ",Table26[[#This Row],[Collection ID]]) -> cr5155 C. oliveri HKEP1915 | G120: 6 | H120: 11.30 | I120: Nudiscapus | J120: Flavi | K120: Flavi | L120: YES | M120: YES | N120: YES | O120: 155
A121: 118 | B121: C. ilvensis | C121: HKEP1919 | D121: cr5166 | E121: YES | F121: =CONCATENATE(Table26[[#This Row],[sequencing ID]]," ",Table26[[#This Row],[Species]]," ",Table26[[#This Row],[Collection ID]]) -> cr5166 C. ilvensis HKEP1919 | G121: 8 | H121: 7.90 | I121: Crocus | J121: Verni | K121: Verni | L121: YES | M121: YES | N121: YES | O121: 64
A122: 119 | B122: C. versicolor | C122: HKEP1920 | D122: cr5177 | E122: YES | F122: =CONCATENATE(Table26[[#This Row],[sequencing ID]]," ",Table26[[#This Row],[Species]]," ",Table26[[#This Row],[Collection ID]]) -> cr5177 C. versicolor HKEP1920 | G122: 26 | H122: 6.34 | I122: Crocus | J122: Versicolores | K122: Sect_Crocus | L122: YES | M122: YES | N122: YES | O122: 76
A123: 120 | B123: C. kurdistanicus | C123: NA | D123: cr5185 | E123: YES | F123: =CONCATENATE(Table26[[#This Row],[sequencing ID]]," ",Table26[[#This Row],[Species]]," ",Table26[[#This Row],[Collection ID]]) -> cr5185 C. kurdistanicus NA | G123: 8 | I123: Nudiscapus | J123: Punctati | K123: Punctati | L123: YES | M123: YES | N123: YES | O123: 219
A124: 121 | B124: Romulea austinii | C124: NA | D124: cr5196 | E124: YES | F124: =CONCATENATE(Table26[[#This Row],[sequencing ID]]," ",Table26[[#This Row],[Species]]," ",Table26[[#This Row],[Collection ID]]) -> cr5196 Romulea austinii NA | G124: 30 | H124: 0.90 | I124: Romulea | J124: Romulea | K124: Romulea | L124: YES | M124: YES | N124: YES | O124: 2
A125: 122 | B125: C. heuffelianus | C125: CNS009 | D125: cr5312 | E125: YES | F125: =CONCATENATE(Table26[[#This Row],[sequencing ID]]," ",Table26[[#This Row],[Species]]," ",Table26[[#This Row],[Collection ID]]) -> cr5312 C. heuffelianus CNS009 | G125: 10 | H125: 7.73 | I125: Crocus | J125: Verni | K125: Verni | L125: YES | M125: YES | N125: YES | O125: 71
A126: 123 | B126: C. species_NOva_2 | C126: CNS016 | D126: cr5362 | E126: YES | F126: =CONCATENATE(Table26[[#This Row],[sequencing ID]]," ",Table26[[#This Row],[Species]]," ",Table26[[#This Row],[Collection ID]]) -> cr5362 C. species_NOva_2 CNS016 | G126: 30 | H126: 3.14 | I126: Crocus | J126: Malyi | K126: OG_Verni | L126: YES | M126: YES | N126: YES | O126: 55
A127: 124 | B127: C. jablanicensis | C127: HKEP1362 | D127: cr5390 | E127: NO | F127: =CONCATENATE(Table26[[#This Row],[sequencing ID]]," ",Table26[[#This Row],[Species]]," ",Table26[[#This Row],[Collection ID]]) -> cr5390 C. jablanicensis HKEP1362 | H127: 9.19 | I127: Crocus | J127: Sieberi | K127: Sieberi | L127: YES | M127: YES | N127: YES | O127: 47
A128: 125 | B128: C. tomoricus | C128: NA | D128: cr5396 | E128: YES | F128: =CONCATENATE(Table26[[#This Row],[sequencing ID]]," ",Table26[[#This Row],[Species]]," ",Table26[[#This Row],[Collection ID]]) -> cr5396 C. tomoricus NA | G128: 20 | H128: 7.75 | I128: Crocus | J128: Sieberi | K128: Sieberi | L128: YES | M128: YES | N128: YES | O128: 45
A129: 126 | B129: C. bachofenii | C129: NA | D129: cr5412 | E129: YES | F129: =CONCATENATE(Table26[[#This Row],[sequencing ID]]," ",Table26[[#This Row],[Species]]," ",Table26[[#This Row],[Collection ID]]) -> cr5412 C. bachofenii NA | G129: 16 | H129: 12.75 | I129: Crocus | J129: Verni | K129: Verni | L129: YES | M129: YES | N129: YES | O129: 70
A130: 127 | B130: C. veluchensis | C130: NA | D130: cr5420 | E130: NO | F130: =CONCATENATE(Table26[[#This Row],[sequencing ID]]," ",Table26[[#This Row],[Species]]," ",Table26[[#This Row],[Collection ID]]) -> cr5420 C. veluchensis NA | G130: 26 | H130: 5.91 | I130: Crocus | J130: Sieberi | K130: Sieberi | L130: YES | M130: YES | N130: YES | O130: 38
A131: 128 | B131: C. tomorricus_x_dalmaticus | C131: NA | D131: cr5422 | E131: YES | F131: =CONCATENATE(Table26[[#This Row],[sequencing ID]]," ",Table26[[#This Row],[Species]]," ",Table26[[#This Row],[Collection ID]]) -> cr5422 C. tomorricus_x_dalmaticus NA | H131: 12.70 | I131: Crocus | J131: Sieberi | K131: Sieberi | L131: YES | M131: YES | N131: YES | O131: 43
A132: 129 | B132: C. dalmaticus | C132: NA | D132: cr5427 | E132: NO | F132: =CONCATENATE(Table26[[#This Row],[sequencing ID]]," ",Table26[[#This Row],[Species]]," ",Table26[[#This Row],[Collection ID]]) -> cr5427 C. dalmaticus NA | G132: 24 | H132: 6.70 | I132: Crocus | J132: Sieberi | K132: Sieberi | L132: YES | M132: YES | N132: YES | O132: 39
A133: 130 | B133: C. cartwrightianus | C133: FB2019-070 | D133: cr5620 | E133: NO | F133: =CONCATENATE(Table26[[#This Row],[sequencing ID]]," ",Table26[[#This Row],[Species]]," ",Table26[[#This Row],[Collection ID]]) -> cr5620 C. cartwrightianus FB2019-070 | G133: 16 | H133: 6.80 | I133: Crocus | J133: Crocus | K133: Crocus | L133: YES | M133: YES | N133: YES | O133: 28
A134: 131 | B134: C. carpetanus | C134: HKEP1702 | D134: cr5683 | E134: YES | F134: =CONCATENATE(Table26[[#This Row],[sequencing ID]]," ",Table26[[#This Row],[Species]]," ",Table26[[#This Row],[Collection ID]]) -> cr5683 C. carpetanus HKEP1702 | G134: 64 | H134: 5.84 | I134: Carpetanus | J134: Carpetani | K134: Carpetani | L134: YES | M134: YES | N134: YES | O134: 10
A135: 132 | B135: C. carpetanus | C135: HKEP1702 | D135: cr5684 | E135: YES | F135: =CONCATENATE(Table26[[#This Row],[sequencing ID]]," ",Table26[[#This Row],[Species]]," ",Table26[[#This Row],[Collection ID]]) -> cr5684 C. carpetanus HKEP1702 | G135: 64 | H135: 5.84 | I135: Carpetanus | J135: Carpetani | K135: Carpetani | L135: YES | M135: YES | N135: YES | O135: 9
A136: 133 | B136: C. cf_randjelovociorum | C136: HKEP1711 | D136: cr5689 | E136: YES | F136: =CONCATENATE(Table26[[#This Row],[sequencing ID]]," ",Table26[[#This Row],[Species]]," ",Table26[[#This Row],[Collection ID]]) -> cr5689 C. cf_randjelovociorum HKEP1711 | G136: 18 | H136: 12.98 | I136: Nudiscapus | J136: Punctati | K136: Punctati | L136: YES | M136: YES | N136: YES | O136: 211
A137: 134 | B137: C. sublimis | C137: HKEP1720 | D137: cr5693 | E137: YES | F137: =CONCATENATE(Table26[[#This Row],[sequencing ID]]," ",Table26[[#This Row],[Species]]," ",Table26[[#This Row],[Collection ID]]) -> cr5693 C. sublimis HKEP1720 | G137: 22 | H137: 3.79 | I137: Crocus | J137: Sieberi | K137: Sieberi | L137: YES | M137: YES | N137: YES | O137: 35
A138: 135 | B138: C. cf_chrysanthus | C138: HKEP1923 | D138: cr5699 | E138: YES | F138: =CONCATENATE(Table26[[#This Row],[sequencing ID]]," ",Table26[[#This Row],[Species]]," ",Table26[[#This Row],[Collection ID]]) -> cr5699 C. cf_chrysanthus HKEP1923 | H138: 12.13 | I138: Nudiscapus | J138: Nudiscapus | K138: Punctati | L138: YES | M138: YES | N138: YES | O138: 200
A139: 136 | B139: C. pallasii | C139: HKEP1745 | D139: cr5703 | E139: YES | F139: =CONCATENATE(Table26[[#This Row],[sequencing ID]]," ",Table26[[#This Row],[Species]]," ",Table26[[#This Row],[Collection ID]]) -> cr5703 C. pallasii HKEP1745 | H139: 7.14 | I139: Crocus | J139: Crocus | K139: Crocus | L139: YES | M139: YES | N139: YES | O139: 23
A140: 137 | B140: C. hyemalis | C140: HKEP1755 | D140: cr5706 | E140: YES | F140: =CONCATENATE(Table26[[#This Row],[sequencing ID]]," ",Table26[[#This Row],[Species]]," ",Table26[[#This Row],[Collection ID]]) -> cr5706 C. hyemalis HKEP1755 | G140: 6 | H140: 11.12 | I140: Nudiscapus | J140: Flavi | K140: Flavi | L140: YES | M140: YES | N140: YES | O140: 150
A141: 138 | B141: C. aleppicus | C141: HKEP1756 | D141: cr5709 | E141: YES | F141: =CONCATENATE(Table26[[#This Row],[sequencing ID]]," ",Table26[[#This Row],[Species]]," ",Table26[[#This Row],[Collection ID]]) -> cr5709 C. aleppicus HKEP1756 | G141: 16 | H141: 8.10 | I141: Nudiscapus | J141: Aleppici | K141: Aleppici | L141: YES | M141: YES | N141: YES | O141: 121
A142: 139 | B142: C. cf_hermoneus | C142: HKEP1757 | D142: cr5713 | E142: NO | F142: =CONCATENATE(Table26[[#This Row],[sequencing ID]]," ",Table26[[#This Row],[Species]]," ",Table26[[#This Row],[Collection ID]]) -> cr5713 C. cf_hermoneus HKEP1757 | G142: 14 | H142: 9.74 | I142: Nudiscapus | J142: Cancellati | K142: Cancellati | L142: YES | M142: YES | N142: YES | O142: 186
A143: 140 | B143: C. orcholeucus | C143: HKEP1759 | D143: cr5715 | E143: YES | F143: =CONCATENATE(Table26[[#This Row],[sequencing ID]]," ",Table26[[#This Row],[Species]]," ",Table26[[#This Row],[Collection ID]]) -> cr5715 C. orcholeucus HKEP1759 | G143: 10 | H143: 4.78 | I143: Crocus | J143: Kotschyani | K143: Kotschyani | L143: YES | M143: YES | N143: YES | O143: 18
A144: 141 | B144: C. imperati | C144: HKEP1917 | D144: cr5723 | E144: YES | F144: =CONCATENATE(Table26[[#This Row],[sequencing ID]]," ",Table26[[#This Row],[Species]]," ",Table26[[#This Row],[Collection ID]]) -> cr5723 C. imperati HKEP1917 | G144: 26 | H144: 6.25 | I144: Crocus | J144: Versicolores | K144: Sect_Crocus | L144: YES | M144: YES | N144: YES | O144: 81
A145: 142 | B145: C. suaveolens | C145: HKEP1918 | D145: cr5728 | E145: YES | F145: =CONCATENATE(Table26[[#This Row],[sequencing ID]]," ",Table26[[#This Row],[Species]]," ",Table26[[#This Row],[Collection ID]]) -> cr5728 C. suaveolens HKEP1918 | G145: 26 | H145: 5.20 | I145: Crocus | J145: Versicolores | K145: Sect_Crocus | L145: YES | M145: YES | N145: YES | O145: 83
A146: 143 | B146: C. flavus | C146: HKEP1925 | D146: cr5734 | E146: YES | F146: =CONCATENATE(Table26[[#This Row],[sequencing ID]]," ",Table26[[#This Row],[Species]]," ",Table26[[#This Row],[Collection ID]]) -> cr5734 C. flavus HKEP1925 | G146: 8 | H146: 10.78 | I146: Nudiscapus | J146: Flavi | K146: Flavi | L146: YES | M146: YES | N146: YES | O146: 152
A147: 144 | B147: C. cobbii | C147: HKEP1941 | D147: cr5740 | E147: NO | F147: =CONCATENATE(Table26[[#This Row],[sequencing ID]]," ",Table26[[#This Row],[Species]]," ",Table26[[#This Row],[Collection ID]]) -> cr5740 C. cobbii HKEP1941 | H147: 3.50 | I147: Crocus | J147: Serotini | K147: Serotini | L147: YES | M147: YES | N147: YES | O147: 101
A148: 145 | B148: C. niveus | C148: HKEP1942 | D148: cr5743 | E148: YES | F148: =CONCATENATE(Table26[[#This Row],[sequencing ID]]," ",Table26[[#This Row],[Species]]," ",Table26[[#This Row],[Collection ID]]) -> cr5743 C. niveus HKEP1942 | G148: 28 | H148: 6.53 | I148: Crocus | J148: Nivei | K148: OG_Sieberi | L148: YES | M148: YES | N148: YES | O148: 33
A149: 146 | B149: C. hellenicus | C149: HKEP1943 | D149: cr5745 | E149: NO | F149: =CONCATENATE(Table26[[#This Row],[sequencing ID]]," ",Table26[[#This Row],[Species]]," ",Table26[[#This Row],[Collection ID]]) -> cr5745 C. hellenicus HKEP1943 | H149: 14.22 | I149: Nudiscapus | J149: Speciosi | K149: Speciosi | L149: YES | M149: YES | N149: YES | O149: 178
A150: 147 | B150: C. robertianus | C150: HKEP1944 | D150: cr5749 | E150: YES | F150: =CONCATENATE(Table26[[#This Row],[sequencing ID]]," ",Table26[[#This Row],[Species]]," ",Table26[[#This Row],[Collection ID]]) -> cr5749 C. robertianus HKEP1944 | G150: 20 | H150: 5.49 | I150: Crocus | J150: Sieberi | K150: Sieberi | L150: YES | M150: YES | N150: YES | O150: 41
A151: 148 | B151: C. cambessedesii | C151: HKEP1945a | D151: cr5752 | E151: YES | F151: =CONCATENATE(Table26[[#This Row],[sequencing ID]]," ",Table26[[#This Row],[Species]]," ",Table26[[#This Row],[Collection ID]]) -> cr5752 C. cambessedesii HKEP1945a | G151: 16 | H151: 7.58 | I151: Crocus | J151: Versicolores | K151: Sect_Crocus | L151: YES | M151: YES | N151: YES | O151: 79
A152: 149 | B152: C. cambessedesii | C152: HKEP1945b | D152: cr5755 | E152: YES | F152: =CONCATENATE(Table26[[#This Row],[sequencing ID]]," ",Table26[[#This Row],[Species]]," ",Table26[[#This Row],[Collection ID]]) -> cr5755 C. cambessedesii HKEP1945b | G152: 16 | H152: 7.50 | I152: Crocus | J152: Versicolores | K152: Sect_Crocus | L152: YES | M152: YES | N152: YES | O152: 78
A153: 150 | B153: C. cf_pallasii | C153: OP21042 | D153: cr5757 | E153: YES | F153: =CONCATENATE(Table26[[#This Row],[sequencing ID]]," ",Table26[[#This Row],[Species]]," ",Table26[[#This Row],[Collection ID]]) -> cr5757 C. cf_pallasii OP21042 | G153: 14 | H153: 8.77 | I153: Crocus | J153: Crocus | K153: Crocus | L153: YES | M153: YES | N153: YES | O153: 30
A154: 151 | B154: C. veneris | C154: OP215109 | D154: cr5759 | E154: YES | F154: =CONCATENATE(Table26[[#This Row],[sequencing ID]]," ",Table26[[#This Row],[Species]]," ",Table26[[#This Row],[Collection ID]]) -> cr5759 C. veneris OP215109 | G154: 16 | H154: 8.00 | I154: Nudiscapus | J154: Aleppici | K154: Aleppici | L154: YES | M154: YES | N154: YES | O154: 123
A155: 152 | B155: C. heuffelianus | C155: DH2002 | D155: cr5764 | E155: YES | F155: =CONCATENATE(Table26[[#This Row],[sequencing ID]]," ",Table26[[#This Row],[Species]]," ",Table26[[#This Row],[Collection ID]]) -> cr5764 C. heuffelianus DH2002 | G155: 10 | H155: 7.76 | I155: Crocus | J155: Verni | K155: Verni | L155: YES | M155: YES | N155: YES | O155: 62
A156: 153 | B156: C. cf_heuffelianus | C156: DH2003 | D156: cr5775 | E156: YES | F156: =CONCATENATE(Table26[[#This Row],[sequencing ID]]," ",Table26[[#This Row],[Species]]," ",Table26[[#This Row],[Collection ID]]) -> cr5775 C. cf_heuffelianus DH2003 | G156: 18 | H156: 12.00 | I156: Crocus | J156: Verni | K156: Verni | L156: YES | M156: YES | N156: YES | O156: 66
A157: 154 | B157: C. tommasinianus | C157: CNS033 | D157: cr5856 | E157: YES | F157: =CONCATENATE(Table26[[#This Row],[sequencing ID]]," ",Table26[[#This Row],[Species]]," ",Table26[[#This Row],[Collection ID]]) -> cr5856 C. tommasinianus CNS033 | G157: 16 | H157: 5.80 | I157: Crocus | J157: Verni | K157: Verni | L157: YES | M157: YES | N157: YES | O157: 58
A158: 155 | B158: C. heuffelianus | C158: CNS034 | D158: cr5871 | E158: NO | F158: =CONCATENATE(Table26[[#This Row],[sequencing ID]]," ",Table26[[#This Row],[Species]]," ",Table26[[#This Row],[Collection ID]]) -> cr5871 C. heuffelianus CNS034 | G158: 10 | H158: 10.44 | I158: Crocus | J158: Verni | K158: Verni | L158: YES | M158: YES | N158: YES | O158: 65
A159: 156 | B159: C. olivieri | C159: CNS036 | D159: cr5881 | E159: YES | F159: =CONCATENATE(Table26[[#This Row],[sequencing ID]]," ",Table26[[#This Row],[Species]]," ",Table26[[#This Row],[Collection ID]]) -> cr5881 C. olivieri CNS036 | G159: 6 | H159: 11.46 | I159: Nudiscapus | J159: Flavi | K159: Flavi | L159: YES | M159: YES | N159: YES | O159: 154
A160: 157 | B160: C. cf_chrysanthus | C160: LST068 | D160: cr5912 | E160: YES | F160: =CONCATENATE(Table26[[#This Row],[sequencing ID]]," ",Table26[[#This Row],[Species]]," ",Table26[[#This Row],[Collection ID]]) -> cr5912 C. cf_chrysanthus LST068 | H160: 7.48 | I160: Nudiscapus | J160: Nudiscapus | K160: Nudiscapus | L160: YES | M160: YES | N160: YES | O160: 162
A161: 158 | B161: C. uschakensis | C161: TULA020 | D161: cr5916 | E161: NO | F161: =CONCATENATE(Table26[[#This Row],[sequencing ID]]," ",Table26[[#This Row],[Species]]," ",Table26[[#This Row],[Collection ID]]) -> cr5916 C. uschakensis TULA020 | H161: 11.94 | I161: Nudiscapus | J161: Nudiscapus | K161: Punctati | L161: YES | M161: YES | N161: YES | O161: 204
A162: 159 | B162: C. cf_chrysanthus | C162: TULA021 | D162: cr5919 | E162: YES | F162: =CONCATENATE(Table26[[#This Row],[sequencing ID]]," ",Table26[[#This Row],[Species]]," ",Table26[[#This Row],[Collection ID]]) -> cr5919 C. cf_chrysanthus TULA021 | H162: 6.15 | I162: Nudiscapus | J162: Nudiscapus | K162: Punctati | L162: YES | M162: YES | N162: YES | O162: 208
A163: 160 | B163: C. cf_chrysanthus | C163: JJVV023 | D163: cr5924 | E163: NO | F163: =CONCATENATE(Table26[[#This Row],[sequencing ID]]," ",Table26[[#This Row],[Species]]," ",Table26[[#This Row],[Collection ID]]) -> cr5924 C. cf_chrysanthus JJVV023 | H163: 5.60 | I163: Nudiscapus | J163: Adamii | K163: Adami | L163: YES | M163: YES | N163: YES | O163: 127
A164: 161 | B164: C. muglaensis | C164: 14TUS022 | D164: cr5931 | E164: YES | F164: =CONCATENATE(Table26[[#This Row],[sequencing ID]]," ",Table26[[#This Row],[Species]]," ",Table26[[#This Row],[Collection ID]]) -> cr5931 C. muglaensis 14TUS022 | I164: Nudiscapus | J164: Mawii | K164: Punctati | L164: YES | M164: YES | N164: YES | O164: 207
A165: 162 | B165: C. gembosii | C165: 14TUS029 | D165: cr5933 | E165: YES | F165: =CONCATENATE(Table26[[#This Row],[sequencing ID]]," ",Table26[[#This Row],[Species]]," ",Table26[[#This Row],[Collection ID]]) -> cr5933 C. gembosii 14TUS029 | H165: 9.24 | I165: Nudiscapus | J165: Mawii | K165: Punctati | L165: YES | M165: YES | N165: YES | O165: 198
A166: 163 | B166: C. henrikii | C166: 14TUS034 | D166: cr5938 | E166: YES | F166: =CONCATENATE(Table26[[#This Row],[sequencing ID]]," ",Table26[[#This Row],[Species]]," ",Table26[[#This Row],[Collection ID]]) -> cr5938 C. henrikii 14TUS034 | H166: 10.26 | I166: Nudiscapus | J166: Mawii | K166: Punctati | L166: YES | M166: YES | N166: YES | O166: 194
A167: 164 | B167: C. species | C167: 18IRS037 | D167: cr5968 | E167: YES | F167: =CONCATENATE(Table26[[#This Row],[sequencing ID]]," ",Table26[[#This Row],[Species]]," ",Table26[[#This Row],[Collection ID]]) -> cr5968 C. species 18IRS037 | H167: 7.00 | I167: Nudiscapus | J167: Adamii | K167: Adami | L167: YES | M167: YES | N167: YES | O167: 144
A168: 165 | B168: C. species_2 | C168: 18IRS044 | D168: cr5976 | E168: YES | F168: =CONCATENATE(Table26[[#This Row],[sequencing ID]]," ",Table26[[#This Row],[Species]]," ",Table26[[#This Row],[Collection ID]]) -> cr5976 C. species_2 18IRS044 | H168: 7.29 | I168: Nudiscapus | J168: Adamii | K168: Adami | L168: YES | M168: YES | N168: YES | O168: 143
A169: 166 | B169: C. kofudagensis | C169: NA | D169: cr6033 | E169: YES | F169: =CONCATENATE(Table26[[#This Row],[sequencing ID]]," ",Table26[[#This Row],[Species]]," ",Table26[[#This Row],[Collection ID]]) -> cr6033 C. kofudagensis NA | G169: 16 | H169: 6.46 | I169: Crocus | J169: Crocus | K169: Crocus | L169: YES | M169: YES | N169: YES | O169: 25
A170: 167 | B170: C. jostii | C170: HKEP1932 | D170: cr6041 | E170: YES | F170: =CONCATENATE(Table26[[#This Row],[sequencing ID]]," ",Table26[[#This Row],[Species]]," ",Table26[[#This Row],[Collection ID]]) -> cr6041 C. jostii HKEP1932 | G170: 26 | H170: 5.82 | I170: Crocus | J170: Sieberi | K170: Sieberi | L170: YES | M170: YES | N170: YES | O170: 37
A171: 168 | B171: C. banaticus | C171: NA | D171: cr6053 | E171: YES | F171: =CONCATENATE(Table26[[#This Row],[sequencing ID]]," ",Table26[[#This Row],[Species]]," ",Table26[[#This Row],[Collection ID]]) -> cr6053 C. banaticus NA | G171: 26 | H171: 4.25 | I171: Crocus | J171: Crociris | K171: OG_Verni | L171: YES | M171: YES | N171: YES | O171: 52
A172: 169 | B172: C. abracteolus | C172: HKEP1040 | D172: cr6062 | E172: YES | F172: =CONCATENATE(Table26[[#This Row],[sequencing ID]]," ",Table26[[#This Row],[Species]]," ",Table26[[#This Row],[Collection ID]]) -> cr6062 C. abracteolus HKEP1040 | G172: 10 | I172: Nudiscapus | J172: Nudiscapus | K172: Punctati | L172: YES | M172: YES | N172: YES | O172: 191
A173: 170 | B173: C. species | C173: HKEP1120 | D173: cr6063 | E173: NO | F173: =CONCATENATE(Table26[[#This Row],[sequencing ID]]," ",Table26[[#This Row],[Species]]," ",Table26[[#This Row],[Collection ID]]) -> cr6063 C. species HKEP1120 | G173: 8 | H173: 4.08 | I173: Nudiscapus | J173: Flavi | K173: Flavi | L173: YES | M173: YES | N173: YES | O173: 151
A174: 171 | B174: C. sieheanus | C174: HKEP1355 | D174: cr6065 | E174: YES | F174: =CONCATENATE(Table26[[#This Row],[sequencing ID]]," ",Table26[[#This Row],[Species]]," ",Table26[[#This Row],[Collection ID]]) -> cr6065 C. sieheanus HKEP1355 | G174: 16 | I174: Nudiscapus | J174: Punctati | K174: Reticulati | L174: YES | M174: YES | N174: YES | O174: 165
A175: 172 | B175: C. filis-maculatis | C175: HKEP1357 | D175: cr6066 | E175: YES | F175: =CONCATENATE(Table26[[#This Row],[sequencing ID]]," ",Table26[[#This Row],[Species]]," ",Table26[[#This Row],[Collection ID]]) -> cr6066 C. filis-maculatis HKEP1357 | I175: Nudiscapus | J175: Reticulati | K175: Reticulati | L175: YES | M175: YES | N175: YES | O175: 166
A176: 173 | B176: C. pulchellus | C176: HKEP1430 | D176: cr6067 | E176: YES | F176: =CONCATENATE(Table26[[#This Row],[sequencing ID]]," ",Table26[[#This Row],[Species]]," ",Table26[[#This Row],[Collection ID]]) -> cr6067 C. pulchellus HKEP1430 | G176: 12 | I176: Nudiscapus | J176: Speciosi | K176: Speciosi | L176: YES | M176: YES | N176: YES | O176: 175
A177: 174 | B177: C. nevadensis | C177: HKEP2003 | D177: cr6068 | E177: YES | F177: =CONCATENATE(Table26[[#This Row],[sequencing ID]]," ",Table26[[#This Row],[Species]]," ",Table26[[#This Row],[Collection ID]]) -> cr6068 C. nevadensis HKEP2003 | G177: 28 | I177: Carpetanus | J177: Carpetani | K177: Carpetani | L177: YES | M177: YES | N177: YES | O177: 11
A178: 175 | B178: C. punctatus | C178: HKEP0004 | D178: cr6071 | E178: YES | F178: =CONCATENATE(Table26[[#This Row],[sequencing ID]]," ",Table26[[#This Row],[Species]]," ",Table26[[#This Row],[Collection ID]]) -> cr6071 C. punctatus HKEP0004 | G178: 8 | I178: Nudiscapus | J178: Punctati | K178: Punctati | L178: YES | M178: YES | N178: YES | O178: 216
A179: 176 | B179: C. leucostylosus | C179: HKEP0214 | D179: cr6072 | E179: NO | F179: =CONCATENATE(Table26[[#This Row],[sequencing ID]]," ",Table26[[#This Row],[Species]]," ",Table26[[#This Row],[Collection ID]]) -> cr6072 C. leucostylosus HKEP0214 | I179: Nudiscapus | J179: Punctati | K179: Punctati | L179: YES | M179: YES | N179: YES | O179: 206
A180: 177 | B180: C. species_13 | C180: HKEP0217 | D180: cr6073 | E180: YES | F180: =CONCATENATE(Table26[[#This Row],[sequencing ID]]," ",Table26[[#This Row],[Species]]," ",Table26[[#This Row],[Collection ID]]) -> cr6073 C. species_13 HKEP0217 | G180: 8 | I180: Nudiscapus | J180: Punctati | K180: Punctati | L180: YES | M180: YES | N180: YES | O180: 218
A181: 178 | B181: C. caricus | C181: HKEP0307 | D181: cr6075 | E181: YES | F181: =CONCATENATE(Table26[[#This Row],[sequencing ID]]," ",Table26[[#This Row],[Species]]," ",Table26[[#This Row],[Collection ID]]) -> cr6075 C. caricus HKEP0307 | G181: 10 | I181: Nudiscapus | J181: Nudiscapus | K181: Punctati | L181: YES | M181: YES | N181: YES | O181: 193
A182: 179 | B182: C. caricus | C182: HKEP0307 | D182: cr6076 | E182: YES | F182: =CONCATENATE(Table26[[#This Row],[sequencing ID]]," ",Table26[[#This Row],[Species]]," ",Table26[[#This Row],[Collection ID]]) -> cr6076 C. caricus HKEP0307 | G182: 12 | I182: Nudiscapus | J182: Nudiscapus | K182: Punctati | L182: YES | M182: YES | N182: YES | O182: 192
A183: 180 | B183: C. caelestis | C183: HKEP0409 | D183: cr6080 | E183: YES | F183: =CONCATENATE(Table26[[#This Row],[sequencing ID]]," ",Table26[[#This Row],[Species]]," ",Table26[[#This Row],[Collection ID]]) -> cr6080 C. caelestis HKEP0409 | G183: 8 | I183: Nudiscapus | J183: Nudiscapus | K183: Punctati | L183: YES | M183: YES | N183: YES | O183: 214
A184: 181 | B184: C. mawii | C184: HKEP0413 | D184: cr6081 | E184: YES | F184: =CONCATENATE(Table26[[#This Row],[sequencing ID]]," ",Table26[[#This Row],[Species]]," ",Table26[[#This Row],[Collection ID]]) -> cr6081 C. mawii HKEP0413 | G184: 12 | I184: Nudiscapus | J184: Isauri | K184: Punctati | L184: YES | M184: YES | N184: YES | O184: 195
A185: 182 | B185: C. schneideri | C185: HKEP0514 | D185: cr6083 | E185: YES | F185: =CONCATENATE(Table26[[#This Row],[sequencing ID]]," ",Table26[[#This Row],[Species]]," ",Table26[[#This Row],[Collection ID]]) -> cr6083 C. schneideri HKEP0514 | G185: 20 | I185: Nudiscapus | J185: Adamii | K185: Adami | L185: YES | M185: YES | N185: YES | O185: 133
A186: 183 | B186: C. roseoviolaceus | C186: HKEP0513 | D186: cr6084 | E186: YES | F186: =CONCATENATE(Table26[[#This Row],[sequencing ID]]," ",Table26[[#This Row],[Species]]," ",Table26[[#This Row],[Collection ID]]) -> cr6084 C. roseoviolaceus HKEP0513 | G186: 10 | I186: Nudiscapus | J186: Nudiscapus | K186: Biflori | L186: YES | M186: YES | N186: YES | O186: 169
A187: 184 | B187: C. concinnus | C187: HKEP0007 | D187: cr6085 | E187: NO | F187: =CONCATENATE(Table26[[#This Row],[sequencing ID]]," ",Table26[[#This Row],[Species]]," ",Table26[[#This Row],[Collection ID]]) -> cr6085 C. concinnus HKEP0007 | I187: Nudiscapus | J187: Nudiscapus | K187: Punctati | L187: YES | M187: YES | N187: YES | O187: 196
A188: 185 | B188: C. incognitus | C188: HKEP0201 | D188: cr6086 | E188: YES | F188: =CONCATENATE(Table26[[#This Row],[sequencing ID]]," ",Table26[[#This Row],[Species]]," ",Table26[[#This Row],[Collection ID]]) -> cr6086 C. incognitus HKEP0201 | G188: 20 | I188: Nudiscapus | J188: Nudiscapus | K188: Punctati | L188: YES | M188: YES | N188: YES | O188: 202
A189: 186 | B189: C. berytius | C189: HKEP0524 | D189: cr6087 | E189: YES | F189: =CONCATENATE(Table26[[#This Row],[sequencing ID]]," ",Table26[[#This Row],[Species]]," ",Table26[[#This Row],[Collection ID]]) -> cr6087 C. berytius HKEP0524 | G189: 18 | I189: Nudiscapus | J189: Adamii | K189: Adami | L189: YES | M189: YES | N189: YES | O189: 135
A190: 187 | B190: C. nubigena | C190: HKEP0601 | D190: cr6089 | E190: YES | F190: =CONCATENATE(Table26[[#This Row],[sequencing ID]]," ",Table26[[#This Row],[Species]]," ",Table26[[#This Row],[Collection ID]]) -> cr6089 C. nubigena HKEP0601 | G190: 12 | I190: Nudiscapus | J190: Nubigeni | K190: Punctati | L190: YES | M190: YES | N190: YES | O190: 203
A191: 188 | B191: C. bifloriformis | C191: HKEP0602 | D191: cr6090 | E191: YES | F191: =CONCATENATE(Table26[[#This Row],[sequencing ID]]," ",Table26[[#This Row],[Species]]," ",Table26[[#This Row],[Collection ID]]) -> cr6090 C. bifloriformis HKEP0602 | G191: 8 | I191: Nudiscapus | J191: Punctati | K191: Punctati | L191: YES | M191: YES | N191: YES | O191: 205
A192: 189 | B192: C. species | C192: HKEP0613 | D192: cr6091 | E192: NO | F192: =CONCATENATE(Table26[[#This Row],[sequencing ID]]," ",Table26[[#This Row],[Species]]," ",Table26[[#This Row],[Collection ID]]) -> cr6091 C. species HKEP0613 | I192: Nudiscapus | J192: Adamii | K192: Adami | L192: YES | M192: YES | N192: YES | O192: 146
A193: 190 | B193: C. adamioides | C193: HKEP0904 | D193: cr6093 | E193: YES | F193: =CONCATENATE(Table26[[#This Row],[sequencing ID]]," ",Table26[[#This Row],[Species]]," ",Table26[[#This Row],[Collection ID]]) -> cr6093 C. adamioides HKEP0904 | G193: 8 | I193: Nudiscapus | J193: Punctati | K193: Punctati | L193: YES | M193: YES | N193: YES | O193: 210
A194: 191 | B194: C. ancyrensis | C194: HKEP0927 | D194: cr6095 | E194: YES | F194: =CONCATENATE(Table26[[#This Row],[sequencing ID]]," ",Table26[[#This Row],[Species]]," ",Table26[[#This Row],[Collection ID]]) -> cr6095 C. ancyrensis HKEP0927 | G194: 10 | I194: Nudiscapus | J194: Adamii | K194: Adami | L194: YES | M194: YES | N194: YES | O194: 140
A195: 192 | B195: C. tauri | C195: HKEP0929 | D195: cr6096 | E195: YES | F195: =CONCATENATE(Table26[[#This Row],[sequencing ID]]," ",Table26[[#This Row],[Species]]," ",Table26[[#This Row],[Collection ID]]) -> cr6096 C. tauri HKEP0929 | G195: 18 | I195: Nudiscapus | J195: Adamii | K195: Adami | L195: YES | M195: YES | N195: YES | O195: 128
A196: 193 | B196: C. species_4 | C196: HKEP1018 | D196: cr6097 | E196: YES | F196: =CONCATENATE(Table26[[#This Row],[sequencing ID]]," ",Table26[[#This Row],[Species]]," ",Table26[[#This Row],[Collection ID]]) -> cr6097 C. species_4 HKEP1018 | I196: Nudiscapus | J196: Adamii | K196: Adami | L196: YES | M196: YES | N196: YES | O196: 139
A197: 194 | B197: C. species_1 | C197: HKEP1023 | D197: cr6098 | E197: YES | F197: =CONCATENATE(Table26[[#This Row],[sequencing ID]]," ",Table26[[#This Row],[Species]]," ",Table26[[#This Row],[Collection ID]]) -> cr6098 C. species_1 HKEP1023 | I197: Nudiscapus | J197: Adamii | K197: Adami | L197: YES | M197: YES | N197: YES | O197: 147
A198: 195 | B198: C. species | C198: HKEP1025 | D198: cr6099 | E198: YES | F198: =CONCATENATE(Table26[[#This Row],[sequencing ID]]," ",Table26[[#This Row],[Species]]," ",Table26[[#This Row],[Collection ID]]) -> cr6099 C. species HKEP1025 | I198: Nudiscapus | J198: Adamii | K198: Adami | L198: YES | M198: YES | N198: YES | O198: 145
A199: 196 | B199: C. speciosus | C199: HKEP1027 | D199: cr6100 | E199: YES | F199: =CONCATENATE(Table26[[#This Row],[sequencing ID]]," ",Table26[[#This Row],[Species]]," ",Table26[[#This Row],[Collection ID]]) -> cr6100 C. speciosus HKEP1027 | G199: 6 | I199: Nudiscapus | J199: Speciosi | K199: Speciosi | L199: YES | M199: YES | N199: YES | O199: 177
A200: 197 | B200: C. species | C200: NA | D200: cr6101 | E200: NO | F200: =CONCATENATE(Table26[[#This Row],[sequencing ID]]," ",Table26[[#This Row],[Species]]," ",Table26[[#This Row],[Collection ID]]) -> cr6101 C. species NA | G200: 6 | I200: Nudiscapus | J200: Adamii | K200: Adami | L200: YES | M200: YES | N200: YES | O200: 129
A201: 198 | B201: C. species_14 | C201: HKEP1032 | D201: cr6102 | E201: YES | F201: =CONCATENATE(Table26[[#This Row],[sequencing ID]]," ",Table26[[#This Row],[Species]]," ",Table26[[#This Row],[Collection ID]]) -> cr6102 C. species_14 HKEP1032 | I201: Nudiscapus | J201: Punctati | K201: Punctati | L201: YES | M201: YES | N201: YES | O201: 217
... 32 more rows

Sheet Supp. Table 2|BUSCO
A1: Supplementary Table 2. Summary of duplicated BUSCO genes to infer WGDs in the five omics datasets
A3: Column1 | B3: C. hadriaticus* | C3: C. sativus | D3: C. vernus | E3: C. longiflorus | F3: C. weldenii
A4: Complete BUSCOs | B4: 1314 | C4: 2955 | D4: 3020 | E4: 2969 | F4: 3055
A5: Complete and single-copy BUSCOs | B5: 532 | C5: 1001 | D5: 251 | E5: 1824 | F5: 1568
A6: Complete and duplicated BUSCOs | B6: 782 | C6: 1954 | D6: 2769 | E6: 1145 | F6: 1487
A7: Fragmented BUSCOs | B7: 468 | C7: 207 | D7: 170 | E7: 204 | F7: 124
A8: no. of genes duplicated at the β-WGD (0.145 +/- 0.15) | B8: 69 | C8: 230 | D8: 268 | E8: 245 | F8: 341
A9: no. of genes duplicated at the α-WGD (0.025 +/- 0.1) | B9: 163 | C9: 772 | D9: 981 | E9: 16 | F9: 110
A10: highest density | B10: 0.02 | C10: 0.03 | D10: 0.021 | E10: 0.144 | F10: 0.141
A12: *We used stigma transriptome data for C. hadriaticus and genome data for the rest.

Sheet Supp. Table 3|Panrep. source
A1: Supplementary Table 3. Summary of whole genome sequence datasets used to analyze the panrepeatome. Samples without genome size information have no coverage (x) information.
A3: No. | B3: Sequencing ID | C3: Species name | D3: Genome size (pg) | E3: Genome size (Gbp) | F3: Input reads | G3: Read length | H3: Total input length | I3: Coverage (x) | J3: RepeatExplorer2 (RE2) analyzed reads | K3: RE2 coverage | L3: GP (annotated repeats) | M3: GP (RE reads in clusters/analyzed reads)
A4: 1 | B4: cr0001 | C4: C. adanensis | D4: =_xlfn.XLOOKUP(Table7[[#This Row],[Sequencing ID]],Table26[sequencing ID],Table26[GS],"") -> 0.00 | E4: =Table7[[#This Row],[Genome size (pg)]]*0.978 -> 0.00 | F4: 8,000,000 | G4: 103 | H4: =Table7[[#This Row],[Input reads ]]*Table7[[#This Row],[Read length]] -> 824,000,000 | J4: 1,750,721 | L4: 48% | M4: 75%
A5: 2 | B5: cr0002 | C5: C. paschei | D5: =_xlfn.XLOOKUP(Table7[[#This Row],[Sequencing ID]],Table26[sequencing ID],Table26[GS],"") -> 0.00 | E5: =Table7[[#This Row],[Genome size (pg)]]*0.978 -> 0.00 | F5: 8,000,000 | G5: 103 | H5: =Table7[[#This Row],[Input reads ]]*Table7[[#This Row],[Read length]] -> 824,000,000 | J5: 2,013,097 | L5: 46% | M5: 77%
A6: 3 | B6: cr0024 | C6: C. abantensis | D6: =_xlfn.XLOOKUP(Table7[[#This Row],[Sequencing ID]],Table26[sequencing ID],Table26[GS],"") -> 0.00 | E6: =Table7[[#This Row],[Genome size (pg)]]*0.978 -> 0.00 | F6: 8,000,000 | G6: 103 | H6: =Table7[[#This Row],[Input reads ]]*Table7[[#This Row],[Read length]] -> 824,000,000 | J6: 1,177,183 | L6: 60% | M6: 76%
A7: 4 | B7: cr0604 | C7: C. pestalozzae | D7: =_xlfn.XLOOKUP(Table7[[#This Row],[Sequencing ID]],Table26[sequencing ID],Table26[GS],"") -> 0.00 | E7: =Table7[[#This Row],[Genome size (pg)]]*0.978 -> 0.00 | F7: 8,000,000 | G7: 103 | H7: =Table7[[#This Row],[Input reads ]]*Table7[[#This Row],[Read length]] -> 824,000,000 | J7: 3,248,683 | L7: 55% | M7: 82%
A8: 5 | B8: cr0622 | C8: C. bowlesianus | D8: =_xlfn.XLOOKUP(Table7[[#This Row],[Sequencing ID]],Table26[sequencing ID],Table26[GS],"") -> 0.00 | E8: =Table7[[#This Row],[Genome size (pg)]]*0.978 -> 0.00 | F8: 8,000,000 | G8: 103 | H8: =Table7[[#This Row],[Input reads ]]*Table7[[#This Row],[Read length]] -> 824,000,000 | J8: 2,724,521 | L8: 64% | M8: 81%
A9: 6 | B9: cr0624 | C9: C. mawii | D9: =_xlfn.XLOOKUP(Table7[[#This Row],[Sequencing ID]],Table26[sequencing ID],Table26[GS],"") -> 0.00 | E9: =Table7[[#This Row],[Genome size (pg)]]*0.978 -> 0.00 | F9: 8,000,000 | G9: 103 | H9: =Table7[[#This Row],[Input reads ]]*Table7[[#This Row],[Read length]] -> 824,000,000 | J9: 2,098,628 | L9: 66% | M9: 80%
A10: 7 | B10: cr0626 | C10: C. schneideri | D10: =_xlfn.XLOOKUP(Table7[[#This Row],[Sequencing ID]],Table26[sequencing ID],Table26[GS],"") -> 0.00 | E10: =Table7[[#This Row],[Genome size (pg)]]*0.978 -> 0.00 | F10: 8,000,000 | G10: 103 | H10: =Table7[[#This Row],[Input reads ]]*Table7[[#This Row],[Read length]] -> 824,000,000 | J10: 3,379,625 | L10: 56% | M10: 80%
A11: 8 | B11: cr0743 | C11: C. ancyrensis | D11: =_xlfn.XLOOKUP(Table7[[#This Row],[Sequencing ID]],Table26[sequencing ID],Table26[GS],"") -> 0.00 | E11: =Table7[[#This Row],[Genome size (pg)]]*0.978 -> 0.00 | F11: 8,000,000 | G11: 103 | H11: =Table7[[#This Row],[Input reads ]]*Table7[[#This Row],[Read length]] -> 824,000,000 | J11: 2,259,688 | L11: 63% | M11: 80%
A12: 9 | B12: cr0883 | C12: C. balcanensis | D12: =_xlfn.XLOOKUP(Table7[[#This Row],[Sequencing ID]],Table26[sequencing ID],Table26[GS],"") -> 0.00 | E12: =Table7[[#This Row],[Genome size (pg)]]*0.978 -> 0.00 | F12: 3,751,668 | G12: 103 | H12: =Table7[[#This Row],[Input reads ]]*Table7[[#This Row],[Read length]] -> 386,421,804 | J12: 1,796,312 | L12: 50% | M12: 74%
A13: 10 | B13: cr0916 | C13: C. cf_variegatus | D13: =_xlfn.XLOOKUP(Table7[[#This Row],[Sequencing ID]],Table26[sequencing ID],Table26[GS],"") -> 0.00 | E13: =Table7[[#This Row],[Genome size (pg)]]*0.978 -> 0.00 | F13: 8,000,000 | G13: 103 | H13: =Table7[[#This Row],[Input reads ]]*Table7[[#This Row],[Read length]] -> 824,000,000 | J13: 1,994,725 | L13: 63% | M13: 80%
A14: 11 | B14: cr1032 | C14: C. adamii | D14: =_xlfn.XLOOKUP(Table7[[#This Row],[Sequencing ID]],Table26[sequencing ID],Table26[GS],"") -> 0.00 | E14: =Table7[[#This Row],[Genome size (pg)]]*0.978 -> 0.00 | F14: 8,000,000 | G14: 103 | H14: =Table7[[#This Row],[Input reads ]]*Table7[[#This Row],[Read length]] -> 824,000,000 | J14: 1,879,439 | L14: 60% | M14: 76%
A15: 12 | B15: cr1729 | C15: C. dissectus | D15: =_xlfn.XLOOKUP(Table7[[#This Row],[Sequencing ID]],Table26[sequencing ID],Table26[GS],"") -> 0.00 | E15: =Table7[[#This Row],[Genome size (pg)]]*0.978 -> 0.00 | F15: 8,000,000 | G15: 103 | H15: =Table7[[#This Row],[Input reads ]]*Table7[[#This Row],[Read length]] -> 824,000,000 | J15: 1,755,206 | L15: 62% | M15: 79%
A16: 13 | B16: cr1760 | C16: C. hittiticus | D16: =_xlfn.XLOOKUP(Table7[[#This Row],[Sequencing ID]],Table26[sequencing ID],Table26[GS],"") -> 0.00 | E16: =Table7[[#This Row],[Genome size (pg)]]*0.978 -> 0.00 | F16: 8,000,000 | G16: 103 | H16: =Table7[[#This Row],[Input reads ]]*Table7[[#This Row],[Read length]] -> 824,000,000 | J16: 2,392,313 | L16: 63% | M16: 80%
A17: 14 | B17: cr2011 | C17: C. cf_damascenus | D17: =_xlfn.XLOOKUP(Table7[[#This Row],[Sequencing ID]],Table26[sequencing ID],Table26[GS],"") -> 0.00 | E17: =Table7[[#This Row],[Genome size (pg)]]*0.978 -> 0.00 | F17: 8,000,000 | G17: 140 | H17: =Table7[[#This Row],[Input reads ]]*Table7[[#This Row],[Read length]] -> 1,120,000,000 | J17: 2,592,885 | L17: 69% | M17: 83%
A18: 15 | B18: cr2040 | C18: C. caspius | D18: =_xlfn.XLOOKUP(Table7[[#This Row],[Sequencing ID]],Table26[sequencing ID],Table26[GS],"") -> 0.00 | E18: =Table7[[#This Row],[Genome size (pg)]]*0.978 -> 0.00 | F18: 8,000,000 | G18: 103 | H18: =Table7[[#This Row],[Input reads ]]*Table7[[#This Row],[Read length]] -> 824,000,000 | J18: 750,500 | L18: 49% | M18: 74%
A19: 16 | B19: cr2112 | C19: C. aleppicus | D19: =_xlfn.XLOOKUP(Table7[[#This Row],[Sequencing ID]],Table26[sequencing ID],Table26[GS],"") -> 8.10 | E19: =Table7[[#This Row],[Genome size (pg)]]*0.978 -> 7.92 | F19: 8,000,000 | G19: 103 | H19: =Table7[[#This Row],[Input reads ]]*Table7[[#This Row],[Read length]] -> 824,000,000 | I19: 0.104 | J19: 3,759,975 | K19: 0.049 | L19: 57% | M19: 82%
A20: 17 | B20: cr2121 | C20: C. aleppicus | D20: =_xlfn.XLOOKUP(Table7[[#This Row],[Sequencing ID]],Table26[sequencing ID],Table26[GS],"") -> 8.10 | E20: =Table7[[#This Row],[Genome size (pg)]]*0.978 -> 7.92 | F20: 8,000,000 | G20: 103 | H20: =Table7[[#This Row],[Input reads ]]*Table7[[#This Row],[Read length]] -> 824,000,000 | I20: 0.104 | J20: 2,993,206 | K20: 0.039 | L20: 61% | M20: 82%
A21: 18 | B21: cr2127 | C21: C. species_nova_4 | D21: =_xlfn.XLOOKUP(Table7[[#This Row],[Sequencing ID]],Table26[sequencing ID],Table26[GS],"") -> 0.00 | E21: =Table7[[#This Row],[Genome size (pg)]]*0.978 -> 0.00 | F21: 7,821,052 | G21: 103 | H21: =Table7[[#This Row],[Input reads ]]*Table7[[#This Row],[Read length]] -> 805,568,356 | J21: 2,863,856 | L21: 61% | M21: 82%
A22: 19 | B22: cr2130 | C22: C. giladensis | D22: =_xlfn.XLOOKUP(Table7[[#This Row],[Sequencing ID]],Table26[sequencing ID],Table26[GS],"") -> 9.93 | E22: =Table7[[#This Row],[Genome size (pg)]]*0.978 -> 9.71 | F22: 8,000,000 | G22: 103 | H22: =Table7[[#This Row],[Input reads ]]*Table7[[#This Row],[Read length]] -> 824,000,000 | I22: 0.085 | J22: 2,679,487 | K22: 0.028 | L22: 65% | M22: 82%
A23: 20 | B23: cr2132 | C23: C. veneris | D23: =_xlfn.XLOOKUP(Table7[[#This Row],[Sequencing ID]],Table26[sequencing ID],Table26[GS],"") -> 8.43 | E23: =Table7[[#This Row],[Genome size (pg)]]*0.978 -> 8.24 | F23: 8,000,000 | G23: 103 | H23: =Table7[[#This Row],[Input reads ]]*Table7[[#This Row],[Read length]] -> 824,000,000 | I23: 0.100 | J23: 3,450,611 | K23: 0.043 | L23: 59% | M23: 83%
A24: 21 | B24: cr2250 | C24: C. spec._nova_1 | D24: =_xlfn.XLOOKUP(Table7[[#This Row],[Sequencing ID]],Table26[sequencing ID],Table26[GS],"") -> 0.00 | E24: =Table7[[#This Row],[Genome size (pg)]]*0.978 -> 0.00 | F24: 7,699,346 | G24: 103 | H24: =Table7[[#This Row],[Input reads ]]*Table7[[#This Row],[Read length]] -> 793,032,638 | J24: 2,949,667 | L24: 54% | M24: 81%
A25: 22 | B25: cr2261 | C25: C. kosaninii | D25: =_xlfn.XLOOKUP(Table7[[#This Row],[Sequencing ID]],Table26[sequencing ID],Table26[GS],"") -> 8.50 | E25: =Table7[[#This Row],[Genome size (pg)]]*0.978 -> 8.31 | F25: 7,419,218 | G25: 103 | H25: =Table7[[#This Row],[Input reads ]]*Table7[[#This Row],[Read length]] -> 764,179,454 | I25: 0.092 | J25: 1,627,582 | K25: 0.020 | L25: 56% | M25: 77%
A26: 23 | B26: cr2336 | C26: C. variegatus | D26: =_xlfn.XLOOKUP(Table7[[#This Row],[Sequencing ID]],Table26[sequencing ID],Table26[GS],"") -> 0.00 | E26: =Table7[[#This Row],[Genome size (pg)]]*0.978 -> 0.00 | F26: 5,846,928 | G26: 103 | H26: =Table7[[#This Row],[Input reads ]]*Table7[[#This Row],[Read length]] -> 602,233,584 | J26: 2,508,392 | L26: 61% | M26: 84%
A27: 24 | B27: cr2443 | C27: C. baytopiorum | D27: =_xlfn.XLOOKUP(Table7[[#This Row],[Sequencing ID]],Table26[sequencing ID],Table26[GS],"") -> 9.00 | E27: =Table7[[#This Row],[Genome size (pg)]]*0.978 -> 8.80 | F27: 8,000,000 | G27: 103 | H27: =Table7[[#This Row],[Input reads ]]*Table7[[#This Row],[Read length]] -> 824,000,000 | I27: 0.094 | J27: 480,154 | K27: 0.006 | L27: 67% | M27: 74%
A28: 25 | B28: cr2453 | C28: C. chrysanthus | D28: =_xlfn.XLOOKUP(Table7[[#This Row],[Sequencing ID]],Table26[sequencing ID],Table26[GS],"") -> 0.00 | E28: =Table7[[#This Row],[Genome size (pg)]]*0.978 -> 0.00 | F28: 8,000,000 | G28: 103 | H28: =Table7[[#This Row],[Input reads ]]*Table7[[#This Row],[Read length]] -> 824,000,000 | J28: 1,819,148 | L28: 65% | M28: 78%
A29: 26 | B29: cr2612 | C29: C. alatavicus | D29: =_xlfn.XLOOKUP(Table7[[#This Row],[Sequencing ID]],Table26[sequencing ID],Table26[GS],"") -> 9.20 | E29: =Table7[[#This Row],[Genome size (pg)]]*0.978 -> 9.00 | F29: 8,000,000 | G29: 103 | H29: =Table7[[#This Row],[Input reads ]]*Table7[[#This Row],[Read length]] -> 824,000,000 | I29: 0.092 | J29: 3,805,535 | K29: 0.044 | L29: 40% | M29: 82%
A30: 27 | B30: cr2631 | C30: C. boryi | D30: =_xlfn.XLOOKUP(Table7[[#This Row],[Sequencing ID]],Table26[sequencing ID],Table26[GS],"") -> 7.80 | E30: =Table7[[#This Row],[Genome size (pg)]]*0.978 -> 7.63 | F30: 8,000,000 | G30: 103 | H30: =Table7[[#This Row],[Input reads ]]*Table7[[#This Row],[Read length]] -> 824,000,000 | I30: 0.108 | J30: 1,955,794 | K30: 0.026 | L30: 56% | M30: 77%
A31: 28 | B31: cr2715 | C31: C. species_FS2 | D31: =_xlfn.XLOOKUP(Table7[[#This Row],[Sequencing ID]],Table26[sequencing ID],Table26[GS],"") -> 4.49 | E31: =Table7[[#This Row],[Genome size (pg)]]*0.978 -> 4.39 | F31: 8,000,000 | G31: 140 | H31: =Table7[[#This Row],[Input reads ]]*Table7[[#This Row],[Read length]] -> 1,120,000,000 | I31: 0.255 | J31: 4,058,292 | K31: 0.129 | L31: 52% | M31: 75%
A32: 29 | B32: cr2876 | C32: C. suaveolens | D32: =_xlfn.XLOOKUP(Table7[[#This Row],[Sequencing ID]],Table26[sequencing ID],Table26[GS],"") -> 0.00 | E32: =Table7[[#This Row],[Genome size (pg)]]*0.978 -> 0.00 | F32: 8,000,000 | G32: 103 | H32: =Table7[[#This Row],[Input reads ]]*Table7[[#This Row],[Read length]] -> 824,000,000 | J32: 4,000,000 | L32: 46% | M32: 79%
A33: 30 | B33: cr2902 | C33: C. serotinus | D33: =_xlfn.XLOOKUP(Table7[[#This Row],[Sequencing ID]],Table26[sequencing ID],Table26[GS],"") -> 4.45 | E33: =Table7[[#This Row],[Genome size (pg)]]*0.978 -> 4.35 | F33: 8,000,000 | G33: 140 | H33: =Table7[[#This Row],[Input reads ]]*Table7[[#This Row],[Read length]] -> 1,120,000,000 | I33: 0.257 | J33: 3,992,159 | K33: 0.128 | L33: 51% | M33: 73%
A34: 31 | B34: cr2926 | C34: C. species_F14 | D34: =_xlfn.XLOOKUP(Table7[[#This Row],[Sequencing ID]],Table26[sequencing ID],Table26[GS],"") -> 4.29 | E34: =Table7[[#This Row],[Genome size (pg)]]*0.978 -> 4.20 | F34: 8,000,000 | G34: 140 | H34: =Table7[[#This Row],[Input reads ]]*Table7[[#This Row],[Read length]] -> 1,120,000,000 | I34: 0.267 | J34: 3,569,757 | K34: 0.119 | L34: 52% | M34: 74%
A35: 32 | B35: cr2931 | C35: C. salzmannii | D35: =_xlfn.XLOOKUP(Table7[[#This Row],[Sequencing ID]],Table26[sequencing ID],Table26[GS],"") -> 7.17 | E35: =Table7[[#This Row],[Genome size (pg)]]*0.978 -> 7.01 | F35: 8,000,000 | G35: 140 | H35: =Table7[[#This Row],[Input reads ]]*Table7[[#This Row],[Read length]] -> 1,120,000,000 | I35: 0.160 | J35: 4,103,660 | K35: 0.082 | L35: 55% | M35: 87%
A36: 33 | B36: cr2974 | C36: C. asumaniae | D36: =_xlfn.XLOOKUP(Table7[[#This Row],[Sequencing ID]],Table26[sequencing ID],Table26[GS],"") -> 5.10 | E36: =Table7[[#This Row],[Genome size (pg)]]*0.978 -> 4.99 | F36: 6,769,376 | G36: 103 | H36: =Table7[[#This Row],[Input reads ]]*Table7[[#This Row],[Read length]] -> 697,245,728 | I36: 0.140 | J36: 1,495,204 | K36: 0.031 | L36: 55% | M36: 75%
A37: 34 | B37: cr2983 | C37: C. mathewii | D37: =_xlfn.XLOOKUP(Table7[[#This Row],[Sequencing ID]],Table26[sequencing ID],Table26[GS],"") -> 6.17 | E37: =Table7[[#This Row],[Genome size (pg)]]*0.978 -> 6.03 | F37: 8,000,000 | G37: 103 | H37: =Table7[[#This Row],[Input reads ]]*Table7[[#This Row],[Read length]] -> 824,000,000 | I37: 0.137 | J37: 967,798 | K37: 0.017 | L37: 60% | M37: 73%
A38: 35 | B38: cr3014 | C38: C. ligusticus | D38: =_xlfn.XLOOKUP(Table7[[#This Row],[Sequencing ID]],Table26[sequencing ID],Table26[GS],"") -> 0.00 | E38: =Table7[[#This Row],[Genome size (pg)]]*0.978 -> 0.00 | F38: 8,000,000 | G38: 103 | H38: =Table7[[#This Row],[Input reads ]]*Table7[[#This Row],[Read length]] -> 824,000,000 | J38: 1,761,437 | L38: 50% | M38: 74%
A39: 36 | B39: cr3023 | C39: C. cambessedesii | D39: =_xlfn.XLOOKUP(Table7[[#This Row],[Sequencing ID]],Table26[sequencing ID],Table26[GS],"") -> 7.58 | E39: =Table7[[#This Row],[Genome size (pg)]]*0.978 -> 7.41 | F39: 8,000,000 | G39: 103 | H39: =Table7[[#This Row],[Input reads ]]*Table7[[#This Row],[Read length]] -> 824,000,000 | I39: 0.111 | J39: 563,955 | K39: 0.008 | L39: 69% | M39: 75%
A40: 37 | B40: cr3158 | C40: C. kotschyanus | D40: =_xlfn.XLOOKUP(Table7[[#This Row],[Sequencing ID]],Table26[sequencing ID],Table26[GS],"") -> 0.00 | E40: =Table7[[#This Row],[Genome size (pg)]]*0.978 -> 0.00 | F40: 7,979,348 | G40: 103 | H40: =Table7[[#This Row],[Input reads ]]*Table7[[#This Row],[Read length]] -> 821,872,844 | J40: 527,219 | L40: 50% | M40: 69%
A41: 38 | B41: cr3164 | C41: C. haussknechtii | D41: =_xlfn.XLOOKUP(Table7[[#This Row],[Sequencing ID]],Table26[sequencing ID],Table26[GS],"") -> 5.17 | E41: =Table7[[#This Row],[Genome size (pg)]]*0.978 -> 5.06 | F41: 8,000,000 | G41: 103 | H41: =Table7[[#This Row],[Input reads ]]*Table7[[#This Row],[Read length]] -> 824,000,000 | I41: 0.163 | J41: 794,250 | K41: 0.016 | L41: 61% | M41: 77%
A42: 39 | B42: cr3166 | C42: C. iranicus | D42: =_xlfn.XLOOKUP(Table7[[#This Row],[Sequencing ID]],Table26[sequencing ID],Table26[GS],"") -> 0.00 | E42: =Table7[[#This Row],[Genome size (pg)]]*0.978 -> 0.00 | F42: 8,000,000 | G42: 103 | H42: =Table7[[#This Row],[Input reads ]]*Table7[[#This Row],[Read length]] -> 824,000,000 | J42: 1,264,114 | L42: 58% | M42: 76%
A43: 40 | B43: cr3187 | C43: C. nudiflorus | D43: =_xlfn.XLOOKUP(Table7[[#This Row],[Sequencing ID]],Table26[sequencing ID],Table26[GS],"") -> 6.79 | E43: =Table7[[#This Row],[Genome size (pg)]]*0.978 -> 6.64 | F43: 8,000,000 | G43: 103 | H43: =Table7[[#This Row],[Input reads ]]*Table7[[#This Row],[Read length]] -> 824,000,000 | I43: 0.124 | J43: 1,703,181 | K43: 0.026 | L43: 39% | M43: 64%
A44: 41 | B44: cr3196 | C44: C. corsicus | D44: =_xlfn.XLOOKUP(Table7[[#This Row],[Sequencing ID]],Table26[sequencing ID],Table26[GS],"") -> 8.04 | E44: =Table7[[#This Row],[Genome size (pg)]]*0.978 -> 7.86 | F44: 8,000,000 | G44: 103 | H44: =Table7[[#This Row],[Input reads ]]*Table7[[#This Row],[Read length]] -> 824,000,000 | I44: 0.105 | J44: 4,000,000 | K44: 0.052 | L44: 37% | M44: 79%
A45: 42 | B45: cr3198 | C45: C. minimus | D45: =_xlfn.XLOOKUP(Table7[[#This Row],[Sequencing ID]],Table26[sequencing ID],Table26[GS],"") -> 8.41 | E45: =Table7[[#This Row],[Genome size (pg)]]*0.978 -> 8.22 | F45: 8,000,000 | G45: 103 | H45: =Table7[[#This Row],[Input reads ]]*Table7[[#This Row],[Read length]] -> 824,000,000 | I45: 0.100 | J45: 4,000,000 | K45: 0.050 | L45: 49% | M45: 80%
A46: 43 | B46: cr3204 | C46: C. longiflorus | D46: =_xlfn.XLOOKUP(Table7[[#This Row],[Sequencing ID]],Table26[sequencing ID],Table26[GS],"") -> 3.00 | E46: =Table7[[#This Row],[Genome size (pg)]]*0.978 -> 2.93 | F46: 8,000,000 | G46: 103 | H46: =Table7[[#This Row],[Input reads ]]*Table7[[#This Row],[Read length]] -> 824,000,000 | I46: 0.281 | J46: 1,031,396 | K46: 0.036 | L46: 47% | M46: 63%
A47: 44 | B47: cr3381 | C47: C. oreocreticus | D47: =_xlfn.XLOOKUP(Table7[[#This Row],[Sequencing ID]],Table26[sequencing ID],Table26[GS],"") -> 7.60 | E47: =Table7[[#This Row],[Genome size (pg)]]*0.978 -> 7.43 | F47: 8,000,000 | G47: 103 | H47: =Table7[[#This Row],[Input reads ]]*Table7[[#This Row],[Read length]] -> 824,000,000 | I47: 0.111 | J47: 2,599,206 | K47: 0.036 | L47: 54% | M47: 80%
A48: 45 | B48: cr3389 | C48: C. biflorus | D48: =_xlfn.XLOOKUP(Table7[[#This Row],[Sequencing ID]],Table26[sequencing ID],Table26[GS],"") -> 13.30 | E48: =Table7[[#This Row],[Genome size (pg)]]*0.978 -> 13.01 | F48: 8,000,000 | G48: 103 | H48: =Table7[[#This Row],[Input reads ]]*Table7[[#This Row],[Read length]] -> 824,000,000 | I48: 0.063 | J48: 1,039,423 | K48: 0.008 | L48: 69% | M48: 81%
A49: 46 | B49: cr3400 | C49: C. cobbii | D49: =_xlfn.XLOOKUP(Table7[[#This Row],[Sequencing ID]],Table26[sequencing ID],Table26[GS],"") -> 0.00 | E49: =Table7[[#This Row],[Genome size (pg)]]*0.978 -> 0.00 | F49: 8,000,000 | G49: 103 | H49: =Table7[[#This Row],[Input reads ]]*Table7[[#This Row],[Read length]] -> 824,000,000 | J49: 1,231,827 | L49: 45% | M49: 63%
A50: 47 | B50: cr3434 | C50: C. species | D50: =_xlfn.XLOOKUP(Table7[[#This Row],[Sequencing ID]],Table26[sequencing ID],Table26[GS],"") -> 6.12 | E50: =Table7[[#This Row],[Genome size (pg)]]*0.978 -> 5.99 | F50: 8,000,000 | G50: 103 | H50: =Table7[[#This Row],[Input reads ]]*Table7[[#This Row],[Read length]] -> 824,000,000 | I50: 0.138 | J50: 2,281,194 | K50: 0.039 | L50: 47% | M50: 73%
A51: 48 | B51: cr3443 | C51: C. nevadensis | D51: =_xlfn.XLOOKUP(Table7[[#This Row],[Sequencing ID]],Table26[sequencing ID],Table26[GS],"") -> 5.72 | E51: =Table7[[#This Row],[Genome size (pg)]]*0.978 -> 5.59 | F51: 8,000,000 | G51: 103 | H51: =Table7[[#This Row],[Input reads ]]*Table7[[#This Row],[Read length]] -> 824,000,000 | I51: 0.147 | J51: 783,379 | K51: 0.014 | L51: 45% | M51: 77%
A52: 49 | B52: cr3444 | C52: C. nevadensis | D52: =_xlfn.XLOOKUP(Table7[[#This Row],[Sequencing ID]],Table26[sequencing ID],Table26[GS],"") -> 5.72 | E52: =Table7[[#This Row],[Genome size (pg)]]*0.978 -> 5.59 | F52: 8,000,000 | G52: 103 | H52: =Table7[[#This Row],[Input reads ]]*Table7[[#This Row],[Read length]] -> 824,000,000 | I52: 0.147 | J52: 1,797,653 | K52: 0.033 | L52: 41% | M52: 80%
A53: 50 | B53: cr3501 | C53: Romulea species | D53: =_xlfn.XLOOKUP(Table7[[#This Row],[Sequencing ID]],Table26[sequencing ID],Table26[GS],"") -> 3.50 | E53: =Table7[[#This Row],[Genome size (pg)]]*0.978 -> 3.42 | F53: 6,877,896 | G53: 103 | H53: =Table7[[#This Row],[Input reads ]]*Table7[[#This Row],[Read length]] -> 708,423,288 | I53: 0.207 | J53: 3,317,927 | K53: 0.100 | L53: 34% | M53: 77%
A54: 51 | B54: cr3582 | C54: C. alatavicus | D54: =_xlfn.XLOOKUP(Table7[[#This Row],[Sequencing ID]],Table26[sequencing ID],Table26[GS],"") -> 9.20 | E54: =Table7[[#This Row],[Genome size (pg)]]*0.978 -> 9.00 | F54: 8,000,000 | G54: 103 | H54: =Table7[[#This Row],[Input reads ]]*Table7[[#This Row],[Read length]] -> 824,000,000 | I54: 0.092 | J54: 4,000,000 | K54: 0.046 | L54: 36% | M54: 83%
A55: 52 | B55: cr3616 | C55: C. michelsonii | D55: =_xlfn.XLOOKUP(Table7[[#This Row],[Sequencing ID]],Table26[sequencing ID],Table26[GS],"") -> 0.00 | E55: =Table7[[#This Row],[Genome size (pg)]]*0.978 -> 0.00 | F55: 8,000,000 | G55: 103 | H55: =Table7[[#This Row],[Input reads ]]*Table7[[#This Row],[Read length]] -> 824,000,000 | J55: 4,000,000 | L55: 35% | M55: 78%
A56: 53 | B56: cr3637 | C56: C. wattiorum | D56: =_xlfn.XLOOKUP(Table7[[#This Row],[Sequencing ID]],Table26[sequencing ID],Table26[GS],"") -> 0.00 | E56: =Table7[[#This Row],[Genome size (pg)]]*0.978 -> 0.00 | F56: 8,000,000 | G56: 103 | H56: =Table7[[#This Row],[Input reads ]]*Table7[[#This Row],[Read length]] -> 824,000,000 | J56: 1,021,240 | L56: 66% | M56: 80%
A57: 54 | B57: cr3645 | C57: C. veneris | D57: =_xlfn.XLOOKUP(Table7[[#This Row],[Sequencing ID]],Table26[sequencing ID],Table26[GS],"") -> 8.00 | E57: =Table7[[#This Row],[Genome size (pg)]]*0.978 -> 7.82 | F57: 8,000,000 | G57: 103 | H57: =Table7[[#This Row],[Input reads ]]*Table7[[#This Row],[Read length]] -> 824,000,000 | I57: 0.105 | J57: 3,565,676 | K57: 0.047 | L57: 56% | M57: 83%
A58: 55 | B58: cr3646 | C58: C. artvinensis | D58: =_xlfn.XLOOKUP(Table7[[#This Row],[Sequencing ID]],Table26[sequencing ID],Table26[GS],"") -> 0.00 | E58: =Table7[[#This Row],[Genome size (pg)]]*0.978 -> 0.00 | F58: 8,000,000 | G58: 103 | H58: =Table7[[#This Row],[Input reads ]]*Table7[[#This Row],[Read length]] -> 824,000,000 | J58: 3,890,143 | L58: 47% | M58: 82%
A59: 56 | B59: cr3652 | C59: C. kerndorffiorum | D59: =_xlfn.XLOOKUP(Table7[[#This Row],[Sequencing ID]],Table26[sequencing ID],Table26[GS],"") -> 0.00 | E59: =Table7[[#This Row],[Genome size (pg)]]*0.978 -> 0.00 | F59: 8,000,000 | G59: 103 | H59: =Table7[[#This Row],[Input reads ]]*Table7[[#This Row],[Read length]] -> 824,000,000 | J59: 4,000,000 | L59: 41% | M59: 81%
A60: 57 | B60: cr3676 | C60: C. atrospermus | D60: =_xlfn.XLOOKUP(Table7[[#This Row],[Sequencing ID]],Table26[sequencing ID],Table26[GS],"") -> 0.00 | E60: =Table7[[#This Row],[Genome size (pg)]]*0.978 -> 0.00 | F60: 8,000,000 | G60: 103 | H60: =Table7[[#This Row],[Input reads ]]*Table7[[#This Row],[Read length]] -> 824,000,000 | J60: 2,889,349 | L60: 59% | M60: 81%
A61: 58 | B61: cr3677 | C61: C. gargaricus | D61: =_xlfn.XLOOKUP(Table7[[#This Row],[Sequencing ID]],Table26[sequencing ID],Table26[GS],"") -> 0.00 | E61: =Table7[[#This Row],[Genome size (pg)]]*0.978 -> 0.00 | F61: 8,000,000 | G61: 103 | H61: =Table7[[#This Row],[Input reads ]]*Table7[[#This Row],[Read length]] -> 824,000,000 | J61: 3,775,177 | L61: 41% | M61: 80%
A62: 59 | B62: cr3681 | C62: C. vallicola | D62: =_xlfn.XLOOKUP(Table7[[#This Row],[Sequencing ID]],Table26[sequencing ID],Table26[GS],"") -> 6.43 | E62: =Table7[[#This Row],[Genome size (pg)]]*0.978 -> 6.29 | F62: 8,000,000 | G62: 103 | H62: =Table7[[#This Row],[Input reads ]]*Table7[[#This Row],[Read length]] -> 824,000,000 | I62: 0.131 | J62: 2,222,275 | K62: 0.036 | L62: 48% | M62: 77%
A63: 60 | B63: cr3683 | C63: C. karduchorum | D63: =_xlfn.XLOOKUP(Table7[[#This Row],[Sequencing ID]],Table26[sequencing ID],Table26[GS],"") -> 0.00 | E63: =Table7[[#This Row],[Genome size (pg)]]*0.978 -> 0.00 | F63: 8,000,000 | G63: 103 | H63: =Table7[[#This Row],[Input reads ]]*Table7[[#This Row],[Read length]] -> 824,000,000 | J63: 3,607,643 | L63: 46% | M63: 80%
A64: 61 | B64: cr3690 | C64: C. nerimaniae | D64: =_xlfn.XLOOKUP(Table7[[#This Row],[Sequencing ID]],Table26[sequencing ID],Table26[GS],"") -> 0.00 | E64: =Table7[[#This Row],[Genome size (pg)]]*0.978 -> 0.00 | F64: 8,000,000 | G64: 103 | H64: =Table7[[#This Row],[Input reads ]]*Table7[[#This Row],[Read length]] -> 824,000,000 | J64: 1,962,635 | L64: 64% | M64: 79%
A65: 62 | B65: cr3856 | C65: C. veneris | D65: =_xlfn.XLOOKUP(Table7[[#This Row],[Sequencing ID]],Table26[sequencing ID],Table26[GS],"") -> 8.43 | E65: =Table7[[#This Row],[Genome size (pg)]]*0.978 -> 8.24 | F65: 8,000,000 | G65: 103 | H65: =Table7[[#This Row],[Input reads ]]*Table7[[#This Row],[Read length]] -> 824,000,000 | I65: 0.100 | J65: 3,715,825 | K65: 0.046 | L65: 58% | M65: 82%
A66: 63 | B66: cr3860 | C66: C. cf_pallasii | D66: =_xlfn.XLOOKUP(Table7[[#This Row],[Sequencing ID]],Table26[sequencing ID],Table26[GS],"") -> 0.00 | E66: =Table7[[#This Row],[Genome size (pg)]]*0.978 -> 0.00 | F66: 8,000,000 | G66: 103 | H66: =Table7[[#This Row],[Input reads ]]*Table7[[#This Row],[Read length]] -> 824,000,000 | J66: 2,381,911 | L66: 58% | M66: 81%
A67: 64 | B67: cr3934 | C67: Romulea thodei | D67: =_xlfn.XLOOKUP(Table7[[#This Row],[Sequencing ID]],Table26[sequencing ID],Table26[GS],"") -> 0.00 | E67: =Table7[[#This Row],[Genome size (pg)]]*0.978 -> 0.00 | F67: 8,000,000 | G67: 103 | H67: =Table7[[#This Row],[Input reads ]]*Table7[[#This Row],[Read length]] -> 824,000,000 | J67: 4,000,000 | L67: 28% | M67: 74%
A68: 65 | B68: cr3950 | C68: C. tommasinianus | D68: =_xlfn.XLOOKUP(Table7[[#This Row],[Sequencing ID]],Table26[sequencing ID],Table26[GS],"") -> 5.53 | E68: =Table7[[#This Row],[Genome size (pg)]]*0.978 -> 5.41 | F68: 8,000,000 | G68: 103 | H68: =Table7[[#This Row],[Input reads ]]*Table7[[#This Row],[Read length]] -> 824,000,000 | I68: 0.152 | J68: 3,200,842 | K68: 0.061 | L68: 57% | M68: 78%
A69: 66 | B69: cr3982 | C69: C. cf_heuffelianus | D69: =_xlfn.XLOOKUP(Table7[[#This Row],[Sequencing ID]],Table26[sequencing ID],Table26[GS],"") -> 12.00 | E69: =Table7[[#This Row],[Genome size (pg)]]*0.978 -> 11.74 | F69: 8,000,000 | G69: 103 | H69: =Table7[[#This Row],[Input reads ]]*Table7[[#This Row],[Read length]] -> 824,000,000 | I69: 0.070 | J69: 3,357,267 | K69: 0.029 | L69: 58% | M69: 80%
A70: 67 | B70: cr3993 | C70: C. vernus | D70: =_xlfn.XLOOKUP(Table7[[#This Row],[Sequencing ID]],Table26[sequencing ID],Table26[GS],"") -> 5.70 | E70: =Table7[[#This Row],[Genome size (pg)]]*0.978 -> 5.57 | F70: 8,000,000 | G70: 103 | H70: =Table7[[#This Row],[Input reads ]]*Table7[[#This Row],[Read length]] -> 824,000,000 | I70: 0.148 | J70: 3,116,824 | K70: 0.058 | L70: 53% | M70: 79%
A71: 68 | B71: cr4051 | C71: C. dalmaticus | D71: =_xlfn.XLOOKUP(Table7[[#This Row],[Sequencing ID]],Table26[sequencing ID],Table26[GS],"") -> 6.47 | E71: =Table7[[#This Row],[Genome size (pg)]]*0.978 -> 6.33 | F71: 8,000,000 | G71: 103 | H71: =Table7[[#This Row],[Input reads ]]*Table7[[#This Row],[Read length]] -> 824,000,000 | I71: 0.130 | J71: 981,444 | K71: 0.016 | L71: 61% | M71: 72%
A72: 69 | B72: cr4093 | C72: C. cf_heuffelianus | D72: =_xlfn.XLOOKUP(Table7[[#This Row],[Sequencing ID]],Table26[sequencing ID],Table26[GS],"") -> 10.85 | E72: =Table7[[#This Row],[Genome size (pg)]]*0.978 -> 10.61 | F72: 8,000,000 | G72: 103 | H72: =Table7[[#This Row],[Input reads ]]*Table7[[#This Row],[Read length]] -> 824,000,000 | I72: 0.078 | J72: 3,535,064 | K72: 0.034 | L72: 59% | M72: 81%
A73: 70 | B73: cr4096 | C73: C. cf_heuffelianus | D73: =_xlfn.XLOOKUP(Table7[[#This Row],[Sequencing ID]],Table26[sequencing ID],Table26[GS],"") -> 10.85 | E73: =Table7[[#This Row],[Genome size (pg)]]*0.978 -> 10.61 | F73: 8,000,000 | G73: 103 | H73: =Table7[[#This Row],[Input reads ]]*Table7[[#This Row],[Read length]] -> 824,000,000 | I73: 0.078 | J73: 3,444,524 | K73: 0.033 | L73: 58% | M73: 80%
A74: 71 | B74: cr4102 | C74: C. vernus | D74: =_xlfn.XLOOKUP(Table7[[#This Row],[Sequencing ID]],Table26[sequencing ID],Table26[GS],"") -> 5.70 | E74: =Table7[[#This Row],[Genome size (pg)]]*0.978 -> 5.57 | F74: 8,000,000 | G74: 103 | H74: =Table7[[#This Row],[Input reads ]]*Table7[[#This Row],[Read length]] -> 824,000,000 | I74: 0.148 | J74: 2,803,691 | K74: 0.052 | L74: 58% | M74: 81%
A75: 72 | B75: cr4107 | C75: C. cf_heuffelianus | D75: =_xlfn.XLOOKUP(Table7[[#This Row],[Sequencing ID]],Table26[sequencing ID],Table26[GS],"") -> 6.17 | E75: =Table7[[#This Row],[Genome size (pg)]]*0.978 -> 6.03 | F75: 8,000,000 | G75: 103 | H75: =Table7[[#This Row],[Input reads ]]*Table7[[#This Row],[Read length]] -> 824,000,000 | I75: 0.137 | J75: 3,215,923 | K75: 0.055 | L75: 59% | M75: 81%
A76: 73 | B76: cr4209 | C76: Romulea rosea | D76: =_xlfn.XLOOKUP(Table7[[#This Row],[Sequencing ID]],Table26[sequencing ID],Table26[GS],"") -> 2.80 | E76: =Table7[[#This Row],[Genome size (pg)]]*0.978 -> 2.74 | F76: 8,000,000 | G76: 103 | H76: =Table7[[#This Row],[Input reads ]]*Table7[[#This Row],[Read length]] -> 824,000,000 | I76: 0.301 | J76: 3,548,426 | K76: 0.133 | L76: 29% | M76: 76%
A77: 74 | B77: cr4283 | C77: C. heuffelianus | D77: =_xlfn.XLOOKUP(Table7[[#This Row],[Sequencing ID]],Table26[sequencing ID],Table26[GS],"") -> 7.76 | E77: =Table7[[#This Row],[Genome size (pg)]]*0.978 -> 7.59 | F77: 6,274,074 | G77: 103 | H77: =Table7[[#This Row],[Input reads ]]*Table7[[#This Row],[Read length]] -> 646,229,622 | I77: 0.085 | J77: 779,229 | K77: 0.011 | L77: 65% | M77: 74%
A78: 75 | B78: cr4312 | C78: C. scardicus | D78: =_xlfn.XLOOKUP(Table7[[#This Row],[Sequencing ID]],Table26[sequencing ID],Table26[GS],"") -> 20.18 | E78: =Table7[[#This Row],[Genome size (pg)]]*0.978 -> 19.74 | F78: 8,000,000 | G78: 103 | H78: =Table7[[#This Row],[Input reads ]]*Table7[[#This Row],[Read length]] -> 824,000,000 | I78: 0.042 | J78: 1,020,169 | K78: 0.005 | L78: 55% | M78: 80%
A79: 76 | B79: cr4375 | C79: C. munzurense | D79: =_xlfn.XLOOKUP(Table7[[#This Row],[Sequencing ID]],Table26[sequencing ID],Table26[GS],"") -> 0.00 | E79: =Table7[[#This Row],[Genome size (pg)]]*0.978 -> 0.00 | F79: 8,000,000 | G79: 103 | H79: =Table7[[#This Row],[Input reads ]]*Table7[[#This Row],[Read length]] -> 824,000,000 | J79: 1,750,377 | L79: 58% | M79: 75%
A80: 77 | B80: cr4388 | C80: C. ozalanii | D80: =_xlfn.XLOOKUP(Table7[[#This Row],[Sequencing ID]],Table26[sequencing ID],Table26[GS],"") -> 0.00 | E80: =Table7[[#This Row],[Genome size (pg)]]*0.978 -> 0.00 | F80: 8,000,000 | G80: 103 | H80: =Table7[[#This Row],[Input reads ]]*Table7[[#This Row],[Read length]] -> 824,000,000 | J80: 4,000,000 | L80: 46% | M80: 82%
A81: 78 | B81: cr4557 | C81: C. cobbii | D81: =_xlfn.XLOOKUP(Table7[[#This Row],[Sequencing ID]],Table26[sequencing ID],Table26[GS],"") -> 3.57 | E81: =Table7[[#This Row],[Genome size (pg)]]*0.978 -> 3.49 | F81: 8,000,000 | G81: 103 | H81: =Table7[[#This Row],[Input reads ]]*Table7[[#This Row],[Read length]] -> 824,000,000 | I81: 0.236 | J81: 3,959,884 | K81: 0.117 | L81: 45% | M81: 75%
A82: 79 | B82: cr4610 | C82: C. species_17 | D82: =_xlfn.XLOOKUP(Table7[[#This Row],[Sequencing ID]],Table26[sequencing ID],Table26[GS],"") -> 4.54 | E82: =Table7[[#This Row],[Genome size (pg)]]*0.978 -> 4.44 | F82: 8,000,000 | G82: 140 | H82: =Table7[[#This Row],[Input reads ]]*Table7[[#This Row],[Read length]] -> 1,120,000,000 | I82: 0.252 | J82: 4,078,794 | K82: 0.129 | L82: 52% | M82: 75%
A83: 80 | B83: cr4665 | C83: C. salzmannii | D83: =_xlfn.XLOOKUP(Table7[[#This Row],[Sequencing ID]],Table26[sequencing ID],Table26[GS],"") -> 6.23 | E83: =Table7[[#This Row],[Genome size (pg)]]*0.978 -> 6.09 | F83: 8,000,000 | G83: 140 | H83: =Table7[[#This Row],[Input reads ]]*Table7[[#This Row],[Read length]] -> 1,120,000,000 | I83: 0.184 | J83: 5,190,701 | K83: 0.119 | L83: 52% | M83: 78%
A84: 81 | B84: cr4671 | C84: C. nudiflorus | D84: =_xlfn.XLOOKUP(Table7[[#This Row],[Sequencing ID]],Table26[sequencing ID],Table26[GS],"") -> 7.15 | E84: =Table7[[#This Row],[Genome size (pg)]]*0.978 -> 6.99 | F84: 8,000,000 | G84: 103 | H84: =Table7[[#This Row],[Input reads ]]*Table7[[#This Row],[Read length]] -> 824,000,000 | I84: 0.118 | J84: 1,910,483 | K84: 0.028 | L84: 44% | M84: 66%
A85: 82 | B85: cr4719 | C85: C. boryi | D85: =_xlfn.XLOOKUP(Table7[[#This Row],[Sequencing ID]],Table26[sequencing ID],Table26[GS],"") -> 7.80 | E85: =Table7[[#This Row],[Genome size (pg)]]*0.978 -> 7.63 | F85: 8,000,000 | G85: 103 | H85: =Table7[[#This Row],[Input reads ]]*Table7[[#This Row],[Read length]] -> 824,000,000 | I85: 0.108 | J85: 1,324,817 | K85: 0.018 | L85: 61% | M85: 76%
A86: 83 | B86: cr4722 | C86: C. bertiscensis | D86: =_xlfn.XLOOKUP(Table7[[#This Row],[Sequencing ID]],Table26[sequencing ID],Table26[GS],"") -> 6.66 | E86: =Table7[[#This Row],[Genome size (pg)]]*0.978 -> 6.51 | F86: 8,000,000 | G86: 103 | H86: =Table7[[#This Row],[Input reads ]]*Table7[[#This Row],[Read length]] -> 824,000,000 | I86: 0.127 | J86: 1,754,344 | K86: 0.028 | L86: 59% | M86: 75%
A87: 84 | B87: cr4724 | C87: C. vallicola | D87: =_xlfn.XLOOKUP(Table7[[#This Row],[Sequencing ID]],Table26[sequencing ID],Table26[GS],"") -> 6.43 | E87: =Table7[[#This Row],[Genome size (pg)]]*0.978 -> 6.29 | F87: 8,000,000 | G87: 103 | H87: =Table7[[#This Row],[Input reads ]]*Table7[[#This Row],[Read length]] -> 824,000,000 | I87: 0.131 | J87: 1,657,008 | K87: 0.027 | L87: 51% | M87: 75%
A88: 85 | B88: cr4777 | C88: C. laevigatus | D88: =_xlfn.XLOOKUP(Table7[[#This Row],[Sequencing ID]],Table26[sequencing ID],Table26[GS],"") -> 6.97 | E88: =Table7[[#This Row],[Genome size (pg)]]*0.978 -> 6.82 | F88: 7,572,290 | G88: 103 | H88: =Table7[[#This Row],[Input reads ]]*Table7[[#This Row],[Read length]] -> 779,945,870 | I88: 0.114 | J88: 775,226 | K88: 0.012 | L88: 60% | M88: 74%
A89: 86 | B89: cr4792 | C89: C. laevigatus | D89: =_xlfn.XLOOKUP(Table7[[#This Row],[Sequencing ID]],Table26[sequencing ID],Table26[GS],"") -> 6.97 | E89: =Table7[[#This Row],[Genome size (pg)]]*0.978 -> 6.82 | F89: 8,000,000 | G89: 103 | H89: =Table7[[#This Row],[Input reads ]]*Table7[[#This Row],[Read length]] -> 824,000,000 | I89: 0.121 | J89: 1,309,336 | K89: 0.020 | L89: 60% | M89: 75%
A90: 87 | B90: cr4816 | C90: C. laevigatus | D90: =_xlfn.XLOOKUP(Table7[[#This Row],[Sequencing ID]],Table26[sequencing ID],Table26[GS],"") -> 6.97 | E90: =Table7[[#This Row],[Genome size (pg)]]*0.978 -> 6.82 | F90: 8,000,000 | G90: 103 | H90: =Table7[[#This Row],[Input reads ]]*Table7[[#This Row],[Read length]] -> 824,000,000 | I90: 0.121 | J90: 1,634,825 | K90: 0.025 | L90: 59% | M90: 76%
A91: 88 | B91: cr4819 | C91: C. tournefortii | D91: =_xlfn.XLOOKUP(Table7[[#This Row],[Sequencing ID]],Table26[sequencing ID],Table26[GS],"") -> 8.03 | E91: =Table7[[#This Row],[Genome size (pg)]]*0.978 -> 7.85 | F91: 8,000,000 | G91: 103 | H91: =Table7[[#This Row],[Input reads ]]*Table7[[#This Row],[Read length]] -> 824,000,000 | I91: 0.105 | J91: 1,573,696 | K91: 0.021 | L91: 58% | M91: 75%
A92: 89 | B92: cr4836 | C92: C. chrysanthus | D92: =_xlfn.XLOOKUP(Table7[[#This Row],[Sequencing ID]],Table26[sequencing ID],Table26[GS],"") -> 7.58 | E92: =Table7[[#This Row],[Genome size (pg)]]*0.978 -> 7.41 | F92: 8,000,000 | G92: 103 | H92: =Table7[[#This Row],[Input reads ]]*Table7[[#This Row],[Read length]] -> 824,000,000 | I92: 0.111 | J92: 1,806,108 | K92: 0.025 | L92: 68% | M92: 79%
A93: 90 | B93: cr4849 | C93: C. asymmetricus | D93: =_xlfn.XLOOKUP(Table7[[#This Row],[Sequencing ID]],Table26[sequencing ID],Table26[GS],"") -> 0.00 | E93: =Table7[[#This Row],[Genome size (pg)]]*0.978 -> 0.00 | F93: 8,000,000 | G93: 103 | H93: =Table7[[#This Row],[Input reads ]]*Table7[[#This Row],[Read length]] -> 824,000,000 | J93: 4,000,000 | L93: 52% | M93: 82%
A94: 91 | B94: cr4851 | C94: C. laevigatus | D94: =_xlfn.XLOOKUP(Table7[[#This Row],[Sequencing ID]],Table26[sequencing ID],Table26[GS],"") -> 6.97 | E94: =Table7[[#This Row],[Genome size (pg)]]*0.978 -> 6.82 | F94: 8,000,000 | G94: 103 | H94: =Table7[[#This Row],[Input reads ]]*Table7[[#This Row],[Read length]] -> 824,000,000 | I94: 0.121 | J94: 3,125,747 | K94: 0.047 | L94: 57% | M94: 80%
A95: 92 | B95: cr4861 | C95: C. ibrahimii | D95: =_xlfn.XLOOKUP(Table7[[#This Row],[Sequencing ID]],Table26[sequencing ID],Table26[GS],"") -> 15.29 | E95: =Table7[[#This Row],[Genome size (pg)]]*0.978 -> 14.95 | F95: 8,000,000 | G95: 103 | H95: =Table7[[#This Row],[Input reads ]]*Table7[[#This Row],[Read length]] -> 824,000,000 | I95: 0.055 | J95: 3,292,369 | K95: 0.023 | L95: 56% | M95: 79%
A96: 93 | B96: cr4863 | C96: C. species_nova_3 | D96: =_xlfn.XLOOKUP(Table7[[#This Row],[Sequencing ID]],Table26[sequencing ID],Table26[GS],"") -> 0.00 | E96: =Table7[[#This Row],[Genome size (pg)]]*0.978 -> 0.00 | F96: 7,785,188 | G96: 103 | H96: =Table7[[#This Row],[Input reads ]]*Table7[[#This Row],[Read length]] -> 801,874,364 | J96: 2,372,059 | L96: 61% | M96: 78%
A97: 94 | B97: cr4866 | C97: C. pallasii | D97: =_xlfn.XLOOKUP(Table7[[#This Row],[Sequencing ID]],Table26[sequencing ID],Table26[GS],"") -> 8.77 | E97: =Table7[[#This Row],[Genome size (pg)]]*0.978 -> 8.58 | F97: 8,000,000 | G97: 103 | H97: =Table7[[#This Row],[Input reads ]]*Table7[[#This Row],[Read length]] -> 824,000,000 | I97: 0.096 | J97: 1,279,083 | K97: 0.015 | L97: 60% | M97: 75%
A98: 95 | B98: cr4869 | C98: C. oliveri | D98: =_xlfn.XLOOKUP(Table7[[#This Row],[Sequencing ID]],Table26[sequencing ID],Table26[GS],"") -> 11.35 | E98: =Table7[[#This Row],[Genome size (pg)]]*0.978 -> 11.10 | F98: 8,000,000 | G98: 103 | H98: =Table7[[#This Row],[Input reads ]]*Table7[[#This Row],[Read length]] -> 824,000,000 | I98: 0.074 | J98: 2,761,227 | K98: 0.026 | L98: 58% | M98: 83%
A99: 96 | B99: cr4908 | C99: C. mazziaricus | D99: =_xlfn.XLOOKUP(Table7[[#This Row],[Sequencing ID]],Table26[sequencing ID],Table26[GS],"") -> 11.77 | E99: =Table7[[#This Row],[Genome size (pg)]]*0.978 -> 11.51 | F99: 8,000,000 | G99: 103 | H99: =Table7[[#This Row],[Input reads ]]*Table7[[#This Row],[Read length]] -> 824,000,000 | I99: 0.072 | J99: 3,303,685 | K99: 0.030 | L99: 60% | M99: 84%
A100: 97 | B100: cr4953 | C100: C. macedonicus | D100: =_xlfn.XLOOKUP(Table7[[#This Row],[Sequencing ID]],Table26[sequencing ID],Table26[GS],"") -> 5.77 | E100: =Table7[[#This Row],[Genome size (pg)]]*0.978 -> 5.64 | F100: 8,000,000 | G100: 103 | H100: =Table7[[#This Row],[Input reads ]]*Table7[[#This Row],[Read length]] -> 824,000,000 | I100: 0.146 | J100: 3,158,341 | K100: 0.058 | L100: 54% | M100: 77%
A101: 98 | B101: cr4958 | C101: C. pulchellus | D101: =_xlfn.XLOOKUP(Table7[[#This Row],[Sequencing ID]],Table26[sequencing ID],Table26[GS],"") -> 6.85 | E101: =Table7[[#This Row],[Genome size (pg)]]*0.978 -> 6.70 | F101: 8,000,000 | G101: 103 | H101: =Table7[[#This Row],[Input reads ]]*Table7[[#This Row],[Read length]] -> 824,000,000 | I101: 0.123 | J101: 2,354,678 | K101: 0.036 | L101: 63% | M101: 78%
A102: 99 | B102: cr4962 | C102: C. robertianus | D102: =_xlfn.XLOOKUP(Table7[[#This Row],[Sequencing ID]],Table26[sequencing ID],Table26[GS],"") -> 5.49 | E102: =Table7[[#This Row],[Genome size (pg)]]*0.978 -> 5.37 | F102: 8,000,000 | G102: 103 | H102: =Table7[[#This Row],[Input reads ]]*Table7[[#This Row],[Read length]] -> 824,000,000 | I102: 0.153 | J102: 3,575,108 | K102: 0.069 | L102: 55% | M102: 78%
A103: 100 | B103: cr4980 | C103: C. niveus | D103: =_xlfn.XLOOKUP(Table7[[#This Row],[Sequencing ID]],Table26[sequencing ID],Table26[GS],"") -> 6.75 | E103: =Table7[[#This Row],[Genome size (pg)]]*0.978 -> 6.60 | F103: 8,000,000 | G103: 103 | H103: =Table7[[#This Row],[Input reads ]]*Table7[[#This Row],[Read length]] -> 824,000,000 | I103: 0.125 | J103: 4,000,000 | K103: 0.062 | L103: 47% | M103: 79%
A104: 101 | B104: cr5001 | C104: C. hadriaticus | D104: =_xlfn.XLOOKUP(Table7[[#This Row],[Sequencing ID]],Table26[sequencing ID],Table26[GS],"") -> 7.00 | E104: =Table7[[#This Row],[Genome size (pg)]]*0.978 -> 6.85 | F104: 8,000,000 | G104: 103 | H104: =Table7[[#This Row],[Input reads ]]*Table7[[#This Row],[Read length]] -> 824,000,000 | I104: 0.120 | J104: 2,809,692 | K104: 0.042 | L104: 57% | M104: 79%
A105: 102 | B105: cr5006 | C105: C. melantherus | D105: =_xlfn.XLOOKUP(Table7[[#This Row],[Sequencing ID]],Table26[sequencing ID],Table26[GS],"") -> 7.75 | E105: =Table7[[#This Row],[Genome size (pg)]]*0.978 -> 7.58 | F105: 8,000,000 | G105: 103 | H105: =Table7[[#This Row],[Input reads ]]*Table7[[#This Row],[Read length]] -> 824,000,000 | I105: 0.109 | J105: 2,166,371 | K105: 0.029 | L105: 68% | M105: 81%
A106: 103 | B106: cr5010 | C106: C. giladensis | D106: =_xlfn.XLOOKUP(Table7[[#This Row],[Sequencing ID]],Table26[sequencing ID],Table26[GS],"") -> 9.93 | E106: =Table7[[#This Row],[Genome size (pg)]]*0.978 -> 9.71 | F106: 8,000,000 | G106: 103 | H106: =Table7[[#This Row],[Input reads ]]*Table7[[#This Row],[Read length]] -> 824,000,000 | I106: 0.085 | J106: 2,896,587 | K106: 0.031 | L106: 63% | M106: 81%
A107: 104 | B107: cr5017 | C107: C. fleischeri | D107: =_xlfn.XLOOKUP(Table7[[#This Row],[Sequencing ID]],Table26[sequencing ID],Table26[GS],"") -> 6.63 | E107: =Table7[[#This Row],[Genome size (pg)]]*0.978 -> 6.48 | F107: 8,000,000 | G107: 103 | H107: =Table7[[#This Row],[Input reads ]]*Table7[[#This Row],[Read length]] -> 824,000,000 | I107: 0.127 | J107: 2,590,523 | K107: 0.041 | L107: 62% | M107: 80%
A108: 105 | B108: cr5090 | C108: C. etruscus | D108: =_xlfn.XLOOKUP(Table7[[#This Row],[Sequencing ID]],Table26[sequencing ID],Table26[GS],"") -> 7.58 | E108: =Table7[[#This Row],[Genome size (pg)]]*0.978 -> 7.41 | F108: 8,000,000 | G108: 103 | H108: =Table7[[#This Row],[Input reads ]]*Table7[[#This Row],[Read length]] -> 824,000,000 | I108: 0.111 | J108: 2,736,093 | K108: 0.038 | L108: 65% | M108: 84%
A109: 106 | B109: cr5118 | C109: C. malyi | D109: =_xlfn.XLOOKUP(Table7[[#This Row],[Sequencing ID]],Table26[sequencing ID],Table26[GS],"") -> 3.66 | E109: =Table7[[#This Row],[Genome size (pg)]]*0.978 -> 3.58 | F109: 8,000,000 | G109: 103 | H109: =Table7[[#This Row],[Input reads ]]*Table7[[#This Row],[Read length]] -> 824,000,000 | I109: 0.230 | J109: 4,000,000 | K109: 0.115 | L109: 49% | M109: 79%
A110: 107 | B110: cr5155 | C110: C. oliveri | D110: =_xlfn.XLOOKUP(Table7[[#This Row],[Sequencing ID]],Table26[sequencing ID],Table26[GS],"") -> 11.30 | E110: =Table7[[#This Row],[Genome size (pg)]]*0.978 -> 11.05 | F110: 8,000,000 | G110: 103 | H110: =Table7[[#This Row],[Input reads ]]*Table7[[#This Row],[Read length]] -> 824,000,000 | I110: 0.075 | J110: 2,784,648 | K110: 0.026 | L110: 59% | M110: 82%
A111: 108 | B111: cr5166 | C111: C. ilvensis | D111: =_xlfn.XLOOKUP(Table7[[#This Row],[Sequencing ID]],Table26[sequencing ID],Table26[GS],"") -> 7.90 | E111: =Table7[[#This Row],[Genome size (pg)]]*0.978 -> 7.73 | F111: 8,000,000 | G111: 103 | H111: =Table7[[#This Row],[Input reads ]]*Table7[[#This Row],[Read length]] -> 824,000,000 | I111: 0.107 | J111: 3,273,423 | K111: 0.044 | L111: 61% | M111: 81%
A112: 109 | B112: cr5177 | C112: C. versicolor | D112: =_xlfn.XLOOKUP(Table7[[#This Row],[Sequencing ID]],Table26[sequencing ID],Table26[GS],"") -> 6.34 | E112: =Table7[[#This Row],[Genome size (pg)]]*0.978 -> 6.20 | F112: 8,000,000 | G112: 103 | H112: =Table7[[#This Row],[Input reads ]]*Table7[[#This Row],[Read length]] -> 824,000,000 | I112: 0.133 | J112: 2,235,105 | K112: 0.037 | L112: 48% | M112: 74%
A113: 110 | B113: cr5185 | C113: C. kurdistanicus | D113: =_xlfn.XLOOKUP(Table7[[#This Row],[Sequencing ID]],Table26[sequencing ID],Table26[GS],"") -> 0.00 | E113: =Table7[[#This Row],[Genome size (pg)]]*0.978 -> 0.00 | F113: 8,000,000 | G113: 103 | H113: =Table7[[#This Row],[Input reads ]]*Table7[[#This Row],[Read length]] -> 824,000,000 | J113: 2,213,074 | L113: 62% | M113: 77%
A114: 111 | B114: cr5196 | C114: Romulea austinii | D114: =_xlfn.XLOOKUP(Table7[[#This Row],[Sequencing ID]],Table26[sequencing ID],Table26[GS],"") -> 0.90 | E114: =Table7[[#This Row],[Genome size (pg)]]*0.978 -> 0.88 | F114: 8,000,000 | G114: 103 | H114: =Table7[[#This Row],[Input reads ]]*Table7[[#This Row],[Read length]] -> 824,000,000 | I114: 0.936 | J114: 3,796,271 | K114: 0.444 | L114: 18% | M114: 77%
A115: 112 | B115: cr5312 | C115: C. heuffelianus | D115: =_xlfn.XLOOKUP(Table7[[#This Row],[Sequencing ID]],Table26[sequencing ID],Table26[GS],"") -> 7.73 | E115: =Table7[[#This Row],[Genome size (pg)]]*0.978 -> 7.56 | F115: 8,000,000 | G115: 103 | H115: =Table7[[#This Row],[Input reads ]]*Table7[[#This Row],[Read length]] -> 824,000,000 | I115: 0.109 | J115: 3,541,074 | K115: 0.048 | L115: 59% | M115: 78%
A116: 113 | B116: cr5362 | C116: C. species_nova_2 | D116: =_xlfn.XLOOKUP(Table7[[#This Row],[Sequencing ID]],Table26[sequencing ID],Table26[GS],"") -> 3.14 | E116: =Table7[[#This Row],[Genome size (pg)]]*0.978 -> 3.07 | F116: 8,000,000 | G116: 103 | H116: =Table7[[#This Row],[Input reads ]]*Table7[[#This Row],[Read length]] -> 824,000,000 | I116: 0.268 | J116: 4,000,000 | K116: 0.134 | L116: 40% | M116: 78%
A117: 114 | B117: cr5390 | C117: C. jablanicensis | D117: =_xlfn.XLOOKUP(Table7[[#This Row],[Sequencing ID]],Table26[sequencing ID],Table26[GS],"") -> 9.19 | E117: =Table7[[#This Row],[Genome size (pg)]]*0.978 -> 8.99 | F117: 8,000,000 | G117: 140 | H117: =Table7[[#This Row],[Input reads ]]*Table7[[#This Row],[Read length]] -> 1,120,000,000 | I117: 0.125 | J117: 1,551,147 | K117: 0.024 | L117: 64% | M117: 78%
A118: 115 | B118: cr5396 | C118: C. tomoricus | D118: =_xlfn.XLOOKUP(Table7[[#This Row],[Sequencing ID]],Table26[sequencing ID],Table26[GS],"") -> 7.75 | E118: =Table7[[#This Row],[Genome size (pg)]]*0.978 -> 7.58 | F118: 8,000,000 | G118: 103 | H118: =Table7[[#This Row],[Input reads ]]*Table7[[#This Row],[Read length]] -> 824,000,000 | I118: 0.109 | J118: 3,467,920 | K118: 0.047 | L118: 57% | M118: 81%
A119: 116 | B119: cr5412 | C119: C. bachofenii | D119: =_xlfn.XLOOKUP(Table7[[#This Row],[Sequencing ID]],Table26[sequencing ID],Table26[GS],"") -> 12.75 | E119: =Table7[[#This Row],[Genome size (pg)]]*0.978 -> 12.47 | F119: 8,000,000 | G119: 103 | H119: =Table7[[#This Row],[Input reads ]]*Table7[[#This Row],[Read length]] -> 824,000,000 | I119: 0.066 | J119: 3,169,902 | K119: 0.026 | L119: 54% | M119: 79%
A120: 117 | B120: cr5420 | C120: C. veluchensis | D120: =_xlfn.XLOOKUP(Table7[[#This Row],[Sequencing ID]],Table26[sequencing ID],Table26[GS],"") -> 5.91 | E120: =Table7[[#This Row],[Genome size (pg)]]*0.978 -> 5.78 | F120: 6,697,460 | G120: 103 | H120: =Table7[[#This Row],[Input reads ]]*Table7[[#This Row],[Read length]] -> 689,838,380 | I120: 0.119 | J120: 3,481,770 | K120: 0.062 | L120: 52% | M120: 82%
A121: 118 | B121: cr5422 | C121: C. tomorricus_x_dalmaticus | D121: =_xlfn.XLOOKUP(Table7[[#This Row],[Sequencing ID]],Table26[sequencing ID],Table26[GS],"") -> 12.70 | E121: =Table7[[#This Row],[Genome size (pg)]]*0.978 -> 12.42 | F121: 7,773,592 | G121: 103 | H121: =Table7[[#This Row],[Input reads ]]*Table7[[#This Row],[Read length]] -> 800,679,976 | I121: 0.064 | J121: 3,488,135 | K121: 0.029 | L121: 53% | M121: 80%
A122: 119 | B122: cr5427 | C122: C. dalmaticus | D122: =_xlfn.XLOOKUP(Table7[[#This Row],[Sequencing ID]],Table26[sequencing ID],Table26[GS],"") -> 6.70 | E122: =Table7[[#This Row],[Genome size (pg)]]*0.978 -> 6.55 | F122: 4,642,462 | G122: 103 | H122: =Table7[[#This Row],[Input reads ]]*Table7[[#This Row],[Read length]] -> 478,173,586 | I122: 0.073 | J122: 3,242,851 | K122: 0.051 | L122: 55% | M122: 83%
A123: 120 | B123: cr5620 | C123: C. cartwrightianus | D123: =_xlfn.XLOOKUP(Table7[[#This Row],[Sequencing ID]],Table26[sequencing ID],Table26[GS],"") -> 6.80 | E123: =Table7[[#This Row],[Genome size (pg)]]*0.978 -> 6.65 | F123: 8,000,000 | G123: 103 | H123: =Table7[[#This Row],[Input reads ]]*Table7[[#This Row],[Read length]] -> 824,000,000 | I123: 0.124 | J123: 2,130,707 | K123: 0.033 | L123: 62% | M123: 80%
A124: 121 | B124: cr5683 | C124: C. carpetanus | D124: =_xlfn.XLOOKUP(Table7[[#This Row],[Sequencing ID]],Table26[sequencing ID],Table26[GS],"") -> 5.84 | E124: =Table7[[#This Row],[Genome size (pg)]]*0.978 -> 5.71 | F124: 7,813,074 | G124: 103 | H124: =Table7[[#This Row],[Input reads ]]*Table7[[#This Row],[Read length]] -> 804,746,622 | I124: 0.141 | J124: 3,378,423 | K124: 0.061 | L124: 38% | M124: 80%
A125: 122 | B125: cr5684 | C125: C. carpetanus | D125: =_xlfn.XLOOKUP(Table7[[#This Row],[Sequencing ID]],Table26[sequencing ID],Table26[GS],"") -> 5.84 | E125: =Table7[[#This Row],[Genome size (pg)]]*0.978 -> 5.71 | F125: 7,370,588 | G125: 103 | H125: =Table7[[#This Row],[Input reads ]]*Table7[[#This Row],[Read length]] -> 759,170,564 | I125: 0.133 | J125: 3,672,740 | K125: 0.066 | L125: 37% | M125: 79%
A126: 123 | B126: cr5689 | C126: C. cf_randjelovociorum | D126: =_xlfn.XLOOKUP(Table7[[#This Row],[Sequencing ID]],Table26[sequencing ID],Table26[GS],"") -> 12.98 | E126: =Table7[[#This Row],[Genome size (pg)]]*0.978 -> 12.69 | F126: 8,000,000 | G126: 103 | H126: =Table7[[#This Row],[Input reads ]]*Table7[[#This Row],[Read length]] -> 824,000,000 | I126: 0.065 | J126: 2,470,898 | K126: 0.020 | L126: 62% | M126: 79%
A127: 124 | B127: cr5693 | C127: C. sublimis | D127: =_xlfn.XLOOKUP(Table7[[#This Row],[Sequencing ID]],Table26[sequencing ID],Table26[GS],"") -> 3.79 | E127: =Table7[[#This Row],[Genome size (pg)]]*0.978 -> 3.71 | F127: 6,547,126 | G127: 103 | H127: =Table7[[#This Row],[Input reads ]]*Table7[[#This Row],[Read length]] -> 674,353,978 | I127: 0.182 | J127: 2,129,290 | K127: 0.059 | L127: 53% | M127: 74%
A128: 125 | B128: cr5699 | C128: C. cf_chrysanthus | D128: =_xlfn.XLOOKUP(Table7[[#This Row],[Sequencing ID]],Table26[sequencing ID],Table26[GS],"") -> 12.13 | E128: =Table7[[#This Row],[Genome size (pg)]]*0.978 -> 11.86 | F128: 5,055,176 | G128: 103 | H128: =Table7[[#This Row],[Input reads ]]*Table7[[#This Row],[Read length]] -> 520,683,128 | I128: 0.044 | J128: 2,277,156 | K128: 0.020 | L128: 64% | M128: 81%
A129: 126 | B129: cr5703 | C129: C. pallasii | D129: =_xlfn.XLOOKUP(Table7[[#This Row],[Sequencing ID]],Table26[sequencing ID],Table26[GS],"") -> 7.14 | E129: =Table7[[#This Row],[Genome size (pg)]]*0.978 -> 6.98 | F129: 6,207,986 | G129: 103 | H129: =Table7[[#This Row],[Input reads ]]*Table7[[#This Row],[Read length]] -> 639,422,558 | I129: 0.092 | J129: 1,713,624 | K129: 0.025 | L129: 61% | M129: 78%
A130: 127 | B130: cr5706 | C130: C. hyemalis | D130: =_xlfn.XLOOKUP(Table7[[#This Row],[Sequencing ID]],Table26[sequencing ID],Table26[GS],"") -> 11.12 | E130: =Table7[[#This Row],[Genome size (pg)]]*0.978 -> 10.88 | F130: 6,985,700 | G130: 103 | H130: =Table7[[#This Row],[Input reads ]]*Table7[[#This Row],[Read length]] -> 719,527,100 | I130: 0.066 | J130: 4,000,000 | K130: 0.038 | L130: 53% | M130: 85%
A131: 128 | B131: cr5709 | C131: C. aleppicus | D131: =_xlfn.XLOOKUP(Table7[[#This Row],[Sequencing ID]],Table26[sequencing ID],Table26[GS],"") -> 8.10 | E131: =Table7[[#This Row],[Genome size (pg)]]*0.978 -> 7.92 | F131: 6,689,474 | G131: 103 | H131: =Table7[[#This Row],[Input reads ]]*Table7[[#This Row],[Read length]] -> 689,015,822 | I131: 0.087 | J131: 3,539,284 | K131: 0.046 | L131: 59% | M131: 84%
A132: 129 | B132: cr5713 | C132: C. cf_hermoneus | D132: =_xlfn.XLOOKUP(Table7[[#This Row],[Sequencing ID]],Table26[sequencing ID],Table26[GS],"") -> 9.74 | E132: =Table7[[#This Row],[Genome size (pg)]]*0.978 -> 9.53 | F132: 6,665,676 | G132: 103 | H132: =Table7[[#This Row],[Input reads ]]*Table7[[#This Row],[Read length]] -> 686,564,628 | I132: 0.072 | J132: 2,724,336 | K132: 0.029 | L132: 65% | M132: 84%
A133: 130 | B133: cr5715 | C133: C. orcholeucus | D133: =_xlfn.XLOOKUP(Table7[[#This Row],[Sequencing ID]],Table26[sequencing ID],Table26[GS],"") -> 4.78 | E133: =Table7[[#This Row],[Genome size (pg)]]*0.978 -> 4.67 | F133: 6,245,626 | G133: 103 | H133: =Table7[[#This Row],[Input reads ]]*Table7[[#This Row],[Read length]] -> 643,299,478 | I133: 0.138 | J133: 4,000,000 | K133: 0.088 | L133: 48% | M133: 84%
A134: 131 | B134: cr5723 | C134: C. imperati | D134: =_xlfn.XLOOKUP(Table7[[#This Row],[Sequencing ID]],Table26[sequencing ID],Table26[GS],"") -> 6.25 | E134: =Table7[[#This Row],[Genome size (pg)]]*0.978 -> 6.11 | F134: 8,000,000 | G134: 103 | H134: =Table7[[#This Row],[Input reads ]]*Table7[[#This Row],[Read length]] -> 824,000,000 | I134: 0.135 | J134: 3,406,345 | K134: 0.057 | L134: 51% | M134: 78%
A135: 132 | B135: cr5728 | C135: C. suaveolens | D135: =_xlfn.XLOOKUP(Table7[[#This Row],[Sequencing ID]],Table26[sequencing ID],Table26[GS],"") -> 5.20 | E135: =Table7[[#This Row],[Genome size (pg)]]*0.978 -> 5.09 | F135: 6,934,108 | G135: 103 | H135: =Table7[[#This Row],[Input reads ]]*Table7[[#This Row],[Read length]] -> 714,213,124 | I135: 0.140 | J135: 4,000,000 | K135: 0.081 | L135: 46% | M135: 80%
A136: 133 | B136: cr5734 | C136: C. flavus | D136: =_xlfn.XLOOKUP(Table7[[#This Row],[Sequencing ID]],Table26[sequencing ID],Table26[GS],"") -> 10.78 | E136: =Table7[[#This Row],[Genome size (pg)]]*0.978 -> 10.54 | F136: 8,000,000 | G136: 103 | H136: =Table7[[#This Row],[Input reads ]]*Table7[[#This Row],[Read length]] -> 824,000,000 | I136: 0.078 | J136: 2,682,561 | K136: 0.026 | L136: 59% | M136: 81%
A137: 134 | B137: cr5740 | C137: C. cobbii | D137: =_xlfn.XLOOKUP(Table7[[#This Row],[Sequencing ID]],Table26[sequencing ID],Table26[GS],"") -> 3.50 | E137: =Table7[[#This Row],[Genome size (pg)]]*0.978 -> 3.42 | F137: 8,000,000 | G137: 103 | H137: =Table7[[#This Row],[Input reads ]]*Table7[[#This Row],[Read length]] -> 824,000,000 | I137: 0.241 | J137: 3,719,594 | K137: 0.112 | L137: 46% | M137: 77%
A138: 135 | B138: cr5743 | C138: C. niveus | D138: =_xlfn.XLOOKUP(Table7[[#This Row],[Sequencing ID]],Table26[sequencing ID],Table26[GS],"") -> 6.53 | E138: =Table7[[#This Row],[Genome size (pg)]]*0.978 -> 6.39 | F138: 8,000,000 | G138: 103 | H138: =Table7[[#This Row],[Input reads ]]*Table7[[#This Row],[Read length]] -> 824,000,000 | I138: 0.129 | J138: 3,989,362 | K138: 0.064 | L138: 48% | M138: 80%
A139: 136 | B139: cr5745 | C139: C. hellenicus | D139: =_xlfn.XLOOKUP(Table7[[#This Row],[Sequencing ID]],Table26[sequencing ID],Table26[GS],"") -> 14.22 | E139: =Table7[[#This Row],[Genome size (pg)]]*0.978 -> 13.91 | F139: 8,000,000 | G139: 103 | H139: =Table7[[#This Row],[Input reads ]]*Table7[[#This Row],[Read length]] -> 824,000,000 | I139: 0.059 | J139: 3,272,201 | K139: 0.024 | L139: 57% | M139: 79%
A140: 137 | B140: cr5749 | C140: C. robertianus | D140: =_xlfn.XLOOKUP(Table7[[#This Row],[Sequencing ID]],Table26[sequencing ID],Table26[GS],"") -> 5.49 | E140: =Table7[[#This Row],[Genome size (pg)]]*0.978 -> 5.37 | F140: 8,000,000 | G140: 103 | H140: =Table7[[#This Row],[Input reads ]]*Table7[[#This Row],[Read length]] -> 824,000,000 | I140: 0.153 | J140: 3,269,826 | K140: 0.063 | L140: 57% | M140: 82%
A141: 138 | B141: cr5752 | C141: C. cambessedesii | D141: =_xlfn.XLOOKUP(Table7[[#This Row],[Sequencing ID]],Table26[sequencing ID],Table26[GS],"") -> 7.58 | E141: =Table7[[#This Row],[Genome size (pg)]]*0.978 -> 7.41 | F141: 7,884,696 | G141: 103 | H141: =Table7[[#This Row],[Input reads ]]*Table7[[#This Row],[Read length]] -> 812,123,688 | I141: 0.110 | J141: 1,159,717 | K141: 0.016 | L141: 55% | M141: 71%
A142: 139 | B142: cr5755 | C142: C. cambessedesii | D142: =_xlfn.XLOOKUP(Table7[[#This Row],[Sequencing ID]],Table26[sequencing ID],Table26[GS],"") -> 7.50 | E142: =Table7[[#This Row],[Genome size (pg)]]*0.978 -> 7.34 | F142: 8,000,000 | G142: 103 | H142: =Table7[[#This Row],[Input reads ]]*Table7[[#This Row],[Read length]] -> 824,000,000 | I142: 0.112 | J142: 1,498,204 | K142: 0.021 | L142: 54% | M142: 73%
A143: 140 | B143: cr5757 | C143: C. cf_pallasii | D143: =_xlfn.XLOOKUP(Table7[[#This Row],[Sequencing ID]],Table26[sequencing ID],Table26[GS],"") -> 8.77 | E143: =Table7[[#This Row],[Genome size (pg)]]*0.978 -> 8.58 | F143: 7,214,994 | G143: 103 | H143: =Table7[[#This Row],[Input reads ]]*Table7[[#This Row],[Read length]] -> 743,144,382 | I143: 0.087 | J143: 1,891,920 | K143: 0.023 | L143: 63% | M143: 82%
A144: 141 | B144: cr5759 | C144: C. veneris | D144: =_xlfn.XLOOKUP(Table7[[#This Row],[Sequencing ID]],Table26[sequencing ID],Table26[GS],"") -> 8.00 | E144: =Table7[[#This Row],[Genome size (pg)]]*0.978 -> 7.82 | F144: 8,000,000 | G144: 103 | H144: =Table7[[#This Row],[Input reads ]]*Table7[[#This Row],[Read length]] -> 824,000,000 | I144: 0.105 | J144: 2,581,042 | K144: 0.034 | L144: 61% | M144: 81%
A145: 142 | B145: cr5764 | C145: C. heuffelianus | D145: =_xlfn.XLOOKUP(Table7[[#This Row],[Sequencing ID]],Table26[sequencing ID],Table26[GS],"") -> 7.76 | E145: =Table7[[#This Row],[Genome size (pg)]]*0.978 -> 7.59 | F145: 8,000,000 | G145: 103 | H145: =Table7[[#This Row],[Input reads ]]*Table7[[#This Row],[Read length]] -> 824,000,000 | I145: 0.109 | J145: 2,444,465 | K145: 0.033 | L145: 62% | M145: 80%
A146: 143 | B146: cr5775 | C146: C. cf_heuffelianus | D146: =_xlfn.XLOOKUP(Table7[[#This Row],[Sequencing ID]],Table26[sequencing ID],Table26[GS],"") -> 12.00 | E146: =Table7[[#This Row],[Genome size (pg)]]*0.978 -> 11.74 | F146: 8,000,000 | G146: 103 | H146: =Table7[[#This Row],[Input reads ]]*Table7[[#This Row],[Read length]] -> 824,000,000 | I146: 0.070 | J146: 3,214,399 | K146: 0.028 | L146: 59% | M146: 81%
A147: 144 | B147: cr5856 | C147: C. tommasinianus | D147: =_xlfn.XLOOKUP(Table7[[#This Row],[Sequencing ID]],Table26[sequencing ID],Table26[GS],"") -> 5.80 | E147: =Table7[[#This Row],[Genome size (pg)]]*0.978 -> 5.67 | F147: 8,000,000 | G147: 103 | H147: =Table7[[#This Row],[Input reads ]]*Table7[[#This Row],[Read length]] -> 824,000,000 | I147: 0.145 | J147: 3,213,729 | K147: 0.058 | L147: 58% | M147: 79%
A148: 145 | B148: cr5871 | C148: C. heuffelianus | D148: =_xlfn.XLOOKUP(Table7[[#This Row],[Sequencing ID]],Table26[sequencing ID],Table26[GS],"") -> 10.44 | E148: =Table7[[#This Row],[Genome size (pg)]]*0.978 -> 10.21 | F148: 7,732,530 | G148: 103 | H148: =Table7[[#This Row],[Input reads ]]*Table7[[#This Row],[Read length]] -> 796,450,590 | I148: 0.078 | J148: 3,516,816 | K148: 0.035 | L148: 56% | M148: 81%
A149: 146 | B149: cr5881 | C149: C. olivieri | D149: =_xlfn.XLOOKUP(Table7[[#This Row],[Sequencing ID]],Table26[sequencing ID],Table26[GS],"") -> 11.46 | E149: =Table7[[#This Row],[Genome size (pg)]]*0.978 -> 11.21 | F149: 6,861,428 | G149: 103 | H149: =Table7[[#This Row],[Input reads ]]*Table7[[#This Row],[Read length]] -> 706,727,084 | I149: 0.063 | J149: 2,480,415 | K149: 0.023 | L149: 60% | M149: 83%
A150: 147 | B150: cr5912 | C150: C. cf_chrysanthus | D150: =_xlfn.XLOOKUP(Table7[[#This Row],[Sequencing ID]],Table26[sequencing ID],Table26[GS],"") -> 7.48 | E150: =Table7[[#This Row],[Genome size (pg)]]*0.978 -> 7.32 | F150: 8,000,000 | G150: 103 | H150: =Table7[[#This Row],[Input reads ]]*Table7[[#This Row],[Read length]] -> 824,000,000 | I150: 0.113 | J150: 1,904,780 | K150: 0.027 | L150: 62% | M150: 78%
A151: 148 | B151: cr5916 | C151: C. uschakensis | D151: =_xlfn.XLOOKUP(Table7[[#This Row],[Sequencing ID]],Table26[sequencing ID],Table26[GS],"") -> 11.94 | E151: =Table7[[#This Row],[Genome size (pg)]]*0.978 -> 11.68 | F151: 8,000,000 | G151: 103 | H151: =Table7[[#This Row],[Input reads ]]*Table7[[#This Row],[Read length]] -> 824,000,000 | I151: 0.071 | J151: 2,816,264 | K151: 0.025 | L151: 59% | M151: 77%
A152: 149 | B152: cr5919 | C152: C. cf_chrysanthus | D152: =_xlfn.XLOOKUP(Table7[[#This Row],[Sequencing ID]],Table26[sequencing ID],Table26[GS],"") -> 6.15 | E152: =Table7[[#This Row],[Genome size (pg)]]*0.978 -> 6.01 | F152: 8,000,000 | G152: 103 | H152: =Table7[[#This Row],[Input reads ]]*Table7[[#This Row],[Read length]] -> 824,000,000 | I152: 0.137 | J152: 2,290,922 | K152: 0.039 | L152: 61% | M152: 78%
A153: 150 | B153: cr5924 | C153: C. cf_chrysanthus | D153: =_xlfn.XLOOKUP(Table7[[#This Row],[Sequencing ID]],Table26[sequencing ID],Table26[GS],"") -> 5.60 | E153: =Table7[[#This Row],[Genome size (pg)]]*0.978 -> 5.48 | F153: 8,000,000 | G153: 103 | H153: =Table7[[#This Row],[Input reads ]]*Table7[[#This Row],[Read length]] -> 824,000,000 | I153: 0.150 | J153: 2,412,734 | K153: 0.045 | L153: 57% | M153: 78%
A154: 151 | B154: cr5931 | C154: C. muglaensis | D154: =_xlfn.XLOOKUP(Table7[[#This Row],[Sequencing ID]],Table26[sequencing ID],Table26[GS],"") -> 0.00 | E154: =Table7[[#This Row],[Genome size (pg)]]*0.978 -> 0.00 | F154: 8,000,000 | G154: 103 | H154: =Table7[[#This Row],[Input reads ]]*Table7[[#This Row],[Read length]] -> 824,000,000 | J154: 2,818,438 | L154: 62% | M154: 79%
A155: 152 | B155: cr5933 | C155: C. gembosii | D155: =_xlfn.XLOOKUP(Table7[[#This Row],[Sequencing ID]],Table26[sequencing ID],Table26[GS],"") -> 9.24 | E155: =Table7[[#This Row],[Genome size (pg)]]*0.978 -> 9.04 | F155: 8,000,000 | G155: 103 | H155: =Table7[[#This Row],[Input reads ]]*Table7[[#This Row],[Read length]] -> 824,000,000 | I155: 0.091 | J155: 2,405,529 | K155: 0.027 | L155: 64% | M155: 80%
A156: 153 | B156: cr5938 | C156: C. henrikii | D156: =_xlfn.XLOOKUP(Table7[[#This Row],[Sequencing ID]],Table26[sequencing ID],Table26[GS],"") -> 10.26 | E156: =Table7[[#This Row],[Genome size (pg)]]*0.978 -> 10.03 | F156: 8,000,000 | G156: 103 | H156: =Table7[[#This Row],[Input reads ]]*Table7[[#This Row],[Read length]] -> 824,000,000 | I156: 0.082 | J156: 1,669,027 | K156: 0.017 | L156: 66% | M156: 79%
A157: 154 | B157: cr5968 | C157: C. species | D157: =_xlfn.XLOOKUP(Table7[[#This Row],[Sequencing ID]],Table26[sequencing ID],Table26[GS],"") -> 7.00 | E157: =Table7[[#This Row],[Genome size (pg)]]*0.978 -> 6.85 | F157: 8,000,000 | G157: 103 | H157: =Table7[[#This Row],[Input reads ]]*Table7[[#This Row],[Read length]] -> 824,000,000 | I157: 0.120 | J157: 2,672,178 | K157: 0.040 | L157: 62% | M157: 82%
A158: 155 | B158: cr5976 | C158: C. species_2 | D158: =_xlfn.XLOOKUP(Table7[[#This Row],[Sequencing ID]],Table26[sequencing ID],Table26[GS],"") -> 7.29 | E158: =Table7[[#This Row],[Genome size (pg)]]*0.978 -> 7.13 | F158: 8,000,000 | G158: 103 | H158: =Table7[[#This Row],[Input reads ]]*Table7[[#This Row],[Read length]] -> 824,000,000 | I158: 0.116 | J158: 2,632,757 | K158: 0.038 | L158: 63% | M158: 82%
A159: 156 | B159: cr6033 | C159: C. kofudagensis | D159: =_xlfn.XLOOKUP(Table7[[#This Row],[Sequencing ID]],Table26[sequencing ID],Table26[GS],"") -> 6.46 | E159: =Table7[[#This Row],[Genome size (pg)]]*0.978 -> 6.32 | F159: 8,000,000 | G159: 103 | H159: =Table7[[#This Row],[Input reads ]]*Table7[[#This Row],[Read length]] -> 824,000,000 | I159: 0.130 | J159: 2,104,569 | K159: 0.034 | L159: 58% | M159: 77%
A160: 157 | B160: cr6041 | C160: C. jostii | D160: =_xlfn.XLOOKUP(Table7[[#This Row],[Sequencing ID]],Table26[sequencing ID],Table26[GS],"") -> 5.82 | E160: =Table7[[#This Row],[Genome size (pg)]]*0.978 -> 5.69 | F160: 8,000,000 | G160: 103 | H160: =Table7[[#This Row],[Input reads ]]*Table7[[#This Row],[Read length]] -> 824,000,000 | I160: 0.145 | J160: 2,795,202 | K160: 0.051 | L160: 56% | M160: 76%
A161: 158 | B161: cr6053 | C161: C. banaticus | D161: =_xlfn.XLOOKUP(Table7[[#This Row],[Sequencing ID]],Table26[sequencing ID],Table26[GS],"") -> 4.25 | E161: =Table7[[#This Row],[Genome size (pg)]]*0.978 -> 4.16 | F161: 8,000,000 | G161: 103 | H161: =Table7[[#This Row],[Input reads ]]*Table7[[#This Row],[Read length]] -> 824,000,000 | I161: 0.198 | J161: 3,534,821 | K161: 0.088 | L161: 42% | M161: 77%
A162: 159 | B162: cr6062 | C162: C. abracteolus | D162: =_xlfn.XLOOKUP(Table7[[#This Row],[Sequencing ID]],Table26[sequencing ID],Table26[GS],"") -> 0.00 | E162: =Table7[[#This Row],[Genome size (pg)]]*0.978 -> 0.00 | F162: 3,533,054 | G162: 103 | H162: =Table7[[#This Row],[Input reads ]]*Table7[[#This Row],[Read length]] -> 363,904,562 | J162: 2,080,409 | L162: 67% | M162: 85%
A163: 160 | B163: cr6063 | C163: C. species | D163: =_xlfn.XLOOKUP(Table7[[#This Row],[Sequencing ID]],Table26[sequencing ID],Table26[GS],"") -> 4.08 | E163: =Table7[[#This Row],[Genome size (pg)]]*0.978 -> 3.99 | F163: 3,063,398 | G163: 103 | H163: =Table7[[#This Row],[Input reads ]]*Table7[[#This Row],[Read length]] -> 315,529,994 | I163: 0.079 | J163: 2,302,117 | K163: 0.059 | L163: 61% | M163: 86%
A164: 161 | B164: cr6065 | C164: C. sieheanus | D164: =_xlfn.XLOOKUP(Table7[[#This Row],[Sequencing ID]],Table26[sequencing ID],Table26[GS],"") -> 0.00 | E164: =Table7[[#This Row],[Genome size (pg)]]*0.978 -> 0.00 | F164: 3,329,400 | G164: 103 | H164: =Table7[[#This Row],[Input reads ]]*Table7[[#This Row],[Read length]] -> 342,928,200 | J164: 2,116,586 | L164: 66% | M164: 82%
A165: 162 | B165: cr6066 | C165: C. filis-maculatis | D165: =_xlfn.XLOOKUP(Table7[[#This Row],[Sequencing ID]],Table26[sequencing ID],Table26[GS],"") -> 0.00 | E165: =Table7[[#This Row],[Genome size (pg)]]*0.978 -> 0.00 | F165: 3,238,516 | G165: 103 | H165: =Table7[[#This Row],[Input reads ]]*Table7[[#This Row],[Read length]] -> 333,567,148 | J165: 1,495,069 | L165: 71% | M165: 85%
A166: 163 | B166: cr6067 | C166: C. pulchellus | D166: =_xlfn.XLOOKUP(Table7[[#This Row],[Sequencing ID]],Table26[sequencing ID],Table26[GS],"") -> 0.00 | E166: =Table7[[#This Row],[Genome size (pg)]]*0.978 -> 0.00 | F166: 7,089,460 | G166: 103 | H166: =Table7[[#This Row],[Input reads ]]*Table7[[#This Row],[Read length]] -> 730,214,380 | J166: 2,388,706 | L166: 64% | M166: 81%
A167: 164 | B167: cr6068 | C167: C. nevadensis | D167: =_xlfn.XLOOKUP(Table7[[#This Row],[Sequencing ID]],Table26[sequencing ID],Table26[GS],"") -> 0.00 | E167: =Table7[[#This Row],[Genome size (pg)]]*0.978 -> 0.00 | F167: 7,879,218 | G167: 103 | H167: =Table7[[#This Row],[Input reads ]]*Table7[[#This Row],[Read length]] -> 811,559,454 | J167: 4,000,000 | L167: 38% | M167: 87%
A168: 165 | B168: cr6071 | C168: C. punctatus | D168: =_xlfn.XLOOKUP(Table7[[#This Row],[Sequencing ID]],Table26[sequencing ID],Table26[GS],"") -> 0.00 | E168: =Table7[[#This Row],[Genome size (pg)]]*0.978 -> 0.00 | F168: 3,524,476 | G168: 103 | H168: =Table7[[#This Row],[Input reads ]]*Table7[[#This Row],[Read length]] -> 363,021,028 | J168: 2,075,587 | L168: 68% | M168: 83%
A169: 166 | B169: cr6072 | C169: C. leucostylosus | D169: =_xlfn.XLOOKUP(Table7[[#This Row],[Sequencing ID]],Table26[sequencing ID],Table26[GS],"") -> 0.00 | E169: =Table7[[#This Row],[Genome size (pg)]]*0.978 -> 0.00 | F169: 2,222,476 | G169: 103 | H169: =Table7[[#This Row],[Input reads ]]*Table7[[#This Row],[Read length]] -> 228,915,028 | J169: 823,128 | L169: 73% | M169: 81%
A170: 167 | B170: cr6073 | C170: C. species_13 | D170: =_xlfn.XLOOKUP(Table7[[#This Row],[Sequencing ID]],Table26[sequencing ID],Table26[GS],"") -> 0.00 | E170: =Table7[[#This Row],[Genome size (pg)]]*0.978 -> 0.00 | F170: 4,177,870 | G170: 103 | H170: =Table7[[#This Row],[Input reads ]]*Table7[[#This Row],[Read length]] -> 430,320,610 | J170: 2,045,475 | L170: 67% | M170: 81%
A171: 168 | B171: cr6075 | C171: C. caricus | D171: =_xlfn.XLOOKUP(Table7[[#This Row],[Sequencing ID]],Table26[sequencing ID],Table26[GS],"") -> 0.00 | E171: =Table7[[#This Row],[Genome size (pg)]]*0.978 -> 0.00 | F171: 4,839,938 | G171: 103 | H171: =Table7[[#This Row],[Input reads ]]*Table7[[#This Row],[Read length]] -> 498,513,614 | J171: 1,897,458 | L171: 69% | M171: 82%
A172: 169 | B172: cr6076 | C172: C. caricus | D172: =_xlfn.XLOOKUP(Table7[[#This Row],[Sequencing ID]],Table26[sequencing ID],Table26[GS],"") -> 0.00 | E172: =Table7[[#This Row],[Genome size (pg)]]*0.978 -> 0.00 | F172: 3,016,416 | G172: 103 | H172: =Table7[[#This Row],[Input reads ]]*Table7[[#This Row],[Read length]] -> 310,690,848 | J172: 778,146 | L172: 73% | M172: 80%
A173: 170 | B173: cr6080 | C173: C. caelestis | D173: =_xlfn.XLOOKUP(Table7[[#This Row],[Sequencing ID]],Table26[sequencing ID],Table26[GS],"") -> 0.00 | E173: =Table7[[#This Row],[Genome size (pg)]]*0.978 -> 0.00 | F173: 2,228,128 | G173: 103 | H173: =Table7[[#This Row],[Input reads ]]*Table7[[#This Row],[Read length]] -> 229,497,184 | J173: 1,041,482 | L173: 70% | M173: 81%
A174: 171 | B174: cr6081 | C174: C. mawii | D174: =_xlfn.XLOOKUP(Table7[[#This Row],[Sequencing ID]],Table26[sequencing ID],Table26[GS],"") -> 0.00 | E174: =Table7[[#This Row],[Genome size (pg)]]*0.978 -> 0.00 | F174: 3,017,110 | G174: 103 | H174: =Table7[[#This Row],[Input reads ]]*Table7[[#This Row],[Read length]] -> 310,762,330 | J174: 896,812 | L174: 73% | M174: 81%
A175: 172 | B175: cr6083 | C175: C. schneideri | D175: =_xlfn.XLOOKUP(Table7[[#This Row],[Sequencing ID]],Table26[sequencing ID],Table26[GS],"") -> 0.00 | E175: =Table7[[#This Row],[Genome size (pg)]]*0.978 -> 0.00 | F175: 2,371,408 | G175: 103 | H175: =Table7[[#This Row],[Input reads ]]*Table7[[#This Row],[Read length]] -> 244,255,024 | J175: 1,531,783 | L175: 61% | M175: 80%
A176: 173 | B176: cr6084 | C176: C. roseoviolaceus | D176: =_xlfn.XLOOKUP(Table7[[#This Row],[Sequencing ID]],Table26[sequencing ID],Table26[GS],"") -> 0.00 | E176: =Table7[[#This Row],[Genome size (pg)]]*0.978 -> 0.00 | F176: 4,022,344 | G176: 103 | H176: =Table7[[#This Row],[Input reads ]]*Table7[[#This Row],[Read length]] -> 414,301,432 | J176: 783,944 | L176: 73% | M176: 81%
A177: 174 | B177: cr6085 | C177: C. concinnus | D177: =_xlfn.XLOOKUP(Table7[[#This Row],[Sequencing ID]],Table26[sequencing ID],Table26[GS],"") -> 0.00 | E177: =Table7[[#This Row],[Genome size (pg)]]*0.978 -> 0.00 | F177: 3,065,008 | G177: 103 | H177: =Table7[[#This Row],[Input reads ]]*Table7[[#This Row],[Read length]] -> 315,695,824 | J177: 1,177,114 | L177: 68% | M177: 78%
A178: 175 | B178: cr6086 | C178: C. incognitus | D178: =_xlfn.XLOOKUP(Table7[[#This Row],[Sequencing ID]],Table26[sequencing ID],Table26[GS],"") -> 0.00 | E178: =Table7[[#This Row],[Genome size (pg)]]*0.978 -> 0.00 | F178: 3,801,692 | G178: 103 | H178: =Table7[[#This Row],[Input reads ]]*Table7[[#This Row],[Read length]] -> 391,574,276 | J178: 1,039,415 | L178: 68% | M178: 77%
A179: 176 | B179: cr6087 | C179: C. berytius | D179: =_xlfn.XLOOKUP(Table7[[#This Row],[Sequencing ID]],Table26[sequencing ID],Table26[GS],"") -> 0.00 | E179: =Table7[[#This Row],[Genome size (pg)]]*0.978 -> 0.00 | F179: 3,963,360 | G179: 103 | H179: =Table7[[#This Row],[Input reads ]]*Table7[[#This Row],[Read length]] -> 408,226,080 | J179: 3,265,986 | L179: 56% | M179: 84%
A180: 177 | B180: cr6089 | C180: C. nubigena | D180: =_xlfn.XLOOKUP(Table7[[#This Row],[Sequencing ID]],Table26[sequencing ID],Table26[GS],"") -> 0.00 | E180: =Table7[[#This Row],[Genome size (pg)]]*0.978 -> 0.00 | F180: 3,040,680 | G180: 103 | H180: =Table7[[#This Row],[Input reads ]]*Table7[[#This Row],[Read length]] -> 313,190,040 | J180: 1,837,882 | L180: 64% | M180: 81%
A181: 178 | B181: cr6090 | C181: C. bifloriformis | D181: =_xlfn.XLOOKUP(Table7[[#This Row],[Sequencing ID]],Table26[sequencing ID],Table26[GS],"") -> 0.00 | E181: =Table7[[#This Row],[Genome size (pg)]]*0.978 -> 0.00 | F181: 2,137,090 | G181: 103 | H181: =Table7[[#This Row],[Input reads ]]*Table7[[#This Row],[Read length]] -> 220,120,270 | J181: 1,592,000 | L181: 71% | M181: 86%
A182: 179 | B182: cr6091 | C182: C. species | D182: =_xlfn.XLOOKUP(Table7[[#This Row],[Sequencing ID]],Table26[sequencing ID],Table26[GS],"") -> 0.00 | E182: =Table7[[#This Row],[Genome size (pg)]]*0.978 -> 0.00 | F182: 1,546,808 | G182: 103 | H182: =Table7[[#This Row],[Input reads ]]*Table7[[#This Row],[Read length]] -> 159,321,224 | J182: 1,002,271 | L182: 65% | M182: 80%
A183: 180 | B183: cr6093 | C183: C. adamioides | D183: =_xlfn.XLOOKUP(Table7[[#This Row],[Sequencing ID]],Table26[sequencing ID],Table26[GS],"") -> 0.00 | E183: =Table7[[#This Row],[Genome size (pg)]]*0.978 -> 0.00 | F183: 2,488,324 | G183: 103 | H183: =Table7[[#This Row],[Input reads ]]*Table7[[#This Row],[Read length]] -> 256,297,372 | J183: 1,370,556 | L183: 67% | M183: 80%
A184: 181 | B184: cr6095 | C184: C. ancyrensis | D184: =_xlfn.XLOOKUP(Table7[[#This Row],[Sequencing ID]],Table26[sequencing ID],Table26[GS],"") -> 0.00 | E184: =Table7[[#This Row],[Genome size (pg)]]*0.978 -> 0.00 | F184: 6,925,272 | G184: 103 | H184: =Table7[[#This Row],[Input reads ]]*Table7[[#This Row],[Read length]] -> 713,303,016 | J184: 2,325,239 | L184: 61% | M184: 78%
A185: 182 | B185: cr6096 | C185: C. tauri | D185: =_xlfn.XLOOKUP(Table7[[#This Row],[Sequencing ID]],Table26[sequencing ID],Table26[GS],"") -> 0.00 | E185: =Table7[[#This Row],[Genome size (pg)]]*0.978 -> 0.00 | F185: 3,685,960 | G185: 103 | H185: =Table7[[#This Row],[Input reads ]]*Table7[[#This Row],[Read length]] -> 379,653,880 | J185: 2,506,138 | L185: 60% | M185: 83%
A186: 183 | B186: cr6097 | C186: C. species_4 | D186: =_xlfn.XLOOKUP(Table7[[#This Row],[Sequencing ID]],Table26[sequencing ID],Table26[GS],"") -> 0.00 | E186: =Table7[[#This Row],[Genome size (pg)]]*0.978 -> 0.00 | F186: 3,067,946 | G186: 103 | H186: =Table7[[#This Row],[Input reads ]]*Table7[[#This Row],[Read length]] -> 315,998,438 | J186: 2,699,682 | L186: 58% | M186: 84%
A187: 184 | B187: cr6098 | C187: C. species_1 | D187: =_xlfn.XLOOKUP(Table7[[#This Row],[Sequencing ID]],Table26[sequencing ID],Table26[GS],"") -> 0.00 | E187: =Table7[[#This Row],[Genome size (pg)]]*0.978 -> 0.00 | F187: 3,334,220 | G187: 103 | H187: =Table7[[#This Row],[Input reads ]]*Table7[[#This Row],[Read length]] -> 343,424,660 | J187: 1,540,076 | L187: 62% | M187: 79%
A188: 185 | B188: cr6099 | C188: C. species | D188: =_xlfn.XLOOKUP(Table7[[#This Row],[Sequencing ID]],Table26[sequencing ID],Table26[GS],"") -> 0.00 | E188: =Table7[[#This Row],[Genome size (pg)]]*0.978 -> 0.00 | F188: 2,564,452 | G188: 103 | H188: =Table7[[#This Row],[Input reads ]]*Table7[[#This Row],[Read length]] -> 264,138,556 | J188: 2,340,677 | L188: 60% | M188: 83%
A189: 186 | B189: cr6100 | C189: C. speciosus | D189: =_xlfn.XLOOKUP(Table7[[#This Row],[Sequencing ID]],Table26[sequencing ID],Table26[GS],"") -> 0.00 | E189: =Table7[[#This Row],[Genome size (pg)]]*0.978 -> 0.00 | F189: 2,694,812 | G189: 103 | H189: =Table7[[#This Row],[Input reads ]]*Table7[[#This Row],[Read length]] -> 277,565,636 | J189: 2,506,138 | L189: 61% | M189: 85%
A190: 187 | B190: cr6101 | C190: C. species | D190: =_xlfn.XLOOKUP(Table7[[#This Row],[Sequencing ID]],Table26[sequencing ID],Table26[GS],"") -> 0.00 | E190: =Table7[[#This Row],[Genome size (pg)]]*0.978 -> 0.00 | F190: 2,820,192 | G190: 103 | H190: =Table7[[#This Row],[Input reads ]]*Table7[[#This Row],[Read length]] -> 290,479,776 | J190: 2,778,122 | L190: 59% | M190: 83%
A191: 188 | B191: cr6102 | C191: C. species_14 | D191: =_xlfn.XLOOKUP(Table7[[#This Row],[Sequencing ID]],Table26[sequencing ID],Table26[GS],"") -> 0.00 | E191: =Table7[[#This Row],[Genome size (pg)]]*0.978 -> 0.00 | F191: 2,587,316 | G191: 103 | H191: =Table7[[#This Row],[Input reads ]]*Table7[[#This Row],[Read length]] -> 266,493,548 | J191: 1,443,074 | L191: 69% | M191: 81%
A192: 189 | B192: cr6103 | C192: C. species_5 | D192: =_xlfn.XLOOKUP(Table7[[#This Row],[Sequencing ID]],Table26[sequencing ID],Table26[GS],"") -> 0.00 | E192: =Table7[[#This Row],[Genome size (pg)]]*0.978 -> 0.00 | F192: 4,025,590 | G192: 103 | H192: =Table7[[#This Row],[Input reads ]]*Table7[[#This Row],[Read length]] -> 414,635,770 | J192: 2,851,403 | L192: 59% | M192: 83%
A193: 190 | B193: cr6104 | C193: C. species | D193: =_xlfn.XLOOKUP(Table7[[#This Row],[Sequencing ID]],Table26[sequencing ID],Table26[GS],"") -> 0.00 | E193: =Table7[[#This Row],[Genome size (pg)]]*0.978 -> 0.00 | F193: 2,609,518 | G193: 103 | H193: =Table7[[#This Row],[Input reads ]]*Table7[[#This Row],[Read length]] -> 268,780,354 | J193: 1,023,899 | L193: 64% | M193: 78%
A194: 191 | B194: cr6105 | C194: C. species_9 | D194: =_xlfn.XLOOKUP(Table7[[#This Row],[Sequencing ID]],Table26[sequencing ID],Table26[GS],"") -> 0.00 | E194: =Table7[[#This Row],[Genome size (pg)]]*0.978 -> 0.00 | F194: 5,770,216 | G194: 103 | H194: =Table7[[#This Row],[Input reads ]]*Table7[[#This Row],[Read length]] -> 594,332,248 | J194: 2,832,836 | L194: 58% | M194: 81%
A195: 192 | B195: cr6106 | C195: C. minutus | D195: =_xlfn.XLOOKUP(Table7[[#This Row],[Sequencing ID]],Table26[sequencing ID],Table26[GS],"") -> 0.00 | E195: =Table7[[#This Row],[Genome size (pg)]]*0.978 -> 0.00 | F195: 2,810,266 | G195: 103 | H195: =Table7[[#This Row],[Input reads ]]*Table7[[#This Row],[Read length]] -> 289,457,398 | J195: 1,331,732 | L195: 68% | M195: 80%
A196: 193 | B196: cr6108 | C196: C. graveolens | D196: =_xlfn.XLOOKUP(Table7[[#This Row],[Sequencing ID]],Table26[sequencing ID],Table26[GS],"") -> 0.00 | E196: =Table7[[#This Row],[Genome size (pg)]]*0.978 -> 0.00 | F196: 3,227,838 | G196: 103 | H196: =Table7[[#This Row],[Input reads ]]*Table7[[#This Row],[Read length]] -> 332,467,314 | J196: 2,950,892 | L196: 56% | M196: 86%
A197: 194 | B197: cr6110 | C197: C. munzurense | D197: =_xlfn.XLOOKUP(Table7[[#This Row],[Sequencing ID]],Table26[sequencing ID],Table26[GS],"") -> 0.00 | E197: =Table7[[#This Row],[Genome size (pg)]]*0.978 -> 0.00 | F197: 3,703,470 | G197: 103 | H197: =Table7[[#This Row],[Input reads ]]*Table7[[#This Row],[Read length]] -> 381,457,410 | J197: 2,878,703 | L197: 59% | M197: 83%
A198: 195 | B198: cr6112 | C198: C. pulchricolor | D198: =_xlfn.XLOOKUP(Table7[[#This Row],[Sequencing ID]],Table26[sequencing ID],Table26[GS],"") -> 0.00 | E198: =Table7[[#This Row],[Genome size (pg)]]*0.978 -> 0.00 | F198: 3,146,476 | G198: 103 | H198: =Table7[[#This Row],[Input reads ]]*Table7[[#This Row],[Read length]] -> 324,087,028 | J198: 1,169,522 | L198: 73% | M198: 82%
A199: 196 | B199: cr6117 | C199: C. babadagensis | D199: =_xlfn.XLOOKUP(Table7[[#This Row],[Sequencing ID]],Table26[sequencing ID],Table26[GS],"") -> 0.00 | E199: =Table7[[#This Row],[Genome size (pg)]]*0.978 -> 0.00 | F199: 2,725,554 | G199: 103 | H199: =Table7[[#This Row],[Input reads ]]*Table7[[#This Row],[Read length]] -> 280,732,062 | J199: 1,887,219 | L199: 71% | M199: 86%
A200: 197 | B200: cr6197 | C200: C. cf_cancellatus | D200: =_xlfn.XLOOKUP(Table7[[#This Row],[Sequencing ID]],Table26[sequencing ID],Table26[GS],"") -> 0.00 | E200: =Table7[[#This Row],[Genome size (pg)]]*0.978 -> 0.00 | F200: 3,687,472 | G200: 103 | H200: =Table7[[#This Row],[Input reads ]]*Table7[[#This Row],[Read length]] -> 379,809,616 | J200: 2,473,226 | L200: 67% | M200: 85%
A201: 198 | B201: cr6198 | C201: C. cf_cancellatus | D201: =_xlfn.XLOOKUP(Table7[[#This Row],[Sequencing ID]],Table26[sequencing ID],Table26[GS],"") -> 0.00 | E201: =Table7[[#This Row],[Genome size (pg)]]*0.978 -> 0.00 | F201: 2,978,366 | G201: 103 | H201: =Table7[[#This Row],[Input reads ]]*Table7[[#This Row],[Read length]] -> 306,771,698 | J201: 1,295,672 | L201: 68% | M201: 81%
... 22 more rows

Sheet Supp. Table 4|RE2_TAREAN output
A1: Supplementary Table S4. Grouping of individual repeat sequence into uclusters and related information of each repeat
A3: uclust_clstr | B3: source | C3: Crnumber | D3: Length | E3: fasta header (as output from RE2/TAREAN) | F3: RE_annotation | G3: Panrepeatome_category | H3: CroSat | I3: Size_norm
A4: Ucluster00001 | B4: re2 | C4: cr7136 | D4: 20697 | E4: cr7136_CL109Contig17 | F4: mitochondria | G4: organelle | I4: 9766.8
A5: Ucluster00001 | B5: re2 | C5: cr4665 | D5: 4925 | E5: cr4665_CL177Contig9 | F5: mitochondria | G5: organelle | I5: 4148.0
A6: Ucluster00001 | B6: re2 | C6: cr6989 | D6: 4923 | E6: cr6989_CL242Contig1 | F6: mitochondria | G6: organelle | I6: 551.6
A7: Ucluster00001 | B7: re2 | C7: cr7034 | D7: 4375 | E7: cr7034_CL255Contig1 | F7: mitochondria | G7: organelle | I7: 604.2
A8: Ucluster00001 | B8: re2 | C8: cr7183 | D8: 3856 | E8: cr7183_CL90Contig646 | F8: mitochondria | G8: organelle | I8: 9941.7
A9: Ucluster00001 | B9: re2 | C9: cr3434 | D9: 3217 | E9: cr3434_CL189Contig1 | F9: mitochondria | G9: organelle | I9: 2830.6
A10: Ucluster00001 | B10: re2 | C10: cr6447 | D10: 2212 | E10: cr6447_CL108Contig121 | F10: mitochondria | G10: organelle | I10: 13217.4
A11: Ucluster00001 | B11: re2 | C11: cr3434 | D11: 1968 | E11: cr3434_CL169Contig2 | F11: mitochondria | G11: organelle | I11: 3909.2
A12: Ucluster00001 | B12: re2 | C12: cr5196 | D12: 1336 | E12: cr5196_CL340Contig1 | F12: mitochondria | G12: organelle | I12: 280.3
A13: Ucluster00001 | B13: re2 | C13: cr3652 | D13: 1208 | E13: cr3652_CL547Contig1 | F13: mitochondria | G13: organelle | I13: 108.5
A14: Ucluster00001 | B14: re2 | C14: cr4209 | D14: 1174 | E14: cr4209_CL404Contig1 | F14: mitochondria | G14: organelle | I14: 196.0
A15: Ucluster00001 | B15: re2 | C15: cr3652 | D15: 1081 | E15: cr3652_CL423Contig1 | F15: mitochondria | G15: organelle | I15: 175.5
A16: Ucluster00001 | B16: re2 | C16: cr6447 | D16: 1047 | E16: cr6447_CL133Contig124 | F16: mitochondria | G16: organelle | I16: 8315.2
A17: Ucluster00001 | B17: re2 | C17: cr3677 | D17: 927 | E17: cr3677_CL484Contig1 | F17: mitochondria | G17: organelle | I17: 122.4
A18: Ucluster00001 | B18: re2 | C18: cr3652 | D18: 897 | E18: cr3652_CL682Contig1 | F18: mitochondria | G18: organelle | I18: 78.7
A19: Ucluster00001 | B19: re2 | C19: cr2876 | D19: 834 | E19: cr2876_CL583Contig2 | F19: mitochondria | G19: organelle | I19: 96.1
A20: Ucluster00001 | B20: re2 | C20: cr5420 | D20: 825 | E20: cr5420_CL521Contig1 | F20: mitochondria | G20: organelle | I20: 99.9
A21: Ucluster00001 | B21: re2 | C21: cr2876 | D21: 824 | E21: cr2876_CL720Contig1 | F21: mitochondria | G21: organelle | I21: 73.9
A22: Ucluster00001 | B22: re2 | C22: cr3652 | D22: 755 | E22: cr3652_CL808Contig1 | F22: mitochondria | G22: organelle | I22: 63.8
A23: Ucluster00001 | B23: re2 | C23: cr3652 | D23: 747 | E23: cr3652_CL753Contig2 | F23: mitochondria | G23: organelle | I23: 69.1
A24: Ucluster00001 | B24: re2 | C24: cr3993 | D24: 726 | E24: cr3993_CL676Contig1 | F24: mitochondria | G24: organelle | I24: 84.9
A25: Ucluster00001 | B25: re2 | C25: cr3677 | D25: 650 | E25: cr3677_CL775Contig1 | F25: mitochondria | G25: organelle | I25: 70.1
A26: Ucluster00001 | B26: re2 | C26: cr2876 | D26: 635 | E26: cr2876_CL674Contig1 | F26: mitochondria | G26: organelle | I26: 78.9
A27: Ucluster00001 | B27: re2 | C27: cr3652 | D27: 627 | E27: cr3652_CL632Contig2 | F27: mitochondria | G27: organelle | I27: 88.3
A28: Ucluster00001 | B28: re2 | C28: cr3993 | D28: 622 | E28: cr3993_CL770Contig1 | F28: mitochondria | G28: organelle | I28: 71.6
A29: Ucluster00001 | B29: re2 | C29: cr3501 | D29: 621 | E29: cr3501_CL855Contig1 | F29: mitochondria | G29: organelle | I29: 53.2
A30: Ucluster00001 | B30: re2 | C30: cr3993 | D30: 613 | E30: cr3993_CL661Contig1 | F30: mitochondria | G30: organelle | I30: 86.6
A31: Ucluster00001 | B31: re2 | C31: cr4388 | D31: 599 | E31: cr4388_CL914Contig1 | F31: mitochondria | G31: organelle | I31: 51.9
A32: Ucluster00001 | B32: re2 | C32: cr3652 | D32: 578 | E32: cr3652_CL965Contig1 | F32: mitochondria | G32: organelle | I32: 52.1
A33: Ucluster00001 | B33: re2 | C33: cr2876 | D33: 572 | E33: cr2876_CL926Contig1 | F33: mitochondria | G33: organelle | I33: 55.5
A34: Ucluster00001 | B34: re2 | C34: cr2876 | D34: 553 | E34: cr2876_CL982Contig2 | F34: mitochondria | G34: organelle | I34: 51.8
A35: Ucluster00001 | B35: re2 | C35: cr3677 | D35: 545 | E35: cr3677_CL1035Contig1 | F35: mitochondria | G35: organelle | I35: 50.9
A36: Ucluster00001 | B36: re2 | C36: cr5420 | D36: 541 | E36: cr5420_CL805Contig1 | F36: mitochondria | G36: organelle | I36: 56.7
A37: Ucluster00001 | B37: re2 | C37: cr2876 | D37: 492 | E37: cr2876_CL989Contig1 | F37: mitochondria | G37: organelle | I37: 51.8
A38: Ucluster00001 | B38: re2 | C38: cr4312 | D38: 490 | E38: cr4312_CL399Contig1 | F38: mitochondria | G38: organelle | I38: 173.0
A39: Ucluster00001 | B39: re2 | C39: cr4209 | D39: 488 | E39: cr4209_CL964Contig1 | F39: mitochondria | G39: organelle | I39: 61.4
A40: Ucluster00001 | B40: re2 | C40: cr3677 | D40: 480 | E40: cr3677_CL933Contig1 | F40: mitochondria | G40: organelle | I40: 56.4
A41: Ucluster00001 | B41: re2 | C41: cr5362 | D41: 451 | E41: cr5362_CL711Contig2 | F41: mitochondria | G41: organelle | I41: 65.4
A42: Ucluster00001 | B42: re2 | C42: cr6458 | D42: 407 | E42: cr6458_CL574Contig1 | F42: mitochondria | G42: organelle | I42: 99.1
A43: Ucluster00001 | B43: re2 | C43: cr4209 | D43: 391 | E43: cr4209_CL816Contig2 | F43: mitochondria | G43: organelle | I43: 71.7
A44: Ucluster00001 | B44: re2 | C44: cr3187 | D44: 383 | E44: cr3187_CL1188Contig1 | F44: mitochondria | G44: organelle | I44: 61.0
A45: Ucluster00001 | B45: re2 | C45: cr6458 | D45: 369 | E45: cr6458_CL617Contig3 | F45: mitochondria | G45: organelle | I45: 92.5
A46: Ucluster00001 | B46: re2 | C46: cr6458 | D46: 366 | E46: cr6458_CL476Contig2 | F46: mitochondria | G46: organelle | I46: 125.6
A47: Ucluster00001 | B47: re2 | C47: cr3677 | D47: 361 | E47: cr3677_CL550Contig1 | F47: mitochondria | G47: organelle | I47: 100.4
A48: Ucluster00001 | B48: re2 | C48: cr5422 | D48: 302 | E48: cr5422_CL842Contig3 | F48: mitochondria | G48: organelle | I48: 52.1
A49: Ucluster00001 | B49: re2 | C49: cr6458 | D49: 297 | E49: cr6458_CL712Contig1 | F49: mitochondria | G49: organelle | I49: 79.3
A50: Ucluster00001 | B50: re2 | C50: cr6458 | D50: 246 | E50: cr6458_CL1054Contig2 | F50: mitochondria | G50: organelle | I50: 55.1
A51: Ucluster00001 | B51: re2 | C51: cr6458 | D51: 228 | E51: cr6458_CL656Contig2 | F51: mitochondria | G51: organelle | I51: 88.1
A52: Ucluster00001 | B52: re2 | C52: cr6458 | D52: 214 | E52: cr6458_CL811Contig2 | F52: mitochondria | G52: organelle | I52: 68.3
A53: Ucluster00001 | B53: re2 | C53: cr6458 | D53: 196 | E53: cr6458_CL824Contig2 | F53: mitochondria | G53: organelle | I53: 68.3
A54: Ucluster00001 | B54: re2 | C54: cr6447 | D54: 194 | E54: cr6447_CL692Contig3 | F54: mitochondria | G54: organelle | I54: 80.1
A55: Ucluster00001 | B55: re2 | C55: cr6458 | D55: 156 | E55: cr6458_CL559Contig3 | F55: mitochondria | G55: organelle | I55: 101.3
A56: Ucluster00001 | B56: re2 | C56: cr6458 | D56: 155 | E56: cr6458_CL869Contig2 | F56: mitochondria | G56: organelle | I56: 66.1
A57: Ucluster00001 | B57: re2 | C57: cr6458 | D57: 131 | E57: cr6458_CL823Contig3 | F57: mitochondria | G57: organelle | I57: 68.3
A58: Ucluster00002 | B58: re2 | C58: cr7136 | D58: 17245 | E58: cr7136_CL71Contig41 | F58: mitochondria | G58: organelle | I58: 18520.3
A59: Ucluster00002 | B59: re2 | C59: cr4665 | D59: 5799 | E59: cr4665_CL128Contig13 | F59: mitochondria | G59: organelle | I59: 8693.0
A60: Ucluster00002 | B60: re2 | C60: cr3434 | D60: 5234 | E60: cr3434_CL97Contig1 | F60: mitochondria | G60: organelle | I60: 12813.0
A61: Ucluster00002 | B61: re2 | C61: cr7034 | D61: 4759 | E61: cr7034_CL195Contig2 | F61: mitochondria | G61: organelle | I61: 1656.4
A62: Ucluster00002 | B62: re2 | C62: cr2931 | D62: 4724 | E62: cr2931_CL134Contig5 | F62: mitochondria | G62: organelle | I62: 8581.1
A63: Ucluster00002 | B63: re2 | C63: cr3434 | D63: 4585 | E63: cr3434_CL165Contig1 | F63: mitochondria | G63: organelle | I63: 4079.8
A64: Ucluster00002 | B64: re2 | C64: cr5196 | D64: 4109 | E64: cr5196_CL158Contig1 | F64: mitochondria | G64: organelle | I64: 1731.0
A65: Ucluster00002 | B65: re2 | C65: cr7183 | D65: 3633 | E65: cr7183_CL294Contig1 | F65: mitochondria | G65: organelle | I65: 590.3
A66: Ucluster00002 | B66: re2 | C66: cr3196 | D66: 2924 | E66: cr3196_CL316Contig1 | F66: mitochondria | G66: organelle | I66: 513.8
A67: Ucluster00002 | B67: re2 | C67: cr4209 | D67: 1819 | E67: cr4209_CL304Contig1 | F67: mitochondria | G67: organelle | I67: 313.0
A68: Ucluster00002 | B68: re2 | C68: cr6447 | D68: 1344 | E68: cr6447_CL221Contig8 | F68: mitochondria | G68: organelle | I68: 1075.8
A69: Ucluster00002 | B69: re2 | C69: cr3934 | D69: 1336 | E69: cr3934_CL426Contig1 | F69: mitochondria | G69: organelle | I69: 124.3
A70: Ucluster00002 | B70: re2 | C70: cr4388 | D70: 1075 | E70: cr4388_CL511Contig2 | F70: mitochondria | G70: organelle | I70: 132.0
A71: Ucluster00002 | B71: re2 | C71: cr3677 | D71: 996 | E71: cr3677_CL642Contig1 | F71: mitochondria | G71: organelle | I71: 85.2
A72: Ucluster00002 | B72: re2 | C72: cr3934 | D72: 965 | E72: cr3934_CL642Contig2 | F72: mitochondria | G72: organelle | I72: 72.6
A73: Ucluster00002 | B73: re2 | C73: cr5118 | D73: 926 | E73: cr5118_CL687Contig1 | F73: mitochondria | G73: organelle | I73: 69.0
A74: Ucluster00002 | B74: re2 | C74: cr3993 | D74: 925 | E74: cr3993_CL578Contig1 | F74: mitochondria | G74: organelle | I74: 103.3
A75: Ucluster00002 | B75: re2 | C75: cr3652 | D75: 888 | E75: cr3652_CL561Contig1 | F75: mitochondria | G75: organelle | I75: 105.3
A76: Ucluster00002 | B76: re2 | C76: cr4388 | D76: 860 | E76: cr4388_CL787Contig1 | F76: mitochondria | G76: organelle | I76: 64.3
A77: Ucluster00002 | B77: re2 | C77: cr4209 | D77: 821 | E77: cr4209_CL579Contig2 | F77: mitochondria | G77: organelle | I77: 115.6
A78: Ucluster00002 | B78: re2 | C78: cr3677 | D78: 762 | E78: cr3677_CL483Contig1 | F78: mitochondria | G78: organelle | I78: 122.4
A79: Ucluster00002 | B79: re2 | C79: cr5420 | D79: 755 | E79: cr5420_CL584Contig1 | F79: mitochondria | G79: organelle | I79: 86.5
A80: Ucluster00002 | B80: re2 | C80: cr3501 | D80: 744 | E80: cr3501_CL611Contig1 | F80: mitochondria | G80: organelle | I80: 76.7
A81: Ucluster00002 | B81: re2 | C81: cr5118 | D81: 726 | E81: cr5118_CL843Contig1 | F81: mitochondria | G81: organelle | I81: 51.2
A82: Ucluster00002 | B82: re2 | C82: cr3993 | D82: 722 | E82: cr3993_CL616Contig2 | F82: mitochondria | G82: organelle | I82: 94.9
A83: Ucluster00002 | B83: re2 | C83: cr3646 | D83: 701 | E83: cr3646_CL651Contig1 | F83: mitochondria | G83: organelle | I83: 69.4
A84: Ucluster00002 | B84: re2 | C84: cr3646 | D84: 696 | E84: cr3646_CL616Contig1 | F84: mitochondria | G84: organelle | I84: 76.1
A85: Ucluster00002 | B85: re2 | C85: cr3934 | D85: 657 | E85: cr3934_CL779Contig1 | F85: mitochondria | G85: organelle | I85: 60.5
A86: Ucluster00002 | B86: re2 | C86: cr2876 | D86: 650 | E86: cr2876_CL859Contig1 | F86: mitochondria | G86: organelle | I86: 60.4
A87: Ucluster00002 | B87: re2 | C87: cr3646 | D87: 648 | E87: cr3646_CL635Contig1 | F87: mitochondria | G87: organelle | I87: 73.4
A88: Ucluster00002 | B88: re2 | C88: cr3993 | D88: 646 | E88: cr3993_CL666Contig1 | F88: mitochondria | G88: organelle | I88: 86.6
A89: Ucluster00002 | B89: re2 | C89: cr5196 | D89: 636 | E89: cr5196_CL677Contig1 | F89: mitochondria | G89: organelle | I89: 83.4
A90: Ucluster00002 | B90: re2 | C90: cr5740 | D90: 617 | E90: cr5740_CL738Contig1 | F90: mitochondria | G90: organelle | I90: 71.2
A91: Ucluster00002 | B91: re2 | C91: cr5420 | D91: 595 | E91: cr5420_CL711Contig1 | F91: mitochondria | G91: organelle | I91: 65.6
A92: Ucluster00002 | B92: re2 | C92: cr6458 | D92: 582 | E92: cr6458_CL601Contig1 | F92: mitochondria | G92: organelle | I92: 94.7
A93: Ucluster00002 | B93: re2 | C93: cr3501 | D93: 580 | E93: cr3501_CL699Contig1 | F93: mitochondria | G93: organelle | I93: 67.3
A94: Ucluster00002 | B94: re2 | C94: cr3993 | D94: 565 | E94: cr3993_CL920Contig1 | F94: mitochondria | G94: organelle | I94: 58.3
A95: Ucluster00002 | B95: re2 | C95: cr5871 | D95: 562 | E95: cr5871_CL851Contig1 | F95: mitochondria | G95: organelle | I95: 53.1
A96: Ucluster00002 | B96: re2 | C96: cr3501 | D96: 542 | E96: cr3501_CL766Contig1 | F96: mitochondria | G96: organelle | I96: 59.4
A97: Ucluster00002 | B97: re2 | C97: cr3934 | D97: 524 | E97: cr3934_CL774Contig2 | F97: mitochondria | G97: organelle | I97: 60.5
A98: Ucluster00002 | B98: re2 | C98: cr5422 | D98: 524 | E98: cr5422_CL797Contig2 | F98: mitochondria | G98: organelle | I98: 55.1
A99: Ucluster00002 | B99: re2 | C99: cr3187 | D99: 521 | E99: cr3187_CL791Contig1 | F99: mitochondria | G99: organelle | I99: 91.4
A100: Ucluster00002 | B100: re2 | C100: cr3677 | D100: 520 | E100: cr3677_CL529Contig2 | F100: mitochondria | G100: organelle | I100: 105.9
A101: Ucluster00002 | B101: re2 | C101: cr3187 | D101: 518 | E101: cr3187_CL955Contig1 | F101: mitochondria | G101: organelle | I101: 76.2
A102: Ucluster00002 | B102: re2 | C102: cr5420 | D102: 459 | E102: cr5420_CL892Contig1 | F102: mitochondria | G102: organelle | I102: 50.7
A103: Ucluster00002 | B103: re2 | C103: cr3501 | D103: 455 | E103: cr3501_CL880Contig1 | F103: mitochondria | G103: organelle | I103: 51.6
A104: Ucluster00002 | B104: re2 | C104: cr3187 | D104: 446 | E104: cr3187_CL737Contig1 | F104: mitochondria | G104: organelle | I104: 97.5
A105: Ucluster00002 | B105: re2 | C105: cr4388 | D105: 423 | E105: cr4388_CL872Contig1 | F105: mitochondria | G105: organelle | I105: 55.3
A106: Ucluster00002 | B106: re2 | C106: cr3187 | D106: 364 | E106: cr3187_CL837Contig1 | F106: mitochondria | G106: organelle | I106: 85.3
A107: Ucluster00002 | B107: re2 | C107: cr3993 | D107: 349 | E107: cr3993_CL875Contig1 | F107: mitochondria | G107: organelle | I107: 61.6
A108: Ucluster00002 | B108: re2 | C108: cr6458 | D108: 333 | E108: cr6458_CL852Contig1 | F108: mitochondria | G108: organelle | I108: 66.1
A109: Ucluster00002 | B109: re2 | C109: cr6458 | D109: 279 | E109: cr6458_CL940Contig3 | F109: mitochondria | G109: organelle | I109: 61.7
A110: Ucluster00002 | B110: re2 | C110: cr3187 | D110: 265 | E110: cr3187_CL1223Contig2 | F110: mitochondria | G110: organelle | I110: 61.0
A111: Ucluster00002 | B111: re2 | C111: cr6458 | D111: 201 | E111: cr6458_CL1033Contig2 | F111: mitochondria | G111: organelle | I111: 55.1
A112: Ucluster00003 | B112: re2 | C112: cr7220 | D112: 15767 | E112: cr7220_CL101Contig10 | F112: mitochondria | G112: organelle | I112: 12872.2
A113: Ucluster00003 | B113: re2 | C113: cr7136 | D113: 8096 | E113: cr7136_CL113Contig13 | F113: mitochondria | G113: organelle | I113: 9306.9
A114: Ucluster00003 | B114: re2 | C114: cr3434 | D114: 5479 | E114: cr3434_CL145Contig7 | F114: mitochondria | G114: organelle | I114: 6155.0
A115: Ucluster00003 | B115: re2 | C115: cr2931 | D115: 4498 | E115: cr2931_CL140Contig8 | F115: mitochondria | G115: organelle | I115: 7490.7
A116: Ucluster00003 | B116: re2 | C116: cr5196 | D116: 3028 | E116: cr5196_CL256Contig2 | F116: mitochondria | G116: organelle | I116: 605.7
A117: Ucluster00003 | B117: re2 | C117: cr6447 | D117: 1300 | E117: cr6447_CL225Contig12 | F117: mitochondria | G117: organelle | I117: 1003.0
A118: Ucluster00003 | B118: re2 | C118: cr4209 | D118: 1098 | E118: cr4209_CL461Contig1 | F118: mitochondria | G118: organelle | I118: 158.0
A119: Ucluster00003 | B119: re2 | C119: cr2876 | D119: 1084 | E119: cr2876_CL367Contig3 | F119: mitochondria | G119: organelle | I119: 210.8
A120: Ucluster00003 | B120: re2 | C120: cr3993 | D120: 1047 | E120: cr3993_CL522Contig1 | F120: mitochondria | G120: organelle | I120: 121.6
A121: Ucluster00003 | B121: re2 | C121: cr3677 | D121: 990 | E121: cr3677_CL479Contig1 | F121: mitochondria | G121: organelle | I121: 123.7
A122: Ucluster00003 | B122: re2 | C122: cr3677 | D122: 889 | E122: cr3677_CL515Contig1 | F122: mitochondria | G122: organelle | I122: 110.0
A123: Ucluster00003 | B123: re2 | C123: cr4557 | D123: 813 | E123: cr4557_CL728Contig1 | F123: mitochondria | G123: organelle | I123: 70.8
A124: Ucluster00003 | B124: re2 | C124: cr3677 | D124: 726 | E124: cr3677_CL618Contig1 | F124: mitochondria | G124: organelle | I124: 89.4
A125: Ucluster00003 | B125: re2 | C125: cr5420 | D125: 689 | E125: cr5420_CL750Contig1 | F125: mitochondria | G125: organelle | I125: 62.6
A126: Ucluster00003 | B126: re2 | C126: cr3646 | D126: 606 | E126: cr3646_CL685Contig1 | F126: mitochondria | G126: organelle | I126: 65.4
A127: Ucluster00003 | B127: re2 | C127: cr3646 | D127: 582 | E127: cr3646_CL825Contig1 | F127: mitochondria | G127: organelle | I127: 53.4
A128: Ucluster00003 | B128: re2 | C128: cr3652 | D128: 576 | E128: cr3652_CL896Contig2 | F128: mitochondria | G128: organelle | I128: 55.3
A129: Ucluster00003 | B129: re2 | C129: cr3993 | D129: 546 | E129: cr3993_CL935Contig1 | F129: mitochondria | G129: organelle | I129: 58.3
A130: Ucluster00003 | B130: re2 | C130: cr3861 | D130: 511 | E130: cr3861_CL656Contig1 | F130: mitochondria | G130: organelle | I130: 53.2
A131: Ucluster00003 | B131: re2 | C131: cr3187 | D131: 472 | E131: cr3187_CL642Contig1 | F131: mitochondria | G131: organelle | I131: 115.8
A132: Ucluster00003 | B132: re2 | C132: cr6053 | D132: 452 | E132: cr6053_CL518Contig1 | F132: mitochondria | G132: organelle | I132: 127.8
A133: Ucluster00003 | B133: re2 | C133: cr3652 | D133: 434 | E133: cr3652_CL976Contig1 | F133: mitochondria | G133: organelle | I133: 51.0
A134: Ucluster00003 | B134: re2 | C134: cr2876 | D134: 429 | E134: cr2876_CL788Contig2 | F134: mitochondria | G134: organelle | I134: 66.6
A135: Ucluster00003 | B135: re2 | C135: cr2876 | D135: 379 | E135: cr2876_CL924Contig1 | F135: mitochondria | G135: organelle | I135: 55.5
A136: Ucluster00003 | B136: re2 | C136: cr6447 | D136: 321 | E136: cr6447_CL614Contig2 | F136: mitochondria | G136: organelle | I136: 96.5
A137: Ucluster00003 | B137: re2 | C137: cr6458 | D137: 290 | E137: cr6458_CL877Contig3 | F137: mitochondria | G137: organelle | I137: 63.9
A138: Ucluster00003 | B138: re2 | C138: cr3861 | D138: 280 | E138: cr3861_CL580Contig2 | F138: mitochondria | G138: organelle | I138: 62.1
A139: Ucluster00003 | B139: re2 | C139: cr6458 | D139: 276 | E139: cr6458_CL1006Contig2 | F139: mitochondria | G139: organelle | I139: 57.3
A140: Ucluster00003 | B140: re2 | C140: cr6458 | D140: 261 | E140: cr6458_CL1132Contig1 | F140: mitochondria | G140: organelle | I140: 50.7
A141: Ucluster00004 | B141: re2 | C141: cr4665 | D141: 15223 | E141: cr4665_CL124Contig4 | F141: mitochondria | G141: organelle | I141: 9271.0
A142: Ucluster00004 | B142: re2 | C142: cr7034 | D142: 9760 | E142: cr7034_CL185Contig5 | F142: mitochondria | G142: organelle | I142: 2099.4
A143: Ucluster00004 | B143: re2 | C143: cr3196 | D143: 6231 | E143: cr3196_CL182Contig7 | F143: mitochondria | G143: organelle | I143: 3307.3
A144: Ucluster00004 | B144: re2 | C144: cr7054 | D144: 5592 | E144: cr7054_CL215Contig3 | F144: mitochondria | G144: organelle | I144: 756.7
A145: Ucluster00004 | B145: re2 | C145: cr5196 | D145: 2166 | E145: cr5196_CL233Contig4 | F145: mitochondria | G145: organelle | I145: 764.3
A146: Ucluster00004 | B146: re2 | C146: cr5196 | D146: 805 | E146: cr5196_CL526Contig1 | F146: mitochondria | G146: organelle | I146: 124.4
A147: Ucluster00004 | B147: re2 | C147: cr4209 | D147: 741 | E147: cr4209_CL577Contig1 | F147: mitochondria | G147: organelle | I147: 115.6
A148: Ucluster00004 | B148: re2 | C148: cr3677 | D148: 689 | E148: cr3677_CL310Contig1 | F148: mitochondria | G148: organelle | I148: 281.9
A149: Ucluster00004 | B149: re2 | C149: cr3198 | D149: 669 | E149: cr3198_CL719Contig1 | F149: mitochondria | G149: organelle | I149: 60.9
A150: Ucluster00004 | B150: re2 | C150: cr3677 | D150: 625 | E150: cr3677_CL779Contig1 | F150: mitochondria | G150: organelle | I150: 70.1
A151: Ucluster00004 | B151: re2 | C151: cr4209 | D151: 564 | E151: cr4209_CL862Contig1 | F151: mitochondria | G151: organelle | I151: 68.8
A152: Ucluster00004 | B152: re2 | C152: cr5740 | D152: 562 | E152: cr5740_CL882Contig1 | F152: mitochondria | G152: organelle | I152: 55.8
A153: Ucluster00004 | B153: re2 | C153: cr6053 | D153: 553 | E153: cr6053_CL876Contig1 | F153: mitochondria | G153: organelle | I153: 55.8
A154: Ucluster00004 | B154: re2 | C154: cr3677 | D154: 534 | E154: cr3677_CL972Contig2 | F154: mitochondria | G154: organelle | I154: 55.0
A155: Ucluster00004 | B155: re2 | C155: cr4209 | D155: 525 | E155: cr4209_CL1067Contig1 | F155: mitochondria | G155: organelle | I155: 55.6
A156: Ucluster00004 | B156: re2 | C156: cr4209 | D156: 523 | E156: cr4209_CL860Contig2 | F156: mitochondria | G156: organelle | I156: 68.8
A157: Ucluster00004 | B157: re2 | C157: cr4209 | D157: 504 | E157: cr4209_CL1105Contig1 | F157: mitochondria | G157: organelle | I157: 54.1
A158: Ucluster00004 | B158: re2 | C158: cr6458 | D158: 490 | E158: cr6458_CL553Contig2 | F158: mitochondria | G158: organelle | I158: 105.7
A159: Ucluster00004 | B159: re2 | C159: cr5420 | D159: 480 | E159: cr5420_CL884Contig1 | F159: mitochondria | G159: organelle | I159: 50.7
A160: Ucluster00004 | B160: re2 | C160: cr3646 | D160: 480 | E160: cr3646_CL846Contig1 | F160: mitochondria | G160: organelle | I160: 52.0
A161: Ucluster00004 | B161: re2 | C161: cr4557 | D161: 460 | E161: cr4557_CL917Contig1 | F161: mitochondria | G161: organelle | I161: 53.7
A162: Ucluster00004 | B162: re2 | C162: cr3198 | D162: 460 | E162: cr3198_CL755Contig1 | F162: mitochondria | G162: organelle | I162: 57.0
A163: Ucluster00004 | B163: re2 | C163: cr3677 | D163: 435 | E163: cr3677_CL940Contig2 | F163: mitochondria | G163: organelle | I163: 56.4
A164: Ucluster00004 | B164: re2 | C164: cr4209 | D164: 434 | E164: cr4209_CL973Contig1 | F164: mitochondria | G164: organelle | I164: 60.0
A165: Ucluster00004 | B165: re2 | C165: cr4102 | D165: 429 | E165: cr4102_CL853Contig1 | F165: mitochondria | G165: organelle | I165: 55.5
A166: Ucluster00004 | B166: re2 | C166: cr5427 | D166: 414 | E166: cr5427_CL779Contig1 | F166: mitochondria | G166: organelle | I166: 52.8
A167: Ucluster00004 | B167: re2 | C167: cr3646 | D167: 411 | E167: cr3646_CL670Contig1 | F167: mitochondria | G167: organelle | I167: 66.7
A168: Ucluster00004 | B168: re2 | C168: cr3187 | D168: 409 | E168: cr3187_CL1045Contig1 | F168: mitochondria | G168: organelle | I168: 67.0
A169: Ucluster00004 | B169: re2 | C169: cr4209 | D169: 350 | E169: cr4209_CL1131Contig1 | F169: mitochondria | G169: organelle | I169: 52.7
A170: Ucluster00004 | B170: re2 | C170: cr4312 | D170: 330 | E170: cr4312_CL666Contig1 | F170: mitochondria | G170: organelle | I170: 101.8
A171: Ucluster00004 | B171: re2 | C171: cr6458 | D171: 224 | E171: cr6458_CL1066Contig2 | F171: mitochondria | G171: organelle | I171: 52.9
A172: Ucluster00005 | B172: re2 | C172: cr7220 | D172: 14856 | E172: cr7220_CL110Contig6 | F172: mitochondria | G172: organelle | I172: 10795.6
A173: Ucluster00005 | B173: re2 | C173: cr7183 | D173: 5274 | E173: cr7183_CL257Contig1 | F173: mitochondria | G173: organelle | I173: 853.8
A174: Ucluster00005 | B174: re2 | C174: cr3434 | D174: 2668 | E174: cr3434_CL188Contig2 | F174: mitochondria | G174: organelle | I174: 2967.2
A175: Ucluster00005 | B175: re2 | C175: cr3677 | D175: 1422 | E175: cr3677_CL296Contig1 | F175: mitochondria | G175: organelle | I175: 308.0
A176: Ucluster00005 | B176: re2 | C176: cr3646 | D176: 1394 | E176: cr3646_CL368Contig2 | F176: mitochondria | G176: organelle | I176: 184.1
A177: Ucluster00005 | B177: re2 | C177: cr3652 | D177: 1259 | E177: cr3652_CL550Contig1 | F177: mitochondria | G177: organelle | I177: 108.5
A178: Ucluster00005 | B178: re2 | C178: cr4388 | D178: 840 | E178: cr4388_CL664Contig1 | F178: mitochondria | G178: organelle | I178: 81.2
A179: Ucluster00005 | B179: re2 | C179: cr3646 | D179: 646 | E179: cr3646_CL684Contig1 | F179: mitochondria | G179: organelle | I179: 65.4
A180: Ucluster00005 | B180: re2 | C180: cr3677 | D180: 492 | E180: cr3677_CL776Contig1 | F180: mitochondria | G180: organelle | I180: 70.1
A181: Ucluster00005 | B181: re2 | C181: cr5420 | D181: 434 | E181: cr5420_CL810Contig1 | F181: mitochondria | G181: organelle | I181: 56.7
A182: Ucluster00005 | B182: re2 | C182: cr5420 | D182: 414 | E182: cr5420_CL794Contig1 | F182: mitochondria | G182: organelle | I182: 58.1
A183: Ucluster00005 | B183: re2 | C183: cr4209 | D183: 384 | E183: cr4209_CL989Contig1 | F183: mitochondria | G183: organelle | I183: 60.0
A184: Ucluster00005 | B184: re2 | C184: cr6458 | D184: 177 | E184: cr6458_CL800Contig3 | F184: mitochondria | G184: organelle | I184: 70.5
A185: Ucluster00006 | B185: re2 | C185: cr4665 | D185: 14600 | E185: cr4665_CL89Contig15 | F185: mitochondria | G185: organelle | I185: 13727.0
A186: Ucluster00006 | B186: re2 | C186: cr2931 | D186: 10043 | E186: cr2931_CL115Contig2 | F186: mitochondria | G186: organelle | I186: 11423.3
A187: Ucluster00006 | B187: re2 | C187: cr5196 | D187: 5870 | E187: cr5196_CL182Contig6 | F187: mitochondria | G187: organelle | I187: 1345.4
A188: Ucluster00006 | B188: re2 | C188: cr4209 | D188: 5391 | E188: cr4209_CL179Contig4 | F188: mitochondria | G188: organelle | I188: 1136.6
A189: Ucluster00006 | B189: re2 | C189: cr3434 | D189: 2485 | E189: cr3434_CL177Contig3 | F189: mitochondria | G189: organelle | I189: 3531.5
A190: Ucluster00006 | B190: re2 | C190: cr3501 | D190: 1338 | E190: cr3501_CL301Contig1 | F190: mitochondria | G190: organelle | I190: 240.9
A191: Ucluster00006 | B191: re2 | C191: cr5196 | D191: 970 | E191: cr5196_CL514Contig1 | F191: mitochondria | G191: organelle | I191: 132.6
A192: Ucluster00006 | B192: re2 | C192: cr3501 | D192: 853 | E192: cr3501_CL373Contig3 | F192: mitochondria | G192: organelle | I192: 150.2
A193: Ucluster00006 | B193: re2 | C193: cr3934 | D193: 849 | E193: cr3934_CL550Contig2 | F193: mitochondria | G193: organelle | I193: 88.0
A194: Ucluster00006 | B194: re2 | C194: cr3677 | D194: 838 | E194: cr3677_CL551Contig1 | F194: mitochondria | G194: organelle | I194: 100.4
A195: Ucluster00006 | B195: re2 | C195: cr5420 | D195: 806 | E195: cr5420_CL605Contig1 | F195: mitochondria | G195: organelle | I195: 82.0
A196: Ucluster00006 | B196: re2 | C196: cr3652 | D196: 685 | E196: cr3652_CL859Contig1 | F196: mitochondria | G196: organelle | I196: 58.5
A197: Ucluster00006 | B197: re2 | C197: cr6447 | D197: 584 | E197: cr6447_CL447Contig6 | F197: mitochondria | G197: organelle | I197: 154.7
A198: Ucluster00006 | B198: re2 | C198: cr3993 | D198: 506 | E198: cr3993_CL879Contig1 | F198: mitochondria | G198: organelle | I198: 61.6
A199: Ucluster00006 | B199: re2 | C199: cr6458 | D199: 472 | E199: cr6458_CL713Contig1 | F199: mitochondria | G199: organelle | I199: 79.3
A200: Ucluster00006 | B200: re2 | C200: cr6458 | D200: 434 | E200: cr6458_CL466Contig4 | F200: mitochondria | G200: organelle | I200: 127.8
A201: Ucluster00006 | B201: re2 | C201: cr6458 | D201: 419 | E201: cr6458_CL526Contig1 | F201: mitochondria | G201: organelle | I201: 110.1
... 4299 more rows

Sheet Supp. Table 5|Rep_cat
A1: Supplementary Table 5. Classification of RepeatExplorer2/TAREAN annotations into major panrepeatome categories.
A3: RE/TAREAN annotation | B3: Panrepeatome categories
A4: Ale | B4: ClassI_te
A5: Alesia | B5: ClassI_te
A6: Angela | B6: ClassI_te
A7: Athila | B7: ClassI_te
A8: Bianca | B8: ClassI_te
A9: chromovirus | B9: ClassI_te
A10: Class_I | B10: ClassI_te
A11: CRM | B11: ClassI_te
A12: Galadriel | B12: ClassI_te
A13: Ikeros | B13: ClassI_te
A14: Ivana | B14: ClassI_te
A15: LINE | B15: ClassI_te
A16: LTR | B16: ClassI_te
A17: pararetrovirus | B17: ClassI_te
A18: PutativeLTRelements | B18: ClassI_te
A19: Reina | B19: ClassI_te
A20: Retand | B20: ClassI_te
A21: SIRE | B21: ClassI_te
A22: TAR | B22: ClassI_te
A23: Tat | B23: ClassI_te
A24: Tekay | B24: ClassI_te
A25: Tork | B25: ClassI_te
A26: Ty1_copia | B26: ClassI_te
A27: Ty3_gypsy | B27: ClassI_te
A28: Ogre | B28: ClassI_te
A29: OTA | B29: ClassI_te
A30: Tcn1 | B30: ClassI_te
A31: Class_II | B31: ClassII_te
A32: EnSpm_CACTA | B32: ClassII_te
A33: hAT | B33: ClassII_te
A34: Helitron | B34: ClassII_te
A35: MuDR_Mutator | B35: ClassII_te
A36: PIF_Harbinger | B36: ClassII_te
A37: Tc1_Mariner | B37: ClassII_te
A38: TIR | B38: ClassII_te
A39: Putativesatellites(highconfidence) | B39: Satellites
A40: Putativesatellites(lowconfidence) | B40: Satellites
A41: satellite | B41: Satellites
A42: 45S_rDNA | B42: rDNA
A43: 5S_rDNA | B43: rDNA
A44: mobile_element | B44: Unkown
A45: All | B45: Unkown
A46: Other | B46: Unkown
A47: repeat | B47: Unkown
A48: mitochondria | B48: Organelle
A49: organelle | B49: Organelle
A50: plastid | B50: Organelle

Sheet Supp. Table 6|Ucluster_stats
A1: Supplementary Table 6. Summary statistics, annotation, and categories of the uclusters generated by UCLUST using annotation from RepeatExplorer2/TAREAN
A3: Uclustering | B3: Size (read count) | C3: Length (kbp) | D3: Satellite number | E3: RE2/TAREAN annotation | F3: Panrepeatome class | G3: Significant sub-lineage amplification (p < 0.05) unique to series | H3: sub-lineage-specific | I3: series-specificity | J3: In 16,083 nr cluster | K3: Specificity
A4: Ucluster31380 | B4: 1410 | C4: 145.23 | D4: CroSat001 | E4: satellite | F4: Accessory | G4: Adanensi | H4: NO | J4: YES | K4: Crocus
A5: Ucluster04056 | B5: 18647 | C5: 1920.641 | D5: CroSat004 | E5: satellite | F5: Accessory | H5: NO | J5: YES | K5: Crocus
A6: Ucluster03982 | B6: 39774 | C6: 4096.722 | D6: CroSat006 | E6: satellite | F6: Accessory | G6: Sieberi | H6: NO | J6: YES | K6: Crocus
A7: Ucluster00348 | B7: 5606677 | C7: 577487.731 | E7: Bianca | F7: Core | H7: NO | J7: YES | K7: Shared
A8: Ucluster00400 | B8: 5554200 | C8: 572082.6 | E8: Angela | F8: Core | H8: NO | J8: YES | K8: Crocus
A9: Ucluster00382 | B9: 5124892 | C9: 527863.876 | E9: Angela | F9: Core | H9: NO | J9: YES | K9: Crocus
A10: Ucluster00345 | B10: 4498613 | C10: 463357.139 | E10: Angela | F10: Core | H10: NO | J10: YES | K10: Crocus
A11: Ucluster04815 | B11: 7173 | C11: 738.819 | D11: CroSat007 | E11: satellite | F11: Accessory | H11: NO | J11: YES | K11: Crocus
A12: Ucluster00323 | B12: 3359721 | C12: 346051.263 | E12: Bianca | F12: Core | H12: NO | J12: YES | K12: Crocus
A13: Ucluster00488 | B13: 18277 | C13: 1882.531 | D13: CroSat008 | E13: satellite | F13: Accessory | H13: NO | J13: YES | K13: Crocus
A14: Ucluster03923 | B14: 21506 | C14: 2215.118 | D14: CroSat009 | E14: satellite | F14: Accessory | G14: Serotini | H14: NO | J14: YES | K14: Crocus
A15: Ucluster00334 | B15: 2776801 | C15: 286010.503 | E15: Angela | F15: Core | H15: NO | J15: YES | K15: Crocus
A16: Ucluster01383 | B16: 2295335 | C16: 236419.505 | E16: Angela | F16: Core | H16: NO | J16: YES | K16: Crocus
A17: Ucluster00395 | B17: 2158122 | C17: 222286.566 | E17: Bianca | F17: Core | H17: NO | J17: YES | K17: Crocus
A18: Ucluster00142 | B18: 2056945 | C18: 211865.335 | E18: Tekay | F18: Core | G18: Sieberi | H18: YES | I18: Sieberi | J18: YES | K18: Crocus
A19: Ucluster03434 | B19: 21348 | C19: 2198.844 | D19: CroSat010 | E19: satellite | F19: Accessory | H19: NO | J19: YES | K19: Crocus
A20: Ucluster01387 | B20: 1730152 | C20: 178205.656 | E20: Angela | F20: Core | G20: Aleppici | H20: YES | I20: Aleppici | J20: YES | K20: Crocus
A21: Ucluster01546 | B21: 1659109 | C21: 170888.227 | E21: LINE | F21: Core | H21: NO | J21: YES | K21: Shared
A22: Ucluster00094 | B22: 1595779 | C22: 164365.237 | E22: Tekay | F22: Core | H22: NO | J22: YES | K22: Crocus
A23: Ucluster01396 | B23: 1498805 | C23: 154376.915 | E23: Angela | F23: Core | H23: NO | J23: YES | K23: Crocus
A24: Ucluster00301 | B24: 1497705 | C24: 154263.615 | E24: Angela | F24: Core | G24: Adami | H24: YES | I24: Adami | J24: YES | K24: Crocus
A25: Ucluster00162 | B25: 1481852 | C25: 152630.756 | E25: Tekay | F25: Core | G25: Sieberi | H25: YES | I25: Sieberi | J25: YES | K25: Crocus
A26: Ucluster00292 | B26: 1413547 | C26: 145595.341 | E26: Angela | F26: Core | G26: Adami | H26: YES | I26: Adami | J26: YES | K26: Crocus
A27: Ucluster00357 | B27: 1410562 | C27: 145287.886 | E27: Angela | F27: Core | H27: NO | J27: YES | K27: Crocus
A28: Ucluster07780 | B28: 7493 | C28: 771.779 | D28: CroSat011 | E28: satellite | F28: Accessory | H28: NO | J28: YES | K28: Crocus
A29: Ucluster01382 | B29: 1344397 | C29: 138472.891 | E29: Angela | F29: Core | G29: Flavi | H29: YES | I29: Flavi | J29: YES | K29: Crocus
A30: Ucluster00169 | B30: 1334507 | C30: 137454.221 | E30: Tekay | F30: Core | H30: NO | J30: YES | K30: Crocus
A31: Ucluster00322 | B31: 1322975 | C31: 136266.425 | E31: Angela | F31: Core | G31: Adami | H31: YES | I31: Adami | J31: YES | K31: Crocus
A32: Ucluster01403 | B32: 1314735 | C32: 135417.705 | E32: Angela | F32: Core | H32: NO | J32: YES | K32: Crocus
A33: Ucluster00157 | B33: 1310689 | C33: 135000.967 | E33: Tekay | F33: Core | H33: NO | J33: YES | K33: Crocus
A34: Ucluster00250 | B34: 1294048 | C34: 133286.944 | E34: Angela | F34: Core | G34: Carpetani | H34: YES | I34: Carpetani | J34: YES | K34: Crocus
A35: Ucluster00581 | B35: 1286287 | C35: 132487.561 | E35: Angela | F35: Core | G35: Crocus | H35: YES | I35: Crocus | J35: YES | K35: Crocus
A36: Ucluster00194 | B36: 1237688 | C36: 127481.864 | E36: Tekay | F36: Core | G36: Adami | H36: YES | I36: Adami | J36: YES | K36: Crocus
A37: Ucluster00051 | B37: 1216814 | C37: 125331.842 | E37: 45S_rDNA | F37: Core | H37: NO | J37: YES | K37: Shared
A38: Ucluster00206 | B38: 1171945 | C38: 120710.335 | E38: Tekay | F38: Core | G38: Aleppici | H38: YES | I38: Aleppici | J38: YES | K38: Crocus
A39: Ucluster00295 | B39: 1170585 | C39: 120570.255 | E39: Angela | F39: Core | G39: Adami | H39: YES | I39: Adami | J39: YES | K39: Crocus
A40: Ucluster00097 | B40: 1164372 | C40: 119930.316 | E40: Tekay | F40: Core | H40: NO | J40: YES | K40: Crocus
A41: Ucluster00111 | B41: 1160877 | C41: 119570.331 | E41: Tekay | F41: Core | H41: NO | J41: YES | K41: Crocus
A42: Ucluster00163 | B42: 1160090 | C42: 119489.27 | E42: Tekay | F42: Core | H42: NO | J42: YES | K42: Crocus
A43: Ucluster00047 | B43: 1153271 | C43: 118786.913 | E43: 45S_rDNA | F43: Core | H43: NO | J43: YES | K43: Shared
A44: Ucluster00131 | B44: 1150957 | C44: 118548.571 | E44: Tekay | F44: Core | H44: NO | J44: YES | K44: Crocus
A45: Ucluster00138 | B45: 1136889 | C45: 117099.567 | E45: SIRE | F45: Core | H45: NO | J45: YES | K45: Crocus
A46: Ucluster01678 | B46: 1129606 | C46: 116349.418 | E46: Angela | F46: Core | G46: Cancellati | H46: YES | I46: Cancellati | J46: YES | K46: Crocus
A47: Ucluster00398 | B47: 1070892 | C47: 110301.876 | E47: Bianca | F47: Core | H47: NO | J47: YES | K47: Crocus
A48: Ucluster00279 | B48: 1055115 | C48: 108676.845 | E48: Tekay | F48: Core | G48: Adami | H48: YES | I48: Adami | J48: YES | K48: Crocus
A49: Ucluster01356 | B49: 1017841 | C49: 104837.623 | E49: Angela | F49: Core | H49: NO | J49: YES | K49: Crocus
A50: Ucluster00329 | B50: 1012739 | C50: 104312.117 | E50: Tekay | F50: Core | G50: Aleppici | H50: YES | I50: Aleppici | J50: YES | K50: Crocus
A51: Ucluster00181 | B51: 1011982 | C51: 104234.146 | E51: Tekay | F51: Core | G51: Carpetani | H51: YES | I51: Carpetani | J51: YES | K51: Crocus
A52: Ucluster00143 | B52: 976154 | C52: 100543.862 | E52: Tekay | F52: Core | H52: NO | J52: YES | K52: Crocus
A53: Ucluster08134 | B53: 23672 | C53: 2438.216 | D53: CroSat012 | E53: satellite | F53: Accessory | G53: Sieberi | H53: YES | I53: Sieberi | J53: YES | K53: Crocus
A54: Ucluster00141 | B54: 946929 | C54: 97533.687 | E54: Tekay | F54: Core | H54: NO | J54: YES | K54: Crocus
A55: Ucluster11485 | B55: 8630 | C55: 888.89 | D55: CroSat013 | E55: satellite | F55: Accessory | H55: NO | J55: YES | K55: Crocus
A56: Ucluster00460 | B56: 929146 | C56: 95702.038 | E56: Bianca | F56: Core | H56: NO | J56: YES | K56: Crocus
A57: Ucluster00204 | B57: 923698 | C57: 95140.894 | E57: Tekay | F57: Core | G57: Adami | H57: YES | I57: Adami | J57: YES | K57: Crocus
A58: Ucluster00092 | B58: 921515 | C58: 94916.045 | E58: Tekay | F58: Core | H58: NO | J58: YES | K58: Crocus
A59: Ucluster00116 | B59: 916500 | C59: 94399.5 | E59: Tekay | F59: Core | H59: NO | J59: YES | K59: Crocus
A60: Ucluster00645 | B60: 914608 | C60: 94204.624 | E60: Angela | F60: Core | G60: Crocus | H60: YES | I60: Crocus | J60: YES | K60: Crocus
A61: Ucluster00109 | B61: 909450 | C61: 93673.35 | E61: Tekay | F61: Core | H61: NO | J61: YES | K61: Crocus
A62: Ucluster07874 | B62: 284 | C62: 29.252 | D62: CroSat014 | E62: satellite | F62: Accessory | H62: NO | J62: YES | K62: Crocus
A63: Ucluster00137 | B63: 897133 | C63: 92404.699 | E63: Tekay | F63: Core | G63: Aleppici | H63: YES | I63: Aleppici | J63: YES | K63: Crocus
A64: Ucluster00124 | B64: 896519 | C64: 92341.457 | E64: Tekay | F64: Core | H64: NO | J64: YES | K64: Crocus
A65: Ucluster00766 | B65: 866721 | C65: 89272.263 | E65: Tork | F65: Core | H65: NO | J65: YES | K65: Crocus
A66: Ucluster00175 | B66: 860568 | C66: 88638.504 | E66: Tekay | F66: Core | H66: NO | J66: YES | K66: Crocus
A67: Ucluster00153 | B67: 857949 | C67: 88368.747 | E67: Tekay | F67: Core | G67: Crocus | H67: YES | I67: Crocus | J67: YES | K67: Crocus
A68: Ucluster00751 | B68: 836186 | C68: 86127.158 | E68: Others | F68: Accessory | G68: Verni | H68: YES | I68: Verni | J68: YES | K68: Crocus
A69: Ucluster04768 | B69: 344 | C69: 35.432 | D69: CroSat015 | E69: Others | F69: Accessory | G69: Sieberi | H69: NO | J69: YES | K69: Crocus
A70: Ucluster00159 | B70: 829805 | C70: 85469.915 | E70: Tekay | F70: Core | G70: Adami | H70: YES | I70: Adami | J70: YES | K70: Crocus
A71: Ucluster00103 | B71: 810703 | C71: 83502.409 | E71: Tekay | F71: Core | H71: NO | J71: YES | K71: Crocus
A72: Ucluster00133 | B72: 806703 | C72: 83090.409 | E72: Tekay | F72: Core | H72: NO | J72: YES | K72: Crocus
A73: Ucluster07415 | B73: 1138 | C73: 117.214 | D73: CroSat016 | E73: satellite | F73: Accessory | H73: NO | J73: YES | K73: Crocus
A74: Ucluster00168 | B74: 799303 | C74: 82328.209 | E74: Tekay | F74: Core | G74: Adami | H74: YES | I74: Adami | J74: YES | K74: Crocus
A75: Ucluster00128 | B75: 791384 | C75: 81512.552 | E75: Tekay | F75: Core | H75: NO | J75: YES | K75: Crocus
A76: Ucluster00648 | B76: 790750 | C76: 81447.25 | E76: Angela | F76: Core | G76: Crocus | H76: YES | I76: Crocus | J76: YES | K76: Crocus
A77: Ucluster00108 | B77: 771353 | C77: 79449.359 | E77: SIRE | F77: Core | H77: NO | J77: YES | K77: Crocus
A78: Ucluster00362 | B78: 766302 | C78: 78929.106 | E78: Tekay | F78: Core | H78: NO | J78: YES | K78: Crocus
A79: Ucluster00583 | B79: 764574 | C79: 78751.122 | E79: SIRE | F79: Core | H79: NO | J79: YES | K79: Crocus
A80: Ucluster00232 | B80: 763029 | C80: 78591.987 | E80: Tekay | F80: Core | G80: Laevigati | H80: YES | I80: Laevigati | J80: YES | K80: Crocus
A81: Ucluster00478 | B81: 753478 | C81: 77608.234 | E81: Bianca | F81: Core | G81: Sieberi | H81: YES | I81: Sieberi | J81: YES | K81: Crocus
A82: Ucluster00668 | B82: 744088 | C82: 76641.064 | E82: Others | F82: Accessory | H82: NO | J82: YES | K82: Crocus
A83: Ucluster00563 | B83: 743519 | C83: 76582.457 | E83: Bianca | F83: Core | G83: Sieberi | H83: YES | I83: Sieberi | J83: YES | K83: Crocus
A84: Ucluster00102 | B84: 730055 | C84: 75195.665 | E84: Tekay | F84: Core | H84: NO | J84: YES | K84: Crocus
A85: Ucluster00903 | B85: 728459 | C85: 75031.277 | E85: Tork | F85: Core | H85: NO | J85: YES | K85: Crocus
A86: Ucluster01721 | B86: 721962 | C86: 74362.086 | E86: Angela | F86: Core | H86: NO | J86: YES | K86: Crocus
A87: Ucluster00215 | B87: 721730 | C87: 74338.19 | E87: Tekay | F87: Core | G87: Adami | H87: YES | I87: Adami | J87: YES | K87: Crocus
A88: Ucluster01725 | B88: 720368 | C88: 74197.904 | E88: Angela | F88: Core | G88: Cancellati | H88: YES | I88: Cancellati | J88: YES | K88: Crocus
A89: Ucluster00372 | B89: 715010 | C89: 73646.03 | E89: SIRE | F89: Core | G89: Adami | H89: YES | I89: Adami | J89: YES | K89: Crocus
A90: Ucluster00132 | B90: 710786 | C90: 73210.958 | E90: Tekay | F90: Core | H90: NO | J90: YES | K90: Crocus
A91: Ucluster00407 | B91: 704897 | C91: 72604.391 | E91: SIRE | F91: Core | H91: NO | J91: YES | K91: Crocus
A92: Ucluster00392 | B92: 704818 | C92: 72596.254 | E92: Tekay | F92: Core | G92: Sieberi | H92: YES | I92: Sieberi | J92: YES | K92: Crocus
A93: Ucluster01242 | B93: 693174 | C93: 71396.922 | E93: EnSpm_CACTA | F93: Core | H93: NO | J93: YES | K93: Crocus
A94: Ucluster00436 | B94: 692357 | C94: 71312.771 | E94: Bianca | F94: Core | G94: Kotschyani | H94: YES | I94: Kotschyani | J94: YES | K94: Crocus
A95: Ucluster00134 | B95: 689258 | C95: 70993.574 | E95: SIRE | F95: Core | G95: Cancellati | H95: YES | I95: Cancellati | J95: YES | K95: Crocus
A96: Ucluster00100 | B96: 683018 | C96: 70350.854 | E96: Tekay | F96: Core | G96: Aleppici | H96: YES | I96: Aleppici | J96: YES | K96: Crocus
A97: Ucluster00594 | B97: 674121 | C97: 69434.463 | E97: Others | F97: Accessory | H97: NO | J97: YES | K97: Crocus
A98: Ucluster01867 | B98: 671597 | C98: 69174.491 | E98: Angela | F98: Core | G98: Cancellati | H98: YES | I98: Cancellati | J98: YES | K98: Crocus
A99: Ucluster01732 | B99: 666516 | C99: 68651.148 | E99: Angela | F99: Core | H99: NO | J99: YES | K99: Crocus
A100: Ucluster00619 | B100: 664986 | C100: 68493.558 | E100: Angela | F100: Core | H100: NO | J100: YES | K100: Crocus
A101: Ucluster01368 | B101: 664518 | C101: 68445.354 | E101: Retand | F101: Core | G101: Serotini | H101: YES | I101: Serotini | J101: YES | K101: Crocus
A102: Ucluster01406 | B102: 658283 | C102: 67803.149 | E102: Angela | F102: Core | G102: Verni | H102: YES | I102: Verni | J102: YES | K102: Crocus
A103: Ucluster03971 | B103: 9780 | C103: 1007.34 | D103: CroSat017 | E103: satellite | F103: Accessory | H103: NO | J103: YES | K103: Crocus
A104: Ucluster00527 | B104: 650505 | C104: 67002.015 | E104: Retand | F104: Core | H104: NO | J104: YES | K104: Crocus
A105: Ucluster00049 | B105: 650391 | C105: 66990.273 | E105: 45S_rDNA | F105: Core | H105: NO | J105: YES | K105: Crocus
A106: Ucluster06274 | B106: 1813 | C106: 186.739 | D106: CroSat019 | E106: satellite | F106: Accessory | H106: NO | J106: YES | K106: Crocus
A107: Ucluster01398 | B107: 647100 | C107: 66651.3 | E107: Angela | F107: Core | H107: NO | J107: YES | K107: Crocus
A108: Ucluster00113 | B108: 646691 | C108: 66609.173 | E108: Tekay | F108: Core | G108: Verni | H108: YES | I108: Verni | J108: YES | K108: Crocus
A109: Ucluster02174 | B109: 645101 | C109: 66445.403 | E109: Others | F109: Accessory | H109: NO | J109: YES | K109: Crocus
A110: Ucluster01718 | B110: 644565 | C110: 66390.195 | E110: Angela | F110: Core | H110: NO | J110: YES | K110: Crocus
A111: Ucluster00088 | B111: 642763 | C111: 66204.589 | E111: Tekay | F111: Core | H111: NO | J111: YES | K111: Crocus
A112: Ucluster05624 | B112: 931716 | C112: 95966.748 | D112: CroSat020 | E112: satellite | F112: Accessory | H112: NO | J112: YES | K112: Crocus
A113: Ucluster00135 | B113: 638108 | C113: 65725.124 | E113: Tekay | F113: Core | G113: Verni | H113: YES | I113: Verni | J113: YES | K113: Crocus
A114: Ucluster00150 | B114: 636201 | C114: 65528.703 | E114: Tekay | F114: Core | G114: Adami | H114: YES | I114: Adami | J114: YES | K114: Crocus
A115: Ucluster00994 | B115: 635117 | C115: 65417.051 | E115: Tork | F115: Core | H115: NO | J115: YES | K115: Crocus
A116: Ucluster00768 | B116: 632490 | C116: 65146.47 | E116: Angela | F116: Core | H116: NO | J116: YES | K116: Crocus
A117: Ucluster01104 | B117: 620843 | C117: 63946.829 | E117: Others | F117: Accessory | H117: NO | J117: YES | K117: Crocus
A118: Ucluster04956 | B118: 613287 | C118: 63168.561 | E118: Angela | F118: Core | H118: NO | J118: YES | K118: Crocus
A119: Ucluster01377 | B119: 612979 | C119: 63136.837 | E119: EnSpm_CACTA | F119: Core | H119: NO | J119: YES | K119: Crocus
A120: Ucluster06468 | B120: 16999 | C120: 1750.897 | D120: CroSat021 | E120: satellite | F120: Accessory | G120: Adami | H120: YES | I120: Adami | J120: YES | K120: Crocus
A121: Ucluster00233 | B121: 612471 | C121: 63084.513 | E121: Tekay | F121: Core | G121: Adami | H121: YES | I121: Adami | J121: YES | K121: Crocus
A122: Ucluster00391 | B122: 611393 | C122: 62973.479 | E122: SIRE | F122: Core | G122: Punctati | H122: YES | I122: Punctati | J122: YES | K122: Crocus
A123: Ucluster00121 | B123: 605599 | C123: 62376.697 | E123: Tekay | F123: Core | G123: Flavi | H123: YES | I123: Flavi | J123: YES | K123: Crocus
A124: Ucluster00191 | B124: 601616 | C124: 61966.448 | E124: Tekay | F124: Core | H124: NO | J124: YES | K124: Crocus
A125: Ucluster00119 | B125: 600515 | C125: 61853.045 | E125: SIRE | F125: Core | G125: Cancellati | H125: YES | I125: Cancellati | J125: YES | K125: Crocus
A126: Ucluster01658 | B126: 596829 | C126: 61473.387 | E126: SIRE | F126: Core | G126: Romulea | H126: YES | I126: Romulea | J126: YES | K126: Romulea
A127: Ucluster01730 | B127: 595061 | C127: 61291.283 | E127: Angela | F127: Core | H127: NO | J127: YES | K127: Crocus
A128: Ucluster00435 | B128: 594511 | C128: 61234.633 | E128: CRM | F128: Core | H128: NO | J128: YES | K128: Crocus
A129: Ucluster00258 | B129: 591857 | C129: 60961.271 | E129: Tekay | F129: Core | G129: Adami | H129: YES | I129: Adami | J129: YES | K129: Crocus
A130: Ucluster14252 | B130: 1169 | C130: 120.407 | D130: CroSat022 | E130: satellite | F130: Accessory | G130: Adami | H130: NO | J130: YES | K130: Crocus
A131: Ucluster00195 | B131: 586150 | C131: 60373.45 | E131: Tekay | F131: Core | G131: Adami | H131: YES | I131: Adami | J131: YES | K131: Crocus
A132: Ucluster00123 | B132: 583346 | C132: 60084.638 | E132: Tekay | F132: Core | H132: NO | J132: YES | K132: Crocus
A133: Ucluster23099 | B133: 582989 | C133: 60047.867 | E133: Others | F133: Accessory | H133: NO | J133: YES | K133: Crocus
A134: Ucluster01965 | B134: 580887 | C134: 59831.361 | E134: Tork | F134: Core | H134: NO | J134: YES | K134: Crocus
A135: Ucluster01891 | B135: 580444 | C135: 59785.732 | E135: Tekay | F135: Core | G135: Serotini | H135: YES | I135: Serotini | J135: YES | K135: Crocus
A136: Ucluster06147 | B136: 575142 | C136: 59239.626 | E136: satellite | F136: Accessory | H136: NO | J136: YES | K136: Crocus | Z136: =566-27 -> 539
A137: Ucluster00145 | B137: 572536 | C137: 58971.208 | E137: Tekay | F137: Core | H137: NO | J137: YES | K137: Crocus
A138: Ucluster00158 | B138: 572008 | C138: 58916.824 | E138: Tekay | F138: Core | H138: NO | J138: YES | K138: Crocus
A139: Ucluster00512 | B139: 571641 | C139: 58879.023 | E139: EnSpm_CACTA | F139: Core | H139: NO | J139: YES | K139: Crocus
A140: Ucluster04444 | B140: 569325 | C140: 58640.475 | E140: Angela | F140: Core | G140: Serotini | H140: YES | I140: Serotini | J140: YES | K140: Crocus
A141: Ucluster00117 | B141: 569020 | C141: 58609.06 | E141: Tekay | F141: Core | H141: NO | J141: YES | K141: Crocus
A142: Ucluster01393 | B142: 563478 | C142: 58038.234 | E142: Retand | F142: Core | G142: Crocus | H142: YES | I142: Crocus | J142: YES | K142: Crocus
A143: Ucluster01582 | B143: 560456 | C143: 57726.968 | E143: repeat | F143: Accessory | H143: NO | J143: YES | K143: Crocus
A144: Ucluster01696 | B144: 557452 | C144: 57417.556 | E144: Angela | F144: Core | H144: NO | J144: YES | K144: Crocus
A145: Ucluster00482 | B145: 551824 | C145: 56837.872 | E145: SIRE | F145: Core | H145: NO | J145: YES | K145: Crocus
A146: Ucluster00095 | B146: 548996 | C146: 56546.588 | E146: Tekay | F146: Core | H146: NO | J146: YES | K146: Crocus
A147: Ucluster00451 | B147: 547057 | C147: 56346.871 | E147: CRM | F147: Core | H147: NO | J147: YES | K147: Crocus
A148: Ucluster00733 | B148: 546899 | C148: 56330.597 | E148: Tork | F148: Core | H148: NO | J148: YES | K148: Crocus
A149: Ucluster01526 | B149: 546143 | C149: 56252.729 | E149: SIRE | F149: Core | H149: NO | J149: YES | K149: Crocus
A150: Ucluster00052 | B150: 543921 | C150: 56023.863 | E150: 45S_rDNA | F150: Core | H150: NO | J150: YES | K150: Shared
A151: Ucluster00913 | B151: 540835 | C151: 55706.005 | E151: Tork | F151: Core | H151: NO | J151: YES | K151: Crocus
A152: Ucluster00680 | B152: 537081 | C152: 55319.343 | E152: TAR | F152: Core | H152: NO | J152: YES | K152: Crocus
A153: Ucluster01461 | B153: 535915 | C153: 55199.245 | E153: SIRE | F153: Core | G153: Cancellati | H153: YES | I153: Cancellati | J153: YES | K153: Crocus
A154: Ucluster00096 | B154: 529376 | C154: 54525.728 | E154: 45S_rDNA | F154: Core | H154: NO | J154: YES | K154: Shared
A155: Ucluster00354 | B155: 528566 | C155: 54442.298 | E155: Angela | F155: Core | H155: NO | J155: YES | K155: Crocus
A156: Ucluster00688 | B156: 526617 | C156: 54241.551 | E156: Others | F156: Accessory | H156: NO | J156: YES | K156: Crocus
A157: Ucluster00678 | B157: 524748 | C157: 54049.044 | E157: TAR | F157: Core | H157: NO | J157: YES | K157: Crocus
A158: Ucluster02655 | B158: 524364 | C158: 54009.492 | E158: Angela | F158: Core | H158: NO | J158: YES | K158: Crocus
A159: Ucluster06822 | B159: 515682 | C159: 53115.246 | E159: LINE | F159: Core | H159: NO | J159: YES | K159: Crocus
A160: Ucluster01100 | B160: 509887 | C160: 52518.361 | E160: Retand | F160: Core | G160: Cancellati | H160: YES | I160: Cancellati | J160: YES | K160: Crocus
A161: Ucluster00492 | B161: 508563 | C161: 52381.989 | E161: Angela | F161: Core | H161: NO | J161: YES | K161: Crocus
A162: Ucluster01339 | B162: 504946 | C162: 52009.438 | E162: Tekay | F162: Core | G162: Verni | H162: YES | I162: Verni | J162: YES | K162: Crocus
A163: Ucluster31946 | B163: 500333 | C163: 51534.299 | E163: Others | F163: Accessory | H163: NO | J163: YES | K163: Crocus
A164: Ucluster00364 | B164: 500052 | C164: 51505.356 | E164: Athila | F164: Core | G164: Verni | H164: YES | I164: Verni | J164: YES | K164: Shared
A165: Ucluster21163 | B165: 801 | C165: 82.503 | D165: CroSat023 | E165: satellite | F165: Accessory | G165: Reticulati | H165: NO | J165: NO | K165: Crocus
A166: Ucluster00472 | B166: 496034 | C166: 51091.502 | E166: CRM | F166: Core | H166: NO | J166: YES | K166: Crocus
A167: Ucluster01302 | B167: 495913 | C167: 51079.039 | E167: Tekay | F167: Core | H167: NO | J167: YES | K167: Crocus
A168: Ucluster00426 | B168: 495058 | C168: 50990.974 | E168: TAR | F168: Core | H168: NO | J168: YES | K168: Crocus
A169: Ucluster00497 | B169: 493003 | C169: 50779.309 | E169: Bianca | F169: Core | G169: Crocus | H169: YES | I169: Crocus | J169: YES | K169: Crocus
A170: Ucluster00464 | B170: 492936 | C170: 50772.408 | E170: Retand | F170: Core | G170: Aleppici | H170: YES | I170: Aleppici | J170: YES | K170: Crocus
A171: Ucluster00059 | B171: 492035 | C171: 50679.605 | E171: 45S_rDNA | F171: Core | H171: NO | J171: YES | K171: Shared
A172: Ucluster01449 | B172: 491850 | C172: 50660.55 | E172: Retand | F172: Core | G172: Crocus | H172: YES | I172: Crocus | J172: YES | K172: Crocus
A173: Ucluster00637 | B173: 490022 | C173: 50472.266 | E173: TAR | F173: Core | H173: NO | J173: YES | K173: Crocus
A174: Ucluster01002 | B174: 488373 | C174: 50302.419 | E174: Tork | F174: Core | G174: Serotini | H174: YES | I174: Serotini | J174: YES | K174: Crocus
A175: Ucluster00489 | B175: 486377 | C175: 50096.831 | E175: Angela | F175: Core | G175: Kotschyani | H175: YES | I175: Kotschyani | J175: YES | K175: Crocus
A176: Ucluster00089 | B176: 483973 | C176: 49849.219 | E176: 45S_rDNA | F176: Core | G176: Sieberi | H176: YES | I176: Sieberi | J176: YES | K176: Shared
A177: Ucluster16072 | B177: 178 | C177: 18.334 | D177: CroSat024 | E177: satellite | F177: Accessory | H177: NO | J177: YES | K177: Crocus
A178: Ucluster00895 | B178: 481037 | C178: 49546.811 | E178: Tork | F178: Core | H178: NO | J178: YES | K178: Crocus
A179: Ucluster01069 | B179: 474529 | C179: 48876.487 | E179: EnSpm_CACTA | F179: Core | H179: NO | J179: YES | K179: Crocus
A180: Ucluster00530 | B180: 474317 | C180: 48854.651 | E180: CRM | F180: Core | H180: NO | J180: YES | K180: Crocus
A181: Ucluster00568 | B181: 474200 | C181: 48842.6 | E181: Tekay | F181: Core | G181: Sieberi | H181: YES | I181: Sieberi | J181: YES | K181: Crocus
A182: Ucluster01039 | B182: 473463 | C182: 48766.689 | E182: Tekay | F182: Core | H182: NO | J182: YES | K182: Crocus
A183: Ucluster04105 | B183: 471003 | C183: 48513.309 | E183: Angela | F183: Core | H183: NO | J183: YES | K183: Crocus
A184: Ucluster00222 | B184: 470633 | C184: 48475.199 | E184: SIRE | F184: Core | H184: NO | J184: YES | K184: Crocus
A185: Ucluster02035 | B185: 470323 | C185: 48443.269 | E185: repeat | F185: Accessory | H185: NO | J185: YES | K185: Crocus
A186: Ucluster11825 | B186: 8223 | C186: 846.969 | D186: CroSat025 | E186: satellite | F186: Accessory | H186: NO | J186: YES | K186: Crocus
A187: Ucluster00725 | B187: 469249 | C187: 48332.647 | E187: Athila | F187: Core | H187: NO | J187: YES | K187: Crocus
A188: Ucluster00796 | B188: 467844 | C188: 48187.932 | E188: Tekay | F188: Core | G188: Adami | H188: YES | I188: Adami | J188: YES | K188: Crocus
A189: Ucluster01731 | B189: 465550 | C189: 47951.65 | E189: Angela | F189: Core | H189: NO | J189: YES | K189: Crocus
A190: Ucluster00257 | B190: 465086 | C190: 47903.858 | E190: Tekay | F190: Core | H190: NO | J190: YES | K190: Crocus
A191: Ucluster01783 | B191: 463536 | C191: 47744.208 | E191: Bianca | F191: Core | H191: NO | J191: YES | K191: Crocus
A192: Ucluster00077 | B192: 462674 | C192: 47655.422 | E192: 45S_rDNA | F192: Core | H192: NO | J192: YES | K192: Shared
A193: Ucluster00924 | B193: 462441 | C193: 47631.423 | E193: Tork | F193: Core | G193: Adami | H193: YES | I193: Adami | J193: YES | K193: Crocus
A194: Ucluster02070 | B194: 461295 | C194: 47513.385 | E194: Tork | F194: Core | H194: NO | J194: YES | K194: Crocus
A195: Ucluster00045 | B195: 459553 | C195: 47333.959 | E195: 45S_rDNA | F195: Core | H195: NO | J195: YES | K195: Crocus
A196: Ucluster00644 | B196: 459462 | C196: 47324.586 | E196: Retand | F196: Core | G196: Kotschyani | H196: YES | I196: Kotschyani | J196: YES | K196: Crocus
A197: Ucluster00265 | B197: 455630 | C197: 46929.89 | E197: Retand | F197: Core | H197: NO | J197: YES | K197: Crocus
A198: Ucluster01936 | B198: 454999 | C198: 46864.897 | E198: CRM | F198: Core | G198: Serotini | H198: YES | I198: Serotini | J198: YES | K198: Crocus
A199: Ucluster17965 | B199: 3435 | C199: 353.805 | D199: CroSat026 | E199: satellite | F199: Accessory | H199: NO | J199: YES | K199: Crocus
A200: Ucluster00125 | B200: 452957 | C200: 46654.571 | E200: Tekay | F200: Core | H200: NO | J200: YES | K200: Crocus
A201: Ucluster00446 | B201: 451254 | C201: 46479.162 | E201: CRM | F201: Core | H201: NO | J201: YES | K201: Crocus
... 4299 more rows

Sheet Supp. Table 7|2308 uclusters
A1: Supplementary Table 7. Categories of repeats comprising the 2308 group-specific repeats
A2: Repeat_annotation | B2: not group-specific | C2: group-specific | D2: Grand Total
A3: Others | B3: 31105 | C3: 733 | D3: 31838
A4: Tekay | B4: 1182 | C4: 417 | D4: 1599
A5: Retand | B5: 1277 | C5: 295 | D5: 1572
A6: SIRE | B6: 371 | C6: 130 | D6: 501
A7: CRM | B7: 522 | C7: 108 | D7: 630
A8: Angela | B8: 137 | C8: 105 | D8: 242
A9: 45S_rDNA | B9: 103 | C9: 89 | D9: 192
A10: satellite | B10: 585 | C10: 82 | D10: 667
A11: Tork | B11: 267 | C11: 65 | D11: 332
A12: EnSpm_CACTA | B12: 159 | C12: 49 | D12: 208
A13: TAR | B13: 285 | C13: 46 | D13: 331
A14: Athila | B14: 344 | C14: 44 | D14: 388
A15: Bianca | B15: 110 | C15: 43 | D15: 153
A16: repeat | B16: 74 | C16: 31 | D16: 105
A17: 5S_rDNA | B17: 31 | C17: 25 | D17: 56
A18: MuDR_Mutator | B18: 340 | C18: 13 | D18: 353
A19: Ale | B19: 106 | C19: 11 | D19: 117
A20: Ivana | B20: 222 | C20: 6 | D20: 228
A21: Galadriel | B21: 36 | C21: 5 | D21: 41
A22: chromovirus | B22: 23 | C22: 4 | D22: 27
A23: LINE | B23: 448 | C23: 4 | D23: 452
A24: Reina | B24: 135 | C24: 1 | D24: 136
A25: Ikeros | B25: 66 | C25: 1 | D25: 67
A26: hAT | B26: 179 | C26: 1 | D26: 180
A27: Organelle | B27: 585 | D27: 585
A28: Alesia | B28: 19 | D28: 19
A29: Tat | B29: 16 | D29: 16
A30: pararetrovirus | B30: 16 | D30: 16
A31: Ogre | B31: 1 | D31: 1
A32: PIF_Harbinger | B32: 12 | D32: 12
A33: Helitron | B33: 120 | D33: 120
A34: Grand Total | B34: 38876 | C34: 2308 | D34: 41184

Sheet Supp. Table 8|Mean_bursts
A1: Supplementary Table 8. Mean genome representation of the 2308 (group-specific repeats) to the total repeat content in each series
A3: Series | B3: mean repeat burst* (%)
A4: Adami | B4: 60.40
A5: Crocus | B5: 60.28
A6: Sieberi | B6: 45.83
A7: Carpetani | B7: 42.86
A8: Serotini | B8: 42.70
A9: Kotschyani | B9: 40.78
A10: Aleppici | B10: 39.83
A11: Laevigati | B11: 37.64
A12: Cancellati | B12: 36.18
A13: Romulea | B13: 35.81
A14: Verni | B14: 31.43
A15: Flavi | B15: 30.00
A16: Scardici | B16: 27.99
A17: Versicolores | B17: 21.15
A18: Nivei | B18: 17.83
A19: Punctati | B19: 16.63
A20: Orientalis | B20: 16.00
A21: Adanensi | B21: 14.19
A22: Speciosi | B22: 13.66
A23: Malyi | B23: 12.51
A24: Reticulati | B24: 12.25
A25: Biflori | B25: 9.82
A26: KGA | B26: 5.37
A28: *Repeat burst = GP of group-enriched repeat/GP of total repeats

Sheet Supp. Table 9|TRF_output
A1: Supplementary Table 9. Microsatellites identified for each sample using Tandem Repeats Finder.
A2: no | B2: microsat_ucluster | C2: seq_len | D2: identity | E2: crnumber | F2: subgenus | G2: sequence | H2: total_bases | I2: total_reploci | J2: total_repunits | K2: ave_repperloc | L2: period_size | M2: Period_mode | N2: mean array size
A3: 1 | B3: micro00001 | C3: 155 | D3: 100 | E3: cr6496 | F3: Crocus | G3: TAGGCTAAGCATATGTAGTAGGCAGTAGGCG | H3: 140 | I3: 1 | J3: 5 | K3: 5 | L3: 31 | M3: 26 | N3: 155
A4: 2 | B4: micro00001 | C4: 130 | D4: 90 | E4: cr5390 | F4: Crocus | G4: ACTACATATTCCTACGCCTACTGCCT | H4: 140 | I4: 1 | J4: 5.2 | K4: 5.2 | L4: 26 | M4: 26 | N4: 135.2
A5: 3 | B5: micro00001 | C5: 130 | D5: 90 | E5: cr6496 | F5: Crocus | G5: CAGTAGGCTTAAGCATATGTAGTAGA | H5: 136 | I5: 1 | J5: 5 | K5: 5 | L5: 26 | M5: 26 | N5: 130
A6: 4 | B6: micro00001 | C6: 130 | D6: 90 | E6: cr6496 | F6: Crocus | G6: AGTAGGCACAGGCATATGTAGTAGGC | H6: 132 | I6: 1 | J6: 5.1 | K6: 5.1 | L6: 26 | M6: 26 | N6: 132.6
A7: 5 | B7: micro00001 | C7: 130 | D7: 90 | E7: cr5390 | F7: Crocus | G7: GTAGGCGTAGGCATATGTAGTATGAA | H7: 276 | I7: 2 | J7: 10.6 | K7: 5.3 | L7: 26 | M7: 26 | N7: 137.8
A8: 6 | B8: micro00001 | C8: 130 | D8: 90 | E8: cr5390 | F8: Crocus | G8: TACTGCCTACAACATATGCATACGCC | H8: 140 | I8: 1 | J8: 5.4 | K8: 5.4 | L8: 26 | M8: 26 | N8: 140.4
A9: 7 | B9: micro00001 | C9: 120 | D9: 90 | E9: cr7240 | F9: Crocus | G9: TACGCCTACTGCCTACTACC | H9: 623 | I9: 5 | J9: 30.4 | K9: 6.08 | L9: 20 | M9: 26 | N9: 121.6
A10: 8 | B10: micro00001 | C10: 120 | D10: 90 | E10: cr7183 | F10: Crocus | G10: CCTACGCCTACTGCCTACTA | H10: 774 | I10: 6 | J10: 38.9 | K10: 6.48 | L10: 20 | M10: 26 | N10: 129.6
A11: 9 | B11: micro00001 | C11: 140 | D11: 90.7 | E11: cr5390 | F11: Crocus | G11: GCAGTAGGCGTAGTAGCATATGTAGTAG | H11: 140 | I11: 1 | J11: 5.1 | K11: 5.1 | L11: 28 | M11: 26 | N11: 142.8
A12: 10 | B12: micro00001 | C12: 130 | D12: 90.8 | E12: cr6496 | F12: Crocus | G12: CTACATATGCTTAAGCCTACTGCCTA | H12: 2057 | I12: 15 | J12: 79 | K12: 5.26 | L12: 26 | M12: 26 | N12: 136.76
A13: 11 | B13: micro00001 | C13: 130 | D13: 90.8 | E13: cr6496 | F13: Crocus | G13: ACTACATATGCTCACGCCTACTGCCT | H13: 546 | I13: 4 | J13: 20.9 | K13: 5.22 | L13: 26 | M13: 26 | N13: 135.72
A14: 12 | B14: micro00001 | C14: 130 | D14: 90.8 | E14: cr6496 | F14: Crocus | G14: TACTACATATGACTACGCCTACTGCC | H14: 280 | I14: 2 | J14: 10.6 | K14: 5.3 | L14: 26 | M14: 26 | N14: 137.8
A15: 13 | B15: micro00001 | C15: 130 | D15: 90.8 | E15: cr6496 | F15: Crocus | G15: ACTACATATGCTAACGCCTACTGCCT | H15: 681 | I15: 5 | J15: 25.6 | K15: 5.12 | L15: 26 | M15: 26 | N15: 133.12
A16: 14 | B16: micro00001 | C16: 135 | D16: 91.1 | E16: cr6496 | F16: Crocus | G16: ACTACATATGCTTAATGCCTACTGCCT | H16: 140 | I16: 1 | J16: 5.5 | K16: 5.5 | L16: 27 | M16: 26 | N16: 148.5
A17: 15 | B17: micro00001 | C17: 125 | D17: 91.2 | E17: cr5390 | F17: Crocus | G17: AAGCATATGTAGTAGGCAGTAGTGT | H17: 271 | I17: 2 | J17: 10.8 | K17: 5.4 | L17: 25 | M17: 26 | N17: 135
A18: 16 | B18: micro00001 | C18: 130 | D18: 91.5 | E18: cr5390 | F18: Crocus | G18: ACGCATACTGCCTACTACATATGCAT | H18: 3833 | I18: 28 | J18: 147.7 | K18: 5.27 | L18: 26 | M18: 26 | N18: 137.02
A19: 17 | B19: micro00001 | C19: 130 | D19: 91.5 | E19: cr5390 | F19: Crocus | G19: GTAGGCTTAAGCATATGCAGTAGGCA | H19: 136 | I19: 1 | J19: 5.2 | K19: 5.2 | L19: 26 | M19: 26 | N19: 135.2
A20: 18 | B20: micro00001 | C20: 130 | D20: 91.5 | E20: cr5390 | F20: Crocus | G20: CCTACTGCCTACTACATATGCATACT | H20: 134 | I20: 1 | J20: 5.2 | K20: 5.2 | L20: 26 | M20: 26 | N20: 135.2
A21: 19 | B21: micro00001 | C21: 130 | D21: 91.5 | E21: cr5390 | F21: Crocus | G21: ATGTAGTAGGCAGTAGGCGTAAGCTA | H21: 135 | I21: 1 | J21: 5.2 | K21: 5.2 | L21: 26 | M21: 26 | N21: 135.2
A22: 20 | B22: micro00001 | C22: 130 | D22: 91.5 | E22: cr5390 | F22: Crocus | G22: ATGTAGTAGGCAGTAGGCGTAGGCAA | H22: 269 | I22: 2 | J22: 10.3 | K22: 5.15 | L22: 26 | M22: 26 | N22: 133.9
A23: 21 | B23: micro00001 | C23: 130 | D23: 91.5 | E23: cr5390 | F23: Crocus | G23: GCAGTAGGCGTAGGCAGATGTAGTAG | H23: 140 | I23: 1 | J23: 5.4 | K23: 5.4 | L23: 26 | M23: 26 | N23: 140.4
A24: 22 | B24: micro00001 | C24: 130 | D24: 91.5 | E24: cr6496 | F24: Crocus | G24: GTAAGCATATGTAGTAGGCAGTAGTA | H24: 139 | I24: 1 | J24: 5.3 | K24: 5.3 | L24: 26 | M24: 26 | N24: 137.8
A25: 23 | B25: micro00001 | C25: 130 | D25: 91.5 | E25: cr6496 | F25: Crocus | G25: GTAAGCATATGCAGTAGGCGTAGGCA | H25: 134 | I25: 1 | J25: 5.1 | K25: 5.1 | L25: 26 | M25: 26 | N25: 132.6
A26: 24 | B26: micro00001 | C26: 130 | D26: 91.5 | E26: cr6496 | F26: Crocus | G26: ATGTAGTAGGCAGTAGGCGTAGGCAA | H26: 135 | I26: 1 | J26: 5 | K26: 5 | L26: 26 | M26: 26 | N26: 130
A27: 25 | B27: micro00001 | C27: 135 | D27: 91.9 | E27: cr5390 | F27: Crocus | G27: TATGTAGTAGGCAGATAGGCGTAAGCA | H27: 140 | I27: 1 | J27: 5.4 | K27: 5.4 | L27: 27 | M27: 26 | N27: 145.8
A28: 26 | B28: micro00001 | C28: 125 | D28: 92 | E28: cr6496 | F28: Crocus | G28: TAAGCATATGTAGTAGGCAGTAGAG | H28: 276 | I28: 2 | J28: 11.6 | K28: 5.8 | L28: 25 | M28: 26 | N28: 145
A29: 27 | B29: micro00001 | C29: 100 | D29: 92 | E29: cr6496 | F29: Crocus | G29: TACTACATATGCTTACCGCC | H29: 102 | I29: 1 | J29: 5.2 | K29: 5.2 | L29: 20 | M29: 26 | N29: 104
A30: 28 | B30: micro00001 | C30: 130 | D30: 92.3 | E30: cr6496 | F30: Crocus | G30: CCTACTACATAAGCCTACGCCTACTA | H30: 131 | I30: 1 | J30: 5 | K30: 5 | L30: 26 | M30: 26 | N30: 130
A31: 29 | B31: micro00001 | C31: 130 | D31: 92.3 | E31: cr5390 | F31: Crocus | G31: AAGCATATGTAGTAGGCAGTAGGCAG | H31: 138 | I31: 1 | J31: 5.3 | K31: 5.3 | L31: 26 | M31: 26 | N31: 137.8
A32: 30 | B32: micro00001 | C32: 130 | D32: 92.3 | E32: cr6496 | F32: Crocus | G32: TAAGCATATGTAGTAGGCAGTAGACA | H32: 139 | I32: 1 | J32: 5.6 | K32: 5.6 | L32: 26 | M32: 26 | N32: 145.6
A33: 31 | B33: micro00001 | C33: 130 | D33: 92.3 | E33: cr6496 | F33: Crocus | G33: TACTGCCTACTACATATGCTTAAGCT | H33: 140 | I33: 1 | J33: 5.7 | K33: 5.7 | L33: 26 | M33: 26 | N33: 148.2
A34: 32 | B34: micro00001 | C34: 130 | D34: 92.3 | E34: cr6496 | F34: Crocus | G34: CTACTACATATGCATACGCCTACTGC | H34: 15434 | I34: 112 | J34: 590.4 | K34: 5.27 | L34: 26 | M34: 26 | N34: 137.02
A35: 33 | B35: micro00001 | C35: 135 | D35: 92.6 | E35: cr5390 | F35: Crocus | G35: ACTGCCTACTACATATGCTTATTGCCT | H35: 277 | I35: 2 | J35: 10.3 | K35: 5.15 | L35: 27 | M35: 26 | N35: 139.05
A36: 34 | B36: micro00001 | C36: 135 | D36: 92.6 | E36: cr5390 | F36: Crocus | G36: GCGTAGAGCATATGTAGTAGACAGTAG | H36: 137 | I36: 1 | J36: 5.2 | K36: 5.2 | L36: 27 | M36: 26 | N36: 140.4
A37: 35 | B37: micro00001 | C37: 135 | D37: 92.6 | E37: cr6496 | F37: Crocus | G37: CTGCCTACTACATATGCTTACTGCCTA | H37: 28092 | I37: 205 | J37: 1068.8 | K37: 5.21 | L37: 27 | M37: 26 | N37: 140.67
A38: 36 | B38: micro00001 | C38: 125 | D38: 92.8 | E38: cr6496 | F38: Crocus | G38: TATGTAGTAGGCAGTAGGCGTAAGC | H38: 135 | I38: 1 | J38: 5.5 | K38: 5.5 | L38: 25 | M38: 26 | N38: 137.5
A39: 37 | B39: micro00001 | C39: 100 | D39: 93 | E39: cr5390 | F39: Crocus | G39: AGGCAGAAAGCATATGTAGT | H39: 111 | I39: 1 | J39: 5.3 | K39: 5.3 | L39: 20 | M39: 26 | N39: 106
A40: 38 | B40: micro00001 | C40: 130 | D40: 93.1 | E40: cr6496 | F40: Crocus | G40: CAGTAGGCGCAAGCATATGTAGTAGG | H40: 275 | I40: 2 | J40: 10.5 | K40: 5.25 | L40: 26 | M40: 26 | N40: 136.5
A41: 39 | B41: micro00001 | C41: 130 | D41: 93.1 | E41: cr6496 | F41: Crocus | G41: CAGTAGGCGTACGCATATGTAGTAGG | H41: 684 | I41: 5 | J41: 25.3 | K41: 5.06 | L41: 26 | M41: 26 | N41: 131.56
A42: 40 | B42: micro00001 | C42: 130 | D42: 93.1 | E42: cr6496 | F42: Crocus | G42: TACTGCCTACTACATAGGCCTACGCC | H42: 129 | I42: 1 | J42: 5.2 | K42: 5.2 | L42: 26 | M42: 26 | N42: 135.2
A43: 41 | B43: micro00001 | C43: 145 | D43: 93.1 | E43: cr6496 | F43: Crocus | G43: CGCCTACTGCCTACTACATATGCTTACGC | H43: 140 | I43: 1 | J43: 5 | K43: 5 | L43: 29 | M43: 26 | N43: 145
A44: 42 | B44: micro00001 | C44: 150 | D44: 93.3 | E44: cr5390 | F44: Crocus | G44: CGCCTACTGCCTACTACATATGCTTACGCT | H44: 139 | I44: 1 | J44: 5 | K44: 5 | L44: 30 | M44: 26 | N44: 150
A45: 43 | B45: micro00001 | C45: 125 | D45: 93.6 | E45: cr5390 | F45: Crocus | G45: CTACGCCTACAGCCTACTACATATG | H45: 132 | I45: 1 | J45: 5.1 | K45: 5.1 | L45: 25 | M45: 26 | N45: 127.5
A46: 44 | B46: micro00001 | C46: 125 | D46: 93.6 | E46: cr5390 | F46: Crocus | G46: CTACATATGCTTCGCCTACTGCCTA | H46: 269 | I46: 2 | J46: 10.6 | K46: 5.3 | L46: 25 | M46: 26 | N46: 132.5
A47: 45 | B47: micro00001 | C47: 125 | D47: 93.6 | E47: cr6496 | F47: Crocus | G47: ATATGCTTCGCCTACTGCCTACTAC | H47: 280 | I47: 2 | J47: 11.5 | K47: 5.75 | L47: 25 | M47: 26 | N47: 143.75
A48: 46 | B48: micro00001 | C48: 130 | D48: 93.8 | E48: cr5390 | F48: Crocus | G48: GCCTACTACATATGCTGACGCCTACT | H48: 402 | I48: 3 | J48: 15.9 | K48: 5.3 | L48: 26 | M48: 26 | N48: 137.8
A49: 47 | B49: micro00001 | C49: 145 | D49: 93.8 | E49: cr6496 | F49: Crocus | G49: CCTACGCCTACTGCCTACTACATATGCTC | H49: 138 | I49: 1 | J49: 5 | K49: 5 | L49: 29 | M49: 26 | N49: 145
A50: 48 | B50: micro00001 | C50: 130 | D50: 93.8 | E50: cr6496 | F50: Crocus | G50: CATATGTAGTAGGCAGTAGGCGTAGA | H50: 2856 | I50: 21 | J50: 108.9 | K50: 5.18 | L50: 26 | M50: 26 | N50: 134.68
A51: 49 | B51: micro00001 | C51: 145 | D51: 93.8 | E51: cr5390 | F51: Crocus | G51: GGCAGTAGGCGTAGTAAGCATATGTAGTA | H51: 140 | I51: 1 | J51: 5.1 | K51: 5.1 | L51: 29 | M51: 26 | N51: 147.9
A52: 50 | B52: micro00001 | C52: 130 | D52: 93.8 | E52: cr6496 | F52: Crocus | G52: TACGCCTACTGCCTACTACATACGCC | H52: 408 | I52: 3 | J52: 15.6 | K52: 5.2 | L52: 26 | M52: 26 | N52: 135.2
A53: 51 | B53: micro00001 | C53: 130 | D53: 93.8 | E53: cr6496 | F53: Crocus | G53: GTAGGCGTAGGCAGATGTAGTAGGCA | H53: 134 | I53: 1 | J53: 5.2 | K53: 5.2 | L53: 26 | M53: 26 | N53: 135.2
A54: 52 | B54: micro00001 | C54: 130 | D54: 93.8 | E54: cr5390 | F54: Crocus | G54: TACGCCTACTGCCTACTACATACGCC | H54: 278 | I54: 2 | J54: 10.1 | K54: 5.05 | L54: 26 | M54: 26 | N54: 131.3
A55: 53 | B55: micro00001 | C55: 130 | D55: 93.8 | E55: cr6496 | F55: Crocus | G55: GTAGGCGTAGGCACATGTAGTAGGCA | H55: 408 | I55: 3 | J55: 15.3 | K55: 5.1 | L55: 26 | M55: 26 | N55: 132.6
A56: 54 | B56: micro00001 | C56: 130 | D56: 93.8 | E56: cr5390 | F56: Crocus | G56: CTACGCCTACTGCCTACTACATATGT | H56: 2714 | I56: 20 | J56: 104 | K56: 5.2 | L56: 26 | M56: 26 | N56: 135.2
A57: 55 | B57: micro00001 | C57: 115 | D57: 93.9 | E57: cr6496 | F57: Crocus | G57: TACTGCCTACTACATATGCTACC | H57: 132 | I57: 1 | J57: 5.9 | K57: 5.9 | L57: 23 | M57: 26 | N57: 135.7
A58: 56 | B58: micro00001 | C58: 100 | D58: 94 | E58: cr6496 | F58: Crocus | G58: GCCTACTACATATGCTTACA | H58: 104 | I58: 1 | J58: 5 | K58: 5 | L58: 20 | M58: 26 | N58: 100
A59: 57 | B59: micro00001 | C59: 125 | D59: 94.4 | E59: cr5390 | F59: Crocus | G59: CTACTACATATCCTACGCCTACTGC | H59: 140 | I59: 1 | J59: 5.4 | K59: 5.4 | L59: 25 | M59: 26 | N59: 135
A60: 58 | B60: micro00001 | C60: 125 | D60: 94.4 | E60: cr6496 | F60: Crocus | G60: GCCTACTGCCCACTACATATGCTAC | H60: 140 | I60: 1 | J60: 5.4 | K60: 5.4 | L60: 25 | M60: 26 | N60: 135
A61: 59 | B61: micro00001 | C61: 130 | D61: 94.6 | E61: cr6496 | F61: Crocus | G61: CTGCCTACTACATATACCTACGCCTA | H61: 137 | I61: 1 | J61: 5 | K61: 5 | L61: 26 | M61: 26 | N61: 130
A62: 60 | B62: micro00001 | C62: 130 | D62: 94.6 | E62: cr6496 | F62: Crocus | G62: CGTAAGCATATGTAGTAGGCAGTAGA | H62: 2197 | I62: 16 | J62: 84.1 | K62: 5.25 | L62: 26 | M62: 26 | N62: 136.5
A63: 61 | B63: micro00001 | C63: 130 | D63: 94.6 | E63: cr5390 | F63: Crocus | G63: TACTGCCTACTACATATGCTTAAGCC | H63: 1936 | I63: 14 | J63: 74.3 | K63: 5.3 | L63: 26 | M63: 26 | N63: 137.8
A64: 62 | B64: micro00001 | C64: 130 | D64: 94.6 | E64: cr5390 | F64: Crocus | G64: GCATATGTAGTAGGCAGTAGGCGTAT | H64: 35877 | I64: 260 | J64: 1379 | K64: 5.3 | L64: 26 | M64: 26 | N64: 137.8
A65: 63 | B65: micro00001 | C65: 130 | D65: 94.6 | E65: cr5390 | F65: Crocus | G65: GCATATGTAGTAGGCAGTAGGCGAAA | H65: 137 | I65: 1 | J65: 5.2 | K65: 5.2 | L65: 26 | M65: 26 | N65: 135.2
A66: 64 | B66: micro00001 | C66: 135 | D66: 94.8 | E66: cr6496 | F66: Crocus | G66: ACGCCTACTGCCTACTACATATGCTAT | H66: 140 | I66: 1 | J66: 5.1 | K66: 5.1 | L66: 27 | M66: 26 | N66: 137.7
A67: 65 | B67: micro00001 | C67: 125 | D67: 95.2 | E67: cr5390 | F67: Crocus | G67: TATGTAGTAGGCAGTAGGCTAAGCA | H67: 525 | I67: 4 | J67: 21.9 | K67: 5.47 | L67: 25 | M67: 26 | N67: 136.75
A68: 66 | B68: micro00001 | C68: 130 | D68: 95.4 | E68: cr6496 | F68: Crocus | G68: CTACTGCCTACTACATATGCTTACTC | H68: 1377 | I68: 10 | J68: 53.5 | K68: 5.35 | L68: 26 | M68: 26 | N68: 139.1
A69: 67 | B69: micro00001 | C69: 130 | D69: 95.4 | E69: cr6496 | F69: Crocus | G69: GCCTACTGCCTACTAAATATGCTTAC | H69: 538 | I69: 4 | J69: 20.8 | K69: 5.2 | L69: 26 | M69: 26 | N69: 135.2
A70: 68 | B70: micro00001 | C70: 130 | D70: 95.4 | E70: cr6496 | F70: Crocus | G70: GCCTACTGCCTACTACATATCCTTAC | H70: 272 | I70: 2 | J70: 10.2 | K70: 5.1 | L70: 26 | M70: 26 | N70: 132.6
A71: 69 | B71: micro00001 | C71: 130 | D71: 95.4 | E71: cr5390 | F71: Crocus | G71: CTGCCTACTACATATGCTCACGCCTA | H71: 558 | I71: 4 | J71: 21.1 | K71: 5.27 | L71: 26 | M71: 26 | N71: 137.02
A72: 70 | B72: micro00001 | C72: 130 | D72: 95.4 | E72: cr4610 | F72: Crocus | G72: GCCTACTGCCTACTACATATGCATAC | H72: 135 | I72: 1 | J72: 5.2 | K72: 5.2 | L72: 26 | M72: 26 | N72: 135.2
A73: 71 | B73: micro00001 | C73: 130 | D73: 95.4 | E73: cr5390 | F73: Crocus | G73: GTAAGCACATGTAGTAGGCAGTAGGC | H73: 407 | I73: 3 | J73: 15.8 | K73: 5.26 | L73: 26 | M73: 26 | N73: 136.76
A74: 72 | B74: micro00001 | C74: 130 | D74: 95.4 | E74: cr5390 | F74: Crocus | G74: GCCTACTGCCTACTACAGATGCTTAC | H74: 276 | I74: 2 | J74: 10.5 | K74: 5.25 | L74: 26 | M74: 26 | N74: 136.5
A75: 73 | B75: micro00001 | C75: 130 | D75: 95.4 | E75: cr5390 | F75: Crocus | G75: ACGCCTACTGCCTACTACATATGCTA | H75: 814 | I75: 6 | J75: 31.4 | K75: 5.23 | L75: 26 | M75: 26 | N75: 135.98
A76: 74 | B76: micro00001 | C76: 130 | D76: 95.4 | E76: cr5390 | F76: Crocus | G76: CCTACTGCCTACTACATATGCTTACA | H76: 1089 | I76: 8 | J76: 42.1 | K76: 5.26 | L76: 26 | M76: 26 | N76: 136.76
A77: 75 | B77: micro00001 | C77: 130 | D77: 95.4 | E77: cr5390 | F77: Crocus | G77: GTAAGCATATATAGTAGGCAGTAGGC | H77: 691 | I77: 5 | J77: 26.5 | K77: 5.3 | L77: 26 | M77: 26 | N77: 137.8
A78: 76 | B78: micro00001 | C78: 140 | D78: 95.7 | E78: cr6496 | F78: Crocus | G78: AGTAGGCGTAGAAGCATATGTAGTAGGC | H78: 140 | I78: 1 | J78: 5.1 | K78: 5.1 | L78: 28 | M78: 26 | N78: 142.8
A79: 77 | B79: micro00001 | C79: 140 | D79: 95.7 | E79: cr6496 | F79: Crocus | G79: ACTGCCTACTACATATGCTTATACGCCT | H79: 140 | I79: 1 | J79: 5.1 | K79: 5.1 | L79: 28 | M79: 26 | N79: 142.8
A80: 78 | B80: micro00001 | C80: 125 | D80: 96 | E80: cr6496 | F80: Crocus | G80: AAGCATATGTAGTAGGCAGTAGGTG | H80: 135 | I80: 1 | J80: 5.4 | K80: 5.4 | L80: 25 | M80: 26 | N80: 135
A81: 79 | B81: micro00001 | C81: 125 | D81: 96 | E81: cr5390 | F81: Crocus | G81: CCTACTACATATGCTACGCCTACTG | H81: 4782 | I81: 35 | J81: 185.4 | K81: 5.29 | L81: 25 | M81: 26 | N81: 132.25
A82: 80 | B82: micro00001 | C82: 125 | D82: 96 | E82: cr6496 | F82: Crocus | G82: TATGTAGTAGGCAGTAGGCGTAGGA | H82: 140 | I82: 1 | J82: 5.4 | K82: 5.4 | L82: 25 | M82: 26 | N82: 135
A83: 81 | B83: micro00001 | C83: 150 | D83: 96 | E83: cr5390 | F83: Crocus | G83: CTACTGCCTACTACATATGCTTACGCCTAC | H83: 140 | I83: 1 | J83: 5 | K83: 5 | L83: 30 | M83: 26 | N83: 150
A84: 82 | B84: micro00001 | C84: 130 | D84: 96.2 | E84: cr5390 | F84: Crocus | G84: AAGCATATGTAGTAGGCAGTAGGCGC | H84: 413 | I84: 3 | J84: 15.3 | K84: 5.1 | L84: 26 | M84: 26 | N84: 132.6
A85: 83 | B85: micro00001 | C85: 135 | D85: 96.3 | E85: cr5390 | F85: Crocus | G85: ACTGCCTACTACATATGCTTAACGCCT | H85: 140 | I85: 1 | J85: 5.1 | K85: 5.1 | L85: 27 | M85: 26 | N85: 137.7
A86: 84 | B86: micro00001 | C86: 115 | D86: 96.5 | E86: cr5390 | F86: Crocus | G86: CATATGTAGTAGGCAGTAGTAAG | H86: 375 | I86: 3 | J86: 16.7 | K86: 5.56 | L86: 23 | M86: 26 | N86: 127.88
A87: 85 | B87: micro00001 | C87: 120 | D87: 96.7 | E87: cr5390 | F87: Crocus | G87: GCATATGTAGTAGGCAGTAGCTAA | H87: 265 | I87: 2 | J87: 11.8 | K87: 5.9 | L87: 24 | M87: 26 | N87: 141.6
A88: 86 | B88: micro00001 | C88: 120 | D88: 96.7 | E88: cr5390 | F88: Crocus | G88: CATATGTAGTAGGCAGTAGGTAAG | H88: 256 | I88: 2 | J88: 11 | K88: 5.5 | L88: 24 | M88: 26 | N88: 132
A89: 87 | B89: micro00001 | C89: 135 | D89: 97 | E89: cr6496 | F89: Crocus | G89: GCATATGTAGTAGGCAGTAGGCGTAGA | H89: 549 | I89: 4 | J89: 20.3 | K89: 5.07 | L89: 27 | M89: 26 | N89: 136.89
A90: 88 | B90: micro00001 | C90: 145 | D90: 97.2 | E90: cr5390 | F90: Crocus | G90: AAGCATATGTAGTAGGCAGTAGGCGTAGG | H90: 140 | I90: 1 | J90: 5 | K90: 5 | L90: 29 | M90: 26 | N90: 145
A91: 89 | B91: micro00001 | C91: 135 | D91: 97.8 | E91: cr5390 | F91: Crocus | G91: AGCATATGTAGTAGGCAGTAGGCGTAG | H91: 1110 | I91: 8 | J91: 40.5 | K91: 5.06 | L91: 27 | M91: 26 | N91: 136.62
A92: 90 | B92: micro00001 | C92: 100 | D92: 98 | E92: cr6496 | F92: Crocus | G92: TACGCCTACTGCCTACTACA | H92: 695 | I92: 6 | J92: 34.5 | K92: 5.75 | L92: 20 | M92: 26 | N92: 115
A93: 91 | B93: micro00001 | C93: 125 | D93: 98.4 | E93: cr6496 | F93: Crocus | G93: TACGCCTACTGCCTACTACATATGC | H93: 6187 | I93: 45 | J93: 239.4 | K93: 5.32 | L93: 25 | M93: 26 | N93: 133
A94: 92 | B94: micro00001 | C94: 135 | D94: 98.5 | E94: cr6496 | F94: Crocus | G94: CTGCCTACTACATATGCTTAACGCCTA | H94: 140 | I94: 1 | J94: 5.3 | K94: 5.3 | L94: 27 | M94: 26 | N94: 143.1
A95: 93 | B95: micro00001 | C95: 130 | D95: 99.2 | E95: cr5390 | F95: Crocus | G95: TAAGCATATGTAGTAGGCAGTAGGCC | H95: 139 | I95: 1 | J95: 5.3 | K95: 5.3 | L95: 26 | M95: 26 | N95: 137.8
A96: 94 | B96: micro00001 | C96: 125 | D96: 100 | E96: cr6496 | F96: Crocus | G96: GCCTACTGCCTACTACATATGCTTA | H96: 1077 | I96: 8 | J96: 46 | K96: 5.75 | L96: 25 | M96: 26 | N96: 143.75
A97: 95 | B97: micro00001 | C97: 110 | D97: 100 | E97: cr5390 | F97: Crocus | G97: AAGCATATGTAGTAGGCAGTAG | H97: 127 | I97: 1 | J97: 5.7 | K97: 5.7 | L97: 22 | M97: 26 | N97: 125.4
A98: 96 | B98: micro00001 | C98: 105 | D98: 100 | E98: cr6496 | F98: Crocus | G98: CTACTGCCTACTACATATGCT | H98: 122 | I98: 1 | J98: 5.5 | K98: 5.5 | L98: 21 | M98: 26 | N98: 115.5
A99: 97 | B99: micro00001 | C99: 115 | D99: 100 | E99: cr6496 | F99: Crocus | G99: TACTGCCTACTACATATGCTTAG | H99: 253 | I99: 2 | J99: 11.6 | K99: 5.8 | L99: 23 | M99: 26 | N99: 133.4
A100: 98 | B100: micro00001 | C100: 110 | D100: 100 | E100: cr5390 | F100: Crocus | G100: ACTGCCTACTACATATGCTTAG | H100: 131 | I100: 1 | J100: 5.9 | K100: 5.9 | L100: 22 | M100: 26 | N100: 129.8
A101: 99 | B101: micro00001 | C101: 110 | D101: 100 | E101: cr5390 | F101: Crocus | G101: TACTGCCTACTACATATGCTTA | H101: 920 | I101: 7 | J101: 41.5 | K101: 5.92 | L101: 22 | M101: 26 | N101: 130.24
A102: 100 | B102: micro00001 | C102: 115 | D102: 100 | E102: cr5390 | F102: Crocus | G102: CTGCCTACTACATATGCTTCCTA | H102: 260 | I102: 2 | J102: 11.4 | K102: 5.7 | L102: 23 | M102: 26 | N102: 131.1
A103: 101 | B103: micro00001 | C103: 120 | D103: 100 | E103: cr5390 | F103: Crocus | G103: AGCATATGTAGTAGGCAGTAGGCG | H103: 137 | I103: 1 | J103: 5.9 | K103: 5.9 | L103: 24 | M103: 26 | N103: 141.6
A104: 102 | B104: micro00001 | C104: 110 | D104: 100 | E104: cr6496 | F104: Crocus | G104: AGCATATGTAGTAGGCAGTAGG | H104: 137 | I104: 1 | J104: 5.9 | K104: 5.9 | L104: 22 | M104: 26 | N104: 129.8
A105: 103 | B105: micro00002 | C105: 155 | D105: 100 | E105: cr6496 | F105: Crocus | G105: ACGCCTACTGCCTACTACATATGCCTACGCT | H105: 140 | I105: 1 | J105: 5 | K105: 5 | L105: 31 | M105: 26 | N105: 155
A106: 104 | B106: micro00002 | C106: 130 | D106: 90 | E106: cr5390 | F106: Crocus | G106: CATATGCGTACGCCTACTGCCTACTA | H106: 270 | I106: 2 | J106: 10.1 | K106: 5.05 | L106: 26 | M106: 26 | N106: 131.3
A107: 105 | B107: micro00002 | C107: 130 | D107: 90 | E107: cr6496 | F107: Crocus | G107: ACTACATATGCCTACGCCTACTACCT | H107: 676 | I107: 5 | J107: 26.1 | K107: 5.22 | L107: 26 | M107: 26 | N107: 135.72
A108: 106 | B108: micro00002 | C108: 130 | D108: 90 | E108: cr5390 | F108: Crocus | G108: GGCAGTAGGAGTAGGCATATGTAGTA | H108: 272 | I108: 2 | J108: 10.6 | K108: 5.3 | L108: 26 | M108: 26 | N108: 137.8
A109: 107 | B109: micro00002 | C109: 130 | D109: 90 | E109: cr6496 | F109: Crocus | G109: ATAGTAGGCAGTAGGCGTAGGCATAT | H109: 416 | I109: 3 | J109: 15.4 | K109: 5.13 | L109: 26 | M109: 26 | N109: 133.38
A110: 108 | B110: micro00002 | C110: 130 | D110: 90 | E110: cr6496 | F110: Crocus | G110: TAGTAGGCAGTAGGCGTAGGCATACG | H110: 135 | I110: 1 | J110: 5.2 | K110: 5.2 | L110: 26 | M110: 26 | N110: 135.2
A111: 109 | B111: micro00002 | C111: 130 | D111: 90 | E111: cr5390 | F111: Crocus | G111: ACTACATATGCCTACGCCTACTGCAT | H111: 24884 | I111: 181 | J111: 955.89 | K111: 5.28 | L111: 26 | M111: 26 | N111: 137.28
A112: 110 | B112: micro00002 | C112: 130 | D112: 90 | E112: cr5390 | F112: Crocus | G112: ACTACATATGCCTACGCCTACTACCT | H112: 1231 | I112: 9 | J112: 47.2 | K112: 5.24 | L112: 26 | M112: 26 | N112: 136.24
A113: 111 | B113: micro00002 | C113: 130 | D113: 90 | E113: cr5390 | F113: Crocus | G113: AACTACATATGCCTACGCCTACTGCC | H113: 416 | I113: 3 | J113: 15.8 | K113: 5.26 | L113: 26 | M113: 26 | N113: 136.76
A114: 112 | B114: micro00002 | C114: 130 | D114: 90 | E114: cr6496 | F114: Crocus | G114: TACTACACATGCCTACGCCTACTGCC | H114: 138 | I114: 1 | J114: 5 | K114: 5 | L114: 26 | M114: 26 | N114: 130
A115: 113 | B115: micro00002 | C115: 130 | D115: 90 | E115: cr5390 | F115: Crocus | G115: AAATGTAGTAGGCAGTAGGCGTAGGA | H115: 136 | I115: 1 | J115: 5 | K115: 5 | L115: 26 | M115: 26 | N115: 130
A116: 114 | B116: micro00002 | C116: 135 | D116: 90.4 | E116: cr6496 | F116: Crocus | G116: GTATGCGTATGGCATATGTAGTAGGCA | H116: 139 | I116: 1 | J116: 5.1 | K116: 5.1 | L116: 27 | M116: 26 | N116: 137.7
A117: 115 | B117: micro00002 | C117: 140 | D117: 90.7 | E117: cr6496 | F117: Crocus | G117: CTACTACATATGCTTACGCTCCTACTGC | H117: 140 | I117: 1 | J117: 5.1 | K117: 5.1 | L117: 28 | M117: 26 | N117: 142.8
A118: 116 | B118: micro00002 | C118: 130 | D118: 90.8 | E118: cr5390 | F118: Crocus | G118: TATGCCTACGCCTACTGCCTACTATA | H118: 280 | I118: 2 | J118: 10.3 | K118: 5.15 | L118: 26 | M118: 26 | N118: 133.9
A119: 117 | B119: micro00002 | C119: 130 | D119: 90.8 | E119: cr5390 | F119: Crocus | G119: TATGCCTACGCCAACTGCCTACTACA | H119: 273 | I119: 2 | J119: 10.8 | K119: 5.4 | L119: 26 | M119: 26 | N119: 140.4
A120: 118 | B120: micro00002 | C120: 130 | D120: 90.8 | E120: cr5390 | F120: Crocus | G120: TACTACATATGCCTACGCCTACAGCC | H120: 132 | I120: 1 | J120: 5.1 | K120: 5.1 | L120: 26 | M120: 26 | N120: 132.6
A121: 119 | B121: micro00002 | C121: 130 | D121: 90.8 | E121: cr5390 | F121: Crocus | G121: TGTAGTAGGCAGTAGGCGCAGGCATA | H121: 138 | I121: 1 | J121: 5.3 | K121: 5.3 | L121: 26 | M121: 26 | N121: 137.8
A122: 120 | B122: micro00002 | C122: 130 | D122: 90.8 | E122: cr6496 | F122: Crocus | G122: TATGCCTACGCCTACTGCCTACTACC | H122: 133 | I122: 1 | J122: 5.1 | K122: 5.1 | L122: 26 | M122: 26 | N122: 132.6
A123: 121 | B123: micro00002 | C123: 130 | D123: 90.8 | E123: cr6496 | F123: Crocus | G123: TATGCCTACACCTACTGCCTACTACA | H123: 952 | I123: 7 | J123: 36.4 | K123: 5.2 | L123: 26 | M123: 26 | N123: 135.2
A124: 122 | B124: micro00002 | C124: 130 | D124: 90.8 | E124: cr5390 | F124: Crocus | G124: TACTACATATGCCTACGCCTACTGTC | H124: 2188 | I124: 16 | J124: 85.5 | K124: 5.34 | L124: 26 | M124: 26 | N124: 138.84
A125: 123 | B125: micro00002 | C125: 135 | D125: 91.1 | E125: cr6496 | F125: Crocus | G125: GCATATGTAGGTAGGCAGTACGCGTAG | H125: 140 | I125: 1 | J125: 5.4 | K125: 5.4 | L125: 27 | M125: 26 | N125: 145.8
A126: 124 | B126: micro00002 | C126: 135 | D126: 91.1 | E126: cr6496 | F126: Crocus | G126: GTAAGCATATGTAGTAGGCAGTAAGGC | H126: 140 | I126: 1 | J126: 5.8 | K126: 5.8 | L126: 27 | M126: 26 | N126: 156.6
A127: 125 | B127: micro00002 | C127: 135 | D127: 91.1 | E127: cr6496 | F127: Crocus | G127: TATGTAGTAGGCAGTAGGCAGTAGGCA | H127: 1909 | I127: 14 | J127: 71.7 | K127: 5.12 | L127: 27 | M127: 26 | N127: 138.24
A128: 126 | B128: micro00002 | C128: 125 | D128: 91.2 | E128: cr6496 | F128: Crocus | G128: CATATGCCTACGCCTACGCCTACTA | H128: 127 | I128: 1 | J128: 5 | K128: 5 | L128: 25 | M128: 26 | N128: 125
A129: 127 | B129: micro00002 | C129: 130 | D129: 91.5 | E129: cr6496 | F129: Crocus | G129: ATGCCTACGCCTACAGCCTACTACAT | H129: 269 | I129: 2 | J129: 10.2 | K129: 5.1 | L129: 26 | M129: 26 | N129: 132.6
A130: 128 | B130: micro00002 | C130: 130 | D130: 91.5 | E130: cr5390 | F130: Crocus | G130: GGCGTAGTCATATGTAGTATGCAGTA | H130: 136 | I130: 1 | J130: 5.2 | K130: 5.2 | L130: 26 | M130: 26 | N130: 135.2
A131: 129 | B131: micro00002 | C131: 130 | D131: 91.5 | E131: cr5390 | F131: Crocus | G131: ATGCCTACGCCTACTGCCTACTACAC | H131: 137 | I131: 1 | J131: 5 | K131: 5 | L131: 26 | M131: 26 | N131: 130
A132: 130 | B132: micro00002 | C132: 114 | D132: 92.1 | E132: cr6496 | F132: Crocus | G132: GCCTACTACATATGCCTAC | H132: 826 | I132: 7 | J132: 42.7 | K132: 6.1 | L132: 19 | M132: 26 | N132: 115.9
A133: 131 | B133: micro00002 | C133: 130 | D133: 92.3 | E133: cr6496 | F133: Crocus | G133: AGTAGGCGTAGGCATAAGTAGTAGGC | H133: 136 | I133: 1 | J133: 5.2 | K133: 5.2 | L133: 26 | M133: 26 | N133: 135.2
A134: 132 | B134: micro00002 | C134: 130 | D134: 92.3 | E134: cr5390 | F134: Crocus | G134: TAGGTAGTAGGCAGTAGGCGTAGGCA | H134: 139 | I134: 1 | J134: 5.3 | K134: 5.3 | L134: 26 | M134: 26 | N134: 137.8
A135: 133 | B135: micro00002 | C135: 130 | D135: 92.3 | E135: cr6496 | F135: Crocus | G135: TAGGCATATGTAGTAGACAGTAGGCA | H135: 130 | I135: 1 | J135: 5 | K135: 5 | L135: 26 | M135: 26 | N135: 130
A136: 134 | B136: micro00002 | C136: 130 | D136: 92.3 | E136: cr6496 | F136: Crocus | G136: GTAGGCATATGTAGTAGGCAGTGGGA | H136: 134 | I136: 1 | J136: 5.2 | K136: 5.2 | L136: 26 | M136: 26 | N136: 135.2
A137: 135 | B137: micro00002 | C137: 130 | D137: 92.3 | E137: cr6496 | F137: Crocus | G137: TATGTAGTAGGCAGTAGACGTAGGCA | H137: 418 | I137: 3 | J137: 15.8 | K137: 5.26 | L137: 26 | M137: 26 | N137: 136.76
A138: 136 | B138: micro00002 | C138: 130 | D138: 92.3 | E138: cr5390 | F138: Crocus | G138: AGTAGGCGTAGGCATATGGAGTAGGC | H138: 139 | I138: 1 | J138: 5.3 | K138: 5.3 | L138: 26 | M138: 26 | N138: 137.8
A139: 137 | B139: micro00002 | C139: 130 | D139: 92.3 | E139: cr6496 | F139: Crocus | G139: GCCTACTACATATGCCAACGCCTACT | H139: 278 | I139: 2 | J139: 10.5 | K139: 5.25 | L139: 26 | M139: 26 | N139: 136.5
A140: 138 | B140: micro00002 | C140: 130 | D140: 92.3 | E140: cr6496 | F140: Crocus | G140: TATGTAGTAGGCAGTAGGCGCAGGCA | H140: 140 | I140: 1 | J140: 5.4 | K140: 5.4 | L140: 26 | M140: 26 | N140: 140.4
A141: 139 | B141: micro00002 | C141: 130 | D141: 92.3 | E141: cr5390 | F141: Crocus | G141: TACTGCATACTACATATGCCTACGCA | H141: 269 | I141: 2 | J141: 10.3 | K141: 5.15 | L141: 26 | M141: 26 | N141: 133.9
A142: 140 | B142: micro00002 | C142: 145 | D142: 92.4 | E142: cr5390 | F142: Crocus | G142: AGGCGTAGGCATATGTAGTAGGCAGTAGT | H142: 139 | I142: 1 | J142: 5 | K142: 5 | L142: 29 | M142: 26 | N142: 145
A143: 141 | B143: micro00002 | C143: 95 | D143: 92.6 | E143: cr7183 | F143: Crocus | G143: GTAGGCAGTAGGCAGTAGC | H143: 101 | I143: 1 | J143: 5.5 | K143: 5.5 | L143: 19 | M143: 26 | N143: 104.5
A144: 142 | B144: micro00002 | C144: 135 | D144: 92.6 | E144: cr6496 | F144: Crocus | G144: TGCCTACTGCCTACTACCTATGCCTAC | H144: 139 | I144: 1 | J144: 5.2 | K144: 5.2 | L144: 27 | M144: 26 | N144: 140.4
A145: 143 | B145: micro00002 | C145: 135 | D145: 92.6 | E145: cr6496 | F145: Crocus | G145: CTACTGCCTACTACATATGCCTACTGT | H145: 132 | I145: 1 | J145: 5.2 | K145: 5.2 | L145: 27 | M145: 26 | N145: 140.4
A146: 144 | B146: micro00002 | C146: 130 | D146: 93.1 | E146: cr5390 | F146: Crocus | G146: GTAGGCGAAGGCATATGTAGTAGGCA | H146: 140 | I146: 1 | J146: 5.7 | K146: 5.7 | L146: 26 | M146: 26 | N146: 148.2
A147: 145 | B147: micro00002 | C147: 130 | D147: 93.1 | E147: cr7240 | F147: Crocus | G147: TGCCTACTACCTATGCCTACGCCTAC | H147: 137 | I147: 1 | J147: 5.3 | K147: 5.3 | L147: 26 | M147: 26 | N147: 137.8
A148: 146 | B148: micro00002 | C148: 130 | D148: 93.1 | E148: cr6496 | F148: Crocus | G148: TACTACATATGGCTACGCCTACTGCC | H148: 270 | I148: 2 | J148: 10.4 | K148: 5.2 | L148: 26 | M148: 26 | N148: 135.2
A149: 147 | B149: micro00002 | C149: 130 | D149: 93.1 | E149: cr6496 | F149: Crocus | G149: GTAGGCGGAGGCATATGTAGTAGGCA | H149: 135 | I149: 1 | J149: 5.2 | K149: 5.2 | L149: 26 | M149: 26 | N149: 135.2
A150: 148 | B150: micro00002 | C150: 135 | D150: 93.3 | E150: cr5390 | F150: Crocus | G150: GCATATGTAGTAGGCAGTAGGCAGTAG | H150: 1090 | I150: 8 | J150: 41.1 | K150: 5.13 | L150: 27 | M150: 26 | N150: 138.51
A151: 149 | B151: micro00002 | C151: 125 | D151: 93.6 | E151: cr5390 | F151: Crocus | G151: GCCTACTACATATGCATACGCTACT | H151: 279 | I151: 2 | J151: 11 | K151: 5.5 | L151: 25 | M151: 26 | N151: 137.5
A152: 150 | B152: micro00002 | C152: 130 | D152: 93.8 | E152: cr6496 | F152: Crocus | G152: TAGGCGTAGGCATATGTAGTAAGCAG | H152: 134 | I152: 1 | J152: 5.1 | K152: 5.1 | L152: 26 | M152: 26 | N152: 132.6
A153: 151 | B153: micro00002 | C153: 130 | D153: 93.8 | E153: cr5390 | F153: Crocus | G153: TAGGCGTAGGCATACGTAGTAGGCAG | H153: 137 | I153: 1 | J153: 5.2 | K153: 5.2 | L153: 26 | M153: 26 | N153: 135.2
A154: 152 | B154: micro00002 | C154: 130 | D154: 93.8 | E154: cr6496 | F154: Crocus | G154: TGCCTACTACATATGCCTACGCCTAT | H154: 139 | I154: 1 | J154: 5.1 | K154: 5.1 | L154: 26 | M154: 26 | N154: 132.6
A155: 153 | B155: micro00002 | C155: 130 | D155: 93.8 | E155: cr5390 | F155: Crocus | G155: CTGCCTACTACAGATGCCTACGCCTA | H155: 140 | I155: 1 | J155: 5.4 | K155: 5.4 | L155: 26 | M155: 26 | N155: 140.4
A156: 154 | B156: micro00002 | C156: 135 | D156: 94.1 | E156: cr6496 | F156: Crocus | G156: TGCCTACTACATATGCCTAACGCCTAC | H156: 271 | I156: 2 | J156: 10.1 | K156: 5.05 | L156: 27 | M156: 26 | N156: 136.35
A157: 155 | B157: micro00002 | C157: 130 | D157: 94.6 | E157: cr5390 | F157: Crocus | G157: ATGTAGTAGGCAGTAAGCGTAGGCAT | H157: 556 | I157: 4 | J157: 20.9 | K157: 5.22 | L157: 26 | M157: 26 | N157: 135.72
A158: 156 | B158: micro00002 | C158: 130 | D158: 94.6 | E158: cr6496 | F158: Crocus | G158: GCATATCTAGTAGGCAGTAGGCGTAG | H158: 140 | I158: 1 | J158: 5.2 | K158: 5.2 | L158: 26 | M158: 26 | N158: 135.2
A159: 157 | B159: micro00002 | C159: 130 | D159: 94.6 | E159: cr5390 | F159: Crocus | G159: CTACGCCCACTGCCTACTACATATGC | H159: 137 | I159: 1 | J159: 5.3 | K159: 5.3 | L159: 26 | M159: 26 | N159: 137.8
A160: 158 | B160: micro00002 | C160: 130 | D160: 94.6 | E160: cr5390 | F160: Crocus | G160: ACTGCCTACTACATATGCCTATGCCT | H160: 968 | I160: 7 | J160: 36.8 | K160: 5.25 | L160: 26 | M160: 26 | N160: 136.5
A161: 159 | B161: micro00002 | C161: 130 | D161: 94.6 | E161: cr7030 | F161: Crocus | G161: CTACTACATATGCCTACGCCTACTGC | H161: 138 | I161: 1 | J161: 5.3 | K161: 5.3 | L161: 26 | M161: 26 | N161: 137.8
A162: 160 | B162: micro00002 | C162: 130 | D162: 94.6 | E162: cr5390 | F162: Crocus | G162: GCATATGTAGTAGGCAGTAGGTGTAG | H162: 416 | I162: 3 | J162: 15.7 | K162: 5.23 | L162: 26 | M162: 26 | N162: 135.98
A163: 161 | B163: micro00002 | C163: 130 | D163: 94.6 | E163: cr7183 | F163: Crocus | G163: CTGCCTACTGCCTACTGCCTACGCTA | H163: 139 | I163: 1 | J163: 5.2 | K163: 5.2 | L163: 26 | M163: 26 | N163: 135.2
A164: 162 | B164: micro00002 | C164: 130 | D164: 94.6 | E164: cr5390 | F164: Crocus | G164: ACTGCCTACTACATATGCCTAAGCCT | H164: 280 | I164: 2 | J164: 10.8 | K164: 5.4 | L164: 26 | M164: 26 | N164: 140.4
A165: 163 | B165: micro00002 | C165: 135 | D165: 94.8 | E165: cr5390 | F165: Crocus | G165: CTACGCCTACTGCCATACTACATATGC | H165: 277 | I165: 2 | J165: 10.1 | K165: 5.05 | L165: 27 | M165: 26 | N165: 136.35
A166: 164 | B166: micro00002 | C166: 135 | D166: 94.8 | E166: cr6496 | F166: Crocus | G166: CAGTAGGCGTAGGGCATATGTAGTAGG | H166: 140 | I166: 1 | J166: 5.1 | K166: 5.1 | L166: 27 | M166: 26 | N166: 137.7
A167: 165 | B167: micro00002 | C167: 125 | D167: 95.2 | E167: cr5390 | F167: Crocus | G167: CTGCCTACTACATATGCCTACGCAA | H167: 135 | I167: 1 | J167: 5.2 | K167: 5.2 | L167: 25 | M167: 26 | N167: 130
A168: 166 | B168: micro00002 | C168: 130 | D168: 95.4 | E168: cr5390 | F168: Crocus | G168: GGCGTAGGCATATGTAGTAGTCAGTA | H168: 410 | I168: 3 | J168: 15.5 | K168: 5.16 | L168: 26 | M168: 26 | N168: 134.16
A169: 167 | B169: micro00002 | C169: 130 | D169: 95.4 | E169: cr5390 | F169: Crocus | G169: GTCGTAGGCATATGTAGTAGGCAGTA | H169: 279 | I169: 2 | J169: 10.2 | K169: 5.1 | L169: 26 | M169: 26 | N169: 132.6
A170: 168 | B170: micro00002 | C170: 125 | D170: 96 | E170: cr6496 | F170: Crocus | G170: CCTACTGCCTACTACATATGCCTAA | H170: 140 | I170: 1 | J170: 5.6 | K170: 5.6 | L170: 25 | M170: 26 | N170: 140
A171: 169 | B171: micro00002 | C171: 125 | D171: 96 | E171: cr5390 | F171: Crocus | G171: CTACTACATATGCCTACGCTACTGC | H171: 140 | I171: 1 | J171: 5.7 | K171: 5.7 | L171: 25 | M171: 26 | N171: 142.5
A172: 170 | B172: micro00002 | C172: 125 | D172: 96 | E172: cr6496 | F172: Crocus | G172: GCCTACTGCCTATGCATATGCCTAC | H172: 139 | I172: 1 | J172: 5.4 | K172: 5.4 | L172: 25 | M172: 26 | N172: 135
A173: 171 | B173: micro00002 | C173: 130 | D173: 96.2 | E173: cr6496 | F173: Crocus | G173: GCCTACTGCCTACTACATATGCCTAA | H173: 274 | I173: 2 | J173: 10.6 | K173: 5.3 | L173: 26 | M173: 26 | N173: 137.8
A174: 172 | B174: micro00002 | C174: 130 | D174: 96.2 | E174: cr5390 | F174: Crocus | G174: TGCCTACGCCTACTGCCTACTACATA | H174: 235038 | I174: 1706 | J174: 8971.49 | K174: 5.25 | L174: 26 | M174: 26 | N174: 136.5
A175: 173 | B175: micro00002 | C175: 130 | D175: 96.2 | E175: cr6496 | F175: Crocus | G175: ACGCCTACTGCCTACTGCATATGCCT | H175: 695 | I175: 5 | J175: 26.4 | K175: 5.28 | L175: 26 | M175: 26 | N175: 137.28
A176: 174 | B176: micro00002 | C176: 130 | D176: 96.2 | E176: cr5390 | F176: Crocus | G176: TACTGCCTACTACATATGCCTACGCA | H176: 555 | I176: 4 | J176: 21.4 | K176: 5.35 | L176: 26 | M176: 26 | N176: 139.1
A177: 175 | B177: micro00002 | C177: 130 | D177: 96.2 | E177: cr5390 | F177: Crocus | G177: TAGGCATATGTAGTAGGCAGCAGGCG | H177: 140 | I177: 1 | J177: 5.1 | K177: 5.1 | L177: 26 | M177: 26 | N177: 132.6
A178: 176 | B178: micro00002 | C178: 130 | D178: 96.2 | E178: cr6496 | F178: Crocus | G178: CTACTGCCTACTACATATGCCTACGA | H178: 275 | I178: 2 | J178: 10.2 | K178: 5.1 | L178: 26 | M178: 26 | N178: 132.6
A179: 177 | B179: micro00002 | C179: 130 | D179: 96.2 | E179: cr5390 | F179: Crocus | G179: ACGCCTACTGCCTACTACATATGCCA | H179: 267 | I179: 2 | J179: 10.3 | K179: 5.15 | L179: 26 | M179: 26 | N179: 133.9
A180: 178 | B180: micro00002 | C180: 135 | D180: 97 | E180: cr6496 | F180: Crocus | G180: CCTACTGCCTACTACATATGCCTTACG | H180: 838 | I180: 6 | J180: 31 | K180: 5.16 | L180: 27 | M180: 26 | N180: 139.32
A181: 179 | B181: micro00002 | C181: 130 | D181: 97.7 | E181: cr6496 | F181: Crocus | G181: CTGCCTACTACATATGCCTACGCCTA | H181: 263071 | I181: 1909 | J181: 10036.7 | K181: 5.25 | L181: 26 | M181: 26 | N181: 136.5
A182: 180 | B182: micro00002 | C182: 130 | D182: 97.7 | E182: cr5390 | F182: Crocus | G182: CTACGCCTACTGCCTACTACATATGG | H182: 547 | I182: 4 | J182: 20.5 | K182: 5.12 | L182: 26 | M182: 26 | N182: 133.12
A183: 181 | B183: micro00002 | C183: 130 | D183: 99.2 | E183: cr6496 | F183: Crocus | G183: GCGTAGGCATATGTAGTAGGCAGTAA | H183: 136 | I183: 1 | J183: 5 | K183: 5 | L183: 26 | M183: 26 | N183: 130
A184: 182 | B184: micro00002 | C184: 150 | D184: 99.3 | E184: cr5390 | F184: Crocus | G184: ACGCCTACTGCCTACTACATATGCCTACGT | H184: 140 | I184: 1 | J184: 5 | K184: 5 | L184: 30 | M184: 26 | N184: 150
A185: 183 | B185: micro00002 | C185: 95 | D185: 100 | E185: cr5390 | F185: Crocus | G185: CTACTACATATGCCTACGC | H185: 2406 | I185: 21 | J185: 123.7 | K185: 5.89 | L185: 19 | M185: 26 | N185: 111.91
A186: 184 | B186: micro00002 | C186: 125 | D186: 100 | E186: cr6496 | F186: Crocus | G186: CTACTGCCTACTACATATGCCTACG | H186: 136 | I186: 1 | J186: 5.2 | K186: 5.2 | L186: 25 | M186: 26 | N186: 130
A187: 185 | B187: micro00003 | C187: 152 | D187: 100 | E187: cr7231 | F187: Crocus | G187: GATCCTGCCTCCTGTGGCC | H187: 140 | I187: 1 | J187: 8.2 | K187: 8.2 | L187: 19 | M187: 19 | N187: 155.8
A188: 186 | B188: micro00003 | C188: 96 | D188: 92.7 | E188: cr5412 | F188: Crocus | G188: GCCCGTGGCCGATCCT | H188: 198 | I188: 2 | J188: 12.8 | K188: 6.4 | L188: 16 | M188: 19 | N188: 102.4
A189: 187 | B189: micro00003 | C189: 95 | D189: 94.7 | E189: cr4051 | F189: Crocus | G189: GGATCGGCCACAGGAGGCG | H189: 2210 | I189: 22 | J189: 115.6 | K189: 5.25 | L189: 19 | M189: 19 | N189: 99.75
A190: 188 | B190: micro00003 | C190: 95 | D190: 94.7 | E190: cr5856 | F190: Crocus | G190: AGGCGGGATCGGCCACAGG | H190: 206 | I190: 2 | J190: 10.8 | K190: 5.4 | L190: 19 | M190: 19 | N190: 102.6
A191: 189 | B191: micro00003 | C191: 95 | D191: 94.7 | E191: cr6041 | F191: Crocus | G191: CCTGTGGCCGATCCCGCCT | H191: 397 | I191: 4 | J191: 20.6 | K191: 5.15 | L191: 19 | M191: 19 | N191: 97.85
A192: 190 | B192: micro00003 | C192: 114 | D192: 94.7 | E192: cr5390 | F192: Crocus | G192: TGGCCGATCCCGCCTCCTG | H192: 1016 | I192: 8 | J192: 52.7 | K192: 6.58 | L192: 19 | M192: 19 | N192: 125.02
A193: 191 | B193: micro00003 | C193: 95 | D193: 94.7 | E193: cr2261 | F193: Crocus | G193: CCGCCTCCTGTGGCCGATC | H193: 1526 | I193: 15 | J193: 79.4 | K193: 5.29 | L193: 19 | M193: 19 | N193: 100.51
A194: 192 | B194: micro00003 | C194: 95 | D194: 94.7 | E194: cr3950 | F194: Crocus | G194: CTCCTGTGGCCGATCCCGC | H194: 103 | I194: 1 | J194: 5.3 | K194: 5.3 | L194: 19 | M194: 19 | N194: 100.7
A195: 193 | B195: micro00003 | C195: 95 | D195: 94.7 | E195: cr3993 | G195: GATCCCGCCTCCTGTGGCC | H195: 515 | I195: 5 | J195: 26.8 | K195: 5.36 | L195: 19 | M195: 19 | N195: 101.84
A196: 194 | B196: micro00003 | C196: 95 | D196: 94.7 | E196: cr4102 | F196: Crocus | G196: CCTGTGGCCGATCCCGCCT | H196: 192 | I196: 2 | J196: 10 | K196: 5 | L196: 19 | M196: 19 | N196: 95
A197: 195 | B197: micro00003 | C197: 95 | D197: 94.7 | E197: cr5422 | F197: Crocus | G197: GGCCACAGGAGGCGGGATC | H197: 206 | I197: 2 | J197: 10.8 | K197: 5.4 | L197: 19 | M197: 19 | N197: 102.6
A198: 196 | B198: micro00003 | C198: 95 | D198: 94.7 | E198: cr5412 | F198: Crocus | G198: GATCGGCCACAGGAGGCGG | H198: 103 | I198: 1 | J198: 5.4 | K198: 5.4 | L198: 19 | M198: 19 | N198: 102.6
A199: 197 | B199: micro00003 | C199: 95 | D199: 94.7 | E199: cr5427 | F199: Crocus | G199: GCCACAGGAGGCGGGATCG | H199: 507 | I199: 5 | J199: 26.6 | K199: 5.32 | L199: 19 | M199: 19 | N199: 101.08
A200: 198 | B200: micro00003 | C200: 95 | D200: 94.7 | E200: cr5420 | F200: Crocus | G200: AGGCGGGATCGGCCACAGG | H200: 400 | I200: 4 | J200: 20.8 | K200: 5.2 | L200: 19 | M200: 19 | N200: 98.8
... 4300 more rows

Sheet Supp. Table 10| Micro_uclusters
A1: Supplementary Table 10. Summary statistics and classification of microsatellite after cluster with UCLUST
A2: No. | B2: Microsatellites | C2: monomer length mode (bp) | D2: monomer size variants | E2: Total length (bp) | F2: Mean total repeat units per sample | G2: Mean total loci number per sample | H2: Mean repeats per locus | I2: Mean array size | J2: Ucluster seed sequence | K2: Ucluster seed size | L2: Ucluster seed vs mode size match | M2: >1M bp | N2: >500 kb | O2: series-enriched | P2: Fig. S16 visualization | Q2: Co-abundance (≥10,000) with TE/satDNA dataset
A3: 1 | B3: micro00001 | C3: 26 | D3: 12 | E3: 132,981 | F3: 50 | G3: 10 | H3: 5 | I3: 138 | J3: TAGGCTAAGCATATGTAGTAGGCAGTAGGCG | K3: =LEN(Table3[[#This Row],[Ucluster seed sequence]]) -> 31 | L3: NO | M3: =IF(Table3[[#This Row],[Total length (bp)]]>1000000,"YES","NO") -> NO | N3: =IF(Table3[[#This Row],[Total length (bp)]]>500000,"YES","NO") -> NO | O3: NO | P3: NO | Q3: YES
A4: 2 | B4: micro00002 | C4: 26 | D4: 8 | E4: 550,891 | F4: 257 | G4: 49 | H4: 5 | I4: 136 | J4: ACGCCTACTGCCTACTACATATGCCTACGCT | K4: =LEN(Table3[[#This Row],[Ucluster seed sequence]]) -> 31 | L4: NO | M4: =IF(Table3[[#This Row],[Total length (bp)]]>1000000,"YES","NO") -> NO | N4: =IF(Table3[[#This Row],[Total length (bp)]]>500000,"YES","NO") -> YES | O4: NO | P4: NO | Q4: YES
A5: 3 | B5: micro00003 | C5: 19 | D5: 4 | E5: 8,971 | F5: 22 | G5: 4 | H5: 6 | I5: 109 | J5: GATCCTGCCTCCTGTGGCC | K5: =LEN(Table3[[#This Row],[Ucluster seed sequence]]) -> 19 | M5: =IF(Table3[[#This Row],[Total length (bp)]]>1000000,"YES","NO") -> NO | N5: =IF(Table3[[#This Row],[Total length (bp)]]>500000,"YES","NO") -> NO | O5: NO | P5: NO
A6: 4 | B6: micro00004 | C6: 8 | D6: 8 | E6: 15,204 | F6: 31 | G6: 3 | H6: 9 | I6: 69 | J6: AAGCCTAT | K6: =LEN(Table3[[#This Row],[Ucluster seed sequence]]) -> 8 | M6: =IF(Table3[[#This Row],[Total length (bp)]]>1000000,"YES","NO") -> NO | N6: =IF(Table3[[#This Row],[Total length (bp)]]>500000,"YES","NO") -> NO | O6: NO | P6: NO | Q6: YES
A7: 5 | B7: micro00005 | C7: 19 | D7: 9 | E7: 13,003 | F7: 7 | G7: 1 | H7: 6 | I7: 106 | J7: TAGATTTAGGGTTTGGGTTTAGGTT | K7: =LEN(Table3[[#This Row],[Ucluster seed sequence]]) -> 25 | L7: NO | M7: =IF(Table3[[#This Row],[Total length (bp)]]>1000000,"YES","NO") -> NO | N7: =IF(Table3[[#This Row],[Total length (bp)]]>500000,"YES","NO") -> NO | O7: NO | P7: NO | Q7: YES
A8: 6 | B8: micro00006 | C8: 17 | D8: 4 | E8: 616 | F8: 5 | G8: 1 | H8: 5 | I8: 93 | J8: CCCTAACCCTAGCCATAGTTAATAAACTAA | K8: =LEN(Table3[[#This Row],[Ucluster seed sequence]]) -> 30 | L8: NO | M8: =IF(Table3[[#This Row],[Total length (bp)]]>1000000,"YES","NO") -> NO | N8: =IF(Table3[[#This Row],[Total length (bp)]]>500000,"YES","NO") -> NO | O8: YES | P8: NO
A9: 7 | B9: micro00007 | C9: 30 | D9: 1 | E9: 140 | F9: 5 | G9: 1 | H9: 5 | I9: 150 | J9: GGCTCTCTTCAGCTCTTAGAACGCCTAAAA | K9: =LEN(Table3[[#This Row],[Ucluster seed sequence]]) -> 30 | M9: =IF(Table3[[#This Row],[Total length (bp)]]>1000000,"YES","NO") -> NO | N9: =IF(Table3[[#This Row],[Total length (bp)]]>500000,"YES","NO") -> NO | O9: NO | P9: NO
A10: 8 | B10: micro00008 | C10: 18 | D10: 5 | E10: 3,464 | F10: 8 | G10: 2 | H10: 5 | I10: 97 | J10: AATGGGGTTAGGGATTAGGGTTATA | K10: =LEN(Table3[[#This Row],[Ucluster seed sequence]]) -> 25 | L10: NO | M10: =IF(Table3[[#This Row],[Total length (bp)]]>1000000,"YES","NO") -> NO | N10: =IF(Table3[[#This Row],[Total length (bp)]]>500000,"YES","NO") -> NO | O10: NO | P10: NO
A11: 9 | B11: micro00009 | C11: 19 | D11: 11 | E11: 6,128 | F11: 7 | G11: 1 | H11: 5 | I11: 103 | J11: TTAGGATTAGGATTAGTATTAGGGTTAGGG | K11: =LEN(Table3[[#This Row],[Ucluster seed sequence]]) -> 30 | L11: NO | M11: =IF(Table3[[#This Row],[Total length (bp)]]>1000000,"YES","NO") -> NO | N11: =IF(Table3[[#This Row],[Total length (bp)]]>500000,"YES","NO") -> NO | O11: NO | P11: NO
A12: 10 | B12: micro00010 | C12: 13 | D12: 5 | E12: 87,568 | F12: 225 | G12: 29 | H12: 7 | I12: 88 | J12: CTGATCCAGAGCACTTCATCCAGAGCAGAA | K12: =LEN(Table3[[#This Row],[Ucluster seed sequence]]) -> 30 | L12: NO | M12: =IF(Table3[[#This Row],[Total length (bp)]]>1000000,"YES","NO") -> NO | N12: =IF(Table3[[#This Row],[Total length (bp)]]>500000,"YES","NO") -> NO | O12: YES | P12: YES | Q12: YES
A13: 11 | B13: micro00011 | C13: 24 | D13: 8 | E13: 6,422 | F13: 7 | G13: 1 | H13: 5 | I13: 128 | J13: TCTCTCCCCAGCGGCGGTTCCCTCTCTCTC | K13: =LEN(Table3[[#This Row],[Ucluster seed sequence]]) -> 30 | L13: NO | M13: =IF(Table3[[#This Row],[Total length (bp)]]>1000000,"YES","NO") -> NO | N13: =IF(Table3[[#This Row],[Total length (bp)]]>500000,"YES","NO") -> NO | O13: YES | P13: YES
A14: 12 | B14: micro00012 | C14: 14 | D14: 3 | E14: 977 | F14: 23 | G14: 4 | H14: 7 | I14: 99 | J14: CCAAAGCGACCACCA | K14: =LEN(Table3[[#This Row],[Ucluster seed sequence]]) -> 15 | L14: NO | M14: =IF(Table3[[#This Row],[Total length (bp)]]>1000000,"YES","NO") -> NO | N14: =IF(Table3[[#This Row],[Total length (bp)]]>500000,"YES","NO") -> NO | O14: YES | P14: NO
A15: 13 | B15: micro00013 | C15: 24 | D15: 7 | E15: 30,098 | F15: 29 | G15: 5 | H15: 6 | I15: 138 | J15: GTAGGCATAGGCATAAGCATATGTA | K15: =LEN(Table3[[#This Row],[Ucluster seed sequence]]) -> 25 | L15: NO | M15: =IF(Table3[[#This Row],[Total length (bp)]]>1000000,"YES","NO") -> NO | N15: =IF(Table3[[#This Row],[Total length (bp)]]>500000,"YES","NO") -> NO | O15: NO | P15: NO | Q15: YES
A16: 14 | B16: micro00014 | C16: 7 | D16: 9 | E16: 15,090 | F16: 30 | G16: 4 | H16: 7 | I16: 52 | J16: TAGGCACTAGGCACTAGGCAG | K16: =LEN(Table3[[#This Row],[Ucluster seed sequence]]) -> 21 | L16: NO | M16: =IF(Table3[[#This Row],[Total length (bp)]]>1000000,"YES","NO") -> NO | N16: =IF(Table3[[#This Row],[Total length (bp)]]>500000,"YES","NO") -> NO | O16: NO | P16: NO | Q16: YES
A17: 15 | B17: micro00015 | C17: 20 | D17: 7 | E17: 92,879 | F17: 168 | G17: 25 | H17: 6 | I17: 127 | J17: GGCATAGGCACGTAGGCAGTA | K17: =LEN(Table3[[#This Row],[Ucluster seed sequence]]) -> 21 | L17: NO | M17: =IF(Table3[[#This Row],[Total length (bp)]]>1000000,"YES","NO") -> NO | N17: =IF(Table3[[#This Row],[Total length (bp)]]>500000,"YES","NO") -> NO | O17: YES | P17: YES | Q17: YES
A18: 16 | B18: micro00016 | C18: 10 | D18: 7 | E18: 9,125 | F18: 12 | G18: 2 | H18: 6 | I18: 59 | J18: AGGCGCTCCTGGTACTGGTGT | K18: =LEN(Table3[[#This Row],[Ucluster seed sequence]]) -> 21 | L18: NO | M18: =IF(Table3[[#This Row],[Total length (bp)]]>1000000,"YES","NO") -> NO | N18: =IF(Table3[[#This Row],[Total length (bp)]]>500000,"YES","NO") -> NO | O18: NO | P18: NO
A19: 17 | B19: micro00017 | C19: 20 | D19: 3 | E19: 36,954 | F19: 15 | G19: 3 | H19: 6 | I19: 113 | J19: CACTGTCCAGAGCAACATTTT | K19: =LEN(Table3[[#This Row],[Ucluster seed sequence]]) -> 21 | L19: NO | M19: =IF(Table3[[#This Row],[Total length (bp)]]>1000000,"YES","NO") -> NO | N19: =IF(Table3[[#This Row],[Total length (bp)]]>500000,"YES","NO") -> NO | O19: NO | P19: NO | Q19: YES
A20: 18 | B20: micro00018 | C20: 7 | D20: 8 | E20: 7,167 | F20: 12 | G20: 2 | H20: 6 | I20: 45 | J20: AGGCTGTAGGCAGTAGGCAGT | K20: =LEN(Table3[[#This Row],[Ucluster seed sequence]]) -> 21 | L20: NO | M20: =IF(Table3[[#This Row],[Total length (bp)]]>1000000,"YES","NO") -> NO | N20: =IF(Table3[[#This Row],[Total length (bp)]]>500000,"YES","NO") -> NO | O20: YES | P20: YES
A21: 19 | B21: micro00019 | C21: 7 | D21: 6 | E21: 19,052 | F21: 62 | G21: 6 | H21: 11 | I21: 80 | J21: TAGGCTA | K21: =LEN(Table3[[#This Row],[Ucluster seed sequence]]) -> 7 | M21: =IF(Table3[[#This Row],[Total length (bp)]]>1000000,"YES","NO") -> NO | N21: =IF(Table3[[#This Row],[Total length (bp)]]>500000,"YES","NO") -> NO | O21: NO | P21: NO | Q21: YES
A22: 20 | B22: micro00020 | C22: 13 | D22: 4 | E22: 2,325 | F22: 11 | G22: 2 | H22: 6 | I22: 79 | J22: ACCGCCTACTGACTACTGCCT | K22: =LEN(Table3[[#This Row],[Ucluster seed sequence]]) -> 21 | L22: NO | M22: =IF(Table3[[#This Row],[Total length (bp)]]>1000000,"YES","NO") -> NO | N22: =IF(Table3[[#This Row],[Total length (bp)]]>500000,"YES","NO") -> NO | O22: NO | P22: NO
A23: 21 | B23: micro00021 | C23: 20 | D23: 5 | E23: 832 | F23: 6 | G23: 1 | H23: 6 | I23: 124 | J23: TAGGCAACAGGCAGTAGGCAG | K23: =LEN(Table3[[#This Row],[Ucluster seed sequence]]) -> 21 | L23: NO | M23: =IF(Table3[[#This Row],[Total length (bp)]]>1000000,"YES","NO") -> NO | N23: =IF(Table3[[#This Row],[Total length (bp)]]>500000,"YES","NO") -> NO | O23: YES | P23: NO
A24: 22 | B24: micro00022 | C24: 20 | D24: 3 | E24: 539 | F24: 7 | G24: 1 | H24: 7 | I24: 141 | J24: GTAGGCATAGGACAGTAGGCA | K24: =LEN(Table3[[#This Row],[Ucluster seed sequence]]) -> 21 | L24: NO | M24: =IF(Table3[[#This Row],[Total length (bp)]]>1000000,"YES","NO") -> NO | N24: =IF(Table3[[#This Row],[Total length (bp)]]>500000,"YES","NO") -> NO | O24: YES | P24: NO
A25: 23 | B25: micro00023 | C25: 28 | D25: 3 | E25: 3,763 | F25: 16 | G25: 3 | H25: 5 | I25: 141 | J25: CGTTCGCGAAGAGGTGTGACTCATTGGTC | K25: =LEN(Table3[[#This Row],[Ucluster seed sequence]]) -> 29 | L25: NO | M25: =IF(Table3[[#This Row],[Total length (bp)]]>1000000,"YES","NO") -> NO | N25: =IF(Table3[[#This Row],[Total length (bp)]]>500000,"YES","NO") -> NO | O25: NO | P25: NO
A26: 24 | B26: micro00024 | C26: 25 | D26: 5 | E26: 3,251 | F26: 11 | G26: 2 | H26: 5 | I26: 131 | J26: ACCAGGAGAAAGACAAGTACCGTACCAGT | K26: =LEN(Table3[[#This Row],[Ucluster seed sequence]]) -> 29 | L26: NO | M26: =IF(Table3[[#This Row],[Total length (bp)]]>1000000,"YES","NO") -> NO | N26: =IF(Table3[[#This Row],[Total length (bp)]]>500000,"YES","NO") -> NO | O26: YES | P26: YES
A27: 25 | B27: micro00025 | C27: 25 | D27: 8 | E27: 27,268 | F27: 12 | G27: 2 | H27: 5 | I27: 132 | J27: CGGCGATTTCCCTCTCTCTCTCTCCCCAG | K27: =LEN(Table3[[#This Row],[Ucluster seed sequence]]) -> 29 | L27: NO | M27: =IF(Table3[[#This Row],[Total length (bp)]]>1000000,"YES","NO") -> NO | N27: =IF(Table3[[#This Row],[Total length (bp)]]>500000,"YES","NO") -> NO | O27: YES | P27: YES | Q27: YES
A28: 26 | B28: micro00026 | C28: 27 | D28: 4 | E28: 1,568 | F28: 8 | G28: 2 | H28: 5 | I28: 143 | J28: TGACTAATCCGTGACTAACTCTACATCCG | K28: =LEN(Table3[[#This Row],[Ucluster seed sequence]]) -> 29 | L28: NO | M28: =IF(Table3[[#This Row],[Total length (bp)]]>1000000,"YES","NO") -> NO | N28: =IF(Table3[[#This Row],[Total length (bp)]]>500000,"YES","NO") -> NO | O28: NO | P28: NO
A29: 27 | B29: micro00027 | C29: 20 | D29: 2 | E29: 9,063 | F29: 30 | G29: 6 | H29: 5 | I29: 102 | J29: CGATTATGTCCCTGTTGCCTACGTTGCCT | K29: =LEN(Table3[[#This Row],[Ucluster seed sequence]]) -> 29 | L29: NO | M29: =IF(Table3[[#This Row],[Total length (bp)]]>1000000,"YES","NO") -> NO | N29: =IF(Table3[[#This Row],[Total length (bp)]]>500000,"YES","NO") -> NO | O29: NO | P29: NO
A30: 28 | B30: micro00028 | C30: 26 | D30: 3 | E30: 12,545 | F30: 18 | G30: 3 | H30: 5 | I30: 135 | J30: TTACGCCTACTGCTACCTACTACATATGC | K30: =LEN(Table3[[#This Row],[Ucluster seed sequence]]) -> 29 | L30: NO | M30: =IF(Table3[[#This Row],[Total length (bp)]]>1000000,"YES","NO") -> NO | N30: =IF(Table3[[#This Row],[Total length (bp)]]>500000,"YES","NO") -> NO | O30: YES | P30: YES | Q30: YES
A31: 29 | B31: micro00029 | C31: 20 | D31: 4 | E31: 419 | F31: 5 | G31: 1 | H31: 5 | I31: 105 | J31: TCGCGTGCATGCTTGCTTATAGAAATGAA | K31: =LEN(Table3[[#This Row],[Ucluster seed sequence]]) -> 29 | L31: NO | M31: =IF(Table3[[#This Row],[Total length (bp)]]>1000000,"YES","NO") -> NO | N31: =IF(Table3[[#This Row],[Total length (bp)]]>500000,"YES","NO") -> NO | O31: NO | P31: NO
A32: 30 | B32: micro00030 | C32: 11 | D32: 5 | E32: 2,470 | F32: 7 | G32: 1 | H32: 5 | I32: 60 | J32: CTAACTATCGATCCGTGACAAATCCGTGA | K32: =LEN(Table3[[#This Row],[Ucluster seed sequence]]) -> 29 | L32: NO | M32: =IF(Table3[[#This Row],[Total length (bp)]]>1000000,"YES","NO") -> NO | N32: =IF(Table3[[#This Row],[Total length (bp)]]>500000,"YES","NO") -> NO | O32: NO | P32: NO
A33: 31 | B33: micro00031 | C33: 27 | D33: 4 | E33: 4,202 | F33: 22 | G33: 4 | H33: 5 | I33: 137 | J33: AAGAGAGCCTTTAGGCGTGACTAAGGCTG | K33: =LEN(Table3[[#This Row],[Ucluster seed sequence]]) -> 29 | L33: NO | M33: =IF(Table3[[#This Row],[Total length (bp)]]>1000000,"YES","NO") -> NO | N33: =IF(Table3[[#This Row],[Total length (bp)]]>500000,"YES","NO") -> NO | O33: YES | P33: YES
A34: 32 | B34: micro00032 | C34: 17 | D34: 9 | E34: 7,156 | F34: 7 | G34: 1 | H34: 5 | I34: 91 | J34: ACCCCTAAACTAACACTAACCTAACCCTA | K34: =LEN(Table3[[#This Row],[Ucluster seed sequence]]) -> 29 | L34: NO | M34: =IF(Table3[[#This Row],[Total length (bp)]]>1000000,"YES","NO") -> NO | N34: =IF(Table3[[#This Row],[Total length (bp)]]>500000,"YES","NO") -> NO | O34: YES | P34: YES
A35: 33 | B35: micro00033 | C35: 26 | D35: 5 | E35: 6,626 | F35: 14 | G35: 3 | H35: 5 | I35: 136 | J35: TACGCCTACTGCCTCCTACTACATATGCC | K35: =LEN(Table3[[#This Row],[Ucluster seed sequence]]) -> 29 | L35: NO | M35: =IF(Table3[[#This Row],[Total length (bp)]]>1000000,"YES","NO") -> NO | N35: =IF(Table3[[#This Row],[Total length (bp)]]>500000,"YES","NO") -> NO | O35: NO | P35: NO
A36: 34 | B36: micro00034 | C36: 14 | D36: 4 | E36: 2,806 | F36: 10 | G36: 1 | H36: 7 | I36: 98 | J36: GTGTGTGAAAATGCACTATGTGAAATGCA | K36: =LEN(Table3[[#This Row],[Ucluster seed sequence]]) -> 29 | L36: NO | M36: =IF(Table3[[#This Row],[Total length (bp)]]>1000000,"YES","NO") -> NO | N36: =IF(Table3[[#This Row],[Total length (bp)]]>500000,"YES","NO") -> NO | O36: NO | P36: NO
A37: 35 | B37: micro00035 | C37: 29 | D37: 1 | E37: 140 | F37: 5 | G37: 1 | H37: 5 | I37: 148 | J37: GAAGAAAAGCGTTCTGAGTGCTCAATGCT | K37: =LEN(Table3[[#This Row],[Ucluster seed sequence]]) -> 29 | M37: =IF(Table3[[#This Row],[Total length (bp)]]>1000000,"YES","NO") -> NO | N37: =IF(Table3[[#This Row],[Total length (bp)]]>500000,"YES","NO") -> NO | O37: NO | P37: NO
A38: 36 | B38: micro00036 | C38: 17 | D38: 12 | E38: 11,492 | F38: 8 | G38: 2 | H38: 5 | I38: 92 | J38: TAAAACTAACCTAACCCTAATTAAAACCC | K38: =LEN(Table3[[#This Row],[Ucluster seed sequence]]) -> 29 | L38: NO | M38: =IF(Table3[[#This Row],[Total length (bp)]]>1000000,"YES","NO") -> NO | N38: =IF(Table3[[#This Row],[Total length (bp)]]>500000,"YES","NO") -> NO | O38: NO | P38: NO | Q38: YES
A39: 37 | B39: micro00037 | C39: 28 | D39: 2 | E39: 6,576 | F39: 21 | G39: 4 | H39: 5 | I39: 140 | J39: GATGATCAGGCCACATGATGCGCCTATTA | K39: =LEN(Table3[[#This Row],[Ucluster seed sequence]]) -> 29 | L39: NO | M39: =IF(Table3[[#This Row],[Total length (bp)]]>1000000,"YES","NO") -> NO | N39: =IF(Table3[[#This Row],[Total length (bp)]]>500000,"YES","NO") -> NO | O39: YES | P39: YES
A40: 38 | B40: micro00038 | C40: 29 | D40: 1 | E40: 140 | F40: 5 | G40: 1 | H40: 5 | I40: 145 | J40: CAACACAAGCTCAAGACTCTCAAACTTTC | K40: =LEN(Table3[[#This Row],[Ucluster seed sequence]]) -> 29 | M40: =IF(Table3[[#This Row],[Total length (bp)]]>1000000,"YES","NO") -> NO | N40: =IF(Table3[[#This Row],[Total length (bp)]]>500000,"YES","NO") -> NO | O40: NO | P40: NO
A41: 39 | B41: micro00039 | C41: 26 | D41: 10 | E41: 1,636,208 | F41: 476 | G41: 90 | H41: 5 | I41: 138 | J41: AGTAGGCAGTAGGCGTAAGCATATGTAGT | K41: =LEN(Table3[[#This Row],[Ucluster seed sequence]]) -> 29 | L41: NO | M41: =IF(Table3[[#This Row],[Total length (bp)]]>1000000,"YES","NO") -> YES | N41: =IF(Table3[[#This Row],[Total length (bp)]]>500000,"YES","NO") -> YES | O41: NO | P41: YES | Q41: YES
A42: 40 | B42: micro00040 | C42: 29 | D42: 2 | E42: 280 | F42: 5 | G42: 1 | H42: 5 | I42: 143 | J42: CCGCCAGTTCGTCCGGTAGGTGACGCTCC | K42: =LEN(Table3[[#This Row],[Ucluster seed sequence]]) -> 29 | L42: NO | M42: =IF(Table3[[#This Row],[Total length (bp)]]>1000000,"YES","NO") -> NO | N42: =IF(Table3[[#This Row],[Total length (bp)]]>500000,"YES","NO") -> NO | O42: YES | P42: NO
A43: 41 | B43: micro00041 | C43: 13 | D43: 9 | E43: 54,077 | F43: 60 | G43: 9 | H43: 6 | I43: 81 | J43: CTACCAGTACTAGACGCCAGTACCAGACG | K43: =LEN(Table3[[#This Row],[Ucluster seed sequence]]) -> 29 | L43: NO | M43: =IF(Table3[[#This Row],[Total length (bp)]]>1000000,"YES","NO") -> NO | N43: =IF(Table3[[#This Row],[Total length (bp)]]>500000,"YES","NO") -> NO | O43: NO | P43: NO | Q43: YES
A44: 42 | B44: micro00042 | C44: 29 | D44: 1 | E44: 140 | F44: 5 | G44: 1 | H44: 5 | I44: 148 | J44: CAGCGGAGCTCGCGAGCCCCTCGGGCCAG | K44: =LEN(Table3[[#This Row],[Ucluster seed sequence]]) -> 29 | M44: =IF(Table3[[#This Row],[Total length (bp)]]>1000000,"YES","NO") -> NO | N44: =IF(Table3[[#This Row],[Total length (bp)]]>500000,"YES","NO") -> NO | O44: NO | P44: NO
A45: 43 | B45: micro00043 | C45: 29 | D45: 1 | E45: 140 | F45: 5 | G45: 1 | H45: 5 | I45: 145 | J45: CGTGCACTTCTGAGCGCGCAATCCTGAAG | K45: =LEN(Table3[[#This Row],[Ucluster seed sequence]]) -> 29 | M45: =IF(Table3[[#This Row],[Total length (bp)]]>1000000,"YES","NO") -> NO | N45: =IF(Table3[[#This Row],[Total length (bp)]]>500000,"YES","NO") -> NO | O45: NO | P45: NO
A46: 44 | B46: micro00044 | C46: 29 | D46: 1 | E46: 140 | F46: 5 | G46: 1 | H46: 5 | I46: 145 | J46: CGAGACGCAACACTGAAGGCAAACCCTCT | K46: =LEN(Table3[[#This Row],[Ucluster seed sequence]]) -> 29 | M46: =IF(Table3[[#This Row],[Total length (bp)]]>1000000,"YES","NO") -> NO | N46: =IF(Table3[[#This Row],[Total length (bp)]]>500000,"YES","NO") -> NO | O46: NO | P46: NO
A47: 45 | B47: micro00045 | C47: 28 | D47: 4 | E47: 749 | F47: 5 | G47: 1 | H47: 5 | I47: 150 | J47: GAATAAAAAGTTTGACCAACCTTTTTGGT | K47: =LEN(Table3[[#This Row],[Ucluster seed sequence]]) -> 29 | L47: NO | M47: =IF(Table3[[#This Row],[Total length (bp)]]>1000000,"YES","NO") -> NO | N47: =IF(Table3[[#This Row],[Total length (bp)]]>500000,"YES","NO") -> NO | O47: YES | P47: NO
A48: 46 | B48: micro00046 | C48: 14 | D48: 10 | E48: 10,855 | F48: 17 | G48: 2 | H48: 7 | I48: 94 | J48: AAGTCATAAGTCATAAGATCATAAGACAT | K48: =LEN(Table3[[#This Row],[Ucluster seed sequence]]) -> 29 | L48: NO | M48: =IF(Table3[[#This Row],[Total length (bp)]]>1000000,"YES","NO") -> NO | N48: =IF(Table3[[#This Row],[Total length (bp)]]>500000,"YES","NO") -> NO | O48: NO | P48: NO | Q48: YES
A49: 47 | B49: micro00047 | C49: 15 | D49: 3 | E49: 646 | F49: 7 | G49: 1 | H49: 6 | I49: 85 | J49: CTGCATTGCGCGCTGGCCATTGCGCGCTG | K49: =LEN(Table3[[#This Row],[Ucluster seed sequence]]) -> 29 | L49: NO | M49: =IF(Table3[[#This Row],[Total length (bp)]]>1000000,"YES","NO") -> NO | N49: =IF(Table3[[#This Row],[Total length (bp)]]>500000,"YES","NO") -> NO | O49: YES | P49: NO
A50: 48 | B50: micro00048 | C50: 4 | D50: 2 | E50: 4,042 | F50: 46 | G50: 7 | H50: 6 | I50: 25 | J50: CCGTAAGTAAGTAGTACAATGTATATCAT | K50: =LEN(Table3[[#This Row],[Ucluster seed sequence]]) -> 29 | L50: NO | M50: =IF(Table3[[#This Row],[Total length (bp)]]>1000000,"YES","NO") -> NO | N50: =IF(Table3[[#This Row],[Total length (bp)]]>500000,"YES","NO") -> NO | O50: NO | P50: NO
A51: 49 | B51: micro00049 | C51: 22 | D51: 2 | E51: 212 | F51: 5 | G51: 1 | H51: 5 | I51: 110 | J51: TACGGTTGGTGGTTATCCGTGAAACCTGT | K51: =LEN(Table3[[#This Row],[Ucluster seed sequence]]) -> 29 | L51: NO | M51: =IF(Table3[[#This Row],[Total length (bp)]]>1000000,"YES","NO") -> NO | N51: =IF(Table3[[#This Row],[Total length (bp)]]>500000,"YES","NO") -> NO | O51: YES | P51: NO
A52: 50 | B52: micro00050 | C52: 18 | D52: 8 | E52: 28,514 | F52: 11 | G52: 2 | H52: 5 | I52: 98 | J52: TTTAATTAGGGTAAGGGTTAGGGT | K52: =LEN(Table3[[#This Row],[Ucluster seed sequence]]) -> 24 | L52: NO | M52: =IF(Table3[[#This Row],[Total length (bp)]]>1000000,"YES","NO") -> NO | N52: =IF(Table3[[#This Row],[Total length (bp)]]>500000,"YES","NO") -> NO | O52: YES | P52: YES | Q52: YES
A53: 51 | B53: micro00051 | C53: 24 | D53: 3 | E53: 62,353 | F53: 22 | G53: 4 | H53: 5 | I53: 128 | J53: CTATGACTATGCCTACGCCTATGT | K53: =LEN(Table3[[#This Row],[Ucluster seed sequence]]) -> 24 | M53: =IF(Table3[[#This Row],[Total length (bp)]]>1000000,"YES","NO") -> NO | N53: =IF(Table3[[#This Row],[Total length (bp)]]>500000,"YES","NO") -> NO | O53: YES | P53: YES | Q53: YES
A54: 52 | B54: micro00052 | C54: 8 | D54: 11 | E54: 49,537 | F54: 25 | G54: 4 | H54: 6 | I54: 50 | J54: ATCTATCTATCTATATATCTATCT | K54: =LEN(Table3[[#This Row],[Ucluster seed sequence]]) -> 24 | L54: NO | M54: =IF(Table3[[#This Row],[Total length (bp)]]>1000000,"YES","NO") -> NO | N54: =IF(Table3[[#This Row],[Total length (bp)]]>500000,"YES","NO") -> NO | O54: NO | P54: NO | Q54: YES
A55: 53 | B55: micro00053 | C55: 22 | D55: 10 | E55: 6,068 | F55: 8 | G55: 1 | H55: 6 | I55: 122 | J55: AAGCCGCTGCCGCCCCCATGGCCG | K55: =LEN(Table3[[#This Row],[Ucluster seed sequence]]) -> 24 | L55: NO | M55: =IF(Table3[[#This Row],[Total length (bp)]]>1000000,"YES","NO") -> NO | N55: =IF(Table3[[#This Row],[Total length (bp)]]>500000,"YES","NO") -> NO | O55: NO | P55: NO
A56: 54 | B56: micro00054 | C56: 24 | D56: 3 | E56: 797 | F56: 7 | G56: 1 | H56: 6 | I56: 136 | J56: AGGCTTGGTAGATGCCTCGTAGAG | K56: =LEN(Table3[[#This Row],[Ucluster seed sequence]]) -> 24 | M56: =IF(Table3[[#This Row],[Total length (bp)]]>1000000,"YES","NO") -> NO | N56: =IF(Table3[[#This Row],[Total length (bp)]]>500000,"YES","NO") -> NO | O56: YES | P56: NO
A57: 55 | B57: micro00055 | C57: 24 | D57: 3 | E57: 1,188 | F57: 7 | G57: 1 | H57: 6 | I57: 133 | J57: GCATTTGAATAGGCATAGGCATAG | K57: =LEN(Table3[[#This Row],[Ucluster seed sequence]]) -> 24 | M57: =IF(Table3[[#This Row],[Total length (bp)]]>1000000,"YES","NO") -> NO | N57: =IF(Table3[[#This Row],[Total length (bp)]]>500000,"YES","NO") -> NO | O57: YES | P57: YES
A58: 56 | B58: micro00056 | C58: 24 | D58: 4 | E58: 1,997 | F58: 15 | G58: 3 | H58: 6 | I58: 137 | J58: GTAAGCATATGTAGTAGGCATAGG | K58: =LEN(Table3[[#This Row],[Ucluster seed sequence]]) -> 24 | M58: =IF(Table3[[#This Row],[Total length (bp)]]>1000000,"YES","NO") -> NO | N58: =IF(Table3[[#This Row],[Total length (bp)]]>500000,"YES","NO") -> NO | O58: YES | P58: YES
A59: 57 | B59: micro00057 | C59: 12 | D59: 4 | E59: 2,810 | F59: 10 | G59: 2 | H59: 6 | I59: 73 | J59: ACCCTAACCCTAACCCTAACCCGT | K59: =LEN(Table3[[#This Row],[Ucluster seed sequence]]) -> 24 | L59: NO | M59: =IF(Table3[[#This Row],[Total length (bp)]]>1000000,"YES","NO") -> NO | N59: =IF(Table3[[#This Row],[Total length (bp)]]>500000,"YES","NO") -> NO | O59: YES | P59: YES
A60: 58 | B60: micro00058 | C60: 9 | D60: 10 | E60: 31,327 | F60: 22 | G60: 3 | H60: 6 | I60: 55 | J60: CCACCTCACCAGCCACCACCTCCA | K60: =LEN(Table3[[#This Row],[Ucluster seed sequence]]) -> 24 | L60: NO | M60: =IF(Table3[[#This Row],[Total length (bp)]]>1000000,"YES","NO") -> NO | N60: =IF(Table3[[#This Row],[Total length (bp)]]>500000,"YES","NO") -> NO | O60: NO | P60: NO | Q60: YES
A61: 59 | B61: micro00059 | C61: 23 | D61: 3 | E61: 50,544 | F61: 52 | G61: 9 | H61: 6 | I61: 130 | J61: TCCTGGTCGGTGTCCAGTACTCAC | K61: =LEN(Table3[[#This Row],[Ucluster seed sequence]]) -> 24 | L61: NO | M61: =IF(Table3[[#This Row],[Total length (bp)]]>1000000,"YES","NO") -> NO | N61: =IF(Table3[[#This Row],[Total length (bp)]]>500000,"YES","NO") -> NO | O61: NO | P61: NO | Q61: YES
A62: 60 | B62: micro00060 | C62: 18 | D62: 3 | E62: 3,129 | F62: 10 | G62: 1 | H62: 7 | I62: 118 | J62: TGGCATAGGCTTAGGCTT | K62: =LEN(Table3[[#This Row],[Ucluster seed sequence]]) -> 18 | M62: =IF(Table3[[#This Row],[Total length (bp)]]>1000000,"YES","NO") -> NO | N62: =IF(Table3[[#This Row],[Total length (bp)]]>500000,"YES","NO") -> NO | O62: NO | P62: NO
A63: 61 | B63: micro00061 | C63: 24 | D63: 5 | E63: 200,969 | F63: 147 | G63: 27 | H63: 5 | I63: 131 | J63: GCATAGGCATTTGCATAAGCATAG | K63: =LEN(Table3[[#This Row],[Ucluster seed sequence]]) -> 24 | M63: =IF(Table3[[#This Row],[Total length (bp)]]>1000000,"YES","NO") -> NO | N63: =IF(Table3[[#This Row],[Total length (bp)]]>500000,"YES","NO") -> NO | O63: YES | P63: YES | Q63: YES
A64: 62 | B64: micro00062 | C64: 18 | D64: 3 | E64: 6,955 | F64: 20 | G64: 3 | H64: 7 | I64: 118 | J64: GCCTATGCATATGCAAAT | K64: =LEN(Table3[[#This Row],[Ucluster seed sequence]]) -> 18 | M64: =IF(Table3[[#This Row],[Total length (bp)]]>1000000,"YES","NO") -> NO | N64: =IF(Table3[[#This Row],[Total length (bp)]]>500000,"YES","NO") -> NO | O64: YES | P64: YES
A65: 63 | B65: micro00063 | C65: 24 | D65: 8 | E65: 92,070 | F65: 54 | G65: 9 | H65: 6 | I65: 139 | J65: TGCCTGCGCCTGTGCCTATGCCTG | K65: =LEN(Table3[[#This Row],[Ucluster seed sequence]]) -> 24 | M65: =IF(Table3[[#This Row],[Total length (bp)]]>1000000,"YES","NO") -> NO | N65: =IF(Table3[[#This Row],[Total length (bp)]]>500000,"YES","NO") -> NO | O65: YES | P65: YES | Q65: YES
A66: 64 | B66: micro00064 | C66: 8 | D66: 9 | E66: 16,904 | F66: 41 | G66: 4 | H66: 9 | I66: 73 | J66: ATAGGCAT | K66: =LEN(Table3[[#This Row],[Ucluster seed sequence]]) -> 8 | M66: =IF(Table3[[#This Row],[Total length (bp)]]>1000000,"YES","NO") -> NO | N66: =IF(Table3[[#This Row],[Total length (bp)]]>500000,"YES","NO") -> NO | O66: NO | P66: NO | Q66: YES
A67: 65 | B67: micro00065 | C67: 23 | D67: 4 | E67: 12,051 | F67: 8 | G67: 1 | H67: 6 | I67: 129 | J67: GGTGTCCAGTACTCACCCTGGATC | K67: =LEN(Table3[[#This Row],[Ucluster seed sequence]]) -> 24 | L67: NO | M67: =IF(Table3[[#This Row],[Total length (bp)]]>1000000,"YES","NO") -> NO | N67: =IF(Table3[[#This Row],[Total length (bp)]]>500000,"YES","NO") -> NO | O67: NO | P67: NO | Q67: YES
A68: 66 | B68: micro00066 | C68: 18 | D68: 6 | E68: 23,060 | F68: 9 | G68: 2 | H68: 5 | I68: 98 | J68: TTTAATTAGGGTTTGGGTTAGGAT | K68: =LEN(Table3[[#This Row],[Ucluster seed sequence]]) -> 24 | L68: NO | M68: =IF(Table3[[#This Row],[Total length (bp)]]>1000000,"YES","NO") -> NO | N68: =IF(Table3[[#This Row],[Total length (bp)]]>500000,"YES","NO") -> NO | O68: NO | P68: NO | Q68: YES
A69: 67 | B69: micro00067 | C69: 24 | D69: 2 | E69: 10,923 | F69: 27 | G69: 5 | H69: 5 | I69: 132 | J69: AGGCATTTGCACATGCATAGGCAT | K69: =LEN(Table3[[#This Row],[Ucluster seed sequence]]) -> 24 | M69: =IF(Table3[[#This Row],[Total length (bp)]]>1000000,"YES","NO") -> NO | N69: =IF(Table3[[#This Row],[Total length (bp)]]>500000,"YES","NO") -> NO | O69: YES | P69: YES | Q69: YES
A70: 68 | B70: micro00068 | C70: 12 | D70: 7 | E70: 21,654 | F70: 11 | G70: 2 | H70: 6 | I70: 70 | J70: CCCTAAAACTAACCCTAACCCTAA | K70: =LEN(Table3[[#This Row],[Ucluster seed sequence]]) -> 24 | L70: NO | M70: =IF(Table3[[#This Row],[Total length (bp)]]>1000000,"YES","NO") -> NO | N70: =IF(Table3[[#This Row],[Total length (bp)]]>500000,"YES","NO") -> NO | O70: NO | P70: NO | Q70: YES
A71: 69 | B71: micro00069 | C71: 24 | D71: 4 | E71: 75,106 | F71: 27 | G71: 5 | H71: 6 | I71: 133 | J71: TGGAGCACCTACCAGGGTGAGTAC | K71: =LEN(Table3[[#This Row],[Ucluster seed sequence]]) -> 24 | M71: =IF(Table3[[#This Row],[Total length (bp)]]>1000000,"YES","NO") -> NO | N71: =IF(Table3[[#This Row],[Total length (bp)]]>500000,"YES","NO") -> NO | O71: NO | P71: NO | Q71: YES
A72: 70 | B72: micro00070 | C72: 18 | D72: 8 | E72: 27,061 | F72: 20 | G72: 4 | H72: 6 | I72: 101 | J72: GGTTAGGGTTAATTTTAGGATTAG | K72: =LEN(Table3[[#This Row],[Ucluster seed sequence]]) -> 24 | L72: NO | M72: =IF(Table3[[#This Row],[Total length (bp)]]>1000000,"YES","NO") -> NO | N72: =IF(Table3[[#This Row],[Total length (bp)]]>500000,"YES","NO") -> NO | O72: NO | P72: NO | Q72: YES
A73: 71 | B73: micro00071 | C73: 23 | D73: 3 | E73: 8,737 | F73: 15 | G73: 3 | H73: 6 | I73: 127 | J73: CTCGTAGAGAGGCTTCGATCGGTG | K73: =LEN(Table3[[#This Row],[Ucluster seed sequence]]) -> 24 | L73: NO | M73: =IF(Table3[[#This Row],[Total length (bp)]]>1000000,"YES","NO") -> NO | N73: =IF(Table3[[#This Row],[Total length (bp)]]>500000,"YES","NO") -> NO | O73: NO | P73: NO
A74: 72 | B74: micro00072 | C74: 23 | D74: 4 | E74: 126,884 | F74: 33 | G74: 6 | H74: 6 | I74: 127 | J74: TGGTCGGTGACCCAGTACTCACCC | K74: =LEN(Table3[[#This Row],[Ucluster seed sequence]]) -> 24 | L74: NO | M74: =IF(Table3[[#This Row],[Total length (bp)]]>1000000,"YES","NO") -> NO | N74: =IF(Table3[[#This Row],[Total length (bp)]]>500000,"YES","NO") -> NO | O74: NO | P74: NO | Q74: YES
A75: 73 | B75: micro00073 | C75: 25 | D75: 8 | E75: 14,093 | F75: 8 | G75: 2 | H75: 5 | I75: 135 | J75: CCTAACCCCATTACTAACCCTAAC | K75: =LEN(Table3[[#This Row],[Ucluster seed sequence]]) -> 24 | L75: NO | M75: =IF(Table3[[#This Row],[Total length (bp)]]>1000000,"YES","NO") -> NO | N75: =IF(Table3[[#This Row],[Total length (bp)]]>500000,"YES","NO") -> NO | O75: NO | P75: NO | Q75: YES
A76: 74 | B76: micro00074 | C76: 25 | D76: 7 | E76: 50,796 | F76: 80 | G76: 15 | H76: 5 | I76: 134 | J76: TCTACTGTGTTTTATTTCTCTTTC | K76: =LEN(Table3[[#This Row],[Ucluster seed sequence]]) -> 24 | L76: NO | M76: =IF(Table3[[#This Row],[Total length (bp)]]>1000000,"YES","NO") -> NO | N76: =IF(Table3[[#This Row],[Total length (bp)]]>500000,"YES","NO") -> NO | O76: YES | P76: YES | Q76: YES
A77: 75 | B77: micro00075 | C77: 24 | D77: 1 | E77: 402 | F77: 6 | G77: 1 | H77: 6 | I77: 139 | J77: ACGATCAGTACATTCCAGTACCGG | K77: =LEN(Table3[[#This Row],[Ucluster seed sequence]]) -> 24 | M77: =IF(Table3[[#This Row],[Total length (bp)]]>1000000,"YES","NO") -> NO | N77: =IF(Table3[[#This Row],[Total length (bp)]]>500000,"YES","NO") -> NO | O77: YES | P77: NO
A78: 76 | B78: micro00076 | C78: 18 | D78: 10 | E78: 17,072 | F78: 12 | G78: 2 | H78: 5 | I78: 98 | J78: CTAACCCTAATTAAAACCCTAACC | K78: =LEN(Table3[[#This Row],[Ucluster seed sequence]]) -> 24 | L78: NO | M78: =IF(Table3[[#This Row],[Total length (bp)]]>1000000,"YES","NO") -> NO | N78: =IF(Table3[[#This Row],[Total length (bp)]]>500000,"YES","NO") -> NO | O78: NO | P78: NO | Q78: YES
A79: 77 | B79: micro00077 | C79: 17 | D79: 5 | E79: 39,786 | F79: 16 | G79: 3 | H79: 6 | I79: 100 | J79: CGCTCTTTTTGTTACTTA | K79: =LEN(Table3[[#This Row],[Ucluster seed sequence]]) -> 18 | L79: NO | M79: =IF(Table3[[#This Row],[Total length (bp)]]>1000000,"YES","NO") -> NO | N79: =IF(Table3[[#This Row],[Total length (bp)]]>500000,"YES","NO") -> NO | O79: NO | P79: NO | Q79: YES
A80: 78 | B80: micro00078 | C80: 18 | D80: 4 | E80: 79,584 | F80: 174 | G80: 24 | H80: 6 | I80: 113 | J80: CGAGTCTGCCATATCAGG | K80: =LEN(Table3[[#This Row],[Ucluster seed sequence]]) -> 18 | M80: =IF(Table3[[#This Row],[Total length (bp)]]>1000000,"YES","NO") -> NO | N80: =IF(Table3[[#This Row],[Total length (bp)]]>500000,"YES","NO") -> NO | O80: YES | P80: YES | Q80: YES
A81: 79 | B81: micro00079 | C81: 8 | D81: 4 | E81: 8,426 | F81: 20 | G81: 3 | H81: 8 | I81: 62 | J81: AAGGCACT | K81: =LEN(Table3[[#This Row],[Ucluster seed sequence]]) -> 8 | M81: =IF(Table3[[#This Row],[Total length (bp)]]>1000000,"YES","NO") -> NO | N81: =IF(Table3[[#This Row],[Total length (bp)]]>500000,"YES","NO") -> NO | O81: NO | P81: NO
A82: 80 | B82: micro00080 | C82: 18 | D82: 2 | E82: 441 | F82: 7 | G82: 1 | H82: 7 | I82: 119 | J82: GCATATGCATTTGCACAG | K82: =LEN(Table3[[#This Row],[Ucluster seed sequence]]) -> 18 | M82: =IF(Table3[[#This Row],[Total length (bp)]]>1000000,"YES","NO") -> NO | N82: =IF(Table3[[#This Row],[Total length (bp)]]>500000,"YES","NO") -> NO | O82: YES | P82: NO
A83: 81 | B83: micro00081 | C83: 12 | D83: 8 | E83: 33,793 | F83: 27 | G83: 5 | H83: 6 | I83: 68 | J83: AGGGTTAGAATTAGGGTTAGGGTT | K83: =LEN(Table3[[#This Row],[Ucluster seed sequence]]) -> 24 | L83: NO | M83: =IF(Table3[[#This Row],[Total length (bp)]]>1000000,"YES","NO") -> NO | N83: =IF(Table3[[#This Row],[Total length (bp)]]>500000,"YES","NO") -> NO | O83: NO | P83: NO | Q83: YES
A84: 82 | B84: micro00082 | C84: 18 | D84: 3 | E84: 598 | F84: 7 | G84: 1 | H84: 7 | I84: 126 | J84: TCATCCACATACATAGCT | K84: =LEN(Table3[[#This Row],[Ucluster seed sequence]]) -> 18 | M84: =IF(Table3[[#This Row],[Total length (bp)]]>1000000,"YES","NO") -> NO | N84: =IF(Table3[[#This Row],[Total length (bp)]]>500000,"YES","NO") -> NO | O84: NO | P84: NO
A85: 83 | B85: micro00083 | C85: 24 | D85: 6 | E85: 46,114 | F85: 63 | G85: 8 | H85: 6 | I85: 155 | J85: TTGGCATAGGCATTGGCGTAGGCA | K85: =LEN(Table3[[#This Row],[Ucluster seed sequence]]) -> 24 | M85: =IF(Table3[[#This Row],[Total length (bp)]]>1000000,"YES","NO") -> NO | N85: =IF(Table3[[#This Row],[Total length (bp)]]>500000,"YES","NO") -> NO | O85: YES | P85: YES | Q85: YES
A86: 84 | B86: micro00084 | C86: 23 | D86: 3 | E86: 17,495 | F86: 24 | G86: 4 | H86: 6 | I86: 128 | J86: TAACTGGATATTTGCCGAACCGGC | K86: =LEN(Table3[[#This Row],[Ucluster seed sequence]]) -> 24 | L86: NO | M86: =IF(Table3[[#This Row],[Total length (bp)]]>1000000,"YES","NO") -> NO | N86: =IF(Table3[[#This Row],[Total length (bp)]]>500000,"YES","NO") -> NO | O86: YES | P86: YES | Q86: YES
A87: 85 | B87: micro00085 | C87: 12 | D87: 4 | E87: 35,638 | F87: 28 | G87: 4 | H87: 6 | I87: 74 | J87: CATAGACATAGTCATAGACGTAGG | K87: =LEN(Table3[[#This Row],[Ucluster seed sequence]]) -> 24 | L87: NO | M87: =IF(Table3[[#This Row],[Total length (bp)]]>1000000,"YES","NO") -> NO | N87: =IF(Table3[[#This Row],[Total length (bp)]]>500000,"YES","NO") -> NO | O87: NO | P87: NO | Q87: YES
A88: 86 | B88: micro00086 | C88: 23 | D88: 2 | E88: 32,149 | F88: 30 | G88: 5 | H88: 6 | I88: 129 | J88: TGGATTATTGCCGAACCGGCTAAC | K88: =LEN(Table3[[#This Row],[Ucluster seed sequence]]) -> 24 | L88: NO | M88: =IF(Table3[[#This Row],[Total length (bp)]]>1000000,"YES","NO") -> NO | N88: =IF(Table3[[#This Row],[Total length (bp)]]>500000,"YES","NO") -> NO | O88: YES | P88: YES | Q88: YES
A89: 87 | B89: micro00087 | C89: 21 | D89: 6 | E89: 23,992 | F89: 11 | G89: 2 | H89: 5 | I89: 115 | J89: CGACGGTATCGGATCGGTCGTTGA | K89: =LEN(Table3[[#This Row],[Ucluster seed sequence]]) -> 24 | L89: NO | M89: =IF(Table3[[#This Row],[Total length (bp)]]>1000000,"YES","NO") -> NO | N89: =IF(Table3[[#This Row],[Total length (bp)]]>500000,"YES","NO") -> NO | O89: NO | P89: NO | Q89: YES
A90: 88 | B90: micro00088 | C90: 24 | D90: 4 | E90: 19,510 | F90: 23 | G90: 4 | H90: 5 | I90: 130 | J90: TAGGCATAAGCATAGACGTAGGCG | K90: =LEN(Table3[[#This Row],[Ucluster seed sequence]]) -> 24 | M90: =IF(Table3[[#This Row],[Total length (bp)]]>1000000,"YES","NO") -> NO | N90: =IF(Table3[[#This Row],[Total length (bp)]]>500000,"YES","NO") -> NO | O90: YES | P90: YES | Q90: YES
A91: 89 | B91: micro00089 | C91: 26 | D91: 7 | E91: 273,886 | F91: 821 | G91: 137 | H91: 6 | I91: 147 | J91: GCCTACTACATATGCTTACGCACT | K91: =LEN(Table3[[#This Row],[Ucluster seed sequence]]) -> 24 | L91: NO | M91: =IF(Table3[[#This Row],[Total length (bp)]]>1000000,"YES","NO") -> NO | N91: =IF(Table3[[#This Row],[Total length (bp)]]>500000,"YES","NO") -> NO | O91: YES | P91: YES | Q91: YES
A92: 90 | B92: micro00090 | C92: 12 | D92: 5 | E92: 4,346 | F92: 12 | G92: 2 | H92: 6 | I92: 75 | J92: TGACTAATTCCG | K92: =LEN(Table3[[#This Row],[Ucluster seed sequence]]) -> 12 | M92: =IF(Table3[[#This Row],[Total length (bp)]]>1000000,"YES","NO") -> NO | N92: =IF(Table3[[#This Row],[Total length (bp)]]>500000,"YES","NO") -> NO | O92: NO | P92: NO
A93: 91 | B93: micro00091 | C93: 24 | D93: 2 | E93: 279 | F93: 6 | G93: 1 | H93: 6 | I93: 141 | J93: GTTGAGTGGTATTTTCCATCACCC | K93: =LEN(Table3[[#This Row],[Ucluster seed sequence]]) -> 24 | L93: NO | M93: =IF(Table3[[#This Row],[Total length (bp)]]>1000000,"YES","NO") -> NO | N93: =IF(Table3[[#This Row],[Total length (bp)]]>500000,"YES","NO") -> NO | O93: YES | P93: NO
A94: 92 | B94: micro00092 | C94: 24 | D94: 8 | E94: 88,575 | F94: 21 | G94: 4 | H94: 5 | I94: 130 | J94: CGCCTACGCCTATGCCTATGCCTG | K94: =LEN(Table3[[#This Row],[Ucluster seed sequence]]) -> 24 | M94: =IF(Table3[[#This Row],[Total length (bp)]]>1000000,"YES","NO") -> NO | N94: =IF(Table3[[#This Row],[Total length (bp)]]>500000,"YES","NO") -> NO | O94: YES | P94: YES | Q94: YES
A95: 93 | B95: micro00093 | C95: 11 | D95: 6 | E95: 1,081 | F95: 8 | G95: 1 | H95: 7 | I95: 78 | J95: ACACCTACACACACAC | K95: =LEN(Table3[[#This Row],[Ucluster seed sequence]]) -> 16 | L95: NO | M95: =IF(Table3[[#This Row],[Total length (bp)]]>1000000,"YES","NO") -> NO | N95: =IF(Table3[[#This Row],[Total length (bp)]]>500000,"YES","NO") -> NO | O95: NO | P95: NO
A96: 94 | B96: micro00094 | C96: 11 | D96: 1 | E96: 140 | F96: 13 | G96: 1 | H96: 13 | I96: 147 | J96: TGGTACAATTT | K96: =LEN(Table3[[#This Row],[Ucluster seed sequence]]) -> 11 | M96: =IF(Table3[[#This Row],[Total length (bp)]]>1000000,"YES","NO") -> NO | N96: =IF(Table3[[#This Row],[Total length (bp)]]>500000,"YES","NO") -> NO | O96: NO | P96: NO
A97: 95 | B97: micro00095 | C97: 15 | D97: 3 | E97: 393 | F97: 7 | G97: 1 | H97: 7 | I97: 106 | J97: GCCATTGCCTATT | K97: =LEN(Table3[[#This Row],[Ucluster seed sequence]]) -> 13 | L97: NO | M97: =IF(Table3[[#This Row],[Total length (bp)]]>1000000,"YES","NO") -> NO | N97: =IF(Table3[[#This Row],[Total length (bp)]]>500000,"YES","NO") -> NO | O97: YES | P97: NO
A98: 96 | B98: micro00096 | C98: 28 | D98: 1 | E98: 2,656 | F98: 24 | G98: 5 | H98: 5 | I98: 140 | J98: GCCTGTTAGATGCTCAGGCTGCTGATGC | K98: =LEN(Table3[[#This Row],[Ucluster seed sequence]]) -> 28 | M98: =IF(Table3[[#This Row],[Total length (bp)]]>1000000,"YES","NO") -> NO | N98: =IF(Table3[[#This Row],[Total length (bp)]]>500000,"YES","NO") -> NO | O98: YES | P98: YES
A99: 97 | B99: micro00097 | C99: 16 | D99: 7 | E99: 8,175 | F99: 10 | G99: 2 | H99: 6 | I99: 88 | J99: CCGTGACTAACATATATCCGTGACTAAT | K99: =LEN(Table3[[#This Row],[Ucluster seed sequence]]) -> 28 | L99: NO | M99: =IF(Table3[[#This Row],[Total length (bp)]]>1000000,"YES","NO") -> NO | N99: =IF(Table3[[#This Row],[Total length (bp)]]>500000,"YES","NO") -> NO | O99: NO | P99: NO
A100: 98 | B100: micro00098 | C100: 28 | D100: 3 | E100: 5,683 | F100: 15 | G100: 3 | H100: 5 | I100: 143 | J100: CGTGTGCCTTCCGGGTCCACACCAAACC | K100: =LEN(Table3[[#This Row],[Ucluster seed sequence]]) -> 28 | M100: =IF(Table3[[#This Row],[Total length (bp)]]>1000000,"YES","NO") -> NO | N100: =IF(Table3[[#This Row],[Total length (bp)]]>500000,"YES","NO") -> NO | O100: NO | P100: NO
A101: 99 | B101: micro00099 | C101: 28 | D101: 1 | E101: 280 | F101: 5 | G101: 1 | H101: 5 | I101: 140 | J101: GGTGAGTACGGAAAGGCACCATGTTCCG | K101: =LEN(Table3[[#This Row],[Ucluster seed sequence]]) -> 28 | M101: =IF(Table3[[#This Row],[Total length (bp)]]>1000000,"YES","NO") -> NO | N101: =IF(Table3[[#This Row],[Total length (bp)]]>500000,"YES","NO") -> NO | O101: YES | P101: NO
A102: 100 | B102: micro00100 | C102: 20 | D102: 3 | E102: 3,708 | F102: 10 | G102: 2 | H102: 5 | I102: 104 | J102: CGCGAAAAGGTATGACCTTTGGTCCATT | K102: =LEN(Table3[[#This Row],[Ucluster seed sequence]]) -> 28 | L102: NO | M102: =IF(Table3[[#This Row],[Total length (bp)]]>1000000,"YES","NO") -> NO | N102: =IF(Table3[[#This Row],[Total length (bp)]]>500000,"YES","NO") -> NO | O102: NO | P102: NO
A103: 101 | B103: micro00101 | C103: 28 | D103: 2 | E103: 4,041 | F103: 21 | G103: 4 | H103: 5 | I103: 141 | J103: TTAGATAATGAGGCTGCTGATAAGCCTT | K103: =LEN(Table3[[#This Row],[Ucluster seed sequence]]) -> 28 | M103: =IF(Table3[[#This Row],[Total length (bp)]]>1000000,"YES","NO") -> NO | N103: =IF(Table3[[#This Row],[Total length (bp)]]>500000,"YES","NO") -> NO | O103: YES | P103: YES
A104: 102 | B104: micro00102 | C104: 14 | D104: 5 | E104: 6,540 | F104: 9 | G104: 1 | H104: 7 | I104: 93 | J104: TAGGTCTTATGTCT | K104: =LEN(Table3[[#This Row],[Ucluster seed sequence]]) -> 14 | M104: =IF(Table3[[#This Row],[Total length (bp)]]>1000000,"YES","NO") -> NO | N104: =IF(Table3[[#This Row],[Total length (bp)]]>500000,"YES","NO") -> NO | O104: NO | P104: NO
A105: 103 | B105: micro00103 | C105: 28 | D105: 1 | E105: 974 | F105: 9 | G105: 2 | H105: 5 | I105: 140 | J105: GATACTATGAATATATTGGACATACTCT | K105: =LEN(Table3[[#This Row],[Ucluster seed sequence]]) -> 28 | M105: =IF(Table3[[#This Row],[Total length (bp)]]>1000000,"YES","NO") -> NO | N105: =IF(Table3[[#This Row],[Total length (bp)]]>500000,"YES","NO") -> NO | O105: YES | P105: NO
A106: 104 | B106: micro00104 | C106: 28 | D106: 2 | E106: 692 | F106: 6 | G106: 1 | H106: 5 | I106: 141 | J106: GCGTTTGCAGTCAAGATTTATTGAAAAA | K106: =LEN(Table3[[#This Row],[Ucluster seed sequence]]) -> 28 | M106: =IF(Table3[[#This Row],[Total length (bp)]]>1000000,"YES","NO") -> NO | N106: =IF(Table3[[#This Row],[Total length (bp)]]>500000,"YES","NO") -> NO | O106: YES | P106: NO
A107: 105 | B107: micro00105 | C107: 28 | D107: 4 | E107: 876 | F107: 6 | G107: 1 | H107: 6 | I107: 155 | J107: TAGATAGATAGATAGATAGATAGTTACT | K107: =LEN(Table3[[#This Row],[Ucluster seed sequence]]) -> 28 | M107: =IF(Table3[[#This Row],[Total length (bp)]]>1000000,"YES","NO") -> NO | N107: =IF(Table3[[#This Row],[Total length (bp)]]>500000,"YES","NO") -> NO | O107: YES | P107: NO
A108: 106 | B108: micro00106 | C108: 17 | D108: 3 | E108: 378 | F108: 9 | G108: 2 | H108: 5 | I108: 91 | J108: CAAAATTTTCCATTTGGAGCCAACAGTA | K108: =LEN(Table3[[#This Row],[Ucluster seed sequence]]) -> 28 | L108: NO | M108: =IF(Table3[[#This Row],[Total length (bp)]]>1000000,"YES","NO") -> NO | N108: =IF(Table3[[#This Row],[Total length (bp)]]>500000,"YES","NO") -> NO | O108: NO | P108: NO
A109: 107 | B109: micro00107 | C109: 28 | D109: 1 | E109: 140 | F109: 5 | G109: 1 | H109: 5 | I109: 140 | J109: GTGTTATTAGGGAAATCAGGTTTGACTT | K109: =LEN(Table3[[#This Row],[Ucluster seed sequence]]) -> 28 | M109: =IF(Table3[[#This Row],[Total length (bp)]]>1000000,"YES","NO") -> NO | N109: =IF(Table3[[#This Row],[Total length (bp)]]>500000,"YES","NO") -> NO | O109: NO | P109: NO
A110: 108 | B110: micro00108 | C110: 20 | D110: 4 | E110: 24,720 | F110: 26 | G110: 5 | H110: 6 | I110: 113 | J110: AATTTTTAAAGAACCTTACG | K110: =LEN(Table3[[#This Row],[Ucluster seed sequence]]) -> 20 | M110: =IF(Table3[[#This Row],[Total length (bp)]]>1000000,"YES","NO") -> NO | N110: =IF(Table3[[#This Row],[Total length (bp)]]>500000,"YES","NO") -> NO | O110: NO | P110: NO | Q110: YES
A111: 109 | B111: micro00109 | C111: 28 | D111: 4 | E111: 3,374 | F111: 7 | G111: 1 | H111: 5 | I111: 141 | J111: ACCTTTTCGCGAATGGACCAACGGTCAC | K111: =LEN(Table3[[#This Row],[Ucluster seed sequence]]) -> 28 | M111: =IF(Table3[[#This Row],[Total length (bp)]]>1000000,"YES","NO") -> NO | N111: =IF(Table3[[#This Row],[Total length (bp)]]>500000,"YES","NO") -> NO | O111: NO | P111: NO
A112: 110 | B112: micro00110 | C112: 28 | D112: 1 | E112: 979 | F112: 6 | G112: 1 | H112: 5 | I112: 140 | J112: TTAGATAATCAGGCTGCTGATGAGCCTC | K112: =LEN(Table3[[#This Row],[Ucluster seed sequence]]) -> 28 | M112: =IF(Table3[[#This Row],[Total length (bp)]]>1000000,"YES","NO") -> NO | N112: =IF(Table3[[#This Row],[Total length (bp)]]>500000,"YES","NO") -> NO | O112: YES | P112: NO
A113: 111 | B113: micro00111 | C113: 28 | D113: 1 | E113: 139 | F113: 5 | G113: 1 | H113: 5 | I113: 140 | J113: GCGCGCTCCGTCGAAGTCCATCTTCTCG | K113: =LEN(Table3[[#This Row],[Ucluster seed sequence]]) -> 28 | M113: =IF(Table3[[#This Row],[Total length (bp)]]>1000000,"YES","NO") -> NO | N113: =IF(Table3[[#This Row],[Total length (bp)]]>500000,"YES","NO") -> NO | O113: NO | P113: NO
A114: 112 | B114: micro00112 | C114: 20 | D114: 3 | E114: 9,757 | F114: 30 | G114: 5 | H114: 7 | I114: 132 | J114: TGCCTACGCCTAATGCCTAC | K114: =LEN(Table3[[#This Row],[Ucluster seed sequence]]) -> 20 | M114: =IF(Table3[[#This Row],[Total length (bp)]]>1000000,"YES","NO") -> NO | N114: =IF(Table3[[#This Row],[Total length (bp)]]>500000,"YES","NO") -> NO | O114: NO | P114: NO
A115: 113 | B115: micro00113 | C115: 14 | D115: 3 | E115: 15,057 | F115: 17 | G115: 3 | H115: 6 | I115: 81 | J115: ATATCTTGATAGTTATATCTTGTTAGCT | K115: =LEN(Table3[[#This Row],[Ucluster seed sequence]]) -> 28 | L115: NO | M115: =IF(Table3[[#This Row],[Total length (bp)]]>1000000,"YES","NO") -> NO | N115: =IF(Table3[[#This Row],[Total length (bp)]]>500000,"YES","NO") -> NO | O115: NO | P115: NO | Q115: YES
A116: 114 | B116: micro00114 | C116: 28 | D116: 1 | E116: 2,520 | F116: 15 | G116: 3 | H116: 5 | I116: 140 | J116: TCAGGCTGCTGGTGCGCCTGTTAGATGA | K116: =LEN(Table3[[#This Row],[Ucluster seed sequence]]) -> 28 | M116: =IF(Table3[[#This Row],[Total length (bp)]]>1000000,"YES","NO") -> NO | N116: =IF(Table3[[#This Row],[Total length (bp)]]>500000,"YES","NO") -> NO | O116: YES | P116: YES
A117: 115 | B117: micro00115 | C117: 28 | D117: 1 | E117: 140 | F117: 5 | G117: 1 | H117: 5 | I117: 140 | J117: AAAAAGCTTCGGGTCTGGGTGGATTGTG | K117: =LEN(Table3[[#This Row],[Ucluster seed sequence]]) -> 28 | M117: =IF(Table3[[#This Row],[Total length (bp)]]>1000000,"YES","NO") -> NO | N117: =IF(Table3[[#This Row],[Total length (bp)]]>500000,"YES","NO") -> NO | O117: NO | P117: NO
A118: 116 | B118: micro00116 | C118: 27 | D118: 8 | E118: 2,313 | F118: 10 | G118: 1 | H118: 6 | I118: 167 | J118: ACTGCCAACTGCCTACTGCCTACTGCCA | K118: =LEN(Table3[[#This Row],[Ucluster seed sequence]]) -> 28 | L118: NO | M118: =IF(Table3[[#This Row],[Total length (bp)]]>1000000,"YES","NO") -> NO | N118: =IF(Table3[[#This Row],[Total length (bp)]]>500000,"YES","NO") -> NO | O118: YES | P118: YES
A119: 117 | B119: micro00117 | C119: 27 | D119: 5 | E119: 3,800 | F119: 8 | G119: 1 | H119: 5 | I119: 140 | J119: TAGTCACGGATTAGTCACGGCCATCAGT | K119: =LEN(Table3[[#This Row],[Ucluster seed sequence]]) -> 28 | L119: NO | M119: =IF(Table3[[#This Row],[Total length (bp)]]>1000000,"YES","NO") -> NO | N119: =IF(Table3[[#This Row],[Total length (bp)]]>500000,"YES","NO") -> NO | O119: NO | P119: NO
A120: 118 | B120: micro00118 | C120: 28 | D120: 2 | E120: 9,781 | F120: 13 | G120: 3 | H120: 5 | I120: 140 | J120: AACGGTACACCCGATAACGGACGGGATC | K120: =LEN(Table3[[#This Row],[Ucluster seed sequence]]) -> 28 | M120: =IF(Table3[[#This Row],[Total length (bp)]]>1000000,"YES","NO") -> NO | N120: =IF(Table3[[#This Row],[Total length (bp)]]>500000,"YES","NO") -> NO | O120: YES | P120: YES
A121: 119 | B121: micro00119 | C121: 28 | D121: 4 | E121: 1,246 | F121: 6 | G121: 1 | H121: 5 | I121: 141 | J121: TAGCAAAAAGAGTGAAGTAAAAAAAACA | K121: =LEN(Table3[[#This Row],[Ucluster seed sequence]]) -> 28 | M121: =IF(Table3[[#This Row],[Total length (bp)]]>1000000,"YES","NO") -> NO | N121: =IF(Table3[[#This Row],[Total length (bp)]]>500000,"YES","NO") -> NO | O121: YES | P121: YES
A122: 120 | B122: micro00120 | C122: 11 | D122: 2 | E122: 880 | F122: 9 | G122: 2 | H122: 5 | I122: 60 | J122: CAATACCGAAGGCGTGATCCGTCACGCA | K122: =LEN(Table3[[#This Row],[Ucluster seed sequence]]) -> 28 | L122: NO | M122: =IF(Table3[[#This Row],[Total length (bp)]]>1000000,"YES","NO") -> NO | N122: =IF(Table3[[#This Row],[Total length (bp)]]>500000,"YES","NO") -> NO | O122: NO | P122: NO
A123: 121 | B123: micro00121 | C123: 28 | D123: 1 | E123: 980 | F123: 9 | G123: 2 | H123: 5 | I123: 140 | J123: CTAATAGGCGCACCAGCGGCCTGATTAT | K123: =LEN(Table3[[#This Row],[Ucluster seed sequence]]) -> 28 | M123: =IF(Table3[[#This Row],[Total length (bp)]]>1000000,"YES","NO") -> NO | N123: =IF(Table3[[#This Row],[Total length (bp)]]>500000,"YES","NO") -> NO | O123: NO | P123: NO
A124: 122 | B124: micro00122 | C124: 28 | D124: 1 | E124: 14,403 | F124: 57 | G124: 11 | H124: 5 | I124: 140 | J124: CTATTGGATAATCAGGCCGCAGATGCGC | K124: =LEN(Table3[[#This Row],[Ucluster seed sequence]]) -> 28 | M124: =IF(Table3[[#This Row],[Total length (bp)]]>1000000,"YES","NO") -> NO | N124: =IF(Table3[[#This Row],[Total length (bp)]]>500000,"YES","NO") -> NO | O124: YES | P124: YES | Q124: YES
A125: 123 | B125: micro00123 | C125: 14 | D125: 5 | E125: 30,984 | F125: 42 | G125: 6 | H125: 7 | I125: 94 | J125: GAAAAGCGAGTCCAGAAAAGCGAGTCCT | K125: =LEN(Table3[[#This Row],[Ucluster seed sequence]]) -> 28 | L125: NO | M125: =IF(Table3[[#This Row],[Total length (bp)]]>1000000,"YES","NO") -> NO | N125: =IF(Table3[[#This Row],[Total length (bp)]]>500000,"YES","NO") -> NO | O125: NO | P125: NO | Q125: YES
A126: 124 | B126: micro00124 | C126: 27 | D126: 3 | E126: 2,502 | F126: 12 | G126: 2 | H126: 5 | I126: 140 | J126: CTAATCCGTGACTAGCATGCGGCCGTGA | K126: =LEN(Table3[[#This Row],[Ucluster seed sequence]]) -> 28 | L126: NO | M126: =IF(Table3[[#This Row],[Total length (bp)]]>1000000,"YES","NO") -> NO | N126: =IF(Table3[[#This Row],[Total length (bp)]]>500000,"YES","NO") -> NO | O126: YES | P126: YES
A127: 125 | B127: micro00125 | C127: 27 | D127: 4 | E127: 2,294 | F127: 10 | G127: 2 | H127: 5 | I127: 145 | J127: ACGGATTAGTCACGGTCACTATGTAGTC | K127: =LEN(Table3[[#This Row],[Ucluster seed sequence]]) -> 28 | L127: NO | M127: =IF(Table3[[#This Row],[Total length (bp)]]>1000000,"YES","NO") -> NO | N127: =IF(Table3[[#This Row],[Total length (bp)]]>500000,"YES","NO") -> NO | O127: YES | P127: YES
A128: 126 | B128: micro00126 | C128: 28 | D128: 1 | E128: 278 | F128: 5 | G128: 1 | H128: 5 | I128: 140 | J128: TTAGATACTCAGGCTGCTGATAAGCCTG | K128: =LEN(Table3[[#This Row],[Ucluster seed sequence]]) -> 28 | M128: =IF(Table3[[#This Row],[Total length (bp)]]>1000000,"YES","NO") -> NO | N128: =IF(Table3[[#This Row],[Total length (bp)]]>500000,"YES","NO") -> NO | O128: YES | P128: NO
A129: 127 | B129: micro00127 | C129: 14 | D129: 7 | E129: 8,007 | F129: 33 | G129: 5 | H129: 7 | I129: 98 | J129: GCAGTAGGAAGTAG | K129: =LEN(Table3[[#This Row],[Ucluster seed sequence]]) -> 14 | M129: =IF(Table3[[#This Row],[Total length (bp)]]>1000000,"YES","NO") -> NO | N129: =IF(Table3[[#This Row],[Total length (bp)]]>500000,"YES","NO") -> NO | O129: YES | P129: YES
A130: 128 | B130: micro00128 | C130: 20 | D130: 6 | E130: 1,016 | F130: 8 | G130: 1 | H130: 6 | I130: 126 | J130: GAGAGAGAGACTGAGCGAGA | K130: =LEN(Table3[[#This Row],[Ucluster seed sequence]]) -> 20 | M130: =IF(Table3[[#This Row],[Total length (bp)]]>1000000,"YES","NO") -> NO | N130: =IF(Table3[[#This Row],[Total length (bp)]]>500000,"YES","NO") -> NO | O130: NO | P130: NO
A131: 129 | B131: micro00129 | C131: 28 | D131: 1 | E131: 8,951 | F131: 53 | G131: 11 | H131: 5 | I131: 140 | J131: CTGCTGATGCGCTTGTTAGATAATCAGG | K131: =LEN(Table3[[#This Row],[Ucluster seed sequence]]) -> 28 | M131: =IF(Table3[[#This Row],[Total length (bp)]]>1000000,"YES","NO") -> NO | N131: =IF(Table3[[#This Row],[Total length (bp)]]>500000,"YES","NO") -> NO | O131: YES | P131: YES
A132: 130 | B132: micro00130 | C132: 28 | D132: 1 | E132: 2,236 | F132: 16 | G132: 3 | H132: 5 | I132: 140 | J132: CTAACAGGAGCATCAGCAGCCTAATTAT | K132: =LEN(Table3[[#This Row],[Ucluster seed sequence]]) -> 28 | M132: =IF(Table3[[#This Row],[Total length (bp)]]>1000000,"YES","NO") -> NO | N132: =IF(Table3[[#This Row],[Total length (bp)]]>500000,"YES","NO") -> NO | O132: YES | P132: YES
A133: 131 | B133: micro00131 | C133: 28 | D133: 2 | E133: 413 | F133: 5 | G133: 1 | H133: 5 | I133: 145 | J133: GGTCCAGCAGCGGCGGCGACCTCGGGGG | K133: =LEN(Table3[[#This Row],[Ucluster seed sequence]]) -> 28 | M133: =IF(Table3[[#This Row],[Total length (bp)]]>1000000,"YES","NO") -> NO | N133: =IF(Table3[[#This Row],[Total length (bp)]]>500000,"YES","NO") -> NO | O133: NO | P133: NO
A134: 132 | B134: micro00132 | C134: 26 | D134: 3 | E134: 724 | F134: 5 | G134: 1 | H134: 5 | I134: 140 | J134: AAGTAACTCGACACAAGTAAAGTAAAGT | K134: =LEN(Table3[[#This Row],[Ucluster seed sequence]]) -> 28 | L134: NO | M134: =IF(Table3[[#This Row],[Total length (bp)]]>1000000,"YES","NO") -> NO | N134: =IF(Table3[[#This Row],[Total length (bp)]]>500000,"YES","NO") -> NO | O134: NO | P134: NO
A135: 133 | B135: micro00133 | C135: 20 | D135: 3 | E135: 13,553 | F135: 15 | G135: 3 | H135: 5 | I135: 103 | J135: AAAAACTCCTTCACTGAATC | K135: =LEN(Table3[[#This Row],[Ucluster seed sequence]]) -> 20 | M135: =IF(Table3[[#This Row],[Total length (bp)]]>1000000,"YES","NO") -> NO | N135: =IF(Table3[[#This Row],[Total length (bp)]]>500000,"YES","NO") -> NO | O135: NO | P135: NO | Q135: YES
A136: 134 | B136: micro00134 | C136: 21 | D136: 2 | E136: 238 | F136: 6 | G136: 1 | H136: 6 | I136: 124 | J136: GGACTCGCTTTTCTGGATAAGCTTTTCA | K136: =LEN(Table3[[#This Row],[Ucluster seed sequence]]) -> 28 | L136: NO | M136: =IF(Table3[[#This Row],[Total length (bp)]]>1000000,"YES","NO") -> NO | N136: =IF(Table3[[#This Row],[Total length (bp)]]>500000,"YES","NO") -> NO | O136: YES | P136: NO
A137: 135 | B137: micro00135 | C137: 27 | D137: 2 | E137: 974 | F137: 9 | G137: 2 | H137: 5 | I137: 138 | J137: TAATCTTGGAATCTTGAGCTTGTGTTGG | K137: =LEN(Table3[[#This Row],[Ucluster seed sequence]]) -> 28 | L137: NO | M137: =IF(Table3[[#This Row],[Total length (bp)]]>1000000,"YES","NO") -> NO | N137: =IF(Table3[[#This Row],[Total length (bp)]]>500000,"YES","NO") -> NO | O137: YES | P137: NO
A138: 136 | B138: micro00136 | C138: 28 | D138: 1 | E138: 557 | F138: 7 | G138: 1 | H138: 5 | I138: 140 | J138: CAGCCTAATAATCTAAAAGGCGCATCAG | K138: =LEN(Table3[[#This Row],[Ucluster seed sequence]]) -> 28 | M138: =IF(Table3[[#This Row],[Total length (bp)]]>1000000,"YES","NO") -> NO | N138: =IF(Table3[[#This Row],[Total length (bp)]]>500000,"YES","NO") -> NO | O138: YES | P138: NO
A139: 137 | B139: micro00137 | C139: 28 | D139: 1 | E139: 279 | F139: 5 | G139: 1 | H139: 5 | I139: 140 | J139: ATTTGTCACGGCTTAGGTTTAGTCACAG | K139: =LEN(Table3[[#This Row],[Ucluster seed sequence]]) -> 28 | M139: =IF(Table3[[#This Row],[Total length (bp)]]>1000000,"YES","NO") -> NO | N139: =IF(Table3[[#This Row],[Total length (bp)]]>500000,"YES","NO") -> NO | O139: YES | P139: NO
A140: 138 | B140: micro00138 | C140: 28 | D140: 1 | E140: 140 | F140: 5 | G140: 1 | H140: 5 | I140: 140 | J140: TGGCAAAACCGGCGTCGAGCTTGAGGCG | K140: =LEN(Table3[[#This Row],[Ucluster seed sequence]]) -> 28 | M140: =IF(Table3[[#This Row],[Total length (bp)]]>1000000,"YES","NO") -> NO | N140: =IF(Table3[[#This Row],[Total length (bp)]]>500000,"YES","NO") -> NO | O140: NO | P140: NO
A141: 139 | B141: micro00139 | C141: 7 | D141: 11 | E141: 353,908 | F141: 200 | G141: 26 | H141: 8 | I141: 54 | J141: AAGGCCCAAGGCCCAAGCCC | K141: =LEN(Table3[[#This Row],[Ucluster seed sequence]]) -> 20 | L141: NO | M141: =IF(Table3[[#This Row],[Total length (bp)]]>1000000,"YES","NO") -> NO | N141: =IF(Table3[[#This Row],[Total length (bp)]]>500000,"YES","NO") -> NO | O141: NO | P141: NO | Q141: YES
A142: 140 | B142: micro00140 | C142: 28 | D142: 1 | E142: 140 | F142: 5 | G142: 1 | H142: 5 | I142: 140 | J142: ACCGCTGCAGTAATGCTTGCAAGGCGTA | K142: =LEN(Table3[[#This Row],[Ucluster seed sequence]]) -> 28 | M142: =IF(Table3[[#This Row],[Total length (bp)]]>1000000,"YES","NO") -> NO | N142: =IF(Table3[[#This Row],[Total length (bp)]]>500000,"YES","NO") -> NO | O142: NO | P142: NO
A143: 141 | B143: micro00141 | C143: 28 | D143: 1 | E143: 3,776 | F143: 17 | G143: 3 | H143: 5 | I143: 140 | J143: TCCACACCAAACTCGTGTGTCTTCCGAG | K143: =LEN(Table3[[#This Row],[Ucluster seed sequence]]) -> 28 | M143: =IF(Table3[[#This Row],[Total length (bp)]]>1000000,"YES","NO") -> NO | N143: =IF(Table3[[#This Row],[Total length (bp)]]>500000,"YES","NO") -> NO | O143: NO | P143: NO
A144: 142 | B144: micro00142 | C144: 28 | D144: 2 | E144: 416 | F144: 5 | G144: 1 | H144: 5 | I144: 142 | J144: GCATTCAGCGCTCCTACGCCCTTCTTCA | K144: =LEN(Table3[[#This Row],[Ucluster seed sequence]]) -> 28 | M144: =IF(Table3[[#This Row],[Total length (bp)]]>1000000,"YES","NO") -> NO | N144: =IF(Table3[[#This Row],[Total length (bp)]]>500000,"YES","NO") -> NO | O144: YES | P144: NO
A145: 143 | B145: micro00143 | C145: 19 | D145: 2 | E145: 7,289 | F145: 17 | G145: 3 | H145: 6 | I145: 109 | J145: TCTGGTCAGAATCGCTTTCT | K145: =LEN(Table3[[#This Row],[Ucluster seed sequence]]) -> 20 | L145: NO | M145: =IF(Table3[[#This Row],[Total length (bp)]]>1000000,"YES","NO") -> NO | N145: =IF(Table3[[#This Row],[Total length (bp)]]>500000,"YES","NO") -> NO | O145: YES | P145: YES
A146: 144 | B146: micro00144 | C146: 13 | D146: 7 | E146: 30,789 | F146: 97 | G146: 12 | H146: 7 | I146: 96 | J146: TTCTGGTACACAAGCTTCTGGTACTCGC | K146: =LEN(Table3[[#This Row],[Ucluster seed sequence]]) -> 28 | L146: NO | M146: =IF(Table3[[#This Row],[Total length (bp)]]>1000000,"YES","NO") -> NO | N146: =IF(Table3[[#This Row],[Total length (bp)]]>500000,"YES","NO") -> NO | O146: YES | P146: YES | Q146: YES
A147: 145 | B147: micro00145 | C147: 27 | D147: 9 | E147: 32,748 | F147: 78 | G147: 10 | H147: 6 | I147: 168 | J147: ACTGCCTACTGCTTACTGCCTAATGCCT | K147: =LEN(Table3[[#This Row],[Ucluster seed sequence]]) -> 28 | L147: NO | M147: =IF(Table3[[#This Row],[Total length (bp)]]>1000000,"YES","NO") -> NO | N147: =IF(Table3[[#This Row],[Total length (bp)]]>500000,"YES","NO") -> NO | O147: NO | P147: NO | Q147: YES
